Workbook

Sheet WELCOME
B2: =IF(DATA_ENTRY!B1:O1<>"",DATA_ENTRY!B1:O1,"") -> Multi-purpose Meta-analysis. Build 4.20.09 (May 17, 2013).
B3: Comments? Suggestions? Please contact: meta@frankbosco.com
B4: This is free software.
B6: Release notes
C7: This version of the spread conducts meta-analysis of correlations. Currently, the spread handles up to 1,000 samples (please contact me if you need to analyze more than 1,000 samples).
C8: *** In addition to Hunter/Schmidt values, popular meta-analytic output from other "traditions" are provided (e.g., Q statistics; I2)
C9: *** Macros must be enabled for this sheet to function properly (Excel should ask permission to run macros or "enable content").
C10: *** Cutting is disabled in this workbook to maintain cell reference integrity
C11: *** Exact values are used for all calculations (e.g., "1.96" = 1.95996398454005)
C12: ***This is beta software. Additions are in progress. I do not grant permission for review of this software at this time.
B14: *** Click the RED tab to enter your data
B15: *** Click the BLUE tab to view funnel plots
B16: *** Click the YELLOW tabs for a sample datasets
B17: *** Click the GREEN tab for a single-page print of your output
B21: Thanks to the following for comments/suggestions: Herman Aguinis; Dan Dalton; Mike McDaniel; Chuck Pierce
B22: Additions in progress: Corrections for scale coarseness; forest plot; fixed effects estimates

Sheet DATA_ENTRY
B1: Multi-purpose Meta-analysis. Build 4.20.09 (May 17, 2013). | P1: frankbosco.com
B2: SAMPLE INFO | F2: ES INFO | H2: RELIABILITY | J2: RR | K2: MOD | L2: INCLUDE | M2: SAMD | N2: MOD LVL | P2: ESTIMATION | S2: ALL SAMPLES | V2: =CONCATENATE("Mod level 1:",CHAR(10),"(",O4,")") -> Mod level 1: (MOD LVL 1) | X2: =CONCATENATE("Mod level 2:",CHAR(10),"(",O5,")") -> Mod level 2: (MOD LVL 2) | Z2: =CONCATENATE("Mod level 3:",CHAR(10),"(",O6,")") -> Mod level 3: () | AB2: =CONCATENATE("Mod level 4:",CHAR(10),"(",O7,")") -> Mod level 4: () | AD2: =CONCATENATE("Mod level 5:",CHAR(10),"(",O8,")") -> Mod level 5: () | AF2: =CONCATENATE("Mod level 6:",CHAR(10),"(",O9,")") -> Mod level 6: () | AH2: Graph data | EG2: Y
B3: ARTICLE ID | C3: SAMPLE ID | D3: ARTICLE SOURCE | E3: Your label name here | F3: N | G3: r(obs) | H3: rXX | I3: rYY | J3: UX | K3: LVL # | L3: SAMPLE? | M3: STAT | N3: NAMES | P3: PARAMETERS | AI3: Open | AJ3: High | AK3: Low | AN3: Open | AO3: High | AP3: Low | EG3: N
B4: 1 | C4: 1 | D4: Sample (1998) | E4: Notes | F4: 219 | G4: 0.4 | K4: 1 | L4: y | M4: =IF(AND(F4<>"",G4<>"",L4="y"),SAMD!Q4,"") -> 0.259522045 | N4: 1= | O4: MOD LVL 1 | P4: Confidence interval (%) | Q4: 95 | S4: k | T4: =IF(OR(ISERROR(Calculations!R6),ISBLANK(Calculations!R6)),"",Calculations!R6) -> 24 | V4: =IF(OR(Calculations!AJ6=0,ISERROR(Calculations!AJ6),ISBLANK(Calculations!AJ6)),"",Calculations!AJ6) -> 12 | X4: =IF(OR(Calculations!BB6=0,ISERROR(Calculations!BB6),ISBLANK(Calculations!BB6)),"",Calculations!BB6) -> 12 | Z4: =IF(OR(Calculations!BT6=0,ISERROR(Calculations!BT6),ISBLANK(Calculations!BT6)),"",Calculations!BT6) ->  | AB4: =IF(OR(Calculations!CL6=0,ISERROR(Calculations!CL6),ISBLANK(Calculations!CL6)),"",Calculations!CL6) ->  | AD4: =IF(OR(Calculations!DD6=0,ISERROR(Calculations!DD6),ISBLANK(Calculations!DD6)),"",Calculations!DD6) ->  | AF4: =IF(OR(Calculations!DV6=0,ISERROR(Calculations!DV6),ISBLANK(Calculations!DV6)),"",Calculations!DV6) ->  | AS4: y
B5: 2 | C5: 1 | D5: Sample (1998) | E5: Notes | F5: 215 | G5: 0.19 | K5: 1 | L5: y | M5: =IF(AND(F5<>"",G5<>"",L5="y"),SAMD!Q5,"") -> -0.5981431382 | N5: 2= | O5: MOD LVL 2 | P5: Credibility interval (%) | Q5: 80 | S5: N | T5: =IF(OR(ISERROR(Calculations!R7),ISBLANK(Calculations!R7)),"",Calculations!R7) -> 5187 | V5: =IF(OR(Calculations!AJ7=0,ISERROR(Calculations!AJ7),ISBLANK(Calculations!AJ7)),"",Calculations!AJ7) -> 2598 | X5: =IF(OR(Calculations!BB7=0,ISERROR(Calculations!BB7),ISBLANK(Calculations!BB7)),"",Calculations!BB7) -> 2589 | Z5: =IF(OR(Calculations!BT7=0,ISERROR(Calculations!BT7),ISBLANK(Calculations!BT7)),"",Calculations!BT7) ->  | AB5: =IF(OR(Calculations!CL7=0,ISERROR(Calculations!CL7),ISBLANK(Calculations!CL7)),"",Calculations!CL7) ->  | AD5: =IF(OR(Calculations!DD7=0,ISERROR(Calculations!DD7),ISBLANK(Calculations!DD7)),"",Calculations!DD7) ->  | AF5: =IF(OR(Calculations!DV7=0,ISERROR(Calculations!DV7),ISBLANK(Calculations!DV7)),"",Calculations!DV7) ->  | AS5: n
B6: 3 | C6: 1 | D6: Sample (1998) | E6: Notes | F6: 163 | G6: 0.5 | K6: 1 | L6: y | M6: =IF(AND(F6<>"",G6<>"",L6="y"),SAMD!Q6,"") -> 0.6546345404 | N6: 3= | P6: Correct for rXX? | Q6: N | S6: avg r(unwtd) | T6: =IF(OR(ISERROR(Calculations!R8),ISBLANK(Calculations!R8)),"",Calculations!R8) -> 0.3225 | V6: =IF(OR(ISERROR(Calculations!AJ8),ISBLANK(Calculations!AJ8)),"",Calculations!AJ8) -> 0.4925 | X6: =IF(OR(ISERROR(Calculations!BB8),ISBLANK(Calculations!BB8)),"",Calculations!BB8) -> 0.1525 | Z6: =IF(OR(ISERROR(Calculations!BT8),ISBLANK(Calculations!BT8)),"",Calculations!BT8) ->  | AB6: =IF(OR(ISERROR(Calculations!CL8),ISBLANK(Calculations!CL8)),"",Calculations!CL8) ->  | AD6: =IF(OR(ISERROR(Calculations!DD8),ISBLANK(Calculations!DD8)),"",Calculations!DD8) ->  | AF6: =IF(OR(ISERROR(Calculations!DV8),ISBLANK(Calculations!DV8)),"",Calculations!DV8) ->  | AH6: ALL SAMPLES | AI6: =IF(OR(ISERROR(T7),ISBLANK(T7)),"",T7) -> 0.3365143628 | AJ6: =IF(OR(ISERROR(T13),ISBLANK(T13)),"",T13) -> 0.4358320455 | AK6: =IF(OR(ISERROR(T14),ISBLANK(T14)),"",T14) -> 0.2371966802 | AN6: =IF(AI6<>"",AI6,NA()) -> 0.3365143628 | AO6: =IF(AJ6<>"",AJ6,NA()) -> 0.4358320455 | AP6: 0.2371966802
B7: 4 | C7: 1 | D7: Sample (1998) | E7: Notes | F7: 100 | G7: 0.3 | K7: 1 | L7: y | M7: =IF(AND(F7<>"",G7<>"",L7="y"),SAMD!Q7,"") -> -0.1411591452 | N7: 4= | P7: Correct for rYY? | Q7: N | S7: ṝ | T7: =IF(OR(ISERROR(Calculations!R9),ISBLANK(Calculations!R9)),"",Calculations!R9) -> 0.3365143628 | V7: =IF(OR(ISERROR(Calculations!AJ9),ISBLANK(Calculations!AJ9)),"",Calculations!AJ9) -> 0.5157852194 | X7: =IF(OR(ISERROR(Calculations!BB9),ISBLANK(Calculations!BB9)),"",Calculations!BB9) -> 0.1566203167 | Z7: =IF(OR(ISERROR(Calculations!BT9),ISBLANK(Calculations!BT9)),"",Calculations!BT9) ->  | AB7: =IF(OR(ISERROR(Calculations!CL9),ISBLANK(Calculations!CL9)),"",Calculations!CL9) ->  | AD7: =IF(OR(ISERROR(Calculations!DD9),ISBLANK(Calculations!DD9)),"",Calculations!DD9) ->  | AF7: =IF(OR(ISERROR(Calculations!DV9),ISBLANK(Calculations!DV9)),"",Calculations!DV9) ->  | AH7: =IF(O4<>"",O4,"") -> MOD LVL 1 | AI7: =IF(OR(ISERROR(V7),ISBLANK(V7)),"",V7) -> 0.5157852194 | AJ7: =IF(OR(ISERROR(V13),ISBLANK(V13)),"",V13) -> 0.6435911295 | AK7: =IF(OR(ISERROR(V14),ISBLANK(V14)),"",V14) -> 0.3879793093 | AN7: =IF(AI7<>"",AI7,NA()) -> 0.5157852194 | AO7: =IF(AJ7<>"",AJ7,NA()) -> 0.6435911295 | AP7: =IF(AK7<>"",AK7,NA()) -> 0.3879793093
B8: 5 | C8: 1 | D8: Sample (1998) | E8: Notes | F8: 373 | G8: 0.9 | K8: 1 | L8: y | M8: =IF(AND(F8<>"",G8<>"",L8="y"),SAMD!Q8,"") -> 2.404836524 | N8: 5= | P8: Correct for UX? | Q8: N | S8: σ2r | T8: =IF(OR(ISERROR(Calculations!R10),ISBLANK(Calculations!R10)),"",Calculations!R10) -> 0.06162660106 | V8: =IF(OR(ISERROR(Calculations!AJ10),ISBLANK(Calculations!AJ10),V4=1),"",Calculations!AJ10) -> 0.05102546118 | X8: =IF(OR(ISERROR(Calculations!BB10),ISBLANK(Calculations!BB10),X4=1),"",Calculations!BB10) -> 0.007652965535 | Z8: =IF(OR(ISERROR(Calculations!BT10),ISBLANK(Calculations!BT10),Z4=1),"",Calculations!BT10) ->  | AB8: =IF(OR(ISERROR(Calculations!CL10),ISBLANK(Calculations!CL10),AB4=1),"",Calculations!CL10) ->  | AD8: =IF(OR(ISERROR(Calculations!DD10),ISBLANK(Calculations!DD10),AD4=1),"",Calculations!DD10) ->  | AF8: =IF(OR(ISERROR(Calculations!DV10),ISBLANK(Calculations!DV10),AF4=1),"",Calculations!DV10) ->  | AH8: MOD LVL 2 | AI8: =IF(OR(ISERROR(X7),ISBLANK(X7)),"",X7) -> 0.1566203167 | AJ8: =IF(OR(ISERROR(X13),ISBLANK(X13)),"",X13) -> 0.2061165724 | AK8: =IF(OR(ISERROR(X14),ISBLANK(X14)),"",X14) -> 0.107124061 | AN8: 0.1566203167 | AO8: 0.2061165724 | AP8: 0.107124061
B9: 6 | C9: 1 | D9: Sample (1998) | E9: Notes | F9: 124 | G9: 0.5 | K9: 1 | L9: y | M9: =IF(AND(F9<>"",G9<>"",L9="y"),SAMD!Q9,"") -> 0.6422008282 | N9: 6= | P9: rXX artifact mean? | Q9: 1 | S9: σ2e | T9: =IF(OR(ISERROR(Calculations!R11),ISBLANK(Calculations!R11)),"",Calculations!R11) -> 0.003655269722 | V9: =IF(OR(ISERROR(Calculations!AJ11),ISBLANK(Calculations!AJ11),V4=1),"",Calculations!AJ11) -> 0.002499793563 | X9: =IF(OR(ISERROR(Calculations!BB11),ISBLANK(Calculations!BB11),X4=1),"",Calculations!BB11) -> 0.004430928382 | Z9: =IF(OR(ISERROR(Calculations!BT11),ISBLANK(Calculations!BT11),Z4=1),"",Calculations!BT11) ->  | AB9: =IF(OR(ISERROR(Calculations!CL11),ISBLANK(Calculations!CL11),AB4=1),"",Calculations!CL11) ->  | AD9: =IF(OR(ISERROR(Calculations!DD11),ISBLANK(Calculations!DD11),AD4=1),"",Calculations!DD11) ->  | AF9: =IF(OR(ISERROR(Calculations!DV11),ISBLANK(Calculations!DV11),AF4=1),"",Calculations!DV11) ->  | AI9: =IF(OR(ISERROR(Z7),ISBLANK(Z7)),"",Z7) ->  | AJ9: =IF(OR(ISERROR(Z13),ISBLANK(Z13)),"",Z13) ->  | AK9: =IF(OR(ISERROR(Z14),ISBLANK(Z14)),"",Z14) -> 
B10: 7 | C10: 1 | D10: Sample (1998) | E10: Notes | F10: 213 | G10: 0.8 | K10: 1 | L10: y | M10: =IF(AND(F10<>"",G10<>"",L10="y"),SAMD!Q10,"") -> 1.890911931 | P10: rYY artifact mean? | Q10: 1 | S10: σ2ρ | T10: =IF(OR(ISERROR(Calculations!R12),ISBLANK(Calculations!R12)),"",Calculations!R12) -> 0.05797133133 | V10: =IF(OR(ISERROR(Calculations!AJ12),ISBLANK(Calculations!AJ12),V4=1),"",Calculations!AJ12) -> 0.04852566762 | X10: =IF(OR(ISERROR(Calculations!BB12),ISBLANK(Calculations!BB12),X4=1),"",Calculations!BB12) -> 0.003222037154 | Z10: =IF(OR(ISERROR(Calculations!BT12),ISBLANK(Calculations!BT12),Z4=1),"",Calculations!BT12) ->  | AB10: =IF(OR(ISERROR(Calculations!CL12),ISBLANK(Calculations!CL12),AB4=1),"",Calculations!CL12) ->  | AD10: =IF(OR(ISERROR(Calculations!DD12),ISBLANK(Calculations!DD12),AD4=1),"",Calculations!DD12) ->  | AF10: =IF(OR(ISERROR(Calculations!DV12),ISBLANK(Calculations!DV12),AF4=1),"",Calculations!DV12) ->  | AI10: =IF(OR(ISERROR(AB7),ISBLANK(AB7)),"",AB7) ->  | AJ10: =IF(OR(ISERROR(AB13),ISBLANK(AB13)),"",AB13) ->  | AK10: =IF(OR(ISERROR(AB14),ISBLANK(AB14)),"",AB14) -> 
B11: 8 | C11: 1 | D11: Sample (1998) | E11: Notes | F11: 136 | G11: 0.8 | K11: 1 | L11: y | M11: =IF(AND(F11<>"",G11<>"",L11="y"),SAMD!Q11,"") -> 1.832651411 | P11: UX artifact mean? | Q11: 1 | S11: σρ | T11: =IF(OR(ISERROR(Calculations!R13),ISBLANK(Calculations!R13)),"",Calculations!R13) -> 0.2407723641 | V11: =IF(OR(ISERROR(Calculations!AJ13),ISBLANK(Calculations!AJ13),V4=1),"",Calculations!AJ13) -> 0.2202854231 | X11: =IF(OR(ISERROR(Calculations!BB13),ISBLANK(Calculations!BB13),X4=1),"",Calculations!BB13) -> 0.05676299106 | Z11: =IF(OR(ISERROR(Calculations!BT13),ISBLANK(Calculations!BT13),Z4=1),"",Calculations!BT13) ->  | AB11: =IF(OR(ISERROR(Calculations!CL13),ISBLANK(Calculations!CL13),AB4=1),"",Calculations!CL13) ->  | AD11: =IF(OR(ISERROR(Calculations!DD13),ISBLANK(Calculations!DD13),AD4=1),"",Calculations!DD13) ->  | AF11: =IF(OR(ISERROR(Calculations!DV13),ISBLANK(Calculations!DV13),AF4=1),"",Calculations!DV13) ->  | AI11: =IF(OR(ISERROR(AD7),ISBLANK(AD7)),"",AD7) ->  | AJ11: =IF(OR(ISERROR(AD13),ISBLANK(AD13)),"",AD13) ->  | AK11: =IF(OR(ISERROR(AD14),ISBLANK(AD14)),"",AD14) -> 
B12: 9 | C12: 1 | D12: Sample (1998) | E12: Notes | F12: 113 | G12: 0.28 | K12: 1 | L12: y | M12: =IF(AND(F12<>"",G12<>"",L12="y"),SAMD!Q12,"") -> -0.2205018715 | P12: SAMD: Based on r or z? | Q12: r | S12: %σ2e | T12: =IF(OR(ISERROR(Calculations!R14),ISBLANK(Calculations!R14)),"",Calculations!R14) -> 5.931318065 | V12: =IF(OR(ISERROR(Calculations!AJ14),ISBLANK(Calculations!AJ14),V4=1),"",Calculations!AJ14) -> 4.89911018 | X12: =IF(OR(ISERROR(Calculations!BB14),ISBLANK(Calculations!BB14),X4=1),"",Calculations!BB14) -> 57.89818811 | Z12: =IF(OR(ISERROR(Calculations!BT14),ISBLANK(Calculations!BT14),Z4=1),"",Calculations!BT14) ->  | AB12: =IF(OR(ISERROR(Calculations!CL14),ISBLANK(Calculations!CL14),AB4=1),"",Calculations!CL14) ->  | AD12: =IF(OR(ISERROR(Calculations!DD14),ISBLANK(Calculations!DD14),AD4=1),"",Calculations!DD14) ->  | AF12: =IF(OR(ISERROR(Calculations!DV14),ISBLANK(Calculations!DV14),AF4=1),"",Calculations!DV14) ->  | AI12: =IF(OR(ISERROR(AF7),ISBLANK(AF7)),"",AF7) ->  | AJ12: =IF(OR(ISERROR(AF13),ISBLANK(AF13)),"",AF13) ->  | AK12: =IF(OR(ISERROR(AF14),ISBLANK(AF14)),"",AF14) -> 
B13: 10 | C13: 1 | D13: Sample (1998) | E13: Notes | F13: 486 | G13: 0.4 | K13: 1 | L13: y | M13: =IF(AND(F13<>"",G13<>"",L13="y"),SAMD!Q13,"") -> 0.2785340886 | S13: =CONCATENATE(Q4,"% ConfHI") -> 95% ConfHI | T13: =IF(OR(ISERROR(Calculations!R15),ISBLANK(Calculations!R15)),"",Calculations!R15) -> 0.4358320455 | V13: =IF(OR(ISERROR(Calculations!AJ15),ISBLANK(Calculations!AJ15),V4=1),"",Calculations!AJ15) -> 0.6435911295 | X13: =IF(OR(ISERROR(Calculations!BB15),ISBLANK(Calculations!BB15),X4=1),"",Calculations!BB15) -> 0.2061165724 | Z13: =IF(OR(ISERROR(Calculations!BT15),ISBLANK(Calculations!BT15),Z4=1),"",Calculations!BT15) ->  | AB13: =IF(OR(ISERROR(Calculations!CL15),ISBLANK(Calculations!CL15),AB4=1),"",Calculations!CL15) ->  | AD13: =IF(OR(ISERROR(Calculations!DD15),ISBLANK(Calculations!DD15),AD4=1),"",Calculations!DD15) ->  | AF13: =IF(OR(ISERROR(Calculations!DV15),ISBLANK(Calculations!DV15),AF4=1),"",Calculations!DV15) -> 
B14: 11 | C14: 1 | D14: Sample (1998) | E14: Notes | F14: 263 | G14: 0.5 | K14: 1 | L14: y | M14: =IF(AND(F14<>"",G14<>"",L14="y"),SAMD!Q14,"") -> 0.6774352501 | O14: OUTPUT► | S14: =CONCATENATE(Q4,"% ConfLO") -> 95% ConfLO | T14: =IF(OR(ISERROR(Calculations!R16),ISBLANK(Calculations!R16)),"",Calculations!R16) -> 0.2371966802 | V14: =IF(OR(ISERROR(Calculations!AJ16),ISBLANK(Calculations!AJ16),V4=1),"",Calculations!AJ16) -> 0.3879793093 | X14: =IF(OR(ISERROR(Calculations!BB16),ISBLANK(Calculations!BB16),X4=1),"",Calculations!BB16) -> 0.107124061 | Z14: =IF(OR(ISERROR(Calculations!BT16),ISBLANK(Calculations!BT16),Z4=1),"",Calculations!BT16) ->  | AB14: =IF(OR(ISERROR(Calculations!CL16),ISBLANK(Calculations!CL16),AB4=1),"",Calculations!CL16) ->  | AD14: =IF(OR(ISERROR(Calculations!DD16),ISBLANK(Calculations!DD16),AD4=1),"",Calculations!DD16) ->  | AF14: =IF(OR(ISERROR(Calculations!DV16),ISBLANK(Calculations!DV16),AF4=1),"",Calculations!DV16) -> 
B15: 12 | C15: 1 | D15: Sample (1998) | E15: Notes | F15: 193 | G15: 0.34 | K15: 1 | L15: y | M15: =IF(AND(F15<>"",G15<>"",L15="y"),SAMD!Q15,"") -> 0.01412193153 | S15: =CONCATENATE(Q5,"% CredHI") -> 80% CredHI | T15: =IF(OR(ISERROR(Calculations!R17),ISBLANK(Calculations!R17)),"",Calculations!R17) -> 0.645076563 | V15: =IF(OR(ISERROR(Calculations!AJ17),ISBLANK(Calculations!AJ17),V4=1),"",Calculations!AJ17) -> 0.7980923482 | X15: =IF(OR(ISERROR(Calculations!BB17),ISBLANK(Calculations!BB17),X4=1),"",Calculations!BB17) -> 0.2293650168 | Z15: =IF(OR(ISERROR(Calculations!BT17),ISBLANK(Calculations!BT17),Z4=1),"",Calculations!BT17) ->  | AB15: =IF(OR(ISERROR(Calculations!CL17),ISBLANK(Calculations!CL17),AB4=1),"",Calculations!CL17) ->  | AD15: =IF(OR(ISERROR(Calculations!DD17),ISBLANK(Calculations!DD17),AD4=1),"",Calculations!DD17) ->  | AF15: =IF(OR(ISERROR(Calculations!DV17),ISBLANK(Calculations!DV17),AF4=1),"",Calculations!DV17) -> 
B16: 13 | C16: 1 | D16: Sample (1998) | E16: Notes | F16: 145 | G16: 0.21 | K16: 2 | L16: y | M16: =IF(AND(F16<>"",G16<>"",L16="y"),SAMD!Q16,"") -> -0.5024965673 | S16: =CONCATENATE(Q5,"% CredLO") -> 80% CredLO | T16: =IF(OR(ISERROR(Calculations!R18),ISBLANK(Calculations!R18)),"",Calculations!R18) -> 0.02795216262 | V16: =IF(OR(ISERROR(Calculations!AJ18),ISBLANK(Calculations!AJ18),V4=1),"",Calculations!AJ18) -> 0.2334780906 | X16: =IF(OR(ISERROR(Calculations!BB18),ISBLANK(Calculations!BB18),X4=1),"",Calculations!BB18) -> 0.08387561667 | Z16: =IF(OR(ISERROR(Calculations!BT18),ISBLANK(Calculations!BT18),Z4=1),"",Calculations!BT18) ->  | AB16: =IF(OR(ISERROR(Calculations!CL18),ISBLANK(Calculations!CL18),AB4=1),"",Calculations!CL18) ->  | AD16: =IF(OR(ISERROR(Calculations!DD18),ISBLANK(Calculations!DD18),AD4=1),"",Calculations!DD18) ->  | AF16: =IF(OR(ISERROR(Calculations!DV18),ISBLANK(Calculations!DV18),AF4=1),"",Calculations!DV18) -> 
B17: 14 | C17: 1 | D17: Sample (1998) | E17: Notes | F17: 430 | G17: 0.2 | K17: 2 | L17: y | M17: =IF(AND(F17<>"",G17<>"",L17="y"),SAMD!Q17,"") -> -0.5908985314 | S17: Q | T17: =IF(OR(ISERROR(Calculations!R19),ISBLANK(Calculations!R19)),"",Calculations!R19) -> 404.631816 | V17: =IF(OR(ISERROR(Calculations!AJ19),ISBLANK(Calculations!AJ19),V4=1),"",Calculations!AJ19) -> 244.9424397 | X17: =IF(OR(ISERROR(Calculations!BB19),ISBLANK(Calculations!BB19),X4=1),"",Calculations!BB19) -> 20.72603719 | Z17: =IF(OR(ISERROR(Calculations!BT19),ISBLANK(Calculations!BT19),Z4=1),"",Calculations!BT19) ->  | AB17: =IF(OR(ISERROR(Calculations!CL19),ISBLANK(Calculations!CL19),AB4=1),"",Calculations!CL19) ->  | AD17: =IF(OR(ISERROR(Calculations!DD19),ISBLANK(Calculations!DD19),AD4=1),"",Calculations!DD19) ->  | AF17: =IF(OR(ISERROR(Calculations!DV19),ISBLANK(Calculations!DV19),AF4=1),"",Calculations!DV19) -> 
B18: 15 | C18: 1 | D18: Sample (1998) | E18: Notes | F18: 476 | G18: 0.06 | K18: 2 | L18: y | M18: =IF(AND(F18<>"",G18<>"",L18="y"),SAMD!Q18,"") -> -1.21026523 | S18: Q df | T18: =IF(OR(ISERROR(Calculations!R20),ISBLANK(Calculations!R20)),"",Calculations!R20) -> 23 | V18: =IF(OR(ISERROR(Calculations!AJ20),ISBLANK(Calculations!AJ20),V4=1),"",Calculations!AJ20) -> 11 | X18: =IF(OR(ISERROR(Calculations!BB20),ISBLANK(Calculations!BB20),X4=1),"",Calculations!BB20) -> 11 | Z18: =IF(OR(ISERROR(Calculations!BT20),ISBLANK(Calculations!BT20),Z4=1),"",Calculations!BT20) ->  | AB18: =IF(OR(ISERROR(Calculations!CL20),ISBLANK(Calculations!CL20),AB4=1),"",Calculations!CL20) ->  | AD18: =IF(OR(ISERROR(Calculations!DD20),ISBLANK(Calculations!DD20),AD4=1),"",Calculations!DD20) ->  | AF18: =IF(OR(ISERROR(Calculations!DV20),ISBLANK(Calculations!DV20),AF4=1),"",Calculations!DV20) -> 
B19: 16 | C19: 1 | D19: Sample (1998) | E19: Notes | F19: 492 | G19: 0.19 | K19: 2 | L19: y | M19: =IF(AND(F19<>"",G19<>"",L19="y"),SAMD!Q19,"") -> -0.643732979 | S19: Q p-value | T19: =IF(OR(ISERROR(Calculations!R21),ISBLANK(Calculations!R21)),"",Calculations!R21) -> 1.977560694e-71 | V19: =IF(OR(ISERROR(Calculations!AJ21),ISBLANK(Calculations!AJ21),V4=1),"",Calculations!AJ21) -> 3.197727356e-46 | X19: =IF(OR(ISERROR(Calculations!BB21),ISBLANK(Calculations!BB21),X4=1),"",Calculations!BB21) -> 0.0363230508 | Z19: =IF(OR(ISERROR(Calculations!BT21),ISBLANK(Calculations!BT21),Z4=1),"",Calculations!BT21) ->  | AB19: =IF(OR(ISERROR(Calculations!CL21),ISBLANK(Calculations!CL21),AB4=1),"",Calculations!CL21) ->  | AD19: =IF(OR(ISERROR(Calculations!DD21),ISBLANK(Calculations!DD21),AD4=1),"",Calculations!DD21) ->  | AF19: =IF(OR(ISERROR(Calculations!DV21),ISBLANK(Calculations!DV21),AF4=1),"",Calculations!DV21) -> 
B20: 17 | C20: 1 | D20: Sample (1998) | E20: Notes | F20: 81 | G20: -0.17 | K20: 2 | L20: y | M20: =IF(AND(F20<>"",G20<>"",L20="y"),SAMD!Q20,"") -> -1.924900601 | S20: I2 | T20: =IF(OR(ISERROR(Calculations!R22),ISBLANK(Calculations!R22)),"",Calculations!R22) -> 94.31582019 | V20: =IF(OR(ISERROR(Calculations!AJ22),ISBLANK(Calculations!AJ22),V4=1),"",Calculations!AJ22) -> 95.509149 | X20: =IF(OR(ISERROR(Calculations!BB22),ISBLANK(Calculations!BB22),X4=1),"",Calculations!BB22) -> 46.9266609 | Z20: =IF(OR(ISERROR(Calculations!BT22),ISBLANK(Calculations!BT22),Z4=1),"",Calculations!BT22) ->  | AB20: =IF(OR(ISERROR(Calculations!CL22),ISBLANK(Calculations!CL22),AB4=1),"",Calculations!CL22) ->  | AD20: =IF(OR(ISERROR(Calculations!DD22),ISBLANK(Calculations!DD22),AD4=1),"",Calculations!DD22) ->  | AF20: =IF(OR(ISERROR(Calculations!DV22),ISBLANK(Calculations!DV22),AF4=1),"",Calculations!DV22) -> 
B21: 18 | C21: 1 | D21: Sample (1998) | E21: Notes | F21: 390 | G21: 0.15 | K21: 2 | L21: y | M21: =IF(AND(F21<>"",G21<>"",L21="y"),SAMD!Q21,"") -> -0.7994039539 | S21: ↓↓↓UNRELIABILITY AND RANGE RESTRICTION CORRECTIONS BELOW RELY ON DR. MICHAEL BRANNICK'S EXCEL FORMULAS↓↓↓
B22: 19 | C22: 1 | D22: Sample (1998) | E22: Notes | F22: 59 | G22: 0.08 | K22: 2 | L22: y | M22: =IF(AND(F22<>"",G22<>"",L22="y"),SAMD!Q22,"") -> -0.9462734806 | S22: ṝc | T22: =IF(OR(AND($Q$6="n",$Q$7="n",$Q$8="n"),ISERROR(rel_cor_Brannick!K55),rel_cor_Brannick!K55=""),"",rel_cor_Brannick!K55) ->  | V22: =IF(OR(AND($Q$6="n",$Q$7="n",$Q$8="n"),ISERROR(rel_cor_Brannick!M55),rel_cor_Brannick!M55=""),"",rel_cor_Brannick!M55) ->  | X22: =IF(OR(AND($Q$6="n",$Q$7="n",$Q$8="n"),ISERROR(rel_cor_Brannick!O55),rel_cor_Brannick!O55=""),"",rel_cor_Brannick!O55) ->  | Z22: =IF(OR(AND($Q$6="n",$Q$7="n",$Q$8="n"),ISERROR(rel_cor_Brannick!Q55),rel_cor_Brannick!Q55=""),"",rel_cor_Brannick!Q55) ->  | AB22: =IF(OR(AND($Q$6="n",$Q$7="n",$Q$8="n"),ISERROR(rel_cor_Brannick!S55),rel_cor_Brannick!S55=""),"",rel_cor_Brannick!S55) ->  | AD22: =IF(OR(AND($Q$6="n",$Q$7="n",$Q$8="n"),ISERROR(rel_cor_Brannick!U55),rel_cor_Brannick!U55=""),"",rel_cor_Brannick!U55) ->  | AF22: =IF(OR(AND($Q$6="n",$Q$7="n",$Q$8="n"),ISERROR(rel_cor_Brannick!W55),rel_cor_Brannick!W55=""),"",rel_cor_Brannick!W55) -> 
B23: 20 | C23: 1 | D23: Sample (1998) | E23: Notes | F23: 145 | G23: 0.16 | K23: 2 | L23: y | M23: =IF(AND(F23<>"",G23<>"",L23="y"),SAMD!Q23,"") -> -0.701089263 | O23: Moderator Significance Test | S23: S2ṝc | T23: =IF(OR(AND($Q$6="n",$Q$7="n",$Q$8="n"),ISERROR(rel_cor_Brannick!K56),rel_cor_Brannick!K56=""),"",rel_cor_Brannick!K56) ->  | V23: =IF(OR(V$4=1,AND($Q$6="n",$Q$7="n",$Q$8="n"),ISERROR(rel_cor_Brannick!M56),rel_cor_Brannick!M56=""),"",rel_cor_Brannick!M56) ->  | X23: =IF(OR(X$4=1,AND($Q$6="n",$Q$7="n",$Q$8="n"),ISERROR(rel_cor_Brannick!O56),rel_cor_Brannick!O56=""),"",rel_cor_Brannick!O56) ->  | Z23: =IF(OR(Z$4=1,AND($Q$6="n",$Q$7="n",$Q$8="n"),ISERROR(rel_cor_Brannick!Q56),rel_cor_Brannick!Q56=""),"",rel_cor_Brannick!Q56) ->  | AB23: =IF(OR(AB$4=1,AND($Q$6="n",$Q$7="n",$Q$8="n"),ISERROR(rel_cor_Brannick!S56),rel_cor_Brannick!S56=""),"",rel_cor_Brannick!S56) ->  | AD23: =IF(OR(AD$4=1,AND($Q$6="n",$Q$7="n",$Q$8="n"),ISERROR(rel_cor_Brannick!U56),rel_cor_Brannick!U56=""),"",rel_cor_Brannick!U56) ->  | AF23: =IF(OR(AF$4=1,AND($Q$6="n",$Q$7="n",$Q$8="n"),ISERROR(rel_cor_Brannick!W56),rel_cor_Brannick!W56=""),"",rel_cor_Brannick!W56) -> 
B24: 21 | C24: 1 | D24: Sample (1998) | E24: Notes | F24: 152 | G24: 0.25 | K24: 2 | L24: y | M24: =IF(AND(F24<>"",G24<>"",L24="y"),SAMD!Q24,"") -> -0.3447511885 | O24: Qb | P24: =IF('MOD Calcs'!C17<>"",'MOD Calcs'!C17,"") -> 167.2795038 | S24: σ2e | T24: =IF(OR(AND($Q$6="n",$Q$7="n",$Q$8="n"),ISERROR(rel_cor_Brannick!K57),rel_cor_Brannick!K57=""),"",rel_cor_Brannick!K57) ->  | V24: =IF(OR(V$4=1,AND($Q$6="n",$Q$7="n",$Q$8="n"),ISERROR(rel_cor_Brannick!M57),rel_cor_Brannick!M57=""),"",rel_cor_Brannick!M57) ->  | X24: =IF(OR(X$4=1,AND($Q$6="n",$Q$7="n",$Q$8="n"),ISERROR(rel_cor_Brannick!O57),rel_cor_Brannick!O57=""),"",rel_cor_Brannick!O57) ->  | Z24: =IF(OR(Z$4=1,AND($Q$6="n",$Q$7="n",$Q$8="n"),ISERROR(rel_cor_Brannick!Q57),rel_cor_Brannick!Q57=""),"",rel_cor_Brannick!Q57) ->  | AB24: =IF(OR(AB$4=1,AND($Q$6="n",$Q$7="n",$Q$8="n"),ISERROR(rel_cor_Brannick!S57),rel_cor_Brannick!S57=""),"",rel_cor_Brannick!S57) ->  | AD24: =IF(OR(AD$4=1,AND($Q$6="n",$Q$7="n",$Q$8="n"),ISERROR(rel_cor_Brannick!U57),rel_cor_Brannick!U57=""),"",rel_cor_Brannick!U57) ->  | AF24: =IF(OR(AF$4=1,AND($Q$6="n",$Q$7="n",$Q$8="n"),ISERROR(rel_cor_Brannick!W57),rel_cor_Brannick!W57=""),"",rel_cor_Brannick!W57) -> 
B25: 22 | C25: 1 | D25: Sample (1998) | E25: Notes | F25: 34 | G25: 0.27 | K25: 2 | L25: y | M25: =IF(AND(F25<>"",G25<>"",L25="y"),SAMD!Q25,"") -> -0.2290353885 | O25: Qb p | P25: =IF('MOD Calcs'!C18<>"",'MOD Calcs'!C18,"") -> 2.9065478e-38 | S25: σ2ρ | T25: =IF(OR(AND($Q$6="n",$Q$7="n",$Q$8="n"),ISERROR(rel_cor_Brannick!K58),rel_cor_Brannick!K58=""),"",rel_cor_Brannick!K58) ->  | V25: =IF(OR(V$4=1,AND($Q$6="n",$Q$7="n",$Q$8="n"),ISERROR(rel_cor_Brannick!M58),rel_cor_Brannick!M58=""),"",rel_cor_Brannick!M58) ->  | X25: =IF(OR(X$4=1,AND($Q$6="n",$Q$7="n",$Q$8="n"),ISERROR(rel_cor_Brannick!O58),rel_cor_Brannick!O58=""),"",rel_cor_Brannick!O58) ->  | Z25: =IF(OR(Z$4=1,AND($Q$6="n",$Q$7="n",$Q$8="n"),ISERROR(rel_cor_Brannick!Q58),rel_cor_Brannick!Q58=""),"",rel_cor_Brannick!Q58) ->  | AB25: =IF(OR(AB$4=1,AND($Q$6="n",$Q$7="n",$Q$8="n"),ISERROR(rel_cor_Brannick!S58),rel_cor_Brannick!S58=""),"",rel_cor_Brannick!S58) ->  | AD25: =IF(OR(AD$4=1,AND($Q$6="n",$Q$7="n",$Q$8="n"),ISERROR(rel_cor_Brannick!U58),rel_cor_Brannick!U58=""),"",rel_cor_Brannick!U58) ->  | AF25: =IF(OR(AF$4=1,AND($Q$6="n",$Q$7="n",$Q$8="n"),ISERROR(rel_cor_Brannick!W58),rel_cor_Brannick!W58=""),"",rel_cor_Brannick!W58) -> 
B26: 23 | C26: 1 | D26: Sample (1998) | E26: Notes | F26: 49 | G26: 0.13 | K26: 2 | L26: y | M26: =IF(AND(F26<>"",G26<>"",L26="y"),SAMD!Q26,"") -> -0.746450372 | S26: σρ | T26: =IF(OR(AND($Q$6="n",$Q$7="n",$Q$8="n"),ISERROR(rel_cor_Brannick!K59),rel_cor_Brannick!K59=""),"",rel_cor_Brannick!K59) ->  | V26: =IF(OR(V$4=1,AND($Q$6="n",$Q$7="n",$Q$8="n"),ISERROR(rel_cor_Brannick!M59),rel_cor_Brannick!M59=""),"",rel_cor_Brannick!M59) ->  | X26: =IF(OR(X$4=1,AND($Q$6="n",$Q$7="n",$Q$8="n"),ISERROR(rel_cor_Brannick!O59),rel_cor_Brannick!O59=""),"",rel_cor_Brannick!O59) ->  | Z26: =IF(OR(Z$4=1,AND($Q$6="n",$Q$7="n",$Q$8="n"),ISERROR(rel_cor_Brannick!Q59),rel_cor_Brannick!Q59=""),"",rel_cor_Brannick!Q59) ->  | AB26: =IF(OR(AB$4=1,AND($Q$6="n",$Q$7="n",$Q$8="n"),ISERROR(rel_cor_Brannick!S59),rel_cor_Brannick!S59=""),"",rel_cor_Brannick!S59) ->  | AD26: =IF(OR(AD$4=1,AND($Q$6="n",$Q$7="n",$Q$8="n"),ISERROR(rel_cor_Brannick!U59),rel_cor_Brannick!U59=""),"",rel_cor_Brannick!U59) ->  | AF26: =IF(OR(AF$4=1,AND($Q$6="n",$Q$7="n",$Q$8="n"),ISERROR(rel_cor_Brannick!W59),rel_cor_Brannick!W59=""),"",rel_cor_Brannick!W59) -> 
B27: 23 | C27: 2 | D27: Sample (1998) | E27: Notes | F27: 136 | G27: 0.3 | K27: 2 | L27: y | M27: =IF(AND(F27<>"",G27<>"",L27="y"),SAMD!Q27,"") -> -0.1443800912 | O27: *****INSTRUCTIONS***** NOTE. Macros must be enabled. Enter data into the MAROON cells. All other cells are locked. Row 3 contains "mouse-over" instructions. Sample data are shown in cells B4-K27 - delete the contents of these cells before adding your own data. If importing data, use "Copy > Paste Special > Values" (when available). If you encounter errors when copy/pasting between workbooks, then add a new sheet to this workbook, "regular paste" into that sheet, and then paste->special values into this sheet. | S27: =CONCATENATE(Q5,"% CredHI") -> 80% CredHI | T27: =IF(OR(AND($Q$6="n",$Q$7="n",$Q$8="n"),ISERROR(rel_cor_Brannick!K60),rel_cor_Brannick!K60=""),"",rel_cor_Brannick!K60) ->  | V27: =IF(OR(V$4=1,AND($Q$6="n",$Q$7="n",$Q$8="n"),ISERROR(rel_cor_Brannick!M60),rel_cor_Brannick!M60=""),"",rel_cor_Brannick!M60) ->  | X27: =IF(OR(X$4=1,AND($Q$6="n",$Q$7="n",$Q$8="n"),ISERROR(rel_cor_Brannick!O60),rel_cor_Brannick!O60=""),"",rel_cor_Brannick!O60) ->  | Z27: =IF(OR(Z$4=1,AND($Q$6="n",$Q$7="n",$Q$8="n"),ISERROR(rel_cor_Brannick!Q60),rel_cor_Brannick!Q60=""),"",rel_cor_Brannick!Q60) ->  | AB27: =IF(OR(AB$4=1,AND($Q$6="n",$Q$7="n",$Q$8="n"),ISERROR(rel_cor_Brannick!S60),rel_cor_Brannick!S60=""),"",rel_cor_Brannick!S60) ->  | AD27: =IF(OR(AD$4=1,AND($Q$6="n",$Q$7="n",$Q$8="n"),ISERROR(rel_cor_Brannick!U60),rel_cor_Brannick!U60=""),"",rel_cor_Brannick!U60) ->  | AF27: =IF(OR(AF$4=1,AND($Q$6="n",$Q$7="n",$Q$8="n"),ISERROR(rel_cor_Brannick!W60),rel_cor_Brannick!W60=""),"",rel_cor_Brannick!W60) -> 
L28: y | M28: =IF(AND(F28<>"",G28<>"",L28="y"),SAMD!Q28,"") ->  | S28: =CONCATENATE(Q5,"% CredLO") -> 80% CredLO | T28: =IF(OR(AND($Q$6="n",$Q$7="n",$Q$8="n"),ISERROR(rel_cor_Brannick!K61),rel_cor_Brannick!K61=""),"",rel_cor_Brannick!K61) ->  | V28: =IF(OR(V$4=1,AND($Q$6="n",$Q$7="n",$Q$8="n"),ISERROR(rel_cor_Brannick!M61),rel_cor_Brannick!M61=""),"",rel_cor_Brannick!M61) ->  | X28: =IF(OR(X$4=1,AND($Q$6="n",$Q$7="n",$Q$8="n"),ISERROR(rel_cor_Brannick!O61),rel_cor_Brannick!O61=""),"",rel_cor_Brannick!O61) ->  | Z28: =IF(OR(Z$4=1,AND($Q$6="n",$Q$7="n",$Q$8="n"),ISERROR(rel_cor_Brannick!Q61),rel_cor_Brannick!Q61=""),"",rel_cor_Brannick!Q61) ->  | AB28: =IF(OR(AB$4=1,AND($Q$6="n",$Q$7="n",$Q$8="n"),ISERROR(rel_cor_Brannick!S61),rel_cor_Brannick!S61=""),"",rel_cor_Brannick!S61) ->  | AD28: =IF(OR(AD$4=1,AND($Q$6="n",$Q$7="n",$Q$8="n"),ISERROR(rel_cor_Brannick!U61),rel_cor_Brannick!U61=""),"",rel_cor_Brannick!U61) ->  | AF28: =IF(OR(AF$4=1,AND($Q$6="n",$Q$7="n",$Q$8="n"),ISERROR(rel_cor_Brannick!W61),rel_cor_Brannick!W61=""),"",rel_cor_Brannick!W61) -> 
L29: y | M29: =IF(AND(F29<>"",G29<>"",L29="y"),SAMD!Q29,"") -> 
L30: y | M30: =IF(AND(F30<>"",G30<>"",L30="y"),SAMD!Q30,"") -> 
L31: y | M31: =IF(AND(F31<>"",G31<>"",L31="y"),SAMD!Q31,"") -> 
L32: y | M32: =IF(AND(F32<>"",G32<>"",L32="y"),SAMD!Q32,"") -> 
L33: y | M33: =IF(AND(F33<>"",G33<>"",L33="y"),SAMD!Q33,"") -> 
L34: y | M34: =IF(AND(F34<>"",G34<>"",L34="y"),SAMD!Q34,"") -> 
L35: y | M35: =IF(AND(F35<>"",G35<>"",L35="y"),SAMD!Q35,"") -> 
L36: y | M36: =IF(AND(F36<>"",G36<>"",L36="y"),SAMD!Q36,"") -> 
L37: y | M37: =IF(AND(F37<>"",G37<>"",L37="y"),SAMD!Q37,"") -> 
L38: y | M38: =IF(AND(F38<>"",G38<>"",L38="y"),SAMD!Q38,"") -> 
L39: y | M39: =IF(AND(F39<>"",G39<>"",L39="y"),SAMD!Q39,"") -> 
L40: y | M40: =IF(AND(F40<>"",G40<>"",L40="y"),SAMD!Q40,"") -> 
L41: y | M41: =IF(AND(F41<>"",G41<>"",L41="y"),SAMD!Q41,"") -> 
L42: y | M42: =IF(AND(F42<>"",G42<>"",L42="y"),SAMD!Q42,"") -> 
L43: y | M43: =IF(AND(F43<>"",G43<>"",L43="y"),SAMD!Q43,"") -> 
L44: y | M44: =IF(AND(F44<>"",G44<>"",L44="y"),SAMD!Q44,"") -> 
L45: y | M45: =IF(AND(F45<>"",G45<>"",L45="y"),SAMD!Q45,"") -> 
L46: y | M46: =IF(AND(F46<>"",G46<>"",L46="y"),SAMD!Q46,"") -> 
L47: y | M47: =IF(AND(F47<>"",G47<>"",L47="y"),SAMD!Q47,"") -> 
L48: y | M48: =IF(AND(F48<>"",G48<>"",L48="y"),SAMD!Q48,"") -> 
L49: y | M49: =IF(AND(F49<>"",G49<>"",L49="y"),SAMD!Q49,"") -> 
L50: y | M50: =IF(AND(F50<>"",G50<>"",L50="y"),SAMD!Q50,"") -> 
L51: y | M51: =IF(AND(F51<>"",G51<>"",L51="y"),SAMD!Q51,"") -> 
L52: y | M52: =IF(AND(F52<>"",G52<>"",L52="y"),SAMD!Q52,"") -> 
L53: y | M53: =IF(AND(F53<>"",G53<>"",L53="y"),SAMD!Q53,"") -> 
L54: y | M54: =IF(AND(F54<>"",G54<>"",L54="y"),SAMD!Q54,"") -> 
L55: y | M55: =IF(AND(F55<>"",G55<>"",L55="y"),SAMD!Q55,"") -> 
L56: y | M56: =IF(AND(F56<>"",G56<>"",L56="y"),SAMD!Q56,"") -> 
L57: y | M57: =IF(AND(F57<>"",G57<>"",L57="y"),SAMD!Q57,"") -> 
L58: y | M58: =IF(AND(F58<>"",G58<>"",L58="y"),SAMD!Q58,"") -> 
L59: y | M59: =IF(AND(F59<>"",G59<>"",L59="y"),SAMD!Q59,"") -> 
L60: y | M60: =IF(AND(F60<>"",G60<>"",L60="y"),SAMD!Q60,"") -> 
L61: y | M61: =IF(AND(F61<>"",G61<>"",L61="y"),SAMD!Q61,"") -> 
L62: y | M62: =IF(AND(F62<>"",G62<>"",L62="y"),SAMD!Q62,"") -> 
L63: y | M63: =IF(AND(F63<>"",G63<>"",L63="y"),SAMD!Q63,"") -> 
L64: y | M64: =IF(AND(F64<>"",G64<>"",L64="y"),SAMD!Q64,"") -> 
L65: y | M65: =IF(AND(F65<>"",G65<>"",L65="y"),SAMD!Q65,"") -> 
L66: y | M66: =IF(AND(F66<>"",G66<>"",L66="y"),SAMD!Q66,"") -> 
L67: y | M67: =IF(AND(F67<>"",G67<>"",L67="y"),SAMD!Q67,"") -> 
L68: y | M68: =IF(AND(F68<>"",G68<>"",L68="y"),SAMD!Q68,"") -> 
L69: y | M69: =IF(AND(F69<>"",G69<>"",L69="y"),SAMD!Q69,"") -> 
L70: y | M70: =IF(AND(F70<>"",G70<>"",L70="y"),SAMD!Q70,"") -> 
L71: y | M71: =IF(AND(F71<>"",G71<>"",L71="y"),SAMD!Q71,"") -> 
L72: y | M72: =IF(AND(F72<>"",G72<>"",L72="y"),SAMD!Q72,"") -> 
L73: y | M73: =IF(AND(F73<>"",G73<>"",L73="y"),SAMD!Q73,"") -> 
L74: y | M74: =IF(AND(F74<>"",G74<>"",L74="y"),SAMD!Q74,"") -> 
L75: y | M75: =IF(AND(F75<>"",G75<>"",L75="y"),SAMD!Q75,"") -> 
L76: y | M76: =IF(AND(F76<>"",G76<>"",L76="y"),SAMD!Q76,"") -> 
L77: y | M77: =IF(AND(F77<>"",G77<>"",L77="y"),SAMD!Q77,"") -> 
L78: y | M78: =IF(AND(F78<>"",G78<>"",L78="y"),SAMD!Q78,"") -> 
L79: y | M79: =IF(AND(F79<>"",G79<>"",L79="y"),SAMD!Q79,"") -> 
L80: y | M80: =IF(AND(F80<>"",G80<>"",L80="y"),SAMD!Q80,"") -> 
L81: y | M81: =IF(AND(F81<>"",G81<>"",L81="y"),SAMD!Q81,"") -> 
L82: y | M82: =IF(AND(F82<>"",G82<>"",L82="y"),SAMD!Q82,"") -> 
L83: y | M83: =IF(AND(F83<>"",G83<>"",L83="y"),SAMD!Q83,"") -> 
L84: y | M84: =IF(AND(F84<>"",G84<>"",L84="y"),SAMD!Q84,"") -> 
L85: y | M85: =IF(AND(F85<>"",G85<>"",L85="y"),SAMD!Q85,"") -> 
L86: y | M86: =IF(AND(F86<>"",G86<>"",L86="y"),SAMD!Q86,"") -> 
L87: y | M87: =IF(AND(F87<>"",G87<>"",L87="y"),SAMD!Q87,"") -> 
L88: y | M88: =IF(AND(F88<>"",G88<>"",L88="y"),SAMD!Q88,"") -> 
L89: y | M89: =IF(AND(F89<>"",G89<>"",L89="y"),SAMD!Q89,"") -> 
L90: y | M90: =IF(AND(F90<>"",G90<>"",L90="y"),SAMD!Q90,"") -> 
L91: y | M91: =IF(AND(F91<>"",G91<>"",L91="y"),SAMD!Q91,"") -> 
L92: y | M92: =IF(AND(F92<>"",G92<>"",L92="y"),SAMD!Q92,"") -> 
L93: y | M93: =IF(AND(F93<>"",G93<>"",L93="y"),SAMD!Q93,"") -> 
L94: y | M94: =IF(AND(F94<>"",G94<>"",L94="y"),SAMD!Q94,"") -> 
L95: y | M95: =IF(AND(F95<>"",G95<>"",L95="y"),SAMD!Q95,"") -> 
L96: y | M96: =IF(AND(F96<>"",G96<>"",L96="y"),SAMD!Q96,"") -> 
L97: y | M97: =IF(AND(F97<>"",G97<>"",L97="y"),SAMD!Q97,"") -> 
L98: y | M98: =IF(AND(F98<>"",G98<>"",L98="y"),SAMD!Q98,"") -> 
L99: y | M99: =IF(AND(F99<>"",G99<>"",L99="y"),SAMD!Q99,"") -> 
L100: y | M100: =IF(AND(F100<>"",G100<>"",L100="y"),SAMD!Q100,"") -> 
L101: y | M101: =IF(AND(F101<>"",G101<>"",L101="y"),SAMD!Q101,"") -> 
L102: y | M102: =IF(AND(F102<>"",G102<>"",L102="y"),SAMD!Q102,"") -> 
L103: y | M103: =IF(AND(F103<>"",G103<>"",L103="y"),SAMD!Q103,"") -> 
L104: y | M104: =IF(AND(F104<>"",G104<>"",L104="y"),SAMD!Q104,"") -> 
L105: y | M105: =IF(AND(F105<>"",G105<>"",L105="y"),SAMD!Q105,"") -> 
L106: y | M106: =IF(AND(F106<>"",G106<>"",L106="y"),SAMD!Q106,"") -> 
L107: y | M107: =IF(AND(F107<>"",G107<>"",L107="y"),SAMD!Q107,"") -> 
L108: y | M108: =IF(AND(F108<>"",G108<>"",L108="y"),SAMD!Q108,"") -> 
L109: y | M109: =IF(AND(F109<>"",G109<>"",L109="y"),SAMD!Q109,"") -> 
L110: y | M110: =IF(AND(F110<>"",G110<>"",L110="y"),SAMD!Q110,"") -> 
L111: y | M111: =IF(AND(F111<>"",G111<>"",L111="y"),SAMD!Q111,"") -> 
L112: y | M112: =IF(AND(F112<>"",G112<>"",L112="y"),SAMD!Q112,"") -> 
L113: y | M113: =IF(AND(F113<>"",G113<>"",L113="y"),SAMD!Q113,"") -> 
L114: y | M114: =IF(AND(F114<>"",G114<>"",L114="y"),SAMD!Q114,"") -> 
L115: y | M115: =IF(AND(F115<>"",G115<>"",L115="y"),SAMD!Q115,"") -> 
L116: y | M116: =IF(AND(F116<>"",G116<>"",L116="y"),SAMD!Q116,"") -> 
L117: y | M117: =IF(AND(F117<>"",G117<>"",L117="y"),SAMD!Q117,"") -> 
L118: y | M118: =IF(AND(F118<>"",G118<>"",L118="y"),SAMD!Q118,"") -> 
L119: y | M119: =IF(AND(F119<>"",G119<>"",L119="y"),SAMD!Q119,"") -> 
L120: y | M120: =IF(AND(F120<>"",G120<>"",L120="y"),SAMD!Q120,"") -> 
L121: y | M121: =IF(AND(F121<>"",G121<>"",L121="y"),SAMD!Q121,"") -> 
L122: y | M122: =IF(AND(F122<>"",G122<>"",L122="y"),SAMD!Q122,"") -> 
L123: y | M123: =IF(AND(F123<>"",G123<>"",L123="y"),SAMD!Q123,"") -> 
L124: y | M124: =IF(AND(F124<>"",G124<>"",L124="y"),SAMD!Q124,"") -> 
L125: y | M125: =IF(AND(F125<>"",G125<>"",L125="y"),SAMD!Q125,"") -> 
L126: y | M126: =IF(AND(F126<>"",G126<>"",L126="y"),SAMD!Q126,"") -> 
L127: y | M127: =IF(AND(F127<>"",G127<>"",L127="y"),SAMD!Q127,"") -> 
L128: y | M128: =IF(AND(F128<>"",G128<>"",L128="y"),SAMD!Q128,"") -> 
L129: y | M129: =IF(AND(F129<>"",G129<>"",L129="y"),SAMD!Q129,"") -> 
L130: y | M130: =IF(AND(F130<>"",G130<>"",L130="y"),SAMD!Q130,"") -> 
L131: y | M131: =IF(AND(F131<>"",G131<>"",L131="y"),SAMD!Q131,"") -> 
L132: y | M132: =IF(AND(F132<>"",G132<>"",L132="y"),SAMD!Q132,"") -> 
L133: y | M133: =IF(AND(F133<>"",G133<>"",L133="y"),SAMD!Q133,"") -> 
L134: y | M134: =IF(AND(F134<>"",G134<>"",L134="y"),SAMD!Q134,"") -> 
L135: y | M135: =IF(AND(F135<>"",G135<>"",L135="y"),SAMD!Q135,"") -> 
L136: y | M136: =IF(AND(F136<>"",G136<>"",L136="y"),SAMD!Q136,"") -> 
L137: y | M137: =IF(AND(F137<>"",G137<>"",L137="y"),SAMD!Q137,"") -> 
L138: y | M138: =IF(AND(F138<>"",G138<>"",L138="y"),SAMD!Q138,"") -> 
L139: y | M139: =IF(AND(F139<>"",G139<>"",L139="y"),SAMD!Q139,"") -> 
L140: y | M140: =IF(AND(F140<>"",G140<>"",L140="y"),SAMD!Q140,"") -> 
L141: y | M141: =IF(AND(F141<>"",G141<>"",L141="y"),SAMD!Q141,"") -> 
L142: y | M142: =IF(AND(F142<>"",G142<>"",L142="y"),SAMD!Q142,"") -> 
L143: y | M143: =IF(AND(F143<>"",G143<>"",L143="y"),SAMD!Q143,"") -> 
L144: y | M144: =IF(AND(F144<>"",G144<>"",L144="y"),SAMD!Q144,"") -> 
L145: y | M145: =IF(AND(F145<>"",G145<>"",L145="y"),SAMD!Q145,"") -> 
L146: y | M146: =IF(AND(F146<>"",G146<>"",L146="y"),SAMD!Q146,"") -> 
L147: y | M147: =IF(AND(F147<>"",G147<>"",L147="y"),SAMD!Q147,"") -> 
L148: y | M148: =IF(AND(F148<>"",G148<>"",L148="y"),SAMD!Q148,"") -> 
L149: y | M149: =IF(AND(F149<>"",G149<>"",L149="y"),SAMD!Q149,"") -> 
L150: y | M150: =IF(AND(F150<>"",G150<>"",L150="y"),SAMD!Q150,"") -> 
L151: y | M151: =IF(AND(F151<>"",G151<>"",L151="y"),SAMD!Q151,"") -> 
L152: y | M152: =IF(AND(F152<>"",G152<>"",L152="y"),SAMD!Q152,"") -> 
L153: y | M153: =IF(AND(F153<>"",G153<>"",L153="y"),SAMD!Q153,"") -> 
L154: y | M154: =IF(AND(F154<>"",G154<>"",L154="y"),SAMD!Q154,"") -> 
L155: y | M155: =IF(AND(F155<>"",G155<>"",L155="y"),SAMD!Q155,"") -> 
L156: y | M156: =IF(AND(F156<>"",G156<>"",L156="y"),SAMD!Q156,"") -> 
L157: y | M157: =IF(AND(F157<>"",G157<>"",L157="y"),SAMD!Q157,"") -> 
L158: y | M158: =IF(AND(F158<>"",G158<>"",L158="y"),SAMD!Q158,"") -> 
L159: y | M159: =IF(AND(F159<>"",G159<>"",L159="y"),SAMD!Q159,"") -> 
L160: y | M160: =IF(AND(F160<>"",G160<>"",L160="y"),SAMD!Q160,"") -> 
L161: y | M161: =IF(AND(F161<>"",G161<>"",L161="y"),SAMD!Q161,"") -> 
L162: y | M162: =IF(AND(F162<>"",G162<>"",L162="y"),SAMD!Q162,"") -> 
L163: y | M163: =IF(AND(F163<>"",G163<>"",L163="y"),SAMD!Q163,"") -> 
L164: y | M164: =IF(AND(F164<>"",G164<>"",L164="y"),SAMD!Q164,"") -> 
L165: y | M165: =IF(AND(F165<>"",G165<>"",L165="y"),SAMD!Q165,"") -> 
L166: y | M166: =IF(AND(F166<>"",G166<>"",L166="y"),SAMD!Q166,"") -> 
L167: y | M167: =IF(AND(F167<>"",G167<>"",L167="y"),SAMD!Q167,"") -> 
L168: y | M168: =IF(AND(F168<>"",G168<>"",L168="y"),SAMD!Q168,"") -> 
L169: y | M169: =IF(AND(F169<>"",G169<>"",L169="y"),SAMD!Q169,"") -> 
L170: y | M170: =IF(AND(F170<>"",G170<>"",L170="y"),SAMD!Q170,"") -> 
L171: y | M171: =IF(AND(F171<>"",G171<>"",L171="y"),SAMD!Q171,"") -> 
L172: y | M172: =IF(AND(F172<>"",G172<>"",L172="y"),SAMD!Q172,"") -> 
L173: y | M173: =IF(AND(F173<>"",G173<>"",L173="y"),SAMD!Q173,"") -> 
L174: y | M174: =IF(AND(F174<>"",G174<>"",L174="y"),SAMD!Q174,"") -> 
L175: y | M175: =IF(AND(F175<>"",G175<>"",L175="y"),SAMD!Q175,"") -> 
L176: y | M176: =IF(AND(F176<>"",G176<>"",L176="y"),SAMD!Q176,"") -> 
L177: y | M177: =IF(AND(F177<>"",G177<>"",L177="y"),SAMD!Q177,"") -> 
L178: y | M178: =IF(AND(F178<>"",G178<>"",L178="y"),SAMD!Q178,"") -> 
L179: y | M179: =IF(AND(F179<>"",G179<>"",L179="y"),SAMD!Q179,"") -> 
L180: y | M180: =IF(AND(F180<>"",G180<>"",L180="y"),SAMD!Q180,"") -> 
L181: y | M181: =IF(AND(F181<>"",G181<>"",L181="y"),SAMD!Q181,"") -> 
L182: y | M182: =IF(AND(F182<>"",G182<>"",L182="y"),SAMD!Q182,"") -> 
L183: y | M183: =IF(AND(F183<>"",G183<>"",L183="y"),SAMD!Q183,"") -> 
L184: y | M184: =IF(AND(F184<>"",G184<>"",L184="y"),SAMD!Q184,"") -> 
L185: y | M185: =IF(AND(F185<>"",G185<>"",L185="y"),SAMD!Q185,"") -> 
L186: y | M186: =IF(AND(F186<>"",G186<>"",L186="y"),SAMD!Q186,"") -> 
L187: y | M187: =IF(AND(F187<>"",G187<>"",L187="y"),SAMD!Q187,"") -> 
L188: y | M188: =IF(AND(F188<>"",G188<>"",L188="y"),SAMD!Q188,"") -> 
L189: y | M189: =IF(AND(F189<>"",G189<>"",L189="y"),SAMD!Q189,"") -> 
L190: y | M190: =IF(AND(F190<>"",G190<>"",L190="y"),SAMD!Q190,"") -> 
L191: y | M191: =IF(AND(F191<>"",G191<>"",L191="y"),SAMD!Q191,"") -> 
L192: y | M192: =IF(AND(F192<>"",G192<>"",L192="y"),SAMD!Q192,"") -> 
L193: y | M193: =IF(AND(F193<>"",G193<>"",L193="y"),SAMD!Q193,"") -> 
L194: y | M194: =IF(AND(F194<>"",G194<>"",L194="y"),SAMD!Q194,"") -> 
L195: y | M195: =IF(AND(F195<>"",G195<>"",L195="y"),SAMD!Q195,"") -> 
L196: y | M196: =IF(AND(F196<>"",G196<>"",L196="y"),SAMD!Q196,"") -> 
L197: y | M197: =IF(AND(F197<>"",G197<>"",L197="y"),SAMD!Q197,"") -> 
L198: y | M198: =IF(AND(F198<>"",G198<>"",L198="y"),SAMD!Q198,"") -> 
L199: y | M199: =IF(AND(F199<>"",G199<>"",L199="y"),SAMD!Q199,"") -> 
L200: y | M200: =IF(AND(F200<>"",G200<>"",L200="y"),SAMD!Q200,"") -> 
... 803 more rows

Sheet rel_cor_Brannick (hidden)
B2: Corr x? | C2: =IF(DATA_ENTRY!Q6<>"",DATA_ENTRY!Q6,"") -> N
B3: Corr y? | C3: =IF(DATA_ENTRY!Q7<>"",DATA_ENTRY!Q7,"") -> N
B4: Corr RR? | C4: =IF(DATA_ENTRY!Q8="N","n",DATA_ENTRY!Q8) -> n
B5: =IF(DATA_ENTRY!Q4<>"",DATA_ENTRY!Q4,"") -> 95 | C5: =(100-B5)/200 -> 0.025 | D5: CONF | E5: =NORMSINV(1-C5) -> 1.959963985
B6: =IF(DATA_ENTRY!Q5<>"",DATA_ENTRY!Q5,"") -> 80 | C6: =(100-B6)/200 -> 0.1 | D6: CRED | E6: =NORMSINV(1-C6) -> 1.281551566 | AJ6: =SUM(AJ8:AJ1007) -> 5187 | AK6: =SUM(AK8:AK1007) -> 1745.5 | AL6: =SUM(AL8:AL1007) -> 319.6571797 | AM6: =SUM(AM8:AM1007) -> 19.01867807 | AV6: =SUM(AV8:AV1007) -> 5187 | AW6: =SUM(AW8:AW1007) -> 1745.5 | AX6: =SUM(AX8:AX1007) -> 319.6571797 | BC6: =SUM(BC8:BC1007) -> 23.70502426 | BH6: =SUM(BH8:BH1007) -> 5187 | BI6: =SUM(BI8:BI1007) -> 1745.5 | BJ6: =SUM(BJ8:BJ1007) -> 319.6571797 | BN6: =SUM(BN8:BN1007) -> 23.70502426 | BZ6: =SUM(BZ8:BZ1007) -> 2598 | CA6: =SUM(CA8:CA1007) -> 1340.01 | CB6: =SUM(CB8:CB1007) -> 132.5641482 | CC6: =SUM(CC8:CC1007) -> 6.501363226 | CL6: =SUM(CL8:CL1007) -> 2598 | CM6: =SUM(CM8:CM1007) -> 1340.01 | CN6: =SUM(CN8:CN1007) -> 132.5641482 | CS6: =SUM(CS8:CS1007) -> 11.82832911 | CX6: =SUM(CX8:CX1007) -> 2598 | CY6: =SUM(CY8:CY1007) -> 1340.01 | CZ6: =SUM(CZ8:CZ1007) -> 132.5641482 | DD6: =SUM(DD8:DD1007) -> 11.82832911 | DP6: =SUM(DP8:DP1007) -> 2589 | DQ6: =SUM(DQ8:DQ1007) -> 405.49 | DR6: =SUM(DR8:DR1007) -> 19.81352777 | DS6: =SUM(DS8:DS1007) -> 11.5306323 | EB6: =SUM(EB8:EB1007) -> 2589 | EC6: =SUM(EC8:EC1007) -> 405.49 | ED6: =SUM(ED8:ED1007) -> 19.81352777 | EI6: =SUM(EI8:EI1007) -> 11.87669516 | EN6: =SUM(EN8:EN1007) -> 2589 | EO6: =SUM(EO8:EO1007) -> 405.49 | EP6: =SUM(EP8:EP1007) -> 19.81352777 | ET6: =SUM(ET8:ET1007) -> 11.87669516 | FF6: =SUM(FF8:FF1007) -> 0 | FG6: =SUM(FG8:FG1007) -> 0 | FH6: =SUM(FH8:FH1007) -> 0 | FI6: =SUM(FI8:FI1007) -> 0 | FR6: =SUM(FR8:FR1007) -> 0 | FS6: =SUM(FS8:FS1007) -> 0 | FT6: =SUM(FT8:FT1007) -> 0 | FY6: =SUM(FY8:FY1007) -> 0 | GD6: =SUM(GD8:GD1007) -> 0 | GE6: =SUM(GE8:GE1007) -> 0 | GF6: =SUM(GF8:GF1007) -> 0 | GJ6: =SUM(GJ8:GJ1007) -> 0 | GV6: =SUM(GV8:GV1007) -> 0 | GW6: =SUM(GW8:GW1007) -> 0 | GX6: =SUM(GX8:GX1007) -> 0 | GY6: =SUM(GY8:GY1007) -> 0 | HH6: =SUM(HH8:HH1007) -> 0 | HI6: =SUM(HI8:HI1007) -> 0 | HJ6: =SUM(HJ8:HJ1007) -> 0 | HO6: =SUM(HO8:HO1007) -> 0 | HT6: =SUM(HT8:HT1007) -> 0 | HU6: =SUM(HU8:HU1007) -> 0 | HV6: =SUM(HV8:HV1007) -> 0 | HZ6: =SUM(HZ8:HZ1007) -> 0 | IL6: =SUM(IL8:IL1007) -> 0 | IM6: =SUM(IM8:IM1007) -> 0 | IN6: =SUM(IN8:IN1007) -> 0 | IO6: =SUM(IO8:IO1007) -> 0 | IX6: =SUM(IX8:IX1007) -> 0 | IY6: =SUM(IY8:IY1007) -> 0 | IZ6: =SUM(IZ8:IZ1007) -> 0 | JE6: =SUM(JE8:JE1007) -> 0 | JJ6: =SUM(JJ8:JJ1007) -> 0 | JK6: =SUM(JK8:JK1007) -> 0 | JL6: =SUM(JL8:JL1007) -> 0 | JP6: =SUM(JP8:JP1007) -> 0 | KB6: =SUM(KB8:KB1007) -> 0 | KC6: =SUM(KC8:KC1007) -> 0 | KD6: =SUM(KD8:KD1007) -> 0 | KE6: =SUM(KE8:KE1007) -> 0 | KN6: =SUM(KN8:KN1007) -> 0 | KO6: =SUM(KO8:KO1007) -> 0 | KP6: =SUM(KP8:KP1007) -> 0 | KU6: =SUM(KU8:KU1007) -> 0 | KZ6: =SUM(KZ8:KZ1007) -> 0 | LA6: =SUM(LA8:LA1007) -> 0 | LB6: =SUM(LB8:LB1007) -> 0 | LF6: =SUM(LF8:LF1007) -> 0
Z7: N | AA7: r | AB7: Fisher[r] | AC7: rxx | AD7: ryyi | AE7: ut | AF7: A | AG7: rc | AH7: V1 | AI7: V2 | AJ7: Wi | AK7: Wirc | AL7: Wi[rC-rbarC]2 | AM7: wV2 | AN7: Ni*r | AO7: Ni*z[r] | AP7: ux | AQ7: rxxa | AR7: Ut | AS7: rc1 | AT7: rc | AU7: A | AV7: wi | AW7: wrc | AX7: wi(rc-rbarc)^2 | AY7: V1 [Var(eo)] | AZ7: V2 | BA7: arr | BB7: V3 | BC7: wV3 | BD7: rc1 | BE7: rc2 | BF7: rc | BG7: A | BH7: wi | BI7: wrc | BJ7: wi(rc-rbarc)^2 | BK7: V2 | BL7: arr | BM7: V3 | BN7: wV3 | BP7: N | BQ7: r | BR7: Fisher[r] | BS7: rxx | BT7: ryyi | BU7: ut | BV7: A | BW7: rc | BX7: V1 | BY7: V2 | BZ7: Wi | CA7: Wirc | CB7: Wi[rC-rbarC]2 | CC7: wV2 | CD7: Ni*r | CE7: Ni*z[r] | CF7: ux | CG7: rxxa | CH7: Ut | CI7: rc1 | CJ7: rc | CK7: A | CL7: wi | CM7: wrc | CN7: wi(rc-rbarc)^2 | CO7: V1 [Var(eo)] | CP7: V2 | CQ7: arr | CR7: V3 | CS7: wV3 | CT7: rc1 | CU7: rc2 | CV7: rc | CW7: A | CX7: wi | CY7: wrc | CZ7: wi(rc-rbarc)^2 | DA7: V2 | DB7: arr | DC7: V3 | DD7: wV3 | DF7: N | DG7: r | DH7: Fisher[r] | DI7: rxx | DJ7: ryyi | DK7: ut | DL7: A | DM7: rc | DN7: V1 | DO7: V2 | DP7: Wi | DQ7: Wirc | DR7: Wi[rC-rbarC]2 | DS7: wV2 | DT7: Ni*r | DU7: Ni*z[r] | DV7: ux | DW7: rxxa | DX7: Ut | DY7: rc1 | DZ7: rc | EA7: A | EB7: wi | EC7: wrc | ED7: wi(rc-rbarc)^2 | EE7: V1 [Var(eo)] | EF7: V2 | EG7: arr | EH7: V3 | EI7: wV3 | EJ7: rc1 | EK7: rc2 | EL7: rc | EM7: A | EN7: wi | EO7: wrc | EP7: wi(rc-rbarc)^2 | EQ7: V2 | ER7: arr | ES7: V3 | ET7: wV3 | EV7: N | EW7: r | EX7: Fisher[r] | EY7: rxx | EZ7: ryyi | FA7: ut | FB7: A | FC7: rc | FD7: V1 | FE7: V2 | FF7: Wi | FG7: Wirc | FH7: Wi[rC-rbarC]2 | FI7: wV2 | FJ7: Ni*r | FK7: Ni*z[r] | FL7: ux | FM7: rxxa | FN7: Ut | FO7: rc1 | FP7: rc | FQ7: A | FR7: wi | FS7: wrc | FT7: wi(rc-rbarc)^2 | FU7: V1 [Var(eo)] | FV7: V2 | FW7: arr | FX7: V3 | FY7: wV3 | FZ7: rc1 | GA7: rc2 | GB7: rc | GC7: A | GD7: wi | GE7: wrc | GF7: wi(rc-rbarc)^2 | GG7: V2 | GH7: arr | GI7: V3 | GJ7: wV3 | GL7: N | GM7: r | GN7: Fisher[r] | GO7: rxx | GP7: ryyi | GQ7: ut | GR7: A | GS7: rc | GT7: V1 | GU7: V2 | GV7: Wi | GW7: Wirc | GX7: Wi[rC-rbarC]2 | GY7: wV2 | GZ7: Ni*r | HA7: Ni*z[r] | HB7: ux | HC7: rxxa | HD7: Ut | HE7: rc1 | HF7: rc | HG7: A | HH7: wi | HI7: wrc | HJ7: wi(rc-rbarc)^2 | HK7: V1 [Var(eo)] | HL7: V2 | HM7: arr | HN7: V3 | HO7: wV3 | HP7: rc1 | HQ7: rc2 | HR7: rc | HS7: A | HT7: wi | HU7: wrc | HV7: wi(rc-rbarc)^2 | HW7: V2 | HX7: arr | HY7: V3 | HZ7: wV3 | IB7: N | IC7: r | ID7: Fisher[r] | IE7: rxx | IF7: ryyi | IG7: ut | IH7: A | II7: rc | IJ7: V1 | IK7: V2 | IL7: Wi | IM7: Wirc | IN7: Wi[rC-rbarC]2 | IO7: wV2 | IP7: Ni*r | IQ7: Ni*z[r] | IR7: ux | IS7: rxxa | IT7: Ut | IU7: rc1 | IV7: rc | IW7: A | IX7: wi | IY7: wrc | IZ7: wi(rc-rbarc)^2 | JA7: V1 [Var(eo)] | JB7: V2 | JC7: arr | JD7: V3 | JE7: wV3 | JF7: rc1 | JG7: rc2 | JH7: rc | JI7: A | JJ7: wi | JK7: wrc | JL7: wi(rc-rbarc)^2 | JM7: V2 | JN7: arr | JO7: V3 | JP7: wV3 | JR7: N | JS7: r | JT7: Fisher[r] | JU7: rxx | JV7: ryyi | JW7: ut | JX7: A | JY7: rc | JZ7: V1 | KA7: V2 | KB7: Wi | KC7: Wirc | KD7: Wi[rC-rbarC]2 | KE7: wV2 | KF7: Ni*r | KG7: Ni*z[r] | KH7: ux | KI7: rxxa | KJ7: Ut | KK7: rc1 | KL7: rc | KM7: A | KN7: wi | KO7: wrc | KP7: wi(rc-rbarc)^2 | KQ7: V1 [Var(eo)] | KR7: V2 | KS7: arr | KT7: V3 | KU7: wV3 | KV7: rc1 | KW7: rc2 | KX7: rc | KY7: A | KZ7: wi | LA7: wrc | LB7: wi(rc-rbarc)^2 | LC7: V2 | LD7: arr | LE7: V3 | LF7: wV3
B8: =IF(DATA_ENTRY!H4<>"",DATA_ENTRY!H4,DATA_ENTRY!$Q$9) -> 1 | C8: =IF(DATA_ENTRY!I4<>"",DATA_ENTRY!I4,DATA_ENTRY!$Q$10) -> 1 | D8: =IF(DATA_ENTRY!J4<>"",DATA_ENTRY!J4,DATA_ENTRY!$Q$11) -> 1 | E8: =IF($C$2="Y",B8,1) -> 1 | F8: =IF($C$3="Y",C8,1) -> 1 | G8: =IF($C$4="N",1,D8) -> 1 | Z8: =IF(AND(DATA_ENTRY!$L4="y",DATA_ENTRY!F4<>""),DATA_ENTRY!F4,"") -> 219 | AA8: =IF(AND(DATA_ENTRY!$L4="y",DATA_ENTRY!G4<>""),DATA_ENTRY!G4,"") -> 0.4 | AB8: =IF(ISNUMBER(FISHER(AA8)),FISHER(AA8),"") -> 0.4236489302 | AC8: =IF(Z8<>"",E8,"") -> 1 | AD8: =IF(AA8<>"",F8,"") -> 1 | AE8: =IF(AC8<>"",G8,"") -> 1 | AF8: =IF(AA8=0,SQRT(AD8*AC8),IF(AA8<>"",(AA8)/(AA8/SQRT(AD8*AC8)),"")) -> 1 | AG8: =IF(AA8=0,0,IF(AA8<>"",AA8/AF8,"")) -> 0.4 | AH8: =IF(AA8<>"",(1-$K$10^2)^2/(Z8-1),"") -> 0.003607063756 | AI8: =IF(AA8<>"",AH8/(AF8^2),"") -> 0.003607063756 | AJ8: =IF(AA8<>"",Z8*AF8^2,"") -> 219 | AK8: =IF(AA8<>"",AG8*AJ8,"") -> 87.6 | AL8: =IF(AA8<>"",AJ8*(AG8-$K$11)^2,"") -> 0.8826633218 | AM8: =IF(AA8<>"",AJ8*AI8,"") -> 0.7899469626 | AN8: =IF(AA8<>"",AA8*Z8,"") -> 87.6 | AO8: =IF(AND(Z8<>"",AB8<>""),Z8*AB8,"") -> 92.77911571 | AP8: =IF(AA8<>"",1/AE8,"") -> 1 | AQ8: =IF(AA8<>"",1-AP8^2*(1-AC8),"") -> 1 | AR8: =IF(AA8<>"",1/((AP8^2-(1-AQ8))/((AQ8)))^0.5,"") -> 1 | AS8: =IF(AA8<>"",AA8/SQRT(AC8*AD8),"") -> 0.4 | AT8: =IF(AA8<>"",(AR8*AS8)/SQRT((AR8^2-1)*AS8^2+1),"") -> 0.4 | AU8: =IF(AA8=0,1,IF(AA8<>"",AA8/AT8,"")) -> 1 | AV8: =IF(AA8<>"",Z8*AU8^2,"") -> 219 | AW8: =IF(AA8<>"",AV8*AT8,"") -> 87.6 | AX8: =IF(AA8<>"",AV8*(AT8-$K$18)^2,"") -> 0.8826633218 | AY8: =IF(AA8<>"",((1-$C$6^2)^2)/(Z8-1),"") -> 0.00449587156 | AZ8: =IF(AA8<>"",AY8/AU8^2,"") -> 0.00449587156 | BA8: =IF(AA8<>"",1/((AR8^2-1)*AA8^2+1),"") -> 1 | BB8: =IF(AA8<>"",BA8^2*AZ8,"") -> 0.00449587156 | BC8: =IF(AA8<>"",AV8*BB8,"") -> 0.9845958716 | BD8: =IF(AA8<>"",AA8/SQRT(AD8),"") -> 0.4 | BE8: =IF(AA8<>"",(AE8*BD8)/(SQRT((AE8^2-1)*BD8^2+1)),"") -> 0.4 | BF8: =IF(AA8<>"",BE8/(SQRT(AQ8)),"") -> 0.4 | BG8: =IF(AA8=0,1,IF(AA8<>"",AA8/BF8,"")) -> 1 | BH8: =IF(AA8<>"",Z8*BG8^2,"") -> 219 | BI8: =IF(AA8<>"",BH8*BF8,"") -> 87.6 | BJ8: =IF(AA8<>"",BH8*(BF8-$K$25)^2,"") -> 0.8826633218 | BK8: =IF(AA8<>"",AY8/BG8^2,"") -> 0.00449587156 | BL8: =IF(AA8<>"",(1)/(((AE8^2-1)*AA8^2+1)),"") -> 1 | BM8: =IF(AA8<>"",BL8^2*BK8,"") -> 0.00449587156 | BN8: =IF(AA8<>"",BM8*BH8,"") -> 0.9845958716 | BP8: =IF(AND(DATA_ENTRY!$K4=1,DATA_ENTRY!$L4="y",DATA_ENTRY!F4<>""),DATA_ENTRY!F4,"") -> 219 | BQ8: =IF(AND(DATA_ENTRY!$K4=1,DATA_ENTRY!$L4="y",DATA_ENTRY!G4<>""),DATA_ENTRY!G4,"") -> 0.4 | BR8: =IF(ISNUMBER(FISHER(BQ8)),FISHER(BQ8),"") -> 0.4236489302 | BS8: =IF(AND(DATA_ENTRY!$K4=1,DATA_ENTRY!$L4="y",DATA_ENTRY!G4<>""),rel_cor_Brannick!E8,"") -> 1 | BT8: =IF(AND(DATA_ENTRY!$K4=1,DATA_ENTRY!$L4="y",DATA_ENTRY!G4<>""),rel_cor_Brannick!F8,"") -> 1 | BU8: =IF(AND(DATA_ENTRY!$K4=1,DATA_ENTRY!$L4="y",DATA_ENTRY!G4<>""),rel_cor_Brannick!G8,"") -> 1 | BV8: =IF(BQ8=0,SQRT(BT8*BS8),IF(BQ8<>"",(BQ8)/(BQ8/SQRT(BT8*BS8)),"")) -> 1 | BW8: =IF(BQ8=0,0,IF(BQ8<>"",BQ8/BV8,"")) -> 0.4 | BX8: =IF(BQ8<>"",(1-$M$10^2)^2/(BP8-1),"") -> 0.002471126206 | BY8: =IF(BQ8<>"",BX8/(BV8^2),"") -> 0.002471126206 | BZ8: =IF(BQ8<>"",BP8*BV8^2,"") -> 219 | CA8: =IF(BQ8<>"",BW8*BZ8,"") -> 87.6 | CB8: =IF(BQ8<>"",BZ8*(BW8-$M$11)^2,"") -> 2.93596153 | CC8: =IF(BQ8<>"",BZ8*BY8,"") -> 0.5411766391 | CD8: =IF(BQ8<>"",BQ8*BP8,"") -> 87.6 | CE8: =IF(AND(BP8<>"",BR8<>""),BP8*BR8,"") -> 92.77911571 | CF8: =IF(BQ8<>"",1/BU8,"") -> 1 | CG8: =IF(BQ8<>"",1-CF8^2*(1-BS8),"") -> 1 | CH8: =IF(BQ8<>"",1/((CF8^2-(1-CG8))/((CG8)))^0.5,"") -> 1 | CI8: =IF(BQ8<>"",BQ8/SQRT(BS8*BT8),"") -> 0.4 | CJ8: =IF(BQ8<>"",(CH8*CI8)/SQRT((CH8^2-1)*CI8^2+1),"") -> 0.4 | CK8: =IF(BQ8=0,1,IF(BQ8<>"",BQ8/CJ8,"")) -> 1 | CL8: =IF(BQ8<>"",BP8*CK8^2,"") -> 219 | CM8: =IF(BQ8<>"",CL8*CJ8,"") -> 87.6 | CN8: =IF(BQ8<>"",CL8*(CJ8-$M$18)^2,"") -> 2.93596153 | CO8: =IF(BQ8<>"",((1-$C$6^2)^2)/(BP8-1),"") -> 0.00449587156 | CP8: =IF(BQ8<>"",CO8/CK8^2,"") -> 0.00449587156 | CQ8: =IF(BQ8<>"",1/((CH8^2-1)*BQ8^2+1),"") -> 1 | CR8: =IF(BQ8<>"",CQ8^2*CP8,"") -> 0.00449587156 | CS8: =IF(BQ8<>"",CL8*CR8,"") -> 0.9845958716 | CT8: =IF(BQ8<>"",BQ8/SQRT(BT8),"") -> 0.4 | CU8: =IF(BQ8<>"",(BU8*CT8)/(SQRT((BU8^2-1)*CT8^2+1)),"") -> 0.4 | CV8: =IF(BQ8<>"",CU8/(SQRT(CG8)),"") -> 0.4 | CW8: =IF(BQ8=0,1,IF(BQ8<>"",BQ8/CV8,"")) -> 1 | CX8: =IF(BQ8<>"",BP8*CW8^2,"") -> 219 | CY8: =IF(BQ8<>"",CX8*CV8,"") -> 87.6 | CZ8: =IF(BQ8<>"",CX8*(CV8-$M$25)^2,"") -> 2.93596153 | DA8: =IF(BQ8<>"",CO8/CW8^2,"") -> 0.00449587156 | DB8: =IF(BQ8<>"",(1)/(((BU8^2-1)*BQ8^2+1)),"") -> 1 | DC8: =IF(BQ8<>"",DB8^2*DA8,"") -> 0.00449587156 | DD8: =IF(BQ8<>"",DC8*CX8,"") -> 0.9845958716 | DF8: =IF(AND(DATA_ENTRY!$K4=2,DATA_ENTRY!$L4="y",DATA_ENTRY!F4<>""),DATA_ENTRY!F4,"") ->  | DG8: =IF(AND(DATA_ENTRY!$K4=2,DATA_ENTRY!$L4="y",DATA_ENTRY!G4<>""),DATA_ENTRY!G4,"") ->  | DH8: =IF(ISNUMBER(FISHER(DG8)),FISHER(DG8),"") ->  | DI8: =IF(AND(DATA_ENTRY!$K4=2,DATA_ENTRY!$L4="y",DATA_ENTRY!G4<>""),rel_cor_Brannick!E8,"") ->  | DJ8: =IF(AND(DATA_ENTRY!$K4=2,DATA_ENTRY!$L4="y",DATA_ENTRY!G4<>""),rel_cor_Brannick!F8,"") ->  | DK8: =IF(AND(DATA_ENTRY!$K4=2,DATA_ENTRY!$L4="y",DATA_ENTRY!G4<>""),rel_cor_Brannick!G8,"") ->  | DL8: =IF(DG8=0,SQRT(DJ8*DI8),IF(DG8<>"",(DG8)/(DG8/SQRT(DJ8*DI8)),"")) ->  | DM8: =IF(DG8=0,0,IF(DG8<>"",DG8/DL8,"")) ->  | DN8: =IF(DG8<>"",(1-$O$10^2)^2/(DF8-1),"") ->  | DO8: =IF(DG8<>"",DN8/(DL8^2),"") ->  | DP8: =IF(DG8<>"",DF8*DL8^2,"") ->  | DQ8: =IF(DG8<>"",DM8*DP8,"") ->  | DR8: =IF(DG8<>"",DP8*(DM8-$O$11)^2,"") ->  | DS8: =IF(DG8<>"",DP8*DO8,"") ->  | DT8: =IF(DG8<>"",DG8*DF8,"") ->  | DU8: =IF(AND(DF8<>"",DH8<>""),DF8*DH8,"") ->  | DV8: =IF(DG8<>"",1/DK8,"") ->  | DW8: =IF(DG8<>"",1-DV8^2*(1-DI8),"") ->  | DX8: =IF(DG8<>"",1/((DV8^2-(1-DW8))/((DW8)))^0.5,"") ->  | DY8: =IF(DG8<>"",DG8/SQRT(DI8*DJ8),"") ->  | DZ8: =IF(DG8<>"",(DX8*DY8)/SQRT((DX8^2-1)*DY8^2+1),"") ->  | EA8: =IF(DG8=0,1,IF(DG8<>"",DG8/DZ8,"")) ->  | EB8: =IF(DG8<>"",DF8*EA8^2,"") ->  | EC8: =IF(DG8<>"",EB8*DZ8,"") ->  | ED8: =IF(DG8<>"",EB8*(DZ8-$O$18)^2,"") ->  | EE8: =IF(DG8<>"",((1-$C$6^2)^2)/(DF8-1),"") ->  | EF8: =IF(DG8<>"",EE8/EA8^2,"") ->  | EG8: =IF(DG8<>"",1/((DX8^2-1)*DG8^2+1),"") ->  | EH8: =IF(DG8<>"",EG8^2*EF8,"") ->  | EI8: =IF(DG8<>"",EB8*EH8,"") ->  | EJ8: =IF(DG8<>"",DG8/SQRT(DJ8),"") ->  | EK8: =IF(DG8<>"",(DK8*EJ8)/(SQRT((DK8^2-1)*EJ8^2+1)),"") ->  | EL8: =IF(DG8<>"",EK8/(SQRT(DW8)),"") ->  | EM8: =IF(DG8=0,1,IF(DG8<>"",DG8/EL8,"")) ->  | EN8: =IF(DG8<>"",DF8*EM8^2,"") ->  | EO8: =IF(DG8<>"",EN8*EL8,"") ->  | EP8: =IF(DG8<>"",EN8*(EL8-$O$25)^2,"") ->  | EQ8: =IF(DG8<>"",EE8/EM8^2,"") ->  | ER8: =IF(DG8<>"",(1)/(((DK8^2-1)*DG8^2+1)),"") ->  | ES8: =IF(DG8<>"",ER8^2*EQ8,"") ->  | ET8: =IF(DG8<>"",ES8*EN8,"") ->  | EV8: =IF(AND(DATA_ENTRY!$K4=3,DATA_ENTRY!$L4="y",DATA_ENTRY!F4<>""),DATA_ENTRY!F4,"") ->  | EW8: =IF(AND(DATA_ENTRY!$K4=3,DATA_ENTRY!$L4="y",DATA_ENTRY!G4<>""),DATA_ENTRY!G4,"") ->  | EX8: =IF(ISNUMBER(FISHER(EW8)),FISHER(EW8),"") ->  | EY8: =IF(AND(DATA_ENTRY!$K4=3,DATA_ENTRY!$L4="y",DATA_ENTRY!G4<>""),rel_cor_Brannick!E8,"") ->  | EZ8: =IF(AND(DATA_ENTRY!$K4=3,DATA_ENTRY!$L4="y",DATA_ENTRY!G4<>""),rel_cor_Brannick!F8,"") ->  | FA8: =IF(AND(DATA_ENTRY!$K4=3,DATA_ENTRY!$L4="y",DATA_ENTRY!G4<>""),rel_cor_Brannick!G8,"") ->  | FB8: =IF(EW8=0,SQRT(EZ8*EY8),IF(EW8<>"",(EW8)/(EW8/SQRT(EZ8*EY8)),"")) ->  | FC8: =IF(EW8=0,0,IF(EW8<>"",EW8/FB8,"")) ->  | FD8: =IF(EW8<>"",(1-$Q$10^2)^2/(EV8-1),"") ->  | FE8: =IF(EW8<>"",FD8/(FB8^2),"") ->  | FF8: =IF(EW8<>"",EV8*FB8^2,"") ->  | FG8: =IF(EW8<>"",FC8*FF8,"") ->  | FH8: =IF(EW8<>"",FF8*(FC8-$Q$11)^2,"") ->  | FI8: =IF(EW8<>"",FF8*FE8,"") ->  | FJ8: =IF(EW8<>"",EW8*EV8,"") ->  | FK8: =IF(AND(EV8<>"",EX8<>""),EV8*EX8,"") ->  | FL8: =IF(EW8<>"",1/FA8,"") ->  | FM8: =IF(EW8<>"",1-FL8^2*(1-EY8),"") ->  | FN8: =IF(EW8<>"",1/((FL8^2-(1-FM8))/((FM8)))^0.5,"") ->  | FO8: =IF(EW8<>"",EW8/SQRT(EY8*EZ8),"") ->  | FP8: =IF(EW8<>"",(FN8*FO8)/SQRT((FN8^2-1)*FO8^2+1),"") ->  | FQ8: =IF(EW8=0,1,IF(EW8<>"",EW8/FP8,"")) ->  | FR8: =IF(EW8<>"",EV8*FQ8^2,"") ->  | FS8: =IF(EW8<>"",FR8*FP8,"") ->  | FT8: =IF(EW8<>"",FR8*(FP8-$Q$18)^2,"") ->  | FU8: =IF(EW8<>"",((1-$C$6^2)^2)/(EV8-1),"") ->  | FV8: =IF(EW8<>"",FU8/FQ8^2,"") ->  | FW8: =IF(EW8<>"",1/((FN8^2-1)*EW8^2+1),"") ->  | FX8: =IF(EW8<>"",FW8^2*FV8,"") ->  | FY8: =IF(EW8<>"",FR8*FX8,"") ->  | FZ8: =IF(EW8<>"",EW8/SQRT(EZ8),"") ->  | GA8: =IF(EW8<>"",(FA8*FZ8)/(SQRT((FA8^2-1)*FZ8^2+1)),"") ->  | GB8: =IF(EW8<>"",GA8/(SQRT(FM8)),"") ->  | GC8: =IF(EW8=0,1,IF(EW8<>"",EW8/GB8,"")) ->  | GD8: =IF(EW8<>"",EV8*GC8^2,"") ->  | GE8: =IF(EW8<>"",GD8*GB8,"") ->  | GF8: =IF(EW8<>"",GD8*(GB8-$Q$25)^2,"") ->  | GG8: =IF(EW8<>"",FU8/GC8^2,"") ->  | GH8: =IF(EW8<>"",(1)/(((FA8^2-1)*EW8^2+1)),"") ->  | GI8: =IF(EW8<>"",GH8^2*GG8,"") ->  | GJ8: =IF(EW8<>"",GI8*GD8,"") ->  | GL8: =IF(AND(DATA_ENTRY!$K4=4,DATA_ENTRY!$L4="y",DATA_ENTRY!F4<>""),DATA_ENTRY!F4,"") ->  | GM8: =IF(AND(DATA_ENTRY!$K4=4,DATA_ENTRY!$L4="y",DATA_ENTRY!G4<>""),DATA_ENTRY!G4,"") ->  | GN8: =IF(ISNUMBER(FISHER(GM8)),FISHER(GM8),"") ->  | GO8: =IF(AND(DATA_ENTRY!$K4=4,DATA_ENTRY!$L4="y",DATA_ENTRY!G4<>""),rel_cor_Brannick!E8,"") ->  | GP8: =IF(AND(DATA_ENTRY!$K4=4,DATA_ENTRY!$L4="y",DATA_ENTRY!G4<>""),rel_cor_Brannick!F8,"") ->  | GQ8: =IF(AND(DATA_ENTRY!$K4=4,DATA_ENTRY!$L4="y",DATA_ENTRY!G4<>""),rel_cor_Brannick!G8,"") ->  | GR8: =IF(GM8=0,SQRT(GP8*GO8),IF(GM8<>"",(GM8)/(GM8/SQRT(GP8*GO8)),"")) ->  | GS8: =IF(GM8=0,0,IF(GM8<>"",GM8/GR8,"")) ->  | GT8: =IF(GM8<>"",(1-$S$10^2)^2/(GL8-1),"") ->  | GU8: =IF(GM8<>"",GT8/(GR8^2),"") ->  | GV8: =IF(GM8<>"",GL8*GR8^2,"") ->  | GW8: =IF(GM8<>"",GS8*GV8,"") ->  | GX8: =IF(GM8<>"",GV8*(GS8-$S$11)^2,"") ->  | GY8: =IF(GM8<>"",GV8*GU8,"") ->  | GZ8: =IF(GM8<>"",GM8*GL8,"") ->  | HA8: =IF(AND(GL8<>"",GN8<>""),GL8*GN8,"") ->  | HB8: =IF(GM8<>"",1/GQ8,"") ->  | HC8: =IF(GM8<>"",1-HB8^2*(1-GO8),"") ->  | HD8: =IF(GM8<>"",1/((HB8^2-(1-HC8))/((HC8)))^0.5,"") ->  | HE8: =IF(GM8<>"",GM8/SQRT(GO8*GP8),"") ->  | HF8: =IF(GM8<>"",(HD8*HE8)/SQRT((HD8^2-1)*HE8^2+1),"") ->  | HG8: =IF(GM8=0,1,IF(GM8<>"",GM8/HF8,"")) ->  | HH8: =IF(GM8<>"",GL8*HG8^2,"") ->  | HI8: =IF(GM8<>"",HH8*HF8,"") ->  | HJ8: =IF(GM8<>"",HH8*(HF8-$S$18)^2,"") ->  | HK8: =IF(GM8<>"",((1-$C$6^2)^2)/(GL8-1),"") ->  | HL8: =IF(GM8<>"",HK8/HG8^2,"") ->  | HM8: =IF(GM8<>"",1/((HD8^2-1)*GM8^2+1),"") ->  | HN8: =IF(GM8<>"",HM8^2*HL8,"") ->  | HO8: =IF(GM8<>"",HH8*HN8,"") ->  | HP8: =IF(GM8<>"",GM8/SQRT(GP8),"") ->  | HQ8: =IF(GM8<>"",(GQ8*HP8)/(SQRT((GQ8^2-1)*HP8^2+1)),"") ->  | HR8: =IF(GM8<>"",HQ8/(SQRT(HC8)),"") ->  | HS8: =IF(GM8=0,1,IF(GM8<>"",GM8/HR8,"")) ->  | HT8: =IF(GM8<>"",GL8*HS8^2,"") ->  | HU8: =IF(GM8<>"",HT8*HR8,"") ->  | HV8: =IF(GM8<>"",HT8*(HR8-$S$25)^2,"") ->  | HW8: =IF(GM8<>"",HK8/HS8^2,"") ->  | HX8: =IF(GM8<>"",(1)/(((GQ8^2-1)*GM8^2+1)),"") ->  | HY8: =IF(GM8<>"",HX8^2*HW8,"") ->  | HZ8: =IF(GM8<>"",HY8*HT8,"") ->  | IB8: =IF(AND(DATA_ENTRY!$K4=5,DATA_ENTRY!$L4="y",DATA_ENTRY!F4<>""),DATA_ENTRY!F4,"") ->  | IC8: =IF(AND(DATA_ENTRY!$K4=5,DATA_ENTRY!$L4="y",DATA_ENTRY!G4<>""),DATA_ENTRY!G4,"") ->  | ID8: =IF(ISNUMBER(FISHER(IC8)),FISHER(IC8),"") ->  | IE8: =IF(AND(DATA_ENTRY!$K4=5,DATA_ENTRY!$L4="y",DATA_ENTRY!G4<>""),rel_cor_Brannick!E8,"") ->  | IF8: =IF(AND(DATA_ENTRY!$K4=5,DATA_ENTRY!$L4="y",DATA_ENTRY!G4<>""),rel_cor_Brannick!F8,"") ->  | IG8: =IF(AND(DATA_ENTRY!$K4=5,DATA_ENTRY!$L4="y",DATA_ENTRY!G4<>""),rel_cor_Brannick!G8,"") ->  | IH8: =IF(IC8=0,SQRT(IF8*IE8),IF(IC8<>"",(IC8)/(IC8/SQRT(IF8*IE8)),"")) ->  | II8: =IF(IC8=0,0,IF(IC8<>"",IC8/IH8,"")) ->  | IJ8: =IF(IC8<>"",(1-$U$10^2)^2/(IB8-1),"") ->  | IK8: =IF(IC8<>"",IJ8/(IH8^2),"") ->  | IL8: =IF(IC8<>"",IB8*IH8^2,"") ->  | IM8: =IF(IC8<>"",II8*IL8,"") ->  | IN8: =IF(IC8<>"",IL8*(II8-$U$11)^2,"") ->  | IO8: =IF(IC8<>"",IL8*IK8,"") ->  | IP8: =IF(IC8<>"",IC8*IB8,"") ->  | IQ8: =IF(AND(IB8<>"",ID8<>""),IB8*ID8,"") ->  | IR8: =IF(IC8<>"",1/IG8,"") ->  | IS8: =IF(IC8<>"",1-IR8^2*(1-IE8),"") ->  | IT8: =IF(IC8<>"",1/((IR8^2-(1-IS8))/((IS8)))^0.5,"") ->  | IU8: =IF(IC8<>"",IC8/SQRT(IE8*IF8),"") ->  | IV8: =IF(IC8<>"",(IT8*IU8)/SQRT((IT8^2-1)*IU8^2+1),"") ->  | IW8: =IF(IC8=0,1,IF(IC8<>"",IC8/IV8,"")) ->  | IX8: =IF(IC8<>"",IB8*IW8^2,"") ->  | IY8: =IF(IC8<>"",IX8*IV8,"") ->  | IZ8: =IF(IC8<>"",IX8*(IV8-$U$18)^2,"") ->  | JA8: =IF(IC8<>"",((1-$C$6^2)^2)/(IB8-1),"") ->  | JB8: =IF(IC8<>"",JA8/IW8^2,"") ->  | JC8: =IF(IC8<>"",1/((IT8^2-1)*IC8^2+1),"") ->  | JD8: =IF(IC8<>"",JC8^2*JB8,"") ->  | JE8: =IF(IC8<>"",IX8*JD8,"") ->  | JF8: =IF(IC8<>"",IC8/SQRT(IF8),"") ->  | JG8: =IF(IC8<>"",(IG8*JF8)/(SQRT((IG8^2-1)*JF8^2+1)),"") ->  | JH8: =IF(IC8<>"",JG8/(SQRT(IS8)),"") ->  | JI8: =IF(IC8=0,1,IF(IC8<>"",IC8/JH8,"")) ->  | JJ8: =IF(IC8<>"",IB8*JI8^2,"") ->  | JK8: =IF(IC8<>"",JJ8*JH8,"") ->  | JL8: =IF(IC8<>"",JJ8*(JH8-$U$25)^2,"") ->  | JM8: =IF(IC8<>"",JA8/JI8^2,"") ->  | JN8: =IF(IC8<>"",(1)/(((IG8^2-1)*IC8^2+1)),"") ->  | JO8: =IF(IC8<>"",JN8^2*JM8,"") ->  | JP8: =IF(IC8<>"",JO8*JJ8,"") ->  | JR8: =IF(AND(DATA_ENTRY!$K4=6,DATA_ENTRY!$L4="y",DATA_ENTRY!F4<>""),DATA_ENTRY!F4,"") ->  | JS8: =IF(AND(DATA_ENTRY!$K4=6,DATA_ENTRY!$L4="y",DATA_ENTRY!G4<>""),DATA_ENTRY!G4,"") ->  | JT8: =IF(ISNUMBER(FISHER(JS8)),FISHER(JS8),"") ->  | JU8: =IF(AND(DATA_ENTRY!$K4=6,DATA_ENTRY!$L4="y",DATA_ENTRY!G4<>""),rel_cor_Brannick!E8,"") ->  | JV8: =IF(AND(DATA_ENTRY!$K4=6,DATA_ENTRY!$L4="y",DATA_ENTRY!G4<>""),rel_cor_Brannick!F8,"") ->  | JW8: =IF(AND(DATA_ENTRY!$K4=6,DATA_ENTRY!$L4="y",DATA_ENTRY!G4<>""),rel_cor_Brannick!G8,"") ->  | JX8: =IF(JS8=0,SQRT(JV8*JU8),IF(JS8<>"",(JS8)/(JS8/SQRT(JV8*JU8)),"")) ->  | JY8: =IF(JS8=0,0,IF(JS8<>"",JS8/JX8,"")) ->  | JZ8: =IF(JS8<>"",(1-$W$10^2)^2/(JR8-1),"") ->  | KA8: =IF(JS8<>"",JZ8/(JX8^2),"") ->  | KB8: =IF(JS8<>"",JR8*JX8^2,"") ->  | KC8: =IF(JS8<>"",JY8*KB8,"") ->  | KD8: =IF(JS8<>"",KB8*(JY8-$W$11)^2,"") ->  | KE8: =IF(JS8<>"",KB8*KA8,"") ->  | KF8: =IF(JS8<>"",JS8*JR8,"") ->  | KG8: =IF(AND(JR8<>"",JT8<>""),JR8*JT8,"") ->  | KH8: =IF(JS8<>"",1/JW8,"") ->  | KI8: =IF(JS8<>"",1-KH8^2*(1-JU8),"") ->  | KJ8: =IF(JS8<>"",1/((KH8^2-(1-KI8))/((KI8)))^0.5,"") ->  | KK8: =IF(JS8<>"",JS8/SQRT(JU8*JV8),"") ->  | KL8: =IF(JS8<>"",(KJ8*KK8)/SQRT((KJ8^2-1)*KK8^2+1),"") ->  | KM8: =IF(JS8=0,1,IF(JS8<>"",JS8/KL8,"")) ->  | KN8: =IF(JS8<>"",JR8*KM8^2,"") ->  | KO8: =IF(JS8<>"",KN8*KL8,"") ->  | KP8: =IF(JS8<>"",KN8*(KL8-$W$18)^2,"") ->  | KQ8: =IF(JS8<>"",((1-$C$6^2)^2)/(JR8-1),"") ->  | KR8: =IF(JS8<>"",KQ8/KM8^2,"") ->  | KS8: =IF(JS8<>"",1/((KJ8^2-1)*JS8^2+1),"") ->  | KT8: =IF(JS8<>"",KS8^2*KR8,"") ->  | KU8: =IF(JS8<>"",KN8*KT8,"") ->  | KV8: =IF(JS8<>"",JS8/SQRT(JV8),"") ->  | KW8: =IF(JS8<>"",(JW8*KV8)/(SQRT((JW8^2-1)*KV8^2+1)),"") ->  | KX8: =IF(JS8<>"",KW8/(SQRT(KI8)),"") ->  | KY8: =IF(JS8=0,1,IF(JS8<>"",JS8/KX8,"")) ->  | KZ8: =IF(JS8<>"",JR8*KY8^2,"") ->  | LA8: =IF(JS8<>"",KZ8*KX8,"") ->  | LB8: =IF(JS8<>"",KZ8*(KX8-$W$25)^2,"") ->  | LC8: =IF(JS8<>"",KQ8/KY8^2,"") ->  | LD8: =IF(JS8<>"",(1)/(((JW8^2-1)*JS8^2+1)),"") ->  | LE8: =IF(JS8<>"",LD8^2*LC8,"") ->  | LF8: =IF(JS8<>"",LE8*KZ8,"") -> 
B9: =IF(DATA_ENTRY!H5<>"",DATA_ENTRY!H5,DATA_ENTRY!$Q$9) -> 1 | C9: =IF(DATA_ENTRY!I5<>"",DATA_ENTRY!I5,DATA_ENTRY!$Q$10) -> 1 | D9: =IF(DATA_ENTRY!J5<>"",DATA_ENTRY!J5,DATA_ENTRY!$Q$11) -> 1 | E9: 1 | F9: 1 | G9: =IF($C$4="N",1,D9) -> 1 | K9: r | L9: z | M9: r | N9: z | O9: r | P9: z | Q9: r | R9: z | S9: r | T9: z | U9: r | V9: z | W9: r | X9: z | Z9: =IF(AND(DATA_ENTRY!$L5="y",DATA_ENTRY!F5<>""),DATA_ENTRY!F5,"") -> 215 | AA9: =IF(AND(DATA_ENTRY!$L5="y",DATA_ENTRY!G5<>""),DATA_ENTRY!G5,"") -> 0.19 | AB9: =IF(ISNUMBER(FISHER(AA9)),FISHER(AA9),"") -> 0.1923371692 | AC9: 1 | AD9: 1 | AE9: 1 | AF9: =IF(AA9=0,SQRT(AD9*AC9),IF(AA9<>"",(AA9)/(AA9/SQRT(AD9*AC9)),"")) -> 1 | AG9: =IF(AA9=0,0,IF(AA9<>"",AA9/AF9,"")) -> 0.19 | AH9: =IF(AA9<>"",(1-$K$10^2)^2/(Z9-1),"") -> 0.003674485509 | AI9: =IF(AA9<>"",AH9/(AF9^2),"") -> 0.003674485509 | AJ9: =IF(AA9<>"",Z9*AF9^2,"") -> 215 | AK9: =IF(AA9<>"",AG9*AJ9,"") -> 40.85 | AL9: =IF(AA9<>"",AJ9*(AG9-$K$11)^2,"") -> 4.615288581 | AM9: =IF(AA9<>"",AJ9*AI9,"") -> 0.7900143844 | AN9: 40.85 | AO9: =IF(AND(Z9<>"",AB9<>""),Z9*AB9,"") -> 41.35249138 | AP9: 1 | AQ9: 1 | AR9: 1 | AS9: 0.19 | AT9: 0.19 | AU9: =IF(AA9=0,1,IF(AA9<>"",AA9/AT9,"")) -> 1 | AV9: 215 | AW9: 40.85 | AX9: 4.615288581 | AY9: 0.004579906542 | AZ9: 0.004579906542 | BA9: 1 | BB9: 0.004579906542 | BC9: 0.9846799065 | BD9: 0.19 | BE9: 0.19 | BF9: 0.19 | BG9: =IF(AA9=0,1,IF(AA9<>"",AA9/BF9,"")) -> 1 | BH9: 215 | BI9: 40.85 | BJ9: 4.615288581 | BK9: 0.004579906542 | BL9: 1 | BM9: 0.004579906542 | BN9: 0.9846799065 | BP9: =IF(AND(DATA_ENTRY!$K5=1,DATA_ENTRY!$L5="y",DATA_ENTRY!F5<>""),DATA_ENTRY!F5,"") -> 215 | BQ9: =IF(AND(DATA_ENTRY!$K5=1,DATA_ENTRY!$L5="y",DATA_ENTRY!G5<>""),DATA_ENTRY!G5,"") -> 0.19 | BR9: =IF(ISNUMBER(FISHER(BQ9)),FISHER(BQ9),"") -> 0.1923371692 | BS9: =IF(AND(DATA_ENTRY!$K5=1,DATA_ENTRY!$L5="y",DATA_ENTRY!G5<>""),rel_cor_Brannick!E9,"") -> 1 | BT9: =IF(AND(DATA_ENTRY!$K5=1,DATA_ENTRY!$L5="y",DATA_ENTRY!G5<>""),rel_cor_Brannick!F9,"") -> 1 | BU9: =IF(AND(DATA_ENTRY!$K5=1,DATA_ENTRY!$L5="y",DATA_ENTRY!G5<>""),rel_cor_Brannick!G9,"") -> 1 | BV9: =IF(BQ9=0,SQRT(BT9*BS9),IF(BQ9<>"",(BQ9)/(BQ9/SQRT(BT9*BS9)),"")) -> 1 | BW9: =IF(BQ9=0,0,IF(BQ9<>"",BQ9/BV9,"")) -> 0.19 | BX9: =IF(BQ9<>"",(1-$M$10^2)^2/(BP9-1),"") -> 0.002517315481 | BY9: =IF(BQ9<>"",BX9/(BV9^2),"") -> 0.002517315481 | BZ9: =IF(BQ9<>"",BP9*BV9^2,"") -> 215 | CA9: =IF(BQ9<>"",BW9*BZ9,"") -> 40.85 | CB9: =IF(BQ9<>"",BZ9*(BW9-$M$11)^2,"") -> 22.81924197 | CC9: =IF(BQ9<>"",BZ9*BY9,"") -> 0.5412228284 | CD9: =IF(BQ9<>"",BQ9*BP9,"") -> 40.85 | CE9: =IF(AND(BP9<>"",BR9<>""),BP9*BR9,"") -> 41.35249138 | CF9: =IF(BQ9<>"",1/BU9,"") -> 1 | CG9: =IF(BQ9<>"",1-CF9^2*(1-BS9),"") -> 1 | CH9: =IF(BQ9<>"",1/((CF9^2-(1-CG9))/((CG9)))^0.5,"") -> 1 | CI9: =IF(BQ9<>"",BQ9/SQRT(BS9*BT9),"") -> 0.19 | CJ9: =IF(BQ9<>"",(CH9*CI9)/SQRT((CH9^2-1)*CI9^2+1),"") -> 0.19 | CK9: =IF(BQ9=0,1,IF(BQ9<>"",BQ9/CJ9,"")) -> 1 | CL9: =IF(BQ9<>"",BP9*CK9^2,"") -> 215 | CM9: =IF(BQ9<>"",CL9*CJ9,"") -> 40.85 | CN9: 22.81924197 | CO9: =IF(BQ9<>"",((1-$C$6^2)^2)/(BP9-1),"") -> 0.004579906542 | CP9: =IF(BQ9<>"",CO9/CK9^2,"") -> 0.004579906542 | CQ9: =IF(BQ9<>"",1/((CH9^2-1)*BQ9^2+1),"") -> 1 | CR9: =IF(BQ9<>"",CQ9^2*CP9,"") -> 0.004579906542 | CS9: =IF(BQ9<>"",CL9*CR9,"") -> 0.9846799065 | CT9: =IF(BQ9<>"",BQ9/SQRT(BT9),"") -> 0.19 | CU9: =IF(BQ9<>"",(BU9*CT9)/(SQRT((BU9^2-1)*CT9^2+1)),"") -> 0.19 | CV9: =IF(BQ9<>"",CU9/(SQRT(CG9)),"") -> 0.19 | CW9: =IF(BQ9=0,1,IF(BQ9<>"",BQ9/CV9,"")) -> 1 | CX9: =IF(BQ9<>"",BP9*CW9^2,"") -> 215 | CY9: =IF(BQ9<>"",CX9*CV9,"") -> 40.85 | CZ9: 22.81924197 | DA9: =IF(BQ9<>"",CO9/CW9^2,"") -> 0.004579906542 | DB9: =IF(BQ9<>"",(1)/(((BU9^2-1)*BQ9^2+1)),"") -> 1 | DC9: =IF(BQ9<>"",DB9^2*DA9,"") -> 0.004579906542 | DD9: =IF(BQ9<>"",DC9*CX9,"") -> 0.9846799065 | DF9: =IF(AND(DATA_ENTRY!$K5=2,DATA_ENTRY!$L5="y",DATA_ENTRY!F5<>""),DATA_ENTRY!F5,"") ->  | DG9: =IF(AND(DATA_ENTRY!$K5=2,DATA_ENTRY!$L5="y",DATA_ENTRY!G5<>""),DATA_ENTRY!G5,"") ->  | DH9: =IF(ISNUMBER(FISHER(DG9)),FISHER(DG9),"") ->  | DI9: =IF(AND(DATA_ENTRY!$K5=2,DATA_ENTRY!$L5="y",DATA_ENTRY!G5<>""),rel_cor_Brannick!E9,"") ->  | DJ9: =IF(AND(DATA_ENTRY!$K5=2,DATA_ENTRY!$L5="y",DATA_ENTRY!G5<>""),rel_cor_Brannick!F9,"") ->  | DK9: =IF(AND(DATA_ENTRY!$K5=2,DATA_ENTRY!$L5="y",DATA_ENTRY!G5<>""),rel_cor_Brannick!G9,"") ->  | DL9: =IF(DG9=0,SQRT(DJ9*DI9),IF(DG9<>"",(DG9)/(DG9/SQRT(DJ9*DI9)),"")) ->  | DM9: =IF(DG9=0,0,IF(DG9<>"",DG9/DL9,"")) ->  | DN9: =IF(DG9<>"",(1-$O$10^2)^2/(DF9-1),"") ->  | DO9: =IF(DG9<>"",DN9/(DL9^2),"") ->  | DP9: =IF(DG9<>"",DF9*DL9^2,"") ->  | DQ9: =IF(DG9<>"",DM9*DP9,"") ->  | DR9: =IF(DG9<>"",DP9*(DM9-$O$11)^2,"") ->  | DS9: =IF(DG9<>"",DP9*DO9,"") ->  | DT9: =IF(DG9<>"",DG9*DF9,"") ->  | DU9: =IF(AND(DF9<>"",DH9<>""),DF9*DH9,"") ->  | DV9: =IF(DG9<>"",1/DK9,"") ->  | DW9: =IF(DG9<>"",1-DV9^2*(1-DI9),"") ->  | DX9: =IF(DG9<>"",1/((DV9^2-(1-DW9))/((DW9)))^0.5,"") ->  | DY9: =IF(DG9<>"",DG9/SQRT(DI9*DJ9),"") ->  | DZ9: =IF(DG9<>"",(DX9*DY9)/SQRT((DX9^2-1)*DY9^2+1),"") ->  | EA9: =IF(DG9=0,1,IF(DG9<>"",DG9/DZ9,"")) ->  | EB9: =IF(DG9<>"",DF9*EA9^2,"") ->  | EC9: =IF(DG9<>"",EB9*DZ9,"") ->  | EE9: =IF(DG9<>"",((1-$C$6^2)^2)/(DF9-1),"") ->  | EF9: =IF(DG9<>"",EE9/EA9^2,"") ->  | EG9: =IF(DG9<>"",1/((DX9^2-1)*DG9^2+1),"") ->  | EH9: =IF(DG9<>"",EG9^2*EF9,"") ->  | EI9: =IF(DG9<>"",EB9*EH9,"") ->  | EJ9: =IF(DG9<>"",DG9/SQRT(DJ9),"") ->  | EK9: =IF(DG9<>"",(DK9*EJ9)/(SQRT((DK9^2-1)*EJ9^2+1)),"") ->  | EL9: =IF(DG9<>"",EK9/(SQRT(DW9)),"") ->  | EM9: =IF(DG9=0,1,IF(DG9<>"",DG9/EL9,"")) ->  | EN9: =IF(DG9<>"",DF9*EM9^2,"") ->  | EO9: =IF(DG9<>"",EN9*EL9,"") ->  | EQ9: =IF(DG9<>"",EE9/EM9^2,"") ->  | ER9: =IF(DG9<>"",(1)/(((DK9^2-1)*DG9^2+1)),"") ->  | ES9: =IF(DG9<>"",ER9^2*EQ9,"") ->  | ET9: =IF(DG9<>"",ES9*EN9,"") ->  | EV9: =IF(AND(DATA_ENTRY!$K5=3,DATA_ENTRY!$L5="y",DATA_ENTRY!F5<>""),DATA_ENTRY!F5,"") ->  | EW9: =IF(AND(DATA_ENTRY!$K5=3,DATA_ENTRY!$L5="y",DATA_ENTRY!G5<>""),DATA_ENTRY!G5,"") ->  | EX9: =IF(ISNUMBER(FISHER(EW9)),FISHER(EW9),"") ->  | EY9: =IF(AND(DATA_ENTRY!$K5=3,DATA_ENTRY!$L5="y",DATA_ENTRY!G5<>""),rel_cor_Brannick!E9,"") ->  | EZ9: =IF(AND(DATA_ENTRY!$K5=3,DATA_ENTRY!$L5="y",DATA_ENTRY!G5<>""),rel_cor_Brannick!F9,"") ->  | FA9: =IF(AND(DATA_ENTRY!$K5=3,DATA_ENTRY!$L5="y",DATA_ENTRY!G5<>""),rel_cor_Brannick!G9,"") ->  | FB9: =IF(EW9=0,SQRT(EZ9*EY9),IF(EW9<>"",(EW9)/(EW9/SQRT(EZ9*EY9)),"")) ->  | FC9: =IF(EW9=0,0,IF(EW9<>"",EW9/FB9,"")) ->  | FD9: =IF(EW9<>"",(1-$Q$10^2)^2/(EV9-1),"") ->  | FE9: =IF(EW9<>"",FD9/(FB9^2),"") ->  | FF9: =IF(EW9<>"",EV9*FB9^2,"") ->  | FG9: =IF(EW9<>"",FC9*FF9,"") ->  | FH9: =IF(EW9<>"",FF9*(FC9-$Q$11)^2,"") ->  | FI9: =IF(EW9<>"",FF9*FE9,"") ->  | FJ9: =IF(EW9<>"",EW9*EV9,"") ->  | FK9: =IF(AND(EV9<>"",EX9<>""),EV9*EX9,"") ->  | FL9: =IF(EW9<>"",1/FA9,"") ->  | FM9: =IF(EW9<>"",1-FL9^2*(1-EY9),"") ->  | FN9: =IF(EW9<>"",1/((FL9^2-(1-FM9))/((FM9)))^0.5,"") ->  | FO9: =IF(EW9<>"",EW9/SQRT(EY9*EZ9),"") ->  | FP9: =IF(EW9<>"",(FN9*FO9)/SQRT((FN9^2-1)*FO9^2+1),"") ->  | FQ9: =IF(EW9=0,1,IF(EW9<>"",EW9/FP9,"")) ->  | FR9: =IF(EW9<>"",EV9*FQ9^2,"") ->  | FS9: =IF(EW9<>"",FR9*FP9,"") ->  | FU9: =IF(EW9<>"",((1-$C$6^2)^2)/(EV9-1),"") ->  | FV9: =IF(EW9<>"",FU9/FQ9^2,"") ->  | FW9: =IF(EW9<>"",1/((FN9^2-1)*EW9^2+1),"") ->  | FX9: =IF(EW9<>"",FW9^2*FV9,"") ->  | FY9: =IF(EW9<>"",FR9*FX9,"") ->  | FZ9: =IF(EW9<>"",EW9/SQRT(EZ9),"") ->  | GA9: =IF(EW9<>"",(FA9*FZ9)/(SQRT((FA9^2-1)*FZ9^2+1)),"") ->  | GB9: =IF(EW9<>"",GA9/(SQRT(FM9)),"") ->  | GC9: =IF(EW9=0,1,IF(EW9<>"",EW9/GB9,"")) ->  | GD9: =IF(EW9<>"",EV9*GC9^2,"") ->  | GE9: =IF(EW9<>"",GD9*GB9,"") ->  | GG9: =IF(EW9<>"",FU9/GC9^2,"") ->  | GH9: =IF(EW9<>"",(1)/(((FA9^2-1)*EW9^2+1)),"") ->  | GI9: =IF(EW9<>"",GH9^2*GG9,"") ->  | GJ9: =IF(EW9<>"",GI9*GD9,"") ->  | GL9: =IF(AND(DATA_ENTRY!$K5=4,DATA_ENTRY!$L5="y",DATA_ENTRY!F5<>""),DATA_ENTRY!F5,"") ->  | GM9: =IF(AND(DATA_ENTRY!$K5=4,DATA_ENTRY!$L5="y",DATA_ENTRY!G5<>""),DATA_ENTRY!G5,"") ->  | GN9: =IF(ISNUMBER(FISHER(GM9)),FISHER(GM9),"") ->  | GO9: =IF(AND(DATA_ENTRY!$K5=4,DATA_ENTRY!$L5="y",DATA_ENTRY!G5<>""),rel_cor_Brannick!E9,"") ->  | GP9: =IF(AND(DATA_ENTRY!$K5=4,DATA_ENTRY!$L5="y",DATA_ENTRY!G5<>""),rel_cor_Brannick!F9,"") ->  | GQ9: =IF(AND(DATA_ENTRY!$K5=4,DATA_ENTRY!$L5="y",DATA_ENTRY!G5<>""),rel_cor_Brannick!G9,"") ->  | GR9: =IF(GM9=0,SQRT(GP9*GO9),IF(GM9<>"",(GM9)/(GM9/SQRT(GP9*GO9)),"")) ->  | GS9: =IF(GM9=0,0,IF(GM9<>"",GM9/GR9,"")) ->  | GT9: =IF(GM9<>"",(1-$S$10^2)^2/(GL9-1),"") ->  | GU9: =IF(GM9<>"",GT9/(GR9^2),"") ->  | GV9: =IF(GM9<>"",GL9*GR9^2,"") ->  | GW9: =IF(GM9<>"",GS9*GV9,"") ->  | GX9: =IF(GM9<>"",GV9*(GS9-$S$11)^2,"") ->  | GY9: =IF(GM9<>"",GV9*GU9,"") ->  | GZ9: =IF(GM9<>"",GM9*GL9,"") ->  | HA9: =IF(AND(GL9<>"",GN9<>""),GL9*GN9,"") ->  | HB9: =IF(GM9<>"",1/GQ9,"") ->  | HC9: =IF(GM9<>"",1-HB9^2*(1-GO9),"") ->  | HD9: =IF(GM9<>"",1/((HB9^2-(1-HC9))/((HC9)))^0.5,"") ->  | HE9: =IF(GM9<>"",GM9/SQRT(GO9*GP9),"") ->  | HF9: =IF(GM9<>"",(HD9*HE9)/SQRT((HD9^2-1)*HE9^2+1),"") ->  | HG9: =IF(GM9=0,1,IF(GM9<>"",GM9/HF9,"")) ->  | HH9: =IF(GM9<>"",GL9*HG9^2,"") ->  | HI9: =IF(GM9<>"",HH9*HF9,"") ->  | HK9: =IF(GM9<>"",((1-$C$6^2)^2)/(GL9-1),"") ->  | HL9: =IF(GM9<>"",HK9/HG9^2,"") ->  | HM9: =IF(GM9<>"",1/((HD9^2-1)*GM9^2+1),"") ->  | HN9: =IF(GM9<>"",HM9^2*HL9,"") ->  | HO9: =IF(GM9<>"",HH9*HN9,"") ->  | HP9: =IF(GM9<>"",GM9/SQRT(GP9),"") ->  | HQ9: =IF(GM9<>"",(GQ9*HP9)/(SQRT((GQ9^2-1)*HP9^2+1)),"") ->  | HR9: =IF(GM9<>"",HQ9/(SQRT(HC9)),"") ->  | HS9: =IF(GM9=0,1,IF(GM9<>"",GM9/HR9,"")) ->  | HT9: =IF(GM9<>"",GL9*HS9^2,"") ->  | HU9: =IF(GM9<>"",HT9*HR9,"") ->  | HW9: =IF(GM9<>"",HK9/HS9^2,"") ->  | HX9: =IF(GM9<>"",(1)/(((GQ9^2-1)*GM9^2+1)),"") ->  | HY9: =IF(GM9<>"",HX9^2*HW9,"") ->  | HZ9: =IF(GM9<>"",HY9*HT9,"") ->  | IB9: =IF(AND(DATA_ENTRY!$K5=5,DATA_ENTRY!$L5="y",DATA_ENTRY!F5<>""),DATA_ENTRY!F5,"") ->  | IC9: =IF(AND(DATA_ENTRY!$K5=5,DATA_ENTRY!$L5="y",DATA_ENTRY!G5<>""),DATA_ENTRY!G5,"") ->  | ID9: =IF(ISNUMBER(FISHER(IC9)),FISHER(IC9),"") ->  | IE9: =IF(AND(DATA_ENTRY!$K5=5,DATA_ENTRY!$L5="y",DATA_ENTRY!G5<>""),rel_cor_Brannick!E9,"") ->  | IF9: =IF(AND(DATA_ENTRY!$K5=5,DATA_ENTRY!$L5="y",DATA_ENTRY!G5<>""),rel_cor_Brannick!F9,"") ->  | IG9: =IF(AND(DATA_ENTRY!$K5=5,DATA_ENTRY!$L5="y",DATA_ENTRY!G5<>""),rel_cor_Brannick!G9,"") ->  | IH9: =IF(IC9=0,SQRT(IF9*IE9),IF(IC9<>"",(IC9)/(IC9/SQRT(IF9*IE9)),"")) ->  | II9: =IF(IC9=0,0,IF(IC9<>"",IC9/IH9,"")) ->  | IJ9: =IF(IC9<>"",(1-$U$10^2)^2/(IB9-1),"") ->  | IK9: =IF(IC9<>"",IJ9/(IH9^2),"") ->  | IL9: =IF(IC9<>"",IB9*IH9^2,"") ->  | IM9: =IF(IC9<>"",II9*IL9,"") ->  | IN9: =IF(IC9<>"",IL9*(II9-$U$11)^2,"") ->  | IO9: =IF(IC9<>"",IL9*IK9,"") ->  | IP9: =IF(IC9<>"",IC9*IB9,"") ->  | IQ9: =IF(AND(IB9<>"",ID9<>""),IB9*ID9,"") ->  | IR9: =IF(IC9<>"",1/IG9,"") ->  | IS9: =IF(IC9<>"",1-IR9^2*(1-IE9),"") ->  | IT9: =IF(IC9<>"",1/((IR9^2-(1-IS9))/((IS9)))^0.5,"") ->  | IU9: =IF(IC9<>"",IC9/SQRT(IE9*IF9),"") ->  | IV9: =IF(IC9<>"",(IT9*IU9)/SQRT((IT9^2-1)*IU9^2+1),"") ->  | IW9: =IF(IC9=0,1,IF(IC9<>"",IC9/IV9,"")) ->  | IX9: =IF(IC9<>"",IB9*IW9^2,"") ->  | IY9: =IF(IC9<>"",IX9*IV9,"") ->  | JA9: =IF(IC9<>"",((1-$C$6^2)^2)/(IB9-1),"") ->  | JB9: =IF(IC9<>"",JA9/IW9^2,"") ->  | JC9: =IF(IC9<>"",1/((IT9^2-1)*IC9^2+1),"") ->  | JD9: =IF(IC9<>"",JC9^2*JB9,"") ->  | JE9: =IF(IC9<>"",IX9*JD9,"") ->  | JF9: =IF(IC9<>"",IC9/SQRT(IF9),"") ->  | JG9: =IF(IC9<>"",(IG9*JF9)/(SQRT((IG9^2-1)*JF9^2+1)),"") ->  | JH9: =IF(IC9<>"",JG9/(SQRT(IS9)),"") ->  | JI9: =IF(IC9=0,1,IF(IC9<>"",IC9/JH9,"")) ->  | JJ9: =IF(IC9<>"",IB9*JI9^2,"") ->  | JK9: =IF(IC9<>"",JJ9*JH9,"") ->  | JM9: =IF(IC9<>"",JA9/JI9^2,"") ->  | JN9: =IF(IC9<>"",(1)/(((IG9^2-1)*IC9^2+1)),"") ->  | JO9: =IF(IC9<>"",JN9^2*JM9,"") ->  | JP9: =IF(IC9<>"",JO9*JJ9,"") ->  | JR9: =IF(AND(DATA_ENTRY!$K5=6,DATA_ENTRY!$L5="y",DATA_ENTRY!F5<>""),DATA_ENTRY!F5,"") ->  | JS9: =IF(AND(DATA_ENTRY!$K5=6,DATA_ENTRY!$L5="y",DATA_ENTRY!G5<>""),DATA_ENTRY!G5,"") ->  | JT9: =IF(ISNUMBER(FISHER(JS9)),FISHER(JS9),"") ->  | JU9: =IF(AND(DATA_ENTRY!$K5=6,DATA_ENTRY!$L5="y",DATA_ENTRY!G5<>""),rel_cor_Brannick!E9,"") ->  | JV9: =IF(AND(DATA_ENTRY!$K5=6,DATA_ENTRY!$L5="y",DATA_ENTRY!G5<>""),rel_cor_Brannick!F9,"") ->  | JW9: =IF(AND(DATA_ENTRY!$K5=6,DATA_ENTRY!$L5="y",DATA_ENTRY!G5<>""),rel_cor_Brannick!G9,"") ->  | JX9: =IF(JS9=0,SQRT(JV9*JU9),IF(JS9<>"",(JS9)/(JS9/SQRT(JV9*JU9)),"")) ->  | JY9: =IF(JS9=0,0,IF(JS9<>"",JS9/JX9,"")) ->  | JZ9: =IF(JS9<>"",(1-$W$10^2)^2/(JR9-1),"") ->  | KA9: =IF(JS9<>"",JZ9/(JX9^2),"") ->  | KB9: =IF(JS9<>"",JR9*JX9^2,"") ->  | KC9: =IF(JS9<>"",JY9*KB9,"") ->  | KD9: =IF(JS9<>"",KB9*(JY9-$W$11)^2,"") ->  | KE9: =IF(JS9<>"",KB9*KA9,"") ->  | KF9: =IF(JS9<>"",JS9*JR9,"") ->  | KG9: =IF(AND(JR9<>"",JT9<>""),JR9*JT9,"") ->  | KH9: =IF(JS9<>"",1/JW9,"") ->  | KI9: =IF(JS9<>"",1-KH9^2*(1-JU9),"") ->  | KJ9: =IF(JS9<>"",1/((KH9^2-(1-KI9))/((KI9)))^0.5,"") ->  | KK9: =IF(JS9<>"",JS9/SQRT(JU9*JV9),"") ->  | KL9: =IF(JS9<>"",(KJ9*KK9)/SQRT((KJ9^2-1)*KK9^2+1),"") ->  | KM9: =IF(JS9=0,1,IF(JS9<>"",JS9/KL9,"")) ->  | KN9: =IF(JS9<>"",JR9*KM9^2,"") ->  | KO9: =IF(JS9<>"",KN9*KL9,"") ->  | KQ9: =IF(JS9<>"",((1-$C$6^2)^2)/(JR9-1),"") ->  | KR9: =IF(JS9<>"",KQ9/KM9^2,"") ->  | KS9: =IF(JS9<>"",1/((KJ9^2-1)*JS9^2+1),"") ->  | KT9: =IF(JS9<>"",KS9^2*KR9,"") ->  | KU9: =IF(JS9<>"",KN9*KT9,"") ->  | KV9: =IF(JS9<>"",JS9/SQRT(JV9),"") ->  | KW9: =IF(JS9<>"",(JW9*KV9)/(SQRT((JW9^2-1)*KV9^2+1)),"") ->  | KX9: =IF(JS9<>"",KW9/(SQRT(KI9)),"") ->  | KY9: =IF(JS9=0,1,IF(JS9<>"",JS9/KX9,"")) ->  | KZ9: =IF(JS9<>"",JR9*KY9^2,"") ->  | LA9: =IF(JS9<>"",KZ9*KX9,"") ->  | LC9: =IF(JS9<>"",KQ9/KY9^2,"") ->  | LD9: =IF(JS9<>"",(1)/(((JW9^2-1)*JS9^2+1)),"") ->  | LE9: =IF(JS9<>"",LD9^2*LC9,"") ->  | LF9: =IF(JS9<>"",LE9*KZ9,"") -> 
B10: =IF(DATA_ENTRY!H6<>"",DATA_ENTRY!H6,DATA_ENTRY!$Q$9) -> 1 | C10: =IF(DATA_ENTRY!I6<>"",DATA_ENTRY!I6,DATA_ENTRY!$Q$10) -> 1 | D10: =IF(DATA_ENTRY!J6<>"",DATA_ENTRY!J6,DATA_ENTRY!$Q$11) -> 1 | E10: 1 | F10: 1 | G10: 1 | J10: bare bones | K10: =SUM(AN:AN)/SUM(Z:Z) -> 0.3365143628 | L10: =SUM(AO:AO)/SUM(Z:Z) -> 0.4082733526 | M10: =SUM(CD:CD)/SUM(BP:BP) -> 0.5157852194 | N10: =SUM(CE:CE)/SUM(BP:BP) -> 0.6568501992 | O10: =SUM(DT:DT)/SUM(DF:DF) -> 0.1566203167 | P10: =SUM(DU:DU)/SUM(DF:DF) -> 0.1588323919 | Q10: =SUM(FJ:FJ)/SUM(EV:EV) ->  | R10: =SUM(FK:FK)/SUM(EV:EV) ->  | S10: =SUM(GZ:GZ)/SUM(GL:GL) ->  | T10: =SUM(HA:HA)/SUM(GL:GL) ->  | U10: =SUM(IP:IP)/SUM(IB:IB) ->  | V10: =SUM(IQ:IQ)/SUM(IB:IB) ->  | W10: =SUM(KF:KF)/SUM(JR:JR) ->  | X10: =SUM(KG:KG)/SUM(JR:JR) ->  | Z10: =IF(AND(DATA_ENTRY!$L6="y",DATA_ENTRY!F6<>""),DATA_ENTRY!F6,"") -> 163 | AA10: =IF(AND(DATA_ENTRY!$L6="y",DATA_ENTRY!G6<>""),DATA_ENTRY!G6,"") -> 0.5 | AB10: 0.5493061443 | AC10: 1 | AD10: 1 | AE10: 1 | AF10: 1 | AG10: 0.5 | AH10: 0.004853949993 | AI10: 0.004853949993 | AJ10: 163 | AK10: 81.5 | AL10: 4.35659123 | AM10: 0.7911938488 | AN10: 81.5 | AO10: 89.53690153 | AP10: 1 | AQ10: 1 | AR10: 1 | AS10: 0.5 | AT10: 0.5 | AU10: 1 | AV10: 163 | AW10: 81.5 | AX10: 4.35659123 | AY10: 0.00605 | AZ10: 0.00605 | BA10: 1 | BB10: 0.00605 | BC10: 0.98615 | BD10: 0.5 | BE10: 0.5 | BF10: 0.5 | BG10: 1 | BH10: 163 | BI10: 81.5 | BJ10: 4.35659123 | BK10: 0.00605 | BL10: 1 | BM10: 0.00605 | BN10: 0.98615 | BP10: =IF(AND(DATA_ENTRY!$K6=1,DATA_ENTRY!$L6="y",DATA_ENTRY!F6<>""),DATA_ENTRY!F6,"") -> 163 | BQ10: =IF(AND(DATA_ENTRY!$K6=1,DATA_ENTRY!$L6="y",DATA_ENTRY!G6<>""),DATA_ENTRY!G6,"") -> 0.5 | BR10: 0.5493061443 | BS10: =IF(AND(DATA_ENTRY!$K6=1,DATA_ENTRY!$L6="y",DATA_ENTRY!G6<>""),rel_cor_Brannick!E10,"") -> 1 | BT10: =IF(AND(DATA_ENTRY!$K6=1,DATA_ENTRY!$L6="y",DATA_ENTRY!G6<>""),rel_cor_Brannick!F10,"") -> 1 | BU10: =IF(AND(DATA_ENTRY!$K6=1,DATA_ENTRY!$L6="y",DATA_ENTRY!G6<>""),rel_cor_Brannick!G10,"") -> 1 | BV10: 1 | BW10: 0.5 | BX10: 0.003325342672 | BY10: 0.003325342672 | BZ10: 163 | CA10: 81.5 | CB10: 0.04061522369 | CC10: 0.5420308556 | CD10: 81.5 | CE10: 89.53690153 | CF10: 1 | CG10: 1 | CH10: 1 | CI10: 0.5 | CJ10: 0.5 | CK10: 1 | CL10: 163 | CM10: 81.5 | CN10: 0.04061522369 | CO10: 0.00605 | CP10: 0.00605 | CQ10: 1 | CR10: 0.00605 | CS10: 0.98615 | CT10: 0.5 | CU10: 0.5 | CV10: 0.5 | CW10: 1 | CX10: 163 | CY10: 81.5 | CZ10: 0.04061522369 | DA10: 0.00605 | DB10: 1 | DC10: 0.00605 | DD10: 0.98615 | DF10: =IF(AND(DATA_ENTRY!$K6=2,DATA_ENTRY!$L6="y",DATA_ENTRY!F6<>""),DATA_ENTRY!F6,"") ->  | DG10: =IF(AND(DATA_ENTRY!$K6=2,DATA_ENTRY!$L6="y",DATA_ENTRY!G6<>""),DATA_ENTRY!G6,"") ->  | DI10: =IF(AND(DATA_ENTRY!$K6=2,DATA_ENTRY!$L6="y",DATA_ENTRY!G6<>""),rel_cor_Brannick!E10,"") ->  | DJ10: =IF(AND(DATA_ENTRY!$K6=2,DATA_ENTRY!$L6="y",DATA_ENTRY!G6<>""),rel_cor_Brannick!F10,"") ->  | DK10: =IF(AND(DATA_ENTRY!$K6=2,DATA_ENTRY!$L6="y",DATA_ENTRY!G6<>""),rel_cor_Brannick!G10,"") ->  | EV10: =IF(AND(DATA_ENTRY!$K6=3,DATA_ENTRY!$L6="y",DATA_ENTRY!F6<>""),DATA_ENTRY!F6,"") ->  | EW10: =IF(AND(DATA_ENTRY!$K6=3,DATA_ENTRY!$L6="y",DATA_ENTRY!G6<>""),DATA_ENTRY!G6,"") ->  | EY10: =IF(AND(DATA_ENTRY!$K6=3,DATA_ENTRY!$L6="y",DATA_ENTRY!G6<>""),rel_cor_Brannick!E10,"") ->  | EZ10: =IF(AND(DATA_ENTRY!$K6=3,DATA_ENTRY!$L6="y",DATA_ENTRY!G6<>""),rel_cor_Brannick!F10,"") ->  | FA10: =IF(AND(DATA_ENTRY!$K6=3,DATA_ENTRY!$L6="y",DATA_ENTRY!G6<>""),rel_cor_Brannick!G10,"") ->  | GL10: =IF(AND(DATA_ENTRY!$K6=4,DATA_ENTRY!$L6="y",DATA_ENTRY!F6<>""),DATA_ENTRY!F6,"") ->  | GM10: =IF(AND(DATA_ENTRY!$K6=4,DATA_ENTRY!$L6="y",DATA_ENTRY!G6<>""),DATA_ENTRY!G6,"") ->  | GO10: =IF(AND(DATA_ENTRY!$K6=4,DATA_ENTRY!$L6="y",DATA_ENTRY!G6<>""),rel_cor_Brannick!E10,"") ->  | GP10: =IF(AND(DATA_ENTRY!$K6=4,DATA_ENTRY!$L6="y",DATA_ENTRY!G6<>""),rel_cor_Brannick!F10,"") ->  | GQ10: =IF(AND(DATA_ENTRY!$K6=4,DATA_ENTRY!$L6="y",DATA_ENTRY!G6<>""),rel_cor_Brannick!G10,"") ->  | IB10: =IF(AND(DATA_ENTRY!$K6=5,DATA_ENTRY!$L6="y",DATA_ENTRY!F6<>""),DATA_ENTRY!F6,"") ->  | IC10: =IF(AND(DATA_ENTRY!$K6=5,DATA_ENTRY!$L6="y",DATA_ENTRY!G6<>""),DATA_ENTRY!G6,"") ->  | IE10: =IF(AND(DATA_ENTRY!$K6=5,DATA_ENTRY!$L6="y",DATA_ENTRY!G6<>""),rel_cor_Brannick!E10,"") ->  | IF10: =IF(AND(DATA_ENTRY!$K6=5,DATA_ENTRY!$L6="y",DATA_ENTRY!G6<>""),rel_cor_Brannick!F10,"") ->  | IG10: =IF(AND(DATA_ENTRY!$K6=5,DATA_ENTRY!$L6="y",DATA_ENTRY!G6<>""),rel_cor_Brannick!G10,"") ->  | JR10: =IF(AND(DATA_ENTRY!$K6=6,DATA_ENTRY!$L6="y",DATA_ENTRY!F6<>""),DATA_ENTRY!F6,"") ->  | JS10: =IF(AND(DATA_ENTRY!$K6=6,DATA_ENTRY!$L6="y",DATA_ENTRY!G6<>""),DATA_ENTRY!G6,"") ->  | JU10: =IF(AND(DATA_ENTRY!$K6=6,DATA_ENTRY!$L6="y",DATA_ENTRY!G6<>""),rel_cor_Brannick!E10,"") ->  | JV10: =IF(AND(DATA_ENTRY!$K6=6,DATA_ENTRY!$L6="y",DATA_ENTRY!G6<>""),rel_cor_Brannick!F10,"") ->  | JW10: =IF(AND(DATA_ENTRY!$K6=6,DATA_ENTRY!$L6="y",DATA_ENTRY!G6<>""),rel_cor_Brannick!G10,"") -> 
B11: =IF(DATA_ENTRY!H7<>"",DATA_ENTRY!H7,DATA_ENTRY!$Q$9) -> 1 | C11: =IF(DATA_ENTRY!I7<>"",DATA_ENTRY!I7,DATA_ENTRY!$Q$10) -> 1 | D11: =IF(DATA_ENTRY!J7<>"",DATA_ENTRY!J7,DATA_ENTRY!$Q$11) -> 1 | E11: 1 | F11: 1 | G11: 1 | I11: RELIABILITY ONLY | J11: rbar c | K11: =AK6/AJ6 -> 0.3365143628 | M11: =CA6/BZ6 -> 0.5157852194 | O11: =DQ6/DP6 -> 0.1566203167 | Q11: =FG6/FF6 ->  | S11: =GW6/GV6 ->  | U11: =IM6/IL6 ->  | W11: =KC6/KB6 ->  | Z11: =IF(AND(DATA_ENTRY!$L7="y",DATA_ENTRY!F7<>""),DATA_ENTRY!F7,"") -> 100 | AA11: =IF(AND(DATA_ENTRY!$L7="y",DATA_ENTRY!G7<>""),DATA_ENTRY!G7,"") -> 0.3 | AB11: 0.3095196042 | AC11: 1 | AD11: 1 | AE11: 1 | AF11: 1 | AG11: 0.3 | AH11: 0.007942827261 | AI11: 0.007942827261 | AJ11: 100 | AK11: 30 | AL11: 0.1333298693 | AM11: 0.7942827261 | AN11: 30 | AO11: 30.95196042 | AP11: 1 | AQ11: 1 | AR11: 1 | AS11: 0.3 | AT11: 0.3 | AU11: 1 | AV11: 100 | AW11: 30 | AX11: 0.1333298693 | AY11: 0.0099 | AZ11: 0.0099 | BA11: 1 | BB11: 0.0099 | BC11: 0.99 | BD11: 0.3 | BE11: 0.3 | BF11: 0.3 | BG11: 1 | BH11: 100 | BI11: 30 | BJ11: 0.1333298693 | BK11: 0.0099 | BL11: 1 | BM11: 0.0099 | BN11: 0.99 | BP11: =IF(AND(DATA_ENTRY!$K7=1,DATA_ENTRY!$L7="y",DATA_ENTRY!F7<>""),DATA_ENTRY!F7,"") -> 100 | BQ11: =IF(AND(DATA_ENTRY!$K7=1,DATA_ENTRY!$L7="y",DATA_ENTRY!G7<>""),DATA_ENTRY!G7,"") -> 0.3 | BR11: 0.3095196042 | BS11: =IF(AND(DATA_ENTRY!$K7=1,DATA_ENTRY!$L7="y",DATA_ENTRY!G7<>""),rel_cor_Brannick!E11,"") -> 1 | BT11: =IF(AND(DATA_ENTRY!$K7=1,DATA_ENTRY!$L7="y",DATA_ENTRY!G7<>""),rel_cor_Brannick!F11,"") -> 1 | BU11: =IF(AND(DATA_ENTRY!$K7=1,DATA_ENTRY!$L7="y",DATA_ENTRY!G7<>""),rel_cor_Brannick!G11,"") -> 1 | BV11: 1 | BW11: 0.3 | BX11: 0.005441469827 | BY11: 0.005441469827 | BZ11: 100 | CA11: 30 | CB11: 4.656326091 | CC11: 0.5441469827 | CD11: 30 | CE11: 30.95196042 | CF11: 1 | CG11: 1 | CH11: 1 | CI11: 0.3 | CJ11: 0.3 | CK11: 1 | CL11: 100 | CM11: 30 | CN11: 4.656326091 | CO11: 0.0099 | CP11: 0.0099 | CQ11: 1 | CR11: 0.0099 | CS11: 0.99 | CT11: 0.3 | CU11: 0.3 | CV11: 0.3 | CW11: 1 | CX11: 100 | CY11: 30 | CZ11: 4.656326091 | DA11: 0.0099 | DB11: 1 | DC11: 0.0099 | DD11: 0.99 | DF11: =IF(AND(DATA_ENTRY!$K7=2,DATA_ENTRY!$L7="y",DATA_ENTRY!F7<>""),DATA_ENTRY!F7,"") ->  | DG11: =IF(AND(DATA_ENTRY!$K7=2,DATA_ENTRY!$L7="y",DATA_ENTRY!G7<>""),DATA_ENTRY!G7,"") ->  | DI11: =IF(AND(DATA_ENTRY!$K7=2,DATA_ENTRY!$L7="y",DATA_ENTRY!G7<>""),rel_cor_Brannick!E11,"") ->  | DJ11: =IF(AND(DATA_ENTRY!$K7=2,DATA_ENTRY!$L7="y",DATA_ENTRY!G7<>""),rel_cor_Brannick!F11,"") ->  | DK11: =IF(AND(DATA_ENTRY!$K7=2,DATA_ENTRY!$L7="y",DATA_ENTRY!G7<>""),rel_cor_Brannick!G11,"") ->  | EV11: =IF(AND(DATA_ENTRY!$K7=3,DATA_ENTRY!$L7="y",DATA_ENTRY!F7<>""),DATA_ENTRY!F7,"") ->  | EW11: =IF(AND(DATA_ENTRY!$K7=3,DATA_ENTRY!$L7="y",DATA_ENTRY!G7<>""),DATA_ENTRY!G7,"") ->  | EY11: =IF(AND(DATA_ENTRY!$K7=3,DATA_ENTRY!$L7="y",DATA_ENTRY!G7<>""),rel_cor_Brannick!E11,"") ->  | EZ11: =IF(AND(DATA_ENTRY!$K7=3,DATA_ENTRY!$L7="y",DATA_ENTRY!G7<>""),rel_cor_Brannick!F11,"") ->  | FA11: =IF(AND(DATA_ENTRY!$K7=3,DATA_ENTRY!$L7="y",DATA_ENTRY!G7<>""),rel_cor_Brannick!G11,"") ->  | GL11: =IF(AND(DATA_ENTRY!$K7=4,DATA_ENTRY!$L7="y",DATA_ENTRY!F7<>""),DATA_ENTRY!F7,"") ->  | GM11: =IF(AND(DATA_ENTRY!$K7=4,DATA_ENTRY!$L7="y",DATA_ENTRY!G7<>""),DATA_ENTRY!G7,"") ->  | GO11: =IF(AND(DATA_ENTRY!$K7=4,DATA_ENTRY!$L7="y",DATA_ENTRY!G7<>""),rel_cor_Brannick!E11,"") ->  | GP11: =IF(AND(DATA_ENTRY!$K7=4,DATA_ENTRY!$L7="y",DATA_ENTRY!G7<>""),rel_cor_Brannick!F11,"") ->  | GQ11: =IF(AND(DATA_ENTRY!$K7=4,DATA_ENTRY!$L7="y",DATA_ENTRY!G7<>""),rel_cor_Brannick!G11,"") ->  | IB11: =IF(AND(DATA_ENTRY!$K7=5,DATA_ENTRY!$L7="y",DATA_ENTRY!F7<>""),DATA_ENTRY!F7,"") ->  | IC11: =IF(AND(DATA_ENTRY!$K7=5,DATA_ENTRY!$L7="y",DATA_ENTRY!G7<>""),DATA_ENTRY!G7,"") ->  | IE11: =IF(AND(DATA_ENTRY!$K7=5,DATA_ENTRY!$L7="y",DATA_ENTRY!G7<>""),rel_cor_Brannick!E11,"") ->  | IF11: =IF(AND(DATA_ENTRY!$K7=5,DATA_ENTRY!$L7="y",DATA_ENTRY!G7<>""),rel_cor_Brannick!F11,"") ->  | IG11: =IF(AND(DATA_ENTRY!$K7=5,DATA_ENTRY!$L7="y",DATA_ENTRY!G7<>""),rel_cor_Brannick!G11,"") ->  | JR11: =IF(AND(DATA_ENTRY!$K7=6,DATA_ENTRY!$L7="y",DATA_ENTRY!F7<>""),DATA_ENTRY!F7,"") ->  | JS11: =IF(AND(DATA_ENTRY!$K7=6,DATA_ENTRY!$L7="y",DATA_ENTRY!G7<>""),DATA_ENTRY!G7,"") ->  | JU11: =IF(AND(DATA_ENTRY!$K7=6,DATA_ENTRY!$L7="y",DATA_ENTRY!G7<>""),rel_cor_Brannick!E11,"") ->  | JV11: =IF(AND(DATA_ENTRY!$K7=6,DATA_ENTRY!$L7="y",DATA_ENTRY!G7<>""),rel_cor_Brannick!F11,"") ->  | JW11: =IF(AND(DATA_ENTRY!$K7=6,DATA_ENTRY!$L7="y",DATA_ENTRY!G7<>""),rel_cor_Brannick!G11,"") -> 
B12: =IF(DATA_ENTRY!H8<>"",DATA_ENTRY!H8,DATA_ENTRY!$Q$9) -> 1 | C12: =IF(DATA_ENTRY!I8<>"",DATA_ENTRY!I8,DATA_ENTRY!$Q$10) -> 1 | D12: =IF(DATA_ENTRY!J8<>"",DATA_ENTRY!J8,DATA_ENTRY!$Q$11) -> 1 | E12: 1 | F12: 1 | G12: 1 | J12: Var(rc) | K12: =AL6/AJ6 -> 0.06162660106 | M12: =CB6/BZ6 -> 0.05102546118 | O12: =DR6/DP6 -> 0.007652965535 | Q12: =FH6/FF6 ->  | S12: =GX6/GV6 ->  | U12: =IN6/IL6 ->  | W12: =KD6/KB6 ->  | Z12: =IF(AND(DATA_ENTRY!$L8="y",DATA_ENTRY!F8<>""),DATA_ENTRY!F8,"") -> 373 | AA12: =IF(AND(DATA_ENTRY!$L8="y",DATA_ENTRY!G8<>""),DATA_ENTRY!G8,"") -> 0.9 | AB12: 1.47221949 | AC12: 1 | AD12: 1 | AE12: 1 | AF12: 1 | AG12: 0.9 | AH12: 0.002113816932 | AI12: 0.002113816932 | AJ12: 373 | AK12: 335.7 | AL12: 118.4334916 | AM12: 0.7884537158 | AN12: 335.7 | AO12: 549.1378696 | AP12: 1 | AQ12: 1 | AR12: 1 | AS12: 0.9 | AT12: 0.9 | AU12: 1 | AV12: 373 | AW12: 335.7 | AX12: 118.4334916 | AY12: 0.002634677419 | AZ12: 0.002634677419 | BA12: 1 | BB12: 0.002634677419 | BC12: 0.9827346774 | BD12: 0.9 | BE12: 0.9 | BF12: 0.9 | BG12: 1 | BH12: 373 | BI12: 335.7 | BJ12: 118.4334916 | BK12: 0.002634677419 | BL12: 1 | BM12: 0.002634677419 | BN12: 0.9827346774 | BP12: =IF(AND(DATA_ENTRY!$K8=1,DATA_ENTRY!$L8="y",DATA_ENTRY!F8<>""),DATA_ENTRY!F8,"") -> 373 | BQ12: =IF(AND(DATA_ENTRY!$K8=1,DATA_ENTRY!$L8="y",DATA_ENTRY!G8<>""),DATA_ENTRY!G8,"") -> 0.9 | BR12: 1.47221949 | BS12: =IF(AND(DATA_ENTRY!$K8=1,DATA_ENTRY!$L8="y",DATA_ENTRY!G8<>""),rel_cor_Brannick!E12,"") -> 1 | BT12: =IF(AND(DATA_ENTRY!$K8=1,DATA_ENTRY!$L8="y",DATA_ENTRY!G8<>""),rel_cor_Brannick!F12,"") -> 1 | BU12: =IF(AND(DATA_ENTRY!$K8=1,DATA_ENTRY!$L8="y",DATA_ENTRY!G8<>""),rel_cor_Brannick!G12,"") -> 1 | BV12: 1 | BW12: 0.9 | BX12: 0.001448133099 | BY12: 0.001448133099 | BZ12: 373 | CA12: 335.7 | CB12: 55.06263212 | CC12: 0.540153646 | CD12: 335.7 | CE12: 549.1378696 | CF12: 1 | CG12: 1 | CH12: 1 | CI12: 0.9 | CJ12: 0.9 | CK12: 1 | CL12: 373 | CM12: 335.7 | CN12: 55.06263212 | CO12: 0.002634677419 | CP12: 0.002634677419 | CQ12: 1 | CR12: 0.002634677419 | CS12: 0.9827346774 | CT12: 0.9 | CU12: 0.9 | CV12: 0.9 | CW12: 1 | CX12: 373 | CY12: 335.7 | CZ12: 55.06263212 | DA12: 0.002634677419 | DB12: 1 | DC12: 0.002634677419 | DD12: 0.9827346774 | DF12: =IF(AND(DATA_ENTRY!$K8=2,DATA_ENTRY!$L8="y",DATA_ENTRY!F8<>""),DATA_ENTRY!F8,"") ->  | DG12: =IF(AND(DATA_ENTRY!$K8=2,DATA_ENTRY!$L8="y",DATA_ENTRY!G8<>""),DATA_ENTRY!G8,"") ->  | DI12: =IF(AND(DATA_ENTRY!$K8=2,DATA_ENTRY!$L8="y",DATA_ENTRY!G8<>""),rel_cor_Brannick!E12,"") ->  | DJ12: =IF(AND(DATA_ENTRY!$K8=2,DATA_ENTRY!$L8="y",DATA_ENTRY!G8<>""),rel_cor_Brannick!F12,"") ->  | DK12: =IF(AND(DATA_ENTRY!$K8=2,DATA_ENTRY!$L8="y",DATA_ENTRY!G8<>""),rel_cor_Brannick!G12,"") ->  | EV12: =IF(AND(DATA_ENTRY!$K8=3,DATA_ENTRY!$L8="y",DATA_ENTRY!F8<>""),DATA_ENTRY!F8,"") ->  | EW12: =IF(AND(DATA_ENTRY!$K8=3,DATA_ENTRY!$L8="y",DATA_ENTRY!G8<>""),DATA_ENTRY!G8,"") ->  | EY12: =IF(AND(DATA_ENTRY!$K8=3,DATA_ENTRY!$L8="y",DATA_ENTRY!G8<>""),rel_cor_Brannick!E12,"") ->  | EZ12: =IF(AND(DATA_ENTRY!$K8=3,DATA_ENTRY!$L8="y",DATA_ENTRY!G8<>""),rel_cor_Brannick!F12,"") ->  | FA12: =IF(AND(DATA_ENTRY!$K8=3,DATA_ENTRY!$L8="y",DATA_ENTRY!G8<>""),rel_cor_Brannick!G12,"") ->  | GL12: =IF(AND(DATA_ENTRY!$K8=4,DATA_ENTRY!$L8="y",DATA_ENTRY!F8<>""),DATA_ENTRY!F8,"") ->  | GM12: =IF(AND(DATA_ENTRY!$K8=4,DATA_ENTRY!$L8="y",DATA_ENTRY!G8<>""),DATA_ENTRY!G8,"") ->  | GO12: =IF(AND(DATA_ENTRY!$K8=4,DATA_ENTRY!$L8="y",DATA_ENTRY!G8<>""),rel_cor_Brannick!E12,"") ->  | GP12: =IF(AND(DATA_ENTRY!$K8=4,DATA_ENTRY!$L8="y",DATA_ENTRY!G8<>""),rel_cor_Brannick!F12,"") ->  | GQ12: =IF(AND(DATA_ENTRY!$K8=4,DATA_ENTRY!$L8="y",DATA_ENTRY!G8<>""),rel_cor_Brannick!G12,"") ->  | IB12: =IF(AND(DATA_ENTRY!$K8=5,DATA_ENTRY!$L8="y",DATA_ENTRY!F8<>""),DATA_ENTRY!F8,"") ->  | IC12: =IF(AND(DATA_ENTRY!$K8=5,DATA_ENTRY!$L8="y",DATA_ENTRY!G8<>""),DATA_ENTRY!G8,"") ->  | IE12: =IF(AND(DATA_ENTRY!$K8=5,DATA_ENTRY!$L8="y",DATA_ENTRY!G8<>""),rel_cor_Brannick!E12,"") ->  | IF12: =IF(AND(DATA_ENTRY!$K8=5,DATA_ENTRY!$L8="y",DATA_ENTRY!G8<>""),rel_cor_Brannick!F12,"") ->  | IG12: =IF(AND(DATA_ENTRY!$K8=5,DATA_ENTRY!$L8="y",DATA_ENTRY!G8<>""),rel_cor_Brannick!G12,"") ->  | JR12: =IF(AND(DATA_ENTRY!$K8=6,DATA_ENTRY!$L8="y",DATA_ENTRY!F8<>""),DATA_ENTRY!F8,"") ->  | JS12: =IF(AND(DATA_ENTRY!$K8=6,DATA_ENTRY!$L8="y",DATA_ENTRY!G8<>""),DATA_ENTRY!G8,"") ->  | JU12: =IF(AND(DATA_ENTRY!$K8=6,DATA_ENTRY!$L8="y",DATA_ENTRY!G8<>""),rel_cor_Brannick!E12,"") ->  | JV12: =IF(AND(DATA_ENTRY!$K8=6,DATA_ENTRY!$L8="y",DATA_ENTRY!G8<>""),rel_cor_Brannick!F12,"") ->  | JW12: =IF(AND(DATA_ENTRY!$K8=6,DATA_ENTRY!$L8="y",DATA_ENTRY!G8<>""),rel_cor_Brannick!G12,"") -> 
B13: =IF(DATA_ENTRY!H9<>"",DATA_ENTRY!H9,DATA_ENTRY!$Q$9) -> 1 | C13: =IF(DATA_ENTRY!I9<>"",DATA_ENTRY!I9,DATA_ENTRY!$Q$10) -> 1 | D13: =IF(DATA_ENTRY!J9<>"",DATA_ENTRY!J9,DATA_ENTRY!$Q$11) -> 1 | E13: 1 | F13: 1 | G13: 1 | J13: Ave(ve) | K13: =AM6/AJ6 -> 0.003666604603 | M13: =CC6/BZ6 -> 0.002502449279 | O13: =DS6/DP6 -> 0.004453701159 | Q13: =FI6/FF6 ->  | S13: =GY6/GV6 ->  | U13: =IO6/IL6 ->  | W13: =KE6/KB6 ->  | Z13: =IF(AND(DATA_ENTRY!$L9="y",DATA_ENTRY!F9<>""),DATA_ENTRY!F9,"") -> 124 | AA13: =IF(AND(DATA_ENTRY!$L9="y",DATA_ENTRY!G9<>""),DATA_ENTRY!G9,"") -> 0.5 | AB13: 0.5493061443 | AC13: 1 | AD13: 1 | AE13: 1 | AF13: 1 | AG13: 0.5 | AH13: 0.006393007308 | AI13: 0.006393007308 | AJ13: 124 | AK13: 62 | AL13: 3.314216642 | AM13: 0.7927329062 | AN13: 62 | AO13: 68.1139619 | AP13: 1 | AQ13: 1 | AR13: 1 | AS13: 0.5 | AT13: 0.5 | AU13: 1 | AV13: 124 | AW13: 62 | AX13: 3.314216642 | AY13: 0.007968292683 | AZ13: 0.007968292683 | BA13: 1 | BB13: 0.007968292683 | BC13: 0.9880682927 | BD13: 0.5 | BE13: 0.5 | BF13: 0.5 | BG13: 1 | BH13: 124 | BI13: 62 | BJ13: 3.314216642 | BK13: 0.007968292683 | BL13: 1 | BM13: 0.007968292683 | BN13: 0.9880682927 | BP13: =IF(AND(DATA_ENTRY!$K9=1,DATA_ENTRY!$L9="y",DATA_ENTRY!F9<>""),DATA_ENTRY!F9,"") -> 124 | BQ13: =IF(AND(DATA_ENTRY!$K9=1,DATA_ENTRY!$L9="y",DATA_ENTRY!G9<>""),DATA_ENTRY!G9,"") -> 0.5 | BR13: 0.5493061443 | BS13: =IF(AND(DATA_ENTRY!$K9=1,DATA_ENTRY!$L9="y",DATA_ENTRY!G9<>""),rel_cor_Brannick!E13,"") -> 1 | BT13: =IF(AND(DATA_ENTRY!$K9=1,DATA_ENTRY!$L9="y",DATA_ENTRY!G9<>""),rel_cor_Brannick!F13,"") -> 1 | BU13: =IF(AND(DATA_ENTRY!$K9=1,DATA_ENTRY!$L9="y",DATA_ENTRY!G9<>""),rel_cor_Brannick!G13,"") -> 1 | BV13: 1 | BW13: 0.5 | BX13: 0.004379719617 | BY13: 0.004379719617 | BZ13: 124 | CA13: 62 | CB13: 0.03089747078 | CC13: 0.5430852325 | CD13: 62 | CE13: 68.1139619 | CF13: 1 | CG13: 1 | CH13: 1 | CI13: 0.5 | CJ13: 0.5 | CK13: 1 | CL13: 124 | CM13: 62 | CN13: 0.03089747078 | CO13: 0.007968292683 | CP13: 0.007968292683 | CQ13: 1 | CR13: 0.007968292683 | CS13: 0.9880682927 | CT13: 0.5 | CU13: 0.5 | CV13: 0.5 | CW13: 1 | CX13: 124 | CY13: 62 | CZ13: 0.03089747078 | DA13: 0.007968292683 | DB13: 1 | DC13: 0.007968292683 | DD13: 0.9880682927 | DF13: =IF(AND(DATA_ENTRY!$K9=2,DATA_ENTRY!$L9="y",DATA_ENTRY!F9<>""),DATA_ENTRY!F9,"") ->  | DG13: =IF(AND(DATA_ENTRY!$K9=2,DATA_ENTRY!$L9="y",DATA_ENTRY!G9<>""),DATA_ENTRY!G9,"") ->  | DI13: =IF(AND(DATA_ENTRY!$K9=2,DATA_ENTRY!$L9="y",DATA_ENTRY!G9<>""),rel_cor_Brannick!E13,"") ->  | DJ13: =IF(AND(DATA_ENTRY!$K9=2,DATA_ENTRY!$L9="y",DATA_ENTRY!G9<>""),rel_cor_Brannick!F13,"") ->  | DK13: =IF(AND(DATA_ENTRY!$K9=2,DATA_ENTRY!$L9="y",DATA_ENTRY!G9<>""),rel_cor_Brannick!G13,"") ->  | EV13: =IF(AND(DATA_ENTRY!$K9=3,DATA_ENTRY!$L9="y",DATA_ENTRY!F9<>""),DATA_ENTRY!F9,"") ->  | EW13: =IF(AND(DATA_ENTRY!$K9=3,DATA_ENTRY!$L9="y",DATA_ENTRY!G9<>""),DATA_ENTRY!G9,"") ->  | EY13: =IF(AND(DATA_ENTRY!$K9=3,DATA_ENTRY!$L9="y",DATA_ENTRY!G9<>""),rel_cor_Brannick!E13,"") ->  | EZ13: =IF(AND(DATA_ENTRY!$K9=3,DATA_ENTRY!$L9="y",DATA_ENTRY!G9<>""),rel_cor_Brannick!F13,"") ->  | FA13: =IF(AND(DATA_ENTRY!$K9=3,DATA_ENTRY!$L9="y",DATA_ENTRY!G9<>""),rel_cor_Brannick!G13,"") ->  | GL13: =IF(AND(DATA_ENTRY!$K9=4,DATA_ENTRY!$L9="y",DATA_ENTRY!F9<>""),DATA_ENTRY!F9,"") ->  | GM13: =IF(AND(DATA_ENTRY!$K9=4,DATA_ENTRY!$L9="y",DATA_ENTRY!G9<>""),DATA_ENTRY!G9,"") ->  | GO13: =IF(AND(DATA_ENTRY!$K9=4,DATA_ENTRY!$L9="y",DATA_ENTRY!G9<>""),rel_cor_Brannick!E13,"") ->  | GP13: =IF(AND(DATA_ENTRY!$K9=4,DATA_ENTRY!$L9="y",DATA_ENTRY!G9<>""),rel_cor_Brannick!F13,"") ->  | GQ13: =IF(AND(DATA_ENTRY!$K9=4,DATA_ENTRY!$L9="y",DATA_ENTRY!G9<>""),rel_cor_Brannick!G13,"") ->  | IB13: =IF(AND(DATA_ENTRY!$K9=5,DATA_ENTRY!$L9="y",DATA_ENTRY!F9<>""),DATA_ENTRY!F9,"") ->  | IC13: =IF(AND(DATA_ENTRY!$K9=5,DATA_ENTRY!$L9="y",DATA_ENTRY!G9<>""),DATA_ENTRY!G9,"") ->  | IE13: =IF(AND(DATA_ENTRY!$K9=5,DATA_ENTRY!$L9="y",DATA_ENTRY!G9<>""),rel_cor_Brannick!E13,"") ->  | IF13: =IF(AND(DATA_ENTRY!$K9=5,DATA_ENTRY!$L9="y",DATA_ENTRY!G9<>""),rel_cor_Brannick!F13,"") ->  | IG13: =IF(AND(DATA_ENTRY!$K9=5,DATA_ENTRY!$L9="y",DATA_ENTRY!G9<>""),rel_cor_Brannick!G13,"") ->  | JR13: =IF(AND(DATA_ENTRY!$K9=6,DATA_ENTRY!$L9="y",DATA_ENTRY!F9<>""),DATA_ENTRY!F9,"") ->  | JS13: =IF(AND(DATA_ENTRY!$K9=6,DATA_ENTRY!$L9="y",DATA_ENTRY!G9<>""),DATA_ENTRY!G9,"") ->  | JU13: =IF(AND(DATA_ENTRY!$K9=6,DATA_ENTRY!$L9="y",DATA_ENTRY!G9<>""),rel_cor_Brannick!E13,"") ->  | JV13: =IF(AND(DATA_ENTRY!$K9=6,DATA_ENTRY!$L9="y",DATA_ENTRY!G9<>""),rel_cor_Brannick!F13,"") ->  | JW13: =IF(AND(DATA_ENTRY!$K9=6,DATA_ENTRY!$L9="y",DATA_ENTRY!G9<>""),rel_cor_Brannick!G13,"") -> 
B14: =IF(DATA_ENTRY!H10<>"",DATA_ENTRY!H10,DATA_ENTRY!$Q$9) -> 1 | C14: =IF(DATA_ENTRY!I10<>"",DATA_ENTRY!I10,DATA_ENTRY!$Q$10) -> 1 | D14: =IF(DATA_ENTRY!J10<>"",DATA_ENTRY!J10,DATA_ENTRY!$Q$11) -> 1 | E14: 1 | F14: 1 | G14: 1 | J14: Var(rho) | K14: =K12-K13 -> 0.05795999645 | M14: 0.0485230119 | O14: 0.003199264377 | Z14: =IF(AND(DATA_ENTRY!$L10="y",DATA_ENTRY!F10<>""),DATA_ENTRY!F10,"") -> 213 | AA14: =IF(AND(DATA_ENTRY!$L10="y",DATA_ENTRY!G10<>""),DATA_ENTRY!G10,"") -> 0.8 | AB14: 1.098612289 | AC14: 1 | AD14: 1 | AE14: 1 | AF14: 1 | AG14: 0.8 | AH14: 0.003709150466 | AI14: 0.003709150466 | AJ14: 213 | AK14: 170.4 | AL14: 45.75643334 | AM14: 0.7900490493 | AN14: 170.4 | AO14: 234.0044175 | AP14: 1 | AQ14: 1 | AR14: 1 | AS14: 0.8 | AT14: 0.8 | AU14: 1 | AV14: 213 | AW14: 170.4 | AX14: 45.75643334 | AY14: 0.004623113208 | AZ14: 0.004623113208 | BA14: 1 | BB14: 0.004623113208 | BC14: 0.9847231132 | BD14: 0.8 | BE14: 0.8 | BF14: 0.8 | BG14: 1 | BH14: 213 | BI14: 170.4 | BJ14: 45.75643334 | BK14: 0.004623113208 | BL14: 1 | BM14: 0.004623113208 | BN14: 0.9847231132 | BP14: =IF(AND(DATA_ENTRY!$K10=1,DATA_ENTRY!$L10="y",DATA_ENTRY!F10<>""),DATA_ENTRY!F10,"") -> 213 | BQ14: =IF(AND(DATA_ENTRY!$K10=1,DATA_ENTRY!$L10="y",DATA_ENTRY!G10<>""),DATA_ENTRY!G10,"") -> 0.8 | BR14: 1.098612289 | BS14: =IF(AND(DATA_ENTRY!$K10=1,DATA_ENTRY!$L10="y",DATA_ENTRY!G10<>""),rel_cor_Brannick!E14,"") -> 1 | BT14: =IF(AND(DATA_ENTRY!$K10=1,DATA_ENTRY!$L10="y",DATA_ENTRY!G10<>""),rel_cor_Brannick!F14,"") -> 1 | BU14: =IF(AND(DATA_ENTRY!$K10=1,DATA_ENTRY!$L10="y",DATA_ENTRY!G10<>""),rel_cor_Brannick!G14,"") -> 1 | BV14: 1 | BW14: 0.8 | BX14: 0.00254106374 | BY14: 0.00254106374 | BZ14: 213 | CA14: 170.4 | CB14: 17.20572284 | CC14: 0.5412465767 | CD14: 170.4 | CE14: 234.0044175 | CF14: 1 | CG14: 1 | CH14: 1 | CI14: 0.8 | CJ14: 0.8 | CK14: 1 | CL14: 213 | CM14: 170.4 | CN14: 17.20572284 | CO14: 0.004623113208 | CP14: 0.004623113208 | CQ14: 1 | CR14: 0.004623113208 | CS14: 0.9847231132 | CT14: 0.8 | CU14: 0.8 | CV14: 0.8 | CW14: 1 | CX14: 213 | CY14: 170.4 | CZ14: 17.20572284 | DA14: 0.004623113208 | DB14: 1 | DC14: 0.004623113208 | DD14: 0.9847231132 | DF14: =IF(AND(DATA_ENTRY!$K10=2,DATA_ENTRY!$L10="y",DATA_ENTRY!F10<>""),DATA_ENTRY!F10,"") ->  | DG14: =IF(AND(DATA_ENTRY!$K10=2,DATA_ENTRY!$L10="y",DATA_ENTRY!G10<>""),DATA_ENTRY!G10,"") ->  | DI14: =IF(AND(DATA_ENTRY!$K10=2,DATA_ENTRY!$L10="y",DATA_ENTRY!G10<>""),rel_cor_Brannick!E14,"") ->  | DJ14: =IF(AND(DATA_ENTRY!$K10=2,DATA_ENTRY!$L10="y",DATA_ENTRY!G10<>""),rel_cor_Brannick!F14,"") ->  | DK14: =IF(AND(DATA_ENTRY!$K10=2,DATA_ENTRY!$L10="y",DATA_ENTRY!G10<>""),rel_cor_Brannick!G14,"") ->  | EV14: =IF(AND(DATA_ENTRY!$K10=3,DATA_ENTRY!$L10="y",DATA_ENTRY!F10<>""),DATA_ENTRY!F10,"") ->  | EW14: =IF(AND(DATA_ENTRY!$K10=3,DATA_ENTRY!$L10="y",DATA_ENTRY!G10<>""),DATA_ENTRY!G10,"") ->  | EY14: =IF(AND(DATA_ENTRY!$K10=3,DATA_ENTRY!$L10="y",DATA_ENTRY!G10<>""),rel_cor_Brannick!E14,"") ->  | EZ14: =IF(AND(DATA_ENTRY!$K10=3,DATA_ENTRY!$L10="y",DATA_ENTRY!G10<>""),rel_cor_Brannick!F14,"") ->  | FA14: =IF(AND(DATA_ENTRY!$K10=3,DATA_ENTRY!$L10="y",DATA_ENTRY!G10<>""),rel_cor_Brannick!G14,"") ->  | GL14: =IF(AND(DATA_ENTRY!$K10=4,DATA_ENTRY!$L10="y",DATA_ENTRY!F10<>""),DATA_ENTRY!F10,"") ->  | GM14: =IF(AND(DATA_ENTRY!$K10=4,DATA_ENTRY!$L10="y",DATA_ENTRY!G10<>""),DATA_ENTRY!G10,"") ->  | GO14: =IF(AND(DATA_ENTRY!$K10=4,DATA_ENTRY!$L10="y",DATA_ENTRY!G10<>""),rel_cor_Brannick!E14,"") ->  | GP14: =IF(AND(DATA_ENTRY!$K10=4,DATA_ENTRY!$L10="y",DATA_ENTRY!G10<>""),rel_cor_Brannick!F14,"") ->  | GQ14: =IF(AND(DATA_ENTRY!$K10=4,DATA_ENTRY!$L10="y",DATA_ENTRY!G10<>""),rel_cor_Brannick!G14,"") ->  | IB14: =IF(AND(DATA_ENTRY!$K10=5,DATA_ENTRY!$L10="y",DATA_ENTRY!F10<>""),DATA_ENTRY!F10,"") ->  | IC14: =IF(AND(DATA_ENTRY!$K10=5,DATA_ENTRY!$L10="y",DATA_ENTRY!G10<>""),DATA_ENTRY!G10,"") ->  | IE14: =IF(AND(DATA_ENTRY!$K10=5,DATA_ENTRY!$L10="y",DATA_ENTRY!G10<>""),rel_cor_Brannick!E14,"") ->  | IF14: =IF(AND(DATA_ENTRY!$K10=5,DATA_ENTRY!$L10="y",DATA_ENTRY!G10<>""),rel_cor_Brannick!F14,"") ->  | IG14: =IF(AND(DATA_ENTRY!$K10=5,DATA_ENTRY!$L10="y",DATA_ENTRY!G10<>""),rel_cor_Brannick!G14,"") ->  | JR14: =IF(AND(DATA_ENTRY!$K10=6,DATA_ENTRY!$L10="y",DATA_ENTRY!F10<>""),DATA_ENTRY!F10,"") ->  | JS14: =IF(AND(DATA_ENTRY!$K10=6,DATA_ENTRY!$L10="y",DATA_ENTRY!G10<>""),DATA_ENTRY!G10,"") ->  | JU14: =IF(AND(DATA_ENTRY!$K10=6,DATA_ENTRY!$L10="y",DATA_ENTRY!G10<>""),rel_cor_Brannick!E14,"") ->  | JV14: =IF(AND(DATA_ENTRY!$K10=6,DATA_ENTRY!$L10="y",DATA_ENTRY!G10<>""),rel_cor_Brannick!F14,"") ->  | JW14: =IF(AND(DATA_ENTRY!$K10=6,DATA_ENTRY!$L10="y",DATA_ENTRY!G10<>""),rel_cor_Brannick!G14,"") -> 
B15: =IF(DATA_ENTRY!H11<>"",DATA_ENTRY!H11,DATA_ENTRY!$Q$9) -> 1 | C15: =IF(DATA_ENTRY!I11<>"",DATA_ENTRY!I11,DATA_ENTRY!$Q$10) -> 1 | D15: =IF(DATA_ENTRY!J11<>"",DATA_ENTRY!J11,DATA_ENTRY!$Q$11) -> 1 | E15: 1 | F15: 1 | G15: 1 | J15: SD(rho) | K15: =IF(K14<0,0,SQRT(K14)) -> 0.2407488244 | M15: 0.2202793951 | O15: 0.05656204007 | Z15: =IF(AND(DATA_ENTRY!$L11="y",DATA_ENTRY!F11<>""),DATA_ENTRY!F11,"") -> 136 | AA15: =IF(AND(DATA_ENTRY!$L11="y",DATA_ENTRY!G11<>""),DATA_ENTRY!G11,"") -> 0.8 | AB15: 1.098612289 | AC15: 1 | AD15: 1 | AE15: 1 | AF15: 1 | AG15: 0.8 | AH15: 0.005824739991 | AI15: 0.005824739991 | AJ15: 136 | AK15: 108.8 | AL15: 29.21537528 | AM15: 0.7921646388 | AN15: 108.8 | AO15: 149.4112713 | AP15: 1 | AQ15: 1 | AR15: 1 | AS15: 0.8 | AT15: 0.8 | AU15: 1 | AV15: 136 | AW15: 108.8 | AX15: 29.21537528 | AY15: 0.00726 | AZ15: 0.00726 | BA15: 1 | BB15: 0.00726 | BC15: 0.98736 | BD15: 0.8 | BE15: 0.8 | BF15: 0.8 | BG15: 1 | BH15: 136 | BI15: 108.8 | BJ15: 29.21537528 | BK15: 0.00726 | BL15: 1 | BM15: 0.00726 | BN15: 0.98736 | BP15: =IF(AND(DATA_ENTRY!$K11=1,DATA_ENTRY!$L11="y",DATA_ENTRY!F11<>""),DATA_ENTRY!F11,"") -> 136 | BQ15: =IF(AND(DATA_ENTRY!$K11=1,DATA_ENTRY!$L11="y",DATA_ENTRY!G11<>""),DATA_ENTRY!G11,"") -> 0.8 | BR15: 1.098612289 | BS15: =IF(AND(DATA_ENTRY!$K11=1,DATA_ENTRY!$L11="y",DATA_ENTRY!G11<>""),rel_cor_Brannick!E15,"") -> 1 | BT15: =IF(AND(DATA_ENTRY!$K11=1,DATA_ENTRY!$L11="y",DATA_ENTRY!G11<>""),rel_cor_Brannick!F15,"") -> 1 | BU15: =IF(AND(DATA_ENTRY!$K11=1,DATA_ENTRY!$L11="y",DATA_ENTRY!G11<>""),rel_cor_Brannick!G15,"") -> 1 | BV15: 1 | BW15: 0.8 | BX15: 0.003990411207 | BY15: 0.003990411207 | BZ15: 136 | CA15: 108.8 | CB15: 10.98581365 | CC15: 0.5426959241 | CD15: 108.8 | CE15: 149.4112713 | CF15: 1 | CG15: 1 | CH15: 1 | CI15: 0.8 | CJ15: 0.8 | CK15: 1 | CL15: 136 | CM15: 108.8 | CN15: 10.98581365 | CO15: 0.00726 | CP15: 0.00726 | CQ15: 1 | CR15: 0.00726 | CS15: 0.98736 | CT15: 0.8 | CU15: 0.8 | CV15: 0.8 | CW15: 1 | CX15: 136 | CY15: 108.8 | CZ15: 10.98581365 | DA15: 0.00726 | DB15: 1 | DC15: 0.00726 | DD15: 0.98736 | DF15: =IF(AND(DATA_ENTRY!$K11=2,DATA_ENTRY!$L11="y",DATA_ENTRY!F11<>""),DATA_ENTRY!F11,"") ->  | DG15: =IF(AND(DATA_ENTRY!$K11=2,DATA_ENTRY!$L11="y",DATA_ENTRY!G11<>""),DATA_ENTRY!G11,"") ->  | DI15: =IF(AND(DATA_ENTRY!$K11=2,DATA_ENTRY!$L11="y",DATA_ENTRY!G11<>""),rel_cor_Brannick!E15,"") ->  | DJ15: =IF(AND(DATA_ENTRY!$K11=2,DATA_ENTRY!$L11="y",DATA_ENTRY!G11<>""),rel_cor_Brannick!F15,"") ->  | DK15: =IF(AND(DATA_ENTRY!$K11=2,DATA_ENTRY!$L11="y",DATA_ENTRY!G11<>""),rel_cor_Brannick!G15,"") ->  | EV15: =IF(AND(DATA_ENTRY!$K11=3,DATA_ENTRY!$L11="y",DATA_ENTRY!F11<>""),DATA_ENTRY!F11,"") ->  | EW15: =IF(AND(DATA_ENTRY!$K11=3,DATA_ENTRY!$L11="y",DATA_ENTRY!G11<>""),DATA_ENTRY!G11,"") ->  | EY15: =IF(AND(DATA_ENTRY!$K11=3,DATA_ENTRY!$L11="y",DATA_ENTRY!G11<>""),rel_cor_Brannick!E15,"") ->  | EZ15: =IF(AND(DATA_ENTRY!$K11=3,DATA_ENTRY!$L11="y",DATA_ENTRY!G11<>""),rel_cor_Brannick!F15,"") ->  | FA15: =IF(AND(DATA_ENTRY!$K11=3,DATA_ENTRY!$L11="y",DATA_ENTRY!G11<>""),rel_cor_Brannick!G15,"") ->  | GL15: =IF(AND(DATA_ENTRY!$K11=4,DATA_ENTRY!$L11="y",DATA_ENTRY!F11<>""),DATA_ENTRY!F11,"") ->  | GM15: =IF(AND(DATA_ENTRY!$K11=4,DATA_ENTRY!$L11="y",DATA_ENTRY!G11<>""),DATA_ENTRY!G11,"") ->  | GO15: =IF(AND(DATA_ENTRY!$K11=4,DATA_ENTRY!$L11="y",DATA_ENTRY!G11<>""),rel_cor_Brannick!E15,"") ->  | GP15: =IF(AND(DATA_ENTRY!$K11=4,DATA_ENTRY!$L11="y",DATA_ENTRY!G11<>""),rel_cor_Brannick!F15,"") ->  | GQ15: =IF(AND(DATA_ENTRY!$K11=4,DATA_ENTRY!$L11="y",DATA_ENTRY!G11<>""),rel_cor_Brannick!G15,"") ->  | IB15: =IF(AND(DATA_ENTRY!$K11=5,DATA_ENTRY!$L11="y",DATA_ENTRY!F11<>""),DATA_ENTRY!F11,"") ->  | IC15: =IF(AND(DATA_ENTRY!$K11=5,DATA_ENTRY!$L11="y",DATA_ENTRY!G11<>""),DATA_ENTRY!G11,"") ->  | IE15: =IF(AND(DATA_ENTRY!$K11=5,DATA_ENTRY!$L11="y",DATA_ENTRY!G11<>""),rel_cor_Brannick!E15,"") ->  | IF15: =IF(AND(DATA_ENTRY!$K11=5,DATA_ENTRY!$L11="y",DATA_ENTRY!G11<>""),rel_cor_Brannick!F15,"") ->  | IG15: =IF(AND(DATA_ENTRY!$K11=5,DATA_ENTRY!$L11="y",DATA_ENTRY!G11<>""),rel_cor_Brannick!G15,"") ->  | JR15: =IF(AND(DATA_ENTRY!$K11=6,DATA_ENTRY!$L11="y",DATA_ENTRY!F11<>""),DATA_ENTRY!F11,"") ->  | JS15: =IF(AND(DATA_ENTRY!$K11=6,DATA_ENTRY!$L11="y",DATA_ENTRY!G11<>""),DATA_ENTRY!G11,"") ->  | JU15: =IF(AND(DATA_ENTRY!$K11=6,DATA_ENTRY!$L11="y",DATA_ENTRY!G11<>""),rel_cor_Brannick!E15,"") ->  | JV15: =IF(AND(DATA_ENTRY!$K11=6,DATA_ENTRY!$L11="y",DATA_ENTRY!G11<>""),rel_cor_Brannick!F15,"") ->  | JW15: =IF(AND(DATA_ENTRY!$K11=6,DATA_ENTRY!$L11="y",DATA_ENTRY!G11<>""),rel_cor_Brannick!G15,"") -> 
B16: =IF(DATA_ENTRY!H12<>"",DATA_ENTRY!H12,DATA_ENTRY!$Q$9) -> 1 | C16: =IF(DATA_ENTRY!I12<>"",DATA_ENTRY!I12,DATA_ENTRY!$Q$10) -> 1 | D16: =IF(DATA_ENTRY!J12<>"",DATA_ENTRY!J12,DATA_ENTRY!$Q$11) -> 1 | E16: 1 | F16: 1 | G16: 1 | J16: CRED | K16: =K11+($E$6*K15) -> 0.6450463957 | M16: 0.798084623 | O16: 0.2291074877 | Z16: =IF(AND(DATA_ENTRY!$L12="y",DATA_ENTRY!F12<>""),DATA_ENTRY!F12,"") -> 113 | AA16: =IF(AND(DATA_ENTRY!$L12="y",DATA_ENTRY!G12<>""),DATA_ENTRY!G12,"") -> 0.28 | AB16: 0.2876820725 | AC16: 1 | AD16: 1 | AE16: 1 | AF16: 1 | AG16: 0.28 | AH16: 0.007020891954 | AI16: 0.007020891954 | AJ16: 113 | AK16: 31.64 | AL16: 0.3609076723 | AM16: 0.7933607908 | AN16: 31.64 | AO16: 32.50807419 | AP16: 1 | AQ16: 1 | AR16: 1 | AS16: 0.28 | AT16: 0.28 | AU16: 1 | AV16: 113 | AW16: 31.64 | AX16: 0.3609076723 | AY16: 0.008750892857 | AZ16: 0.008750892857 | BA16: 1 | BB16: 0.008750892857 | BC16: 0.9888508929 | BD16: 0.28 | BE16: 0.28 | BF16: 0.28 | BG16: 1 | BH16: 113 | BI16: 31.64 | BJ16: 0.3609076723 | BK16: 0.008750892857 | BL16: 1 | BM16: 0.008750892857 | BN16: 0.9888508929 | BP16: =IF(AND(DATA_ENTRY!$K12=1,DATA_ENTRY!$L12="y",DATA_ENTRY!F12<>""),DATA_ENTRY!F12,"") -> 113 | BQ16: =IF(AND(DATA_ENTRY!$K12=1,DATA_ENTRY!$L12="y",DATA_ENTRY!G12<>""),DATA_ENTRY!G12,"") -> 0.28 | BR16: 0.2876820725 | BS16: =IF(AND(DATA_ENTRY!$K12=1,DATA_ENTRY!$L12="y",DATA_ENTRY!G12<>""),rel_cor_Brannick!E16,"") -> 1 | BT16: =IF(AND(DATA_ENTRY!$K12=1,DATA_ENTRY!$L12="y",DATA_ENTRY!G12<>""),rel_cor_Brannick!F16,"") -> 1 | BU16: =IF(AND(DATA_ENTRY!$K12=1,DATA_ENTRY!$L12="y",DATA_ENTRY!G12<>""),rel_cor_Brannick!G16,"") -> 1 | BV16: 1 | BW16: 0.28 | BX16: 0.004809870651 | BY16: 0.004809870651 | BZ16: 113 | CA16: 31.64 | CB16: 6.282197675 | CC16: 0.5435153836 | CD16: 31.64 | CE16: 32.50807419 | CF16: 1 | CG16: 1 | CH16: 1 | CI16: 0.28 | CJ16: 0.28 | CK16: 1 | CL16: 113 | CM16: 31.64 | CN16: 6.282197675 | CO16: 0.008750892857 | CP16: 0.008750892857 | CQ16: 1 | CR16: 0.008750892857 | CS16: 0.9888508929 | CT16: 0.28 | CU16: 0.28 | CV16: 0.28 | CW16: 1 | CX16: 113 | CY16: 31.64 | CZ16: 6.282197675 | DA16: 0.008750892857 | DB16: 1 | DC16: 0.008750892857 | DD16: 0.9888508929 | DF16: =IF(AND(DATA_ENTRY!$K12=2,DATA_ENTRY!$L12="y",DATA_ENTRY!F12<>""),DATA_ENTRY!F12,"") ->  | DG16: =IF(AND(DATA_ENTRY!$K12=2,DATA_ENTRY!$L12="y",DATA_ENTRY!G12<>""),DATA_ENTRY!G12,"") ->  | DI16: =IF(AND(DATA_ENTRY!$K12=2,DATA_ENTRY!$L12="y",DATA_ENTRY!G12<>""),rel_cor_Brannick!E16,"") ->  | DJ16: =IF(AND(DATA_ENTRY!$K12=2,DATA_ENTRY!$L12="y",DATA_ENTRY!G12<>""),rel_cor_Brannick!F16,"") ->  | DK16: =IF(AND(DATA_ENTRY!$K12=2,DATA_ENTRY!$L12="y",DATA_ENTRY!G12<>""),rel_cor_Brannick!G16,"") ->  | EV16: =IF(AND(DATA_ENTRY!$K12=3,DATA_ENTRY!$L12="y",DATA_ENTRY!F12<>""),DATA_ENTRY!F12,"") ->  | EW16: =IF(AND(DATA_ENTRY!$K12=3,DATA_ENTRY!$L12="y",DATA_ENTRY!G12<>""),DATA_ENTRY!G12,"") ->  | EY16: =IF(AND(DATA_ENTRY!$K12=3,DATA_ENTRY!$L12="y",DATA_ENTRY!G12<>""),rel_cor_Brannick!E16,"") ->  | EZ16: =IF(AND(DATA_ENTRY!$K12=3,DATA_ENTRY!$L12="y",DATA_ENTRY!G12<>""),rel_cor_Brannick!F16,"") ->  | FA16: =IF(AND(DATA_ENTRY!$K12=3,DATA_ENTRY!$L12="y",DATA_ENTRY!G12<>""),rel_cor_Brannick!G16,"") ->  | GL16: =IF(AND(DATA_ENTRY!$K12=4,DATA_ENTRY!$L12="y",DATA_ENTRY!F12<>""),DATA_ENTRY!F12,"") ->  | GM16: =IF(AND(DATA_ENTRY!$K12=4,DATA_ENTRY!$L12="y",DATA_ENTRY!G12<>""),DATA_ENTRY!G12,"") ->  | GO16: =IF(AND(DATA_ENTRY!$K12=4,DATA_ENTRY!$L12="y",DATA_ENTRY!G12<>""),rel_cor_Brannick!E16,"") ->  | GP16: =IF(AND(DATA_ENTRY!$K12=4,DATA_ENTRY!$L12="y",DATA_ENTRY!G12<>""),rel_cor_Brannick!F16,"") ->  | GQ16: =IF(AND(DATA_ENTRY!$K12=4,DATA_ENTRY!$L12="y",DATA_ENTRY!G12<>""),rel_cor_Brannick!G16,"") ->  | IB16: =IF(AND(DATA_ENTRY!$K12=5,DATA_ENTRY!$L12="y",DATA_ENTRY!F12<>""),DATA_ENTRY!F12,"") ->  | IC16: =IF(AND(DATA_ENTRY!$K12=5,DATA_ENTRY!$L12="y",DATA_ENTRY!G12<>""),DATA_ENTRY!G12,"") ->  | IE16: =IF(AND(DATA_ENTRY!$K12=5,DATA_ENTRY!$L12="y",DATA_ENTRY!G12<>""),rel_cor_Brannick!E16,"") ->  | IF16: =IF(AND(DATA_ENTRY!$K12=5,DATA_ENTRY!$L12="y",DATA_ENTRY!G12<>""),rel_cor_Brannick!F16,"") ->  | IG16: =IF(AND(DATA_ENTRY!$K12=5,DATA_ENTRY!$L12="y",DATA_ENTRY!G12<>""),rel_cor_Brannick!G16,"") ->  | JR16: =IF(AND(DATA_ENTRY!$K12=6,DATA_ENTRY!$L12="y",DATA_ENTRY!F12<>""),DATA_ENTRY!F12,"") ->  | JS16: =IF(AND(DATA_ENTRY!$K12=6,DATA_ENTRY!$L12="y",DATA_ENTRY!G12<>""),DATA_ENTRY!G12,"") ->  | JU16: =IF(AND(DATA_ENTRY!$K12=6,DATA_ENTRY!$L12="y",DATA_ENTRY!G12<>""),rel_cor_Brannick!E16,"") ->  | JV16: =IF(AND(DATA_ENTRY!$K12=6,DATA_ENTRY!$L12="y",DATA_ENTRY!G12<>""),rel_cor_Brannick!F16,"") ->  | JW16: =IF(AND(DATA_ENTRY!$K12=6,DATA_ENTRY!$L12="y",DATA_ENTRY!G12<>""),rel_cor_Brannick!G16,"") -> 
B17: =IF(DATA_ENTRY!H13<>"",DATA_ENTRY!H13,DATA_ENTRY!$Q$9) -> 1 | C17: =IF(DATA_ENTRY!I13<>"",DATA_ENTRY!I13,DATA_ENTRY!$Q$10) -> 1 | D17: =IF(DATA_ENTRY!J13<>"",DATA_ENTRY!J13,DATA_ENTRY!$Q$11) -> 1 | E17: 1 | F17: 1 | G17: 1 | J17: CRED | K17: =K11-($E$6*K15) -> 0.02798233001 | M17: 0.2334858158 | O17: 0.08413314572 | Z17: =IF(AND(DATA_ENTRY!$L13="y",DATA_ENTRY!F13<>""),DATA_ENTRY!F13,"") -> 486 | AA17: =IF(AND(DATA_ENTRY!$L13="y",DATA_ENTRY!G13<>""),DATA_ENTRY!G13,"") -> 0.4 | AB17: 0.4236489302 | AC17: 1 | AD17: 1 | AE17: 1 | AF17: 1 | AG17: 0.4 | AH17: 0.001621319379 | AI17: 0.001621319379 | AJ17: 486 | AK17: 194.4 | AL17: 1.958787098 | AM17: 0.7879612182 | AN17: 194.4 | AO17: 205.8933801 | AP17: 1 | AQ17: 1 | AR17: 1 | AS17: 0.4 | AT17: 0.4 | AU17: 1 | AV17: 486 | AW17: 194.4 | AX17: 1.958787098 | AY17: 0.002020824742 | AZ17: 0.002020824742 | BA17: 1 | BB17: 0.002020824742 | BC17: 0.9821208247 | BD17: 0.4 | BE17: 0.4 | BF17: 0.4 | BG17: 1 | BH17: 486 | BI17: 194.4 | BJ17: 1.958787098 | BK17: 0.002020824742 | BL17: 1 | BM17: 0.002020824742 | BN17: 0.9821208247 | BP17: =IF(AND(DATA_ENTRY!$K13=1,DATA_ENTRY!$L13="y",DATA_ENTRY!F13<>""),DATA_ENTRY!F13,"") -> 486 | BQ17: =IF(AND(DATA_ENTRY!$K13=1,DATA_ENTRY!$L13="y",DATA_ENTRY!G13<>""),DATA_ENTRY!G13,"") -> 0.4 | BR17: 0.4236489302 | BS17: =IF(AND(DATA_ENTRY!$K13=1,DATA_ENTRY!$L13="y",DATA_ENTRY!G13<>""),rel_cor_Brannick!E17,"") -> 1 | BT17: =IF(AND(DATA_ENTRY!$K13=1,DATA_ENTRY!$L13="y",DATA_ENTRY!G13<>""),rel_cor_Brannick!F17,"") -> 1 | BU17: =IF(AND(DATA_ENTRY!$K13=1,DATA_ENTRY!$L13="y",DATA_ENTRY!G13<>""),rel_cor_Brannick!G17,"") -> 1 | BV17: 1 | BW17: 0.4 | BX17: 0.001110733016 | BY17: 0.001110733016 | BZ17: 486 | CA17: 194.4 | CB17: 6.515421477 | CC17: 0.5398162459 | CD17: 194.4 | CE17: 205.8933801 | CF17: 1 | CG17: 1 | CH17: 1 | CI17: 0.4 | CJ17: 0.4 | CK17: 1 | CL17: 486 | CM17: 194.4 | CN17: 6.515421477 | CO17: 0.002020824742 | CP17: 0.002020824742 | CQ17: 1 | CR17: 0.002020824742 | CS17: 0.9821208247 | CT17: 0.4 | CU17: 0.4 | CV17: 0.4 | CW17: 1 | CX17: 486 | CY17: 194.4 | CZ17: 6.515421477 | DA17: 0.002020824742 | DB17: 1 | DC17: 0.002020824742 | DD17: 0.9821208247 | DF17: =IF(AND(DATA_ENTRY!$K13=2,DATA_ENTRY!$L13="y",DATA_ENTRY!F13<>""),DATA_ENTRY!F13,"") ->  | DG17: =IF(AND(DATA_ENTRY!$K13=2,DATA_ENTRY!$L13="y",DATA_ENTRY!G13<>""),DATA_ENTRY!G13,"") ->  | DI17: =IF(AND(DATA_ENTRY!$K13=2,DATA_ENTRY!$L13="y",DATA_ENTRY!G13<>""),rel_cor_Brannick!E17,"") ->  | DJ17: =IF(AND(DATA_ENTRY!$K13=2,DATA_ENTRY!$L13="y",DATA_ENTRY!G13<>""),rel_cor_Brannick!F17,"") ->  | DK17: =IF(AND(DATA_ENTRY!$K13=2,DATA_ENTRY!$L13="y",DATA_ENTRY!G13<>""),rel_cor_Brannick!G17,"") ->  | EV17: =IF(AND(DATA_ENTRY!$K13=3,DATA_ENTRY!$L13="y",DATA_ENTRY!F13<>""),DATA_ENTRY!F13,"") ->  | EW17: =IF(AND(DATA_ENTRY!$K13=3,DATA_ENTRY!$L13="y",DATA_ENTRY!G13<>""),DATA_ENTRY!G13,"") ->  | EY17: =IF(AND(DATA_ENTRY!$K13=3,DATA_ENTRY!$L13="y",DATA_ENTRY!G13<>""),rel_cor_Brannick!E17,"") ->  | EZ17: =IF(AND(DATA_ENTRY!$K13=3,DATA_ENTRY!$L13="y",DATA_ENTRY!G13<>""),rel_cor_Brannick!F17,"") ->  | FA17: =IF(AND(DATA_ENTRY!$K13=3,DATA_ENTRY!$L13="y",DATA_ENTRY!G13<>""),rel_cor_Brannick!G17,"") ->  | GL17: =IF(AND(DATA_ENTRY!$K13=4,DATA_ENTRY!$L13="y",DATA_ENTRY!F13<>""),DATA_ENTRY!F13,"") ->  | GM17: =IF(AND(DATA_ENTRY!$K13=4,DATA_ENTRY!$L13="y",DATA_ENTRY!G13<>""),DATA_ENTRY!G13,"") ->  | GO17: =IF(AND(DATA_ENTRY!$K13=4,DATA_ENTRY!$L13="y",DATA_ENTRY!G13<>""),rel_cor_Brannick!E17,"") ->  | GP17: =IF(AND(DATA_ENTRY!$K13=4,DATA_ENTRY!$L13="y",DATA_ENTRY!G13<>""),rel_cor_Brannick!F17,"") ->  | GQ17: =IF(AND(DATA_ENTRY!$K13=4,DATA_ENTRY!$L13="y",DATA_ENTRY!G13<>""),rel_cor_Brannick!G17,"") ->  | IB17: =IF(AND(DATA_ENTRY!$K13=5,DATA_ENTRY!$L13="y",DATA_ENTRY!F13<>""),DATA_ENTRY!F13,"") ->  | IC17: =IF(AND(DATA_ENTRY!$K13=5,DATA_ENTRY!$L13="y",DATA_ENTRY!G13<>""),DATA_ENTRY!G13,"") ->  | IE17: =IF(AND(DATA_ENTRY!$K13=5,DATA_ENTRY!$L13="y",DATA_ENTRY!G13<>""),rel_cor_Brannick!E17,"") ->  | IF17: =IF(AND(DATA_ENTRY!$K13=5,DATA_ENTRY!$L13="y",DATA_ENTRY!G13<>""),rel_cor_Brannick!F17,"") ->  | IG17: =IF(AND(DATA_ENTRY!$K13=5,DATA_ENTRY!$L13="y",DATA_ENTRY!G13<>""),rel_cor_Brannick!G17,"") ->  | JR17: =IF(AND(DATA_ENTRY!$K13=6,DATA_ENTRY!$L13="y",DATA_ENTRY!F13<>""),DATA_ENTRY!F13,"") ->  | JS17: =IF(AND(DATA_ENTRY!$K13=6,DATA_ENTRY!$L13="y",DATA_ENTRY!G13<>""),DATA_ENTRY!G13,"") ->  | JU17: =IF(AND(DATA_ENTRY!$K13=6,DATA_ENTRY!$L13="y",DATA_ENTRY!G13<>""),rel_cor_Brannick!E17,"") ->  | JV17: =IF(AND(DATA_ENTRY!$K13=6,DATA_ENTRY!$L13="y",DATA_ENTRY!G13<>""),rel_cor_Brannick!F17,"") ->  | JW17: =IF(AND(DATA_ENTRY!$K13=6,DATA_ENTRY!$L13="y",DATA_ENTRY!G13<>""),rel_cor_Brannick!G17,"") -> 
B18: =IF(DATA_ENTRY!H14<>"",DATA_ENTRY!H14,DATA_ENTRY!$Q$9) -> 1 | C18: =IF(DATA_ENTRY!I14<>"",DATA_ENTRY!I14,DATA_ENTRY!$Q$10) -> 1 | D18: =IF(DATA_ENTRY!J14<>"",DATA_ENTRY!J14,DATA_ENTRY!$Q$11) -> 1 | E18: 1 | F18: 1 | G18: 1 | I18: Indirect RR | J18: rbar c | K18: =AW6/AV6 -> 0.3365143628 | M18: =CM6/CL6 -> 0.5157852194 | O18: =EC6/EB6 -> 0.1566203167 | Q18: =FS6/FR6 ->  | S18: =HI6/HH6 ->  | U18: =IY6/IX6 ->  | W18: =KO6/KN6 ->  | Z18: =IF(AND(DATA_ENTRY!$L14="y",DATA_ENTRY!F14<>""),DATA_ENTRY!F14,"") -> 263 | AA18: =IF(AND(DATA_ENTRY!$L14="y",DATA_ENTRY!G14<>""),DATA_ENTRY!G14,"") -> 0.5 | AB18: 0.5493061443 | AC18: 1 | AD18: 1 | AE18: 1 | AF18: 1 | AG18: 0.5 | AH18: 0.003001297324 | AI18: 0.003001297324 | AJ18: 263 | AK18: 131.5 | AL18: 7.029346586 | AM18: 0.7893411962 | AN18: 131.5 | AO18: 144.467516 | AP18: 1 | AQ18: 1 | AR18: 1 | AS18: 0.5 | AT18: 0.5 | AU18: 1 | AV18: 263 | AW18: 131.5 | AX18: 7.029346586 | AY18: 0.003740839695 | AZ18: 0.003740839695 | BA18: 1 | BB18: 0.003740839695 | BC18: 0.9838408397 | BD18: 0.5 | BE18: 0.5 | BF18: 0.5 | BG18: 1 | BH18: 263 | BI18: 131.5 | BJ18: 7.029346586 | BK18: 0.003740839695 | BL18: 1 | BM18: 0.003740839695 | BN18: 0.9838408397 | BP18: =IF(AND(DATA_ENTRY!$K14=1,DATA_ENTRY!$L14="y",DATA_ENTRY!F14<>""),DATA_ENTRY!F14,"") -> 263 | BQ18: =IF(AND(DATA_ENTRY!$K14=1,DATA_ENTRY!$L14="y",DATA_ENTRY!G14<>""),DATA_ENTRY!G14,"") -> 0.5 | BR18: 0.5493061443 | BS18: =IF(AND(DATA_ENTRY!$K14=1,DATA_ENTRY!$L14="y",DATA_ENTRY!G14<>""),rel_cor_Brannick!E18,"") -> 1 | BT18: =IF(AND(DATA_ENTRY!$K14=1,DATA_ENTRY!$L14="y",DATA_ENTRY!G14<>""),rel_cor_Brannick!F18,"") -> 1 | BU18: =IF(AND(DATA_ENTRY!$K14=1,DATA_ENTRY!$L14="y",DATA_ENTRY!G14<>""),rel_cor_Brannick!G18,"") -> 1 | BV18: 1 | BW18: 0.5 | BX18: 0.002056127912 | BY18: 0.002056127912 | BZ18: 263 | CA18: 131.5 | CB18: 0.06553253884 | CC18: 0.5407616408 | CD18: 131.5 | CE18: 144.467516 | CF18: 1 | CG18: 1 | CH18: 1 | CI18: 0.5 | CJ18: 0.5 | CK18: 1 | CL18: 263 | CM18: 131.5 | CN18: 0.06553253884 | CO18: 0.003740839695 | CP18: 0.003740839695 | CQ18: 1 | CR18: 0.003740839695 | CS18: 0.9838408397 | CT18: 0.5 | CU18: 0.5 | CV18: 0.5 | CW18: 1 | CX18: 263 | CY18: 131.5 | CZ18: 0.06553253884 | DA18: 0.003740839695 | DB18: 1 | DC18: 0.003740839695 | DD18: 0.9838408397 | DF18: =IF(AND(DATA_ENTRY!$K14=2,DATA_ENTRY!$L14="y",DATA_ENTRY!F14<>""),DATA_ENTRY!F14,"") ->  | DG18: =IF(AND(DATA_ENTRY!$K14=2,DATA_ENTRY!$L14="y",DATA_ENTRY!G14<>""),DATA_ENTRY!G14,"") ->  | DI18: =IF(AND(DATA_ENTRY!$K14=2,DATA_ENTRY!$L14="y",DATA_ENTRY!G14<>""),rel_cor_Brannick!E18,"") ->  | DJ18: =IF(AND(DATA_ENTRY!$K14=2,DATA_ENTRY!$L14="y",DATA_ENTRY!G14<>""),rel_cor_Brannick!F18,"") ->  | DK18: =IF(AND(DATA_ENTRY!$K14=2,DATA_ENTRY!$L14="y",DATA_ENTRY!G14<>""),rel_cor_Brannick!G18,"") ->  | EV18: =IF(AND(DATA_ENTRY!$K14=3,DATA_ENTRY!$L14="y",DATA_ENTRY!F14<>""),DATA_ENTRY!F14,"") ->  | EW18: =IF(AND(DATA_ENTRY!$K14=3,DATA_ENTRY!$L14="y",DATA_ENTRY!G14<>""),DATA_ENTRY!G14,"") ->  | EY18: =IF(AND(DATA_ENTRY!$K14=3,DATA_ENTRY!$L14="y",DATA_ENTRY!G14<>""),rel_cor_Brannick!E18,"") ->  | EZ18: =IF(AND(DATA_ENTRY!$K14=3,DATA_ENTRY!$L14="y",DATA_ENTRY!G14<>""),rel_cor_Brannick!F18,"") ->  | FA18: =IF(AND(DATA_ENTRY!$K14=3,DATA_ENTRY!$L14="y",DATA_ENTRY!G14<>""),rel_cor_Brannick!G18,"") ->  | GL18: =IF(AND(DATA_ENTRY!$K14=4,DATA_ENTRY!$L14="y",DATA_ENTRY!F14<>""),DATA_ENTRY!F14,"") ->  | GM18: =IF(AND(DATA_ENTRY!$K14=4,DATA_ENTRY!$L14="y",DATA_ENTRY!G14<>""),DATA_ENTRY!G14,"") ->  | GO18: =IF(AND(DATA_ENTRY!$K14=4,DATA_ENTRY!$L14="y",DATA_ENTRY!G14<>""),rel_cor_Brannick!E18,"") ->  | GP18: =IF(AND(DATA_ENTRY!$K14=4,DATA_ENTRY!$L14="y",DATA_ENTRY!G14<>""),rel_cor_Brannick!F18,"") ->  | GQ18: =IF(AND(DATA_ENTRY!$K14=4,DATA_ENTRY!$L14="y",DATA_ENTRY!G14<>""),rel_cor_Brannick!G18,"") ->  | IB18: =IF(AND(DATA_ENTRY!$K14=5,DATA_ENTRY!$L14="y",DATA_ENTRY!F14<>""),DATA_ENTRY!F14,"") ->  | IC18: =IF(AND(DATA_ENTRY!$K14=5,DATA_ENTRY!$L14="y",DATA_ENTRY!G14<>""),DATA_ENTRY!G14,"") ->  | IE18: =IF(AND(DATA_ENTRY!$K14=5,DATA_ENTRY!$L14="y",DATA_ENTRY!G14<>""),rel_cor_Brannick!E18,"") ->  | IF18: =IF(AND(DATA_ENTRY!$K14=5,DATA_ENTRY!$L14="y",DATA_ENTRY!G14<>""),rel_cor_Brannick!F18,"") ->  | IG18: =IF(AND(DATA_ENTRY!$K14=5,DATA_ENTRY!$L14="y",DATA_ENTRY!G14<>""),rel_cor_Brannick!G18,"") ->  | JR18: =IF(AND(DATA_ENTRY!$K14=6,DATA_ENTRY!$L14="y",DATA_ENTRY!F14<>""),DATA_ENTRY!F14,"") ->  | JS18: =IF(AND(DATA_ENTRY!$K14=6,DATA_ENTRY!$L14="y",DATA_ENTRY!G14<>""),DATA_ENTRY!G14,"") ->  | JU18: =IF(AND(DATA_ENTRY!$K14=6,DATA_ENTRY!$L14="y",DATA_ENTRY!G14<>""),rel_cor_Brannick!E18,"") ->  | JV18: =IF(AND(DATA_ENTRY!$K14=6,DATA_ENTRY!$L14="y",DATA_ENTRY!G14<>""),rel_cor_Brannick!F18,"") ->  | JW18: =IF(AND(DATA_ENTRY!$K14=6,DATA_ENTRY!$L14="y",DATA_ENTRY!G14<>""),rel_cor_Brannick!G18,"") -> 
B19: =IF(DATA_ENTRY!H15<>"",DATA_ENTRY!H15,DATA_ENTRY!$Q$9) -> 1 | C19: =IF(DATA_ENTRY!I15<>"",DATA_ENTRY!I15,DATA_ENTRY!$Q$10) -> 1 | D19: =IF(DATA_ENTRY!J15<>"",DATA_ENTRY!J15,DATA_ENTRY!$Q$11) -> 1 | E19: 1 | F19: 1 | G19: 1 | J19: Var(rc) | K19: =AX6/AV6 -> 0.06162660106 | M19: =CN6/CL6 -> 0.05102546118 | O19: =ED6/EB6 -> 0.007652965535 | Q19: =FT6/FR6 ->  | S19: =HJ6/HH6 ->  | U19: =IZ6/IX6 ->  | W19: =KP6/KN6 ->  | Z19: =IF(AND(DATA_ENTRY!$L15="y",DATA_ENTRY!F15<>""),DATA_ENTRY!F15,"") -> 193 | AA19: =IF(AND(DATA_ENTRY!$L15="y",DATA_ENTRY!G15<>""),DATA_ENTRY!G15,"") -> 0.34 | AB19: 0.354092529 | AC19: 1 | AD19: 1 | AE19: 1 | AF19: 1 | AG19: 0.34 | AH19: 0.004095520306 | AI19: 0.004095520306 | AJ19: 193 | AK19: 65.62 | AL19: 0.002344885631 | AM19: 0.7904354192 | AN19: 65.62 | AO19: 68.33985809 | AP19: 1 | AQ19: 1 | AR19: 1 | AS19: 0.34 | AT19: 0.34 | AU19: 1 | AV19: 193 | AW19: 65.62 | AX19: 0.002344885631 | AY19: 0.0051046875 | AZ19: 0.0051046875 | BA19: 1 | BB19: 0.0051046875 | BC19: 0.9852046875 | BD19: 0.34 | BE19: 0.34 | BF19: 0.34 | BG19: 1 | BH19: 193 | BI19: 65.62 | BJ19: 0.002344885631 | BK19: 0.0051046875 | BL19: 1 | BM19: 0.0051046875 | BN19: 0.9852046875 | BP19: =IF(AND(DATA_ENTRY!$K15=1,DATA_ENTRY!$L15="y",DATA_ENTRY!F15<>""),DATA_ENTRY!F15,"") -> 193 | BQ19: =IF(AND(DATA_ENTRY!$K15=1,DATA_ENTRY!$L15="y",DATA_ENTRY!G15<>""),DATA_ENTRY!G15,"") -> 0.34 | BR19: 0.354092529 | BS19: =IF(AND(DATA_ENTRY!$K15=1,DATA_ENTRY!$L15="y",DATA_ENTRY!G15<>""),rel_cor_Brannick!E19,"") -> 1 | BT19: =IF(AND(DATA_ENTRY!$K15=1,DATA_ENTRY!$L15="y",DATA_ENTRY!G15<>""),rel_cor_Brannick!F19,"") -> 1 | BU19: =IF(AND(DATA_ENTRY!$K15=1,DATA_ENTRY!$L15="y",DATA_ENTRY!G15<>""),rel_cor_Brannick!G19,"") -> 1 | BV19: 1 | BW19: 0.34 | BX19: 0.00280575788 | BY19: 0.00280575788 | BZ19: 193 | CA19: 65.62 | CB19: 5.963785568 | CC19: 0.5415112708 | CD19: 65.62 | CE19: 68.33985809 | CF19: 1 | CG19: 1 | CH19: 1 | CI19: 0.34 | CJ19: 0.34 | CK19: 1 | CL19: 193 | CM19: 65.62 | CN19: 5.963785568 | CO19: 0.0051046875 | CP19: 0.0051046875 | CQ19: 1 | CR19: 0.0051046875 | CS19: 0.9852046875 | CT19: 0.34 | CU19: 0.34 | CV19: 0.34 | CW19: 1 | CX19: 193 | CY19: 65.62 | CZ19: 5.963785568 | DA19: 0.0051046875 | DB19: 1 | DC19: 0.0051046875 | DD19: 0.9852046875 | DF19: =IF(AND(DATA_ENTRY!$K15=2,DATA_ENTRY!$L15="y",DATA_ENTRY!F15<>""),DATA_ENTRY!F15,"") ->  | DG19: =IF(AND(DATA_ENTRY!$K15=2,DATA_ENTRY!$L15="y",DATA_ENTRY!G15<>""),DATA_ENTRY!G15,"") ->  | DI19: =IF(AND(DATA_ENTRY!$K15=2,DATA_ENTRY!$L15="y",DATA_ENTRY!G15<>""),rel_cor_Brannick!E19,"") ->  | DJ19: =IF(AND(DATA_ENTRY!$K15=2,DATA_ENTRY!$L15="y",DATA_ENTRY!G15<>""),rel_cor_Brannick!F19,"") ->  | DK19: =IF(AND(DATA_ENTRY!$K15=2,DATA_ENTRY!$L15="y",DATA_ENTRY!G15<>""),rel_cor_Brannick!G19,"") ->  | EV19: =IF(AND(DATA_ENTRY!$K15=3,DATA_ENTRY!$L15="y",DATA_ENTRY!F15<>""),DATA_ENTRY!F15,"") ->  | EW19: =IF(AND(DATA_ENTRY!$K15=3,DATA_ENTRY!$L15="y",DATA_ENTRY!G15<>""),DATA_ENTRY!G15,"") ->  | EY19: =IF(AND(DATA_ENTRY!$K15=3,DATA_ENTRY!$L15="y",DATA_ENTRY!G15<>""),rel_cor_Brannick!E19,"") ->  | EZ19: =IF(AND(DATA_ENTRY!$K15=3,DATA_ENTRY!$L15="y",DATA_ENTRY!G15<>""),rel_cor_Brannick!F19,"") ->  | FA19: =IF(AND(DATA_ENTRY!$K15=3,DATA_ENTRY!$L15="y",DATA_ENTRY!G15<>""),rel_cor_Brannick!G19,"") ->  | GL19: =IF(AND(DATA_ENTRY!$K15=4,DATA_ENTRY!$L15="y",DATA_ENTRY!F15<>""),DATA_ENTRY!F15,"") ->  | GM19: =IF(AND(DATA_ENTRY!$K15=4,DATA_ENTRY!$L15="y",DATA_ENTRY!G15<>""),DATA_ENTRY!G15,"") ->  | GO19: =IF(AND(DATA_ENTRY!$K15=4,DATA_ENTRY!$L15="y",DATA_ENTRY!G15<>""),rel_cor_Brannick!E19,"") ->  | GP19: =IF(AND(DATA_ENTRY!$K15=4,DATA_ENTRY!$L15="y",DATA_ENTRY!G15<>""),rel_cor_Brannick!F19,"") ->  | GQ19: =IF(AND(DATA_ENTRY!$K15=4,DATA_ENTRY!$L15="y",DATA_ENTRY!G15<>""),rel_cor_Brannick!G19,"") ->  | IB19: =IF(AND(DATA_ENTRY!$K15=5,DATA_ENTRY!$L15="y",DATA_ENTRY!F15<>""),DATA_ENTRY!F15,"") ->  | IC19: =IF(AND(DATA_ENTRY!$K15=5,DATA_ENTRY!$L15="y",DATA_ENTRY!G15<>""),DATA_ENTRY!G15,"") ->  | IE19: =IF(AND(DATA_ENTRY!$K15=5,DATA_ENTRY!$L15="y",DATA_ENTRY!G15<>""),rel_cor_Brannick!E19,"") ->  | IF19: =IF(AND(DATA_ENTRY!$K15=5,DATA_ENTRY!$L15="y",DATA_ENTRY!G15<>""),rel_cor_Brannick!F19,"") ->  | IG19: =IF(AND(DATA_ENTRY!$K15=5,DATA_ENTRY!$L15="y",DATA_ENTRY!G15<>""),rel_cor_Brannick!G19,"") ->  | JR19: =IF(AND(DATA_ENTRY!$K15=6,DATA_ENTRY!$L15="y",DATA_ENTRY!F15<>""),DATA_ENTRY!F15,"") ->  | JS19: =IF(AND(DATA_ENTRY!$K15=6,DATA_ENTRY!$L15="y",DATA_ENTRY!G15<>""),DATA_ENTRY!G15,"") ->  | JU19: =IF(AND(DATA_ENTRY!$K15=6,DATA_ENTRY!$L15="y",DATA_ENTRY!G15<>""),rel_cor_Brannick!E19,"") ->  | JV19: =IF(AND(DATA_ENTRY!$K15=6,DATA_ENTRY!$L15="y",DATA_ENTRY!G15<>""),rel_cor_Brannick!F19,"") ->  | JW19: =IF(AND(DATA_ENTRY!$K15=6,DATA_ENTRY!$L15="y",DATA_ENTRY!G15<>""),rel_cor_Brannick!G19,"") -> 
B20: =IF(DATA_ENTRY!H16<>"",DATA_ENTRY!H16,DATA_ENTRY!$Q$9) -> 1 | C20: =IF(DATA_ENTRY!I16<>"",DATA_ENTRY!I16,DATA_ENTRY!$Q$10) -> 1 | D20: =IF(DATA_ENTRY!J16<>"",DATA_ENTRY!J16,DATA_ENTRY!$Q$11) -> 1 | E20: 1 | F20: 1 | G20: 1 | J20: Ave(ve) | K20: =BC6/AV6 -> 0.004570083721 | M20: =CS6/CL6 -> 0.004552859548 | O20: =EI6/EB6 -> 0.00458736777 | Q20: =FY6/FR6 ->  | S20: =HO6/HH6 ->  | U20: =JE6/IX6 ->  | W20: =KU6/KN6 ->  | Z20: =IF(AND(DATA_ENTRY!$L16="y",DATA_ENTRY!F16<>""),DATA_ENTRY!F16,"") -> 145 | AA20: =IF(AND(DATA_ENTRY!$L16="y",DATA_ENTRY!G16<>""),DATA_ENTRY!G16,"") -> 0.21 | AB20: 0.2131713466 | AC20: 1 | AD20: 1 | AE20: 1 | AF20: 1 | AG20: 0.21 | AH20: 0.005460693742 | AI20: 0.005460693742 | AJ20: 145 | AK20: 30.45 | AL20: 2.32085318 | AM20: 0.7918005926 | AN20: 30.45 | AO20: 30.90984525 | AP20: 1 | AQ20: 1 | AR20: 1 | AS20: 0.21 | AT20: 0.21 | AU20: 1 | AV20: 145 | AW20: 30.45 | AX20: 2.32085318 | AY20: 0.00680625 | AZ20: 0.00680625 | BA20: 1 | BB20: 0.00680625 | BC20: 0.98690625 | BD20: 0.21 | BE20: 0.21 | BF20: 0.21 | BG20: 1 | BH20: 145 | BI20: 30.45 | BJ20: 2.32085318 | BK20: 0.00680625 | BL20: 1 | BM20: 0.00680625 | BN20: 0.98690625 | BP20: =IF(AND(DATA_ENTRY!$K16=1,DATA_ENTRY!$L16="y",DATA_ENTRY!F16<>""),DATA_ENTRY!F16,"") ->  | BQ20: =IF(AND(DATA_ENTRY!$K16=1,DATA_ENTRY!$L16="y",DATA_ENTRY!G16<>""),DATA_ENTRY!G16,"") ->  | BS20: =IF(AND(DATA_ENTRY!$K16=1,DATA_ENTRY!$L16="y",DATA_ENTRY!G16<>""),rel_cor_Brannick!E20,"") ->  | BT20: =IF(AND(DATA_ENTRY!$K16=1,DATA_ENTRY!$L16="y",DATA_ENTRY!G16<>""),rel_cor_Brannick!F20,"") ->  | BU20: =IF(AND(DATA_ENTRY!$K16=1,DATA_ENTRY!$L16="y",DATA_ENTRY!G16<>""),rel_cor_Brannick!G20,"") ->  | DF20: =IF(AND(DATA_ENTRY!$K16=2,DATA_ENTRY!$L16="y",DATA_ENTRY!F16<>""),DATA_ENTRY!F16,"") -> 145 | DG20: =IF(AND(DATA_ENTRY!$K16=2,DATA_ENTRY!$L16="y",DATA_ENTRY!G16<>""),DATA_ENTRY!G16,"") -> 0.21 | DH20: 0.2131713466 | DI20: =IF(AND(DATA_ENTRY!$K16=2,DATA_ENTRY!$L16="y",DATA_ENTRY!G16<>""),rel_cor_Brannick!E20,"") -> 1 | DJ20: =IF(AND(DATA_ENTRY!$K16=2,DATA_ENTRY!$L16="y",DATA_ENTRY!G16<>""),rel_cor_Brannick!F20,"") -> 1 | DK20: =IF(AND(DATA_ENTRY!$K16=2,DATA_ENTRY!$L16="y",DATA_ENTRY!G16<>""),rel_cor_Brannick!G20,"") -> 1 | DL20: 1 | DM20: 0.21 | DN20: 0.006607929652 | DO20: 0.006607929652 | DP20: 145 | DQ20: 30.45 | DR20: 0.4131616351 | DS20: 0.9581497996 | DT20: 30.45 | DU20: 30.90984525 | DV20: 1 | DW20: 1 | DX20: 1 | DY20: 0.21 | DZ20: 0.21 | EA20: 1 | EB20: 145 | EC20: 30.45 | ED20: 0.4131616351 | EE20: 0.00680625 | EF20: 0.00680625 | EG20: 1 | EH20: 0.00680625 | EI20: 0.98690625 | EJ20: 0.21 | EK20: 0.21 | EL20: 0.21 | EM20: 1 | EN20: 145 | EO20: 30.45 | EP20: 0.4131616351 | EQ20: 0.00680625 | ER20: 1 | ES20: 0.00680625 | ET20: 0.98690625 | EV20: =IF(AND(DATA_ENTRY!$K16=3,DATA_ENTRY!$L16="y",DATA_ENTRY!F16<>""),DATA_ENTRY!F16,"") ->  | EW20: =IF(AND(DATA_ENTRY!$K16=3,DATA_ENTRY!$L16="y",DATA_ENTRY!G16<>""),DATA_ENTRY!G16,"") ->  | EY20: =IF(AND(DATA_ENTRY!$K16=3,DATA_ENTRY!$L16="y",DATA_ENTRY!G16<>""),rel_cor_Brannick!E20,"") ->  | EZ20: =IF(AND(DATA_ENTRY!$K16=3,DATA_ENTRY!$L16="y",DATA_ENTRY!G16<>""),rel_cor_Brannick!F20,"") ->  | FA20: =IF(AND(DATA_ENTRY!$K16=3,DATA_ENTRY!$L16="y",DATA_ENTRY!G16<>""),rel_cor_Brannick!G20,"") ->  | GL20: =IF(AND(DATA_ENTRY!$K16=4,DATA_ENTRY!$L16="y",DATA_ENTRY!F16<>""),DATA_ENTRY!F16,"") ->  | GM20: =IF(AND(DATA_ENTRY!$K16=4,DATA_ENTRY!$L16="y",DATA_ENTRY!G16<>""),DATA_ENTRY!G16,"") ->  | GO20: =IF(AND(DATA_ENTRY!$K16=4,DATA_ENTRY!$L16="y",DATA_ENTRY!G16<>""),rel_cor_Brannick!E20,"") ->  | GP20: =IF(AND(DATA_ENTRY!$K16=4,DATA_ENTRY!$L16="y",DATA_ENTRY!G16<>""),rel_cor_Brannick!F20,"") ->  | GQ20: =IF(AND(DATA_ENTRY!$K16=4,DATA_ENTRY!$L16="y",DATA_ENTRY!G16<>""),rel_cor_Brannick!G20,"") ->  | IB20: =IF(AND(DATA_ENTRY!$K16=5,DATA_ENTRY!$L16="y",DATA_ENTRY!F16<>""),DATA_ENTRY!F16,"") ->  | IC20: =IF(AND(DATA_ENTRY!$K16=5,DATA_ENTRY!$L16="y",DATA_ENTRY!G16<>""),DATA_ENTRY!G16,"") ->  | IE20: =IF(AND(DATA_ENTRY!$K16=5,DATA_ENTRY!$L16="y",DATA_ENTRY!G16<>""),rel_cor_Brannick!E20,"") ->  | IF20: =IF(AND(DATA_ENTRY!$K16=5,DATA_ENTRY!$L16="y",DATA_ENTRY!G16<>""),rel_cor_Brannick!F20,"") ->  | IG20: =IF(AND(DATA_ENTRY!$K16=5,DATA_ENTRY!$L16="y",DATA_ENTRY!G16<>""),rel_cor_Brannick!G20,"") ->  | JR20: =IF(AND(DATA_ENTRY!$K16=6,DATA_ENTRY!$L16="y",DATA_ENTRY!F16<>""),DATA_ENTRY!F16,"") ->  | JS20: =IF(AND(DATA_ENTRY!$K16=6,DATA_ENTRY!$L16="y",DATA_ENTRY!G16<>""),DATA_ENTRY!G16,"") ->  | JU20: =IF(AND(DATA_ENTRY!$K16=6,DATA_ENTRY!$L16="y",DATA_ENTRY!G16<>""),rel_cor_Brannick!E20,"") ->  | JV20: =IF(AND(DATA_ENTRY!$K16=6,DATA_ENTRY!$L16="y",DATA_ENTRY!G16<>""),rel_cor_Brannick!F20,"") ->  | JW20: =IF(AND(DATA_ENTRY!$K16=6,DATA_ENTRY!$L16="y",DATA_ENTRY!G16<>""),rel_cor_Brannick!G20,"") -> 
B21: =IF(DATA_ENTRY!H17<>"",DATA_ENTRY!H17,DATA_ENTRY!$Q$9) -> 1 | C21: =IF(DATA_ENTRY!I17<>"",DATA_ENTRY!I17,DATA_ENTRY!$Q$10) -> 1 | D21: =IF(DATA_ENTRY!J17<>"",DATA_ENTRY!J17,DATA_ENTRY!$Q$11) -> 1 | E21: 1 | F21: 1 | G21: 1 | J21: Var(rho) | K21: =K19-K20 -> 0.05705651734 | M21: 0.04647260163 | O21: 0.003065597766 | Z21: =IF(AND(DATA_ENTRY!$L17="y",DATA_ENTRY!F17<>""),DATA_ENTRY!F17,"") -> 430 | AA21: =IF(AND(DATA_ENTRY!$L17="y",DATA_ENTRY!G17<>""),DATA_ENTRY!G17,"") -> 0.2 | AB21: 0.2027325541 | AC21: 1 | AD21: 1 | AE21: 1 | AF21: 1 | AG21: 0.2 | AH21: 0.001832960137 | AI21: 0.001832960137 | AJ21: 430 | AK21: 86 | AL21: 8.013553641 | AM21: 0.788172859 | AN21: 86 | AO21: 87.17499824 | AP21: 1 | AQ21: 1 | AR21: 1 | AS21: 0.2 | AT21: 0.2 | AU21: 1 | AV21: 430 | AW21: 86 | AX21: 8.013553641 | AY21: 0.002284615385 | AZ21: 0.002284615385 | BA21: 1 | BB21: 0.002284615385 | BC21: 0.9823846154 | BD21: 0.2 | BE21: 0.2 | BF21: 0.2 | BG21: 1 | BH21: 430 | BI21: 86 | BJ21: 8.013553641 | BK21: 0.002284615385 | BL21: 1 | BM21: 0.002284615385 | BN21: 0.9823846154 | BP21: =IF(AND(DATA_ENTRY!$K17=1,DATA_ENTRY!$L17="y",DATA_ENTRY!F17<>""),DATA_ENTRY!F17,"") ->  | BQ21: =IF(AND(DATA_ENTRY!$K17=1,DATA_ENTRY!$L17="y",DATA_ENTRY!G17<>""),DATA_ENTRY!G17,"") ->  | BS21: =IF(AND(DATA_ENTRY!$K17=1,DATA_ENTRY!$L17="y",DATA_ENTRY!G17<>""),rel_cor_Brannick!E21,"") ->  | BT21: =IF(AND(DATA_ENTRY!$K17=1,DATA_ENTRY!$L17="y",DATA_ENTRY!G17<>""),rel_cor_Brannick!F21,"") ->  | BU21: =IF(AND(DATA_ENTRY!$K17=1,DATA_ENTRY!$L17="y",DATA_ENTRY!G17<>""),rel_cor_Brannick!G21,"") ->  | DF21: =IF(AND(DATA_ENTRY!$K17=2,DATA_ENTRY!$L17="y",DATA_ENTRY!F17<>""),DATA_ENTRY!F17,"") -> 430 | DG21: =IF(AND(DATA_ENTRY!$K17=2,DATA_ENTRY!$L17="y",DATA_ENTRY!G17<>""),DATA_ENTRY!G17,"") -> 0.2 | DH21: 0.2027325541 | DI21: =IF(AND(DATA_ENTRY!$K17=2,DATA_ENTRY!$L17="y",DATA_ENTRY!G17<>""),rel_cor_Brannick!E21,"") -> 1 | DJ21: =IF(AND(DATA_ENTRY!$K17=2,DATA_ENTRY!$L17="y",DATA_ENTRY!G17<>""),rel_cor_Brannick!F21,"") -> 1 | DK21: =IF(AND(DATA_ENTRY!$K17=2,DATA_ENTRY!$L17="y",DATA_ENTRY!G17<>""),rel_cor_Brannick!G21,"") -> 1 | DL21: 1 | DM21: 0.2 | DN21: 0.002218046317 | DO21: 0.002218046317 | DP21: 430 | DQ21: 86 | DR21: 0.8091726761 | DS21: 0.9537599162 | DT21: 86 | DU21: 87.17499824 | DV21: 1 | DW21: 1 | DX21: 1 | DY21: 0.2 | DZ21: 0.2 | EA21: 1 | EB21: 430 | EC21: 86 | ED21: 0.8091726761 | EE21: 0.002284615385 | EF21: 0.002284615385 | EG21: 1 | EH21: 0.002284615385 | EI21: 0.9823846154 | EJ21: 0.2 | EK21: 0.2 | EL21: 0.2 | EM21: 1 | EN21: 430 | EO21: 86 | EP21: 0.8091726761 | EQ21: 0.002284615385 | ER21: 1 | ES21: 0.002284615385 | ET21: 0.9823846154 | EV21: =IF(AND(DATA_ENTRY!$K17=3,DATA_ENTRY!$L17="y",DATA_ENTRY!F17<>""),DATA_ENTRY!F17,"") ->  | EW21: =IF(AND(DATA_ENTRY!$K17=3,DATA_ENTRY!$L17="y",DATA_ENTRY!G17<>""),DATA_ENTRY!G17,"") ->  | EY21: =IF(AND(DATA_ENTRY!$K17=3,DATA_ENTRY!$L17="y",DATA_ENTRY!G17<>""),rel_cor_Brannick!E21,"") ->  | EZ21: =IF(AND(DATA_ENTRY!$K17=3,DATA_ENTRY!$L17="y",DATA_ENTRY!G17<>""),rel_cor_Brannick!F21,"") ->  | FA21: =IF(AND(DATA_ENTRY!$K17=3,DATA_ENTRY!$L17="y",DATA_ENTRY!G17<>""),rel_cor_Brannick!G21,"") ->  | GL21: =IF(AND(DATA_ENTRY!$K17=4,DATA_ENTRY!$L17="y",DATA_ENTRY!F17<>""),DATA_ENTRY!F17,"") ->  | GM21: =IF(AND(DATA_ENTRY!$K17=4,DATA_ENTRY!$L17="y",DATA_ENTRY!G17<>""),DATA_ENTRY!G17,"") ->  | GO21: =IF(AND(DATA_ENTRY!$K17=4,DATA_ENTRY!$L17="y",DATA_ENTRY!G17<>""),rel_cor_Brannick!E21,"") ->  | GP21: =IF(AND(DATA_ENTRY!$K17=4,DATA_ENTRY!$L17="y",DATA_ENTRY!G17<>""),rel_cor_Brannick!F21,"") ->  | GQ21: =IF(AND(DATA_ENTRY!$K17=4,DATA_ENTRY!$L17="y",DATA_ENTRY!G17<>""),rel_cor_Brannick!G21,"") ->  | IB21: =IF(AND(DATA_ENTRY!$K17=5,DATA_ENTRY!$L17="y",DATA_ENTRY!F17<>""),DATA_ENTRY!F17,"") ->  | IC21: =IF(AND(DATA_ENTRY!$K17=5,DATA_ENTRY!$L17="y",DATA_ENTRY!G17<>""),DATA_ENTRY!G17,"") ->  | IE21: =IF(AND(DATA_ENTRY!$K17=5,DATA_ENTRY!$L17="y",DATA_ENTRY!G17<>""),rel_cor_Brannick!E21,"") ->  | IF21: =IF(AND(DATA_ENTRY!$K17=5,DATA_ENTRY!$L17="y",DATA_ENTRY!G17<>""),rel_cor_Brannick!F21,"") ->  | IG21: =IF(AND(DATA_ENTRY!$K17=5,DATA_ENTRY!$L17="y",DATA_ENTRY!G17<>""),rel_cor_Brannick!G21,"") ->  | JR21: =IF(AND(DATA_ENTRY!$K17=6,DATA_ENTRY!$L17="y",DATA_ENTRY!F17<>""),DATA_ENTRY!F17,"") ->  | JS21: =IF(AND(DATA_ENTRY!$K17=6,DATA_ENTRY!$L17="y",DATA_ENTRY!G17<>""),DATA_ENTRY!G17,"") ->  | JU21: =IF(AND(DATA_ENTRY!$K17=6,DATA_ENTRY!$L17="y",DATA_ENTRY!G17<>""),rel_cor_Brannick!E21,"") ->  | JV21: =IF(AND(DATA_ENTRY!$K17=6,DATA_ENTRY!$L17="y",DATA_ENTRY!G17<>""),rel_cor_Brannick!F21,"") ->  | JW21: =IF(AND(DATA_ENTRY!$K17=6,DATA_ENTRY!$L17="y",DATA_ENTRY!G17<>""),rel_cor_Brannick!G21,"") -> 
B22: =IF(DATA_ENTRY!H18<>"",DATA_ENTRY!H18,DATA_ENTRY!$Q$9) -> 1 | C22: =IF(DATA_ENTRY!I18<>"",DATA_ENTRY!I18,DATA_ENTRY!$Q$10) -> 1 | D22: =IF(DATA_ENTRY!J18<>"",DATA_ENTRY!J18,DATA_ENTRY!$Q$11) -> 1 | E22: 1 | F22: 1 | G22: 1 | J22: SD(rho) | K22: =IF(K21<0,0,SQRT(K21)) -> 0.2388650609 | M22: 0.2155750487 | O22: 0.05536784054 | Z22: =IF(AND(DATA_ENTRY!$L18="y",DATA_ENTRY!F18<>""),DATA_ENTRY!F18,"") -> 476 | AA22: =IF(AND(DATA_ENTRY!$L18="y",DATA_ENTRY!G18<>""),DATA_ENTRY!G18,"") -> 0.06 | AB22: 0.06007215592 | AC22: 1 | AD22: 1 | AE22: 1 | AF22: 1 | AG22: 0.06 | AH22: 0.001655452419 | AI22: 0.001655452419 | AJ22: 476 | AK22: 28.56 | AL22: 36.3950518 | AM22: 0.7879953513 | AN22: 28.56 | AO22: 28.59434622 | AP22: 1 | AQ22: 1 | AR22: 1 | AS22: 0.06 | AT22: 0.06 | AU22: 1 | AV22: 476 | AW22: 28.56 | AX22: 36.3950518 | AY22: 0.002063368421 | AZ22: 0.002063368421 | BA22: 1 | BB22: 0.002063368421 | BC22: 0.9821633684 | BD22: 0.06 | BE22: 0.06 | BF22: 0.06 | BG22: 1 | BH22: 476 | BI22: 28.56 | BJ22: 36.3950518 | BK22: 0.002063368421 | BL22: 1 | BM22: 0.002063368421 | BN22: 0.9821633684 | BP22: =IF(AND(DATA_ENTRY!$K18=1,DATA_ENTRY!$L18="y",DATA_ENTRY!F18<>""),DATA_ENTRY!F18,"") ->  | BQ22: =IF(AND(DATA_ENTRY!$K18=1,DATA_ENTRY!$L18="y",DATA_ENTRY!G18<>""),DATA_ENTRY!G18,"") ->  | BS22: =IF(AND(DATA_ENTRY!$K18=1,DATA_ENTRY!$L18="y",DATA_ENTRY!G18<>""),rel_cor_Brannick!E22,"") ->  | BT22: =IF(AND(DATA_ENTRY!$K18=1,DATA_ENTRY!$L18="y",DATA_ENTRY!G18<>""),rel_cor_Brannick!F22,"") ->  | BU22: =IF(AND(DATA_ENTRY!$K18=1,DATA_ENTRY!$L18="y",DATA_ENTRY!G18<>""),rel_cor_Brannick!G22,"") ->  | DF22: =IF(AND(DATA_ENTRY!$K18=2,DATA_ENTRY!$L18="y",DATA_ENTRY!F18<>""),DATA_ENTRY!F18,"") -> 476 | DG22: =IF(AND(DATA_ENTRY!$K18=2,DATA_ENTRY!$L18="y",DATA_ENTRY!G18<>""),DATA_ENTRY!G18,"") -> 0.06 | DH22: 0.06007215592 | DI22: =IF(AND(DATA_ENTRY!$K18=2,DATA_ENTRY!$L18="y",DATA_ENTRY!G18<>""),rel_cor_Brannick!E22,"") -> 1 | DJ22: =IF(AND(DATA_ENTRY!$K18=2,DATA_ENTRY!$L18="y",DATA_ENTRY!G18<>""),rel_cor_Brannick!F22,"") -> 1 | DK22: =IF(AND(DATA_ENTRY!$K18=2,DATA_ENTRY!$L18="y",DATA_ENTRY!G18<>""),rel_cor_Brannick!G22,"") -> 1 | DL22: 1 | DM22: 0.06 | DN22: 0.002003246042 | DO22: 0.002003246042 | DP22: 476 | DQ22: 28.56 | DR22: 4.443691147 | DS22: 0.953545116 | DT22: 28.56 | DU22: 28.59434622 | DV22: 1 | DW22: 1 | DX22: 1 | DY22: 0.06 | DZ22: 0.06 | EA22: 1 | EB22: 476 | EC22: 28.56 | ED22: 4.443691147 | EE22: 0.002063368421 | EF22: 0.002063368421 | EG22: 1 | EH22: 0.002063368421 | EI22: 0.9821633684 | EJ22: 0.06 | EK22: 0.06 | EL22: 0.06 | EM22: 1 | EN22: 476 | EO22: 28.56 | EP22: 4.443691147 | EQ22: 0.002063368421 | ER22: 1 | ES22: 0.002063368421 | ET22: 0.9821633684 | EV22: =IF(AND(DATA_ENTRY!$K18=3,DATA_ENTRY!$L18="y",DATA_ENTRY!F18<>""),DATA_ENTRY!F18,"") ->  | EW22: =IF(AND(DATA_ENTRY!$K18=3,DATA_ENTRY!$L18="y",DATA_ENTRY!G18<>""),DATA_ENTRY!G18,"") ->  | EY22: =IF(AND(DATA_ENTRY!$K18=3,DATA_ENTRY!$L18="y",DATA_ENTRY!G18<>""),rel_cor_Brannick!E22,"") ->  | EZ22: =IF(AND(DATA_ENTRY!$K18=3,DATA_ENTRY!$L18="y",DATA_ENTRY!G18<>""),rel_cor_Brannick!F22,"") ->  | FA22: =IF(AND(DATA_ENTRY!$K18=3,DATA_ENTRY!$L18="y",DATA_ENTRY!G18<>""),rel_cor_Brannick!G22,"") ->  | GL22: =IF(AND(DATA_ENTRY!$K18=4,DATA_ENTRY!$L18="y",DATA_ENTRY!F18<>""),DATA_ENTRY!F18,"") ->  | GM22: =IF(AND(DATA_ENTRY!$K18=4,DATA_ENTRY!$L18="y",DATA_ENTRY!G18<>""),DATA_ENTRY!G18,"") ->  | GO22: =IF(AND(DATA_ENTRY!$K18=4,DATA_ENTRY!$L18="y",DATA_ENTRY!G18<>""),rel_cor_Brannick!E22,"") ->  | GP22: =IF(AND(DATA_ENTRY!$K18=4,DATA_ENTRY!$L18="y",DATA_ENTRY!G18<>""),rel_cor_Brannick!F22,"") ->  | GQ22: =IF(AND(DATA_ENTRY!$K18=4,DATA_ENTRY!$L18="y",DATA_ENTRY!G18<>""),rel_cor_Brannick!G22,"") ->  | IB22: =IF(AND(DATA_ENTRY!$K18=5,DATA_ENTRY!$L18="y",DATA_ENTRY!F18<>""),DATA_ENTRY!F18,"") ->  | IC22: =IF(AND(DATA_ENTRY!$K18=5,DATA_ENTRY!$L18="y",DATA_ENTRY!G18<>""),DATA_ENTRY!G18,"") ->  | IE22: =IF(AND(DATA_ENTRY!$K18=5,DATA_ENTRY!$L18="y",DATA_ENTRY!G18<>""),rel_cor_Brannick!E22,"") ->  | IF22: =IF(AND(DATA_ENTRY!$K18=5,DATA_ENTRY!$L18="y",DATA_ENTRY!G18<>""),rel_cor_Brannick!F22,"") ->  | IG22: =IF(AND(DATA_ENTRY!$K18=5,DATA_ENTRY!$L18="y",DATA_ENTRY!G18<>""),rel_cor_Brannick!G22,"") ->  | JR22: =IF(AND(DATA_ENTRY!$K18=6,DATA_ENTRY!$L18="y",DATA_ENTRY!F18<>""),DATA_ENTRY!F18,"") ->  | JS22: =IF(AND(DATA_ENTRY!$K18=6,DATA_ENTRY!$L18="y",DATA_ENTRY!G18<>""),DATA_ENTRY!G18,"") ->  | JU22: =IF(AND(DATA_ENTRY!$K18=6,DATA_ENTRY!$L18="y",DATA_ENTRY!G18<>""),rel_cor_Brannick!E22,"") ->  | JV22: =IF(AND(DATA_ENTRY!$K18=6,DATA_ENTRY!$L18="y",DATA_ENTRY!G18<>""),rel_cor_Brannick!F22,"") ->  | JW22: =IF(AND(DATA_ENTRY!$K18=6,DATA_ENTRY!$L18="y",DATA_ENTRY!G18<>""),rel_cor_Brannick!G22,"") -> 
B23: =IF(DATA_ENTRY!H19<>"",DATA_ENTRY!H19,DATA_ENTRY!$Q$9) -> 1 | C23: =IF(DATA_ENTRY!I19<>"",DATA_ENTRY!I19,DATA_ENTRY!$Q$10) -> 1 | D23: =IF(DATA_ENTRY!J19<>"",DATA_ENTRY!J19,DATA_ENTRY!$Q$11) -> 1 | E23: 1 | F23: 1 | G23: 1 | J23: CRED | K23: =K18+(K22*$E$6) -> 0.6426322556 | M23: 0.7920557606 | O23: 0.2275770594 | Z23: =IF(AND(DATA_ENTRY!$L19="y",DATA_ENTRY!F19<>""),DATA_ENTRY!F19,"") -> 492 | AA23: =IF(AND(DATA_ENTRY!$L19="y",DATA_ENTRY!G19<>""),DATA_ENTRY!G19,"") -> 0.19 | AB23: 0.1923371692 | AC23: 1 | AD23: 1 | AE23: 1 | AF23: 1 | AG23: 0.19 | AH23: 0.001601506922 | AI23: 0.001601506922 | AJ23: 492 | AK23: 93.48 | AL23: 10.56149759 | AM23: 0.7879414058 | AN23: 93.48 | AO23: 94.62988726 | AP23: 1 | AQ23: 1 | AR23: 1 | AS23: 0.19 | AT23: 0.19 | AU23: 1 | AV23: 492 | AW23: 93.48 | AX23: 10.56149759 | AY23: 0.001996130346 | AZ23: 0.001996130346 | BA23: 1 | BB23: 0.001996130346 | BC23: 0.9820961303 | BD23: 0.19 | BE23: 0.19 | BF23: 0.19 | BG23: 1 | BH23: 492 | BI23: 93.48 | BJ23: 10.56149759 | BK23: 0.001996130346 | BL23: 1 | BM23: 0.001996130346 | BN23: 0.9820961303 | BP23: =IF(AND(DATA_ENTRY!$K19=1,DATA_ENTRY!$L19="y",DATA_ENTRY!F19<>""),DATA_ENTRY!F19,"") ->  | BQ23: =IF(AND(DATA_ENTRY!$K19=1,DATA_ENTRY!$L19="y",DATA_ENTRY!G19<>""),DATA_ENTRY!G19,"") ->  | BS23: =IF(AND(DATA_ENTRY!$K19=1,DATA_ENTRY!$L19="y",DATA_ENTRY!G19<>""),rel_cor_Brannick!E23,"") ->  | BT23: =IF(AND(DATA_ENTRY!$K19=1,DATA_ENTRY!$L19="y",DATA_ENTRY!G19<>""),rel_cor_Brannick!F23,"") ->  | BU23: =IF(AND(DATA_ENTRY!$K19=1,DATA_ENTRY!$L19="y",DATA_ENTRY!G19<>""),rel_cor_Brannick!G23,"") ->  | DF23: =IF(AND(DATA_ENTRY!$K19=2,DATA_ENTRY!$L19="y",DATA_ENTRY!F19<>""),DATA_ENTRY!F19,"") -> 492 | DG23: =IF(AND(DATA_ENTRY!$K19=2,DATA_ENTRY!$L19="y",DATA_ENTRY!G19<>""),DATA_ENTRY!G19,"") -> 0.19 | DH23: 0.1923371692 | DI23: =IF(AND(DATA_ENTRY!$K19=2,DATA_ENTRY!$L19="y",DATA_ENTRY!G19<>""),rel_cor_Brannick!E23,"") -> 1 | DJ23: =IF(AND(DATA_ENTRY!$K19=2,DATA_ENTRY!$L19="y",DATA_ENTRY!G19<>""),rel_cor_Brannick!F23,"") -> 1 | DK23: =IF(AND(DATA_ENTRY!$K19=2,DATA_ENTRY!$L19="y",DATA_ENTRY!G19<>""),rel_cor_Brannick!G23,"") -> 1 | DL23: 1 | DM23: 0.19 | DN23: 0.001937967149 | DO23: 0.001937967149 | DP23: 492 | DQ23: 93.48 | DR23: 0.5481880017 | DS23: 0.9534798371 | DT23: 93.48 | DU23: 94.62988726 | DV23: 1 | DW23: 1 | DX23: 1 | DY23: 0.19 | DZ23: 0.19 | EA23: 1 | EB23: 492 | EC23: 93.48 | ED23: 0.5481880017 | EE23: 0.001996130346 | EF23: 0.001996130346 | EG23: 1 | EH23: 0.001996130346 | EI23: 0.9820961303 | EJ23: 0.19 | EK23: 0.19 | EL23: 0.19 | EM23: 1 | EN23: 492 | EO23: 93.48 | EP23: 0.5481880017 | EQ23: 0.001996130346 | ER23: 1 | ES23: 0.001996130346 | ET23: 0.9820961303 | EV23: =IF(AND(DATA_ENTRY!$K19=3,DATA_ENTRY!$L19="y",DATA_ENTRY!F19<>""),DATA_ENTRY!F19,"") ->  | EW23: =IF(AND(DATA_ENTRY!$K19=3,DATA_ENTRY!$L19="y",DATA_ENTRY!G19<>""),DATA_ENTRY!G19,"") ->  | EY23: =IF(AND(DATA_ENTRY!$K19=3,DATA_ENTRY!$L19="y",DATA_ENTRY!G19<>""),rel_cor_Brannick!E23,"") ->  | EZ23: =IF(AND(DATA_ENTRY!$K19=3,DATA_ENTRY!$L19="y",DATA_ENTRY!G19<>""),rel_cor_Brannick!F23,"") ->  | FA23: =IF(AND(DATA_ENTRY!$K19=3,DATA_ENTRY!$L19="y",DATA_ENTRY!G19<>""),rel_cor_Brannick!G23,"") ->  | GL23: =IF(AND(DATA_ENTRY!$K19=4,DATA_ENTRY!$L19="y",DATA_ENTRY!F19<>""),DATA_ENTRY!F19,"") ->  | GM23: =IF(AND(DATA_ENTRY!$K19=4,DATA_ENTRY!$L19="y",DATA_ENTRY!G19<>""),DATA_ENTRY!G19,"") ->  | GO23: =IF(AND(DATA_ENTRY!$K19=4,DATA_ENTRY!$L19="y",DATA_ENTRY!G19<>""),rel_cor_Brannick!E23,"") ->  | GP23: =IF(AND(DATA_ENTRY!$K19=4,DATA_ENTRY!$L19="y",DATA_ENTRY!G19<>""),rel_cor_Brannick!F23,"") ->  | GQ23: =IF(AND(DATA_ENTRY!$K19=4,DATA_ENTRY!$L19="y",DATA_ENTRY!G19<>""),rel_cor_Brannick!G23,"") ->  | IB23: =IF(AND(DATA_ENTRY!$K19=5,DATA_ENTRY!$L19="y",DATA_ENTRY!F19<>""),DATA_ENTRY!F19,"") ->  | IC23: =IF(AND(DATA_ENTRY!$K19=5,DATA_ENTRY!$L19="y",DATA_ENTRY!G19<>""),DATA_ENTRY!G19,"") ->  | IE23: =IF(AND(DATA_ENTRY!$K19=5,DATA_ENTRY!$L19="y",DATA_ENTRY!G19<>""),rel_cor_Brannick!E23,"") ->  | IF23: =IF(AND(DATA_ENTRY!$K19=5,DATA_ENTRY!$L19="y",DATA_ENTRY!G19<>""),rel_cor_Brannick!F23,"") ->  | IG23: =IF(AND(DATA_ENTRY!$K19=5,DATA_ENTRY!$L19="y",DATA_ENTRY!G19<>""),rel_cor_Brannick!G23,"") ->  | JR23: =IF(AND(DATA_ENTRY!$K19=6,DATA_ENTRY!$L19="y",DATA_ENTRY!F19<>""),DATA_ENTRY!F19,"") ->  | JS23: =IF(AND(DATA_ENTRY!$K19=6,DATA_ENTRY!$L19="y",DATA_ENTRY!G19<>""),DATA_ENTRY!G19,"") ->  | JU23: =IF(AND(DATA_ENTRY!$K19=6,DATA_ENTRY!$L19="y",DATA_ENTRY!G19<>""),rel_cor_Brannick!E23,"") ->  | JV23: =IF(AND(DATA_ENTRY!$K19=6,DATA_ENTRY!$L19="y",DATA_ENTRY!G19<>""),rel_cor_Brannick!F23,"") ->  | JW23: =IF(AND(DATA_ENTRY!$K19=6,DATA_ENTRY!$L19="y",DATA_ENTRY!G19<>""),rel_cor_Brannick!G23,"") -> 
B24: =IF(DATA_ENTRY!H20<>"",DATA_ENTRY!H20,DATA_ENTRY!$Q$9) -> 1 | C24: =IF(DATA_ENTRY!I20<>"",DATA_ENTRY!I20,DATA_ENTRY!$Q$10) -> 1 | D24: =IF(DATA_ENTRY!J20<>"",DATA_ENTRY!J20,DATA_ENTRY!$Q$11) -> 1 | E24: 1 | F24: 1 | G24: 1 | J24: CRED | K24: =K18-(K22*$E$6) -> 0.03039647004 | M24: 0.2395146782 | O24: 0.085663574 | Z24: =IF(AND(DATA_ENTRY!$L20="y",DATA_ENTRY!F20<>""),DATA_ENTRY!F20,"") -> 81 | AA24: =IF(AND(DATA_ENTRY!$L20="y",DATA_ENTRY!G20<>""),DATA_ENTRY!G20,"") -> -0.17 | AB24: -0.1716666635 | AC24: 1 | AD24: 1 | AE24: 1 | AF24: 1 | AG24: -0.17 | AH24: 0.009829248736 | AI24: 0.009829248736 | AJ24: 81 | AK24: -13.77 | AL24: 20.78110078 | AM24: 0.7961691476 | AN24: -13.77 | AO24: -13.90499974 | AP24: 1 | AQ24: 1 | AR24: 1 | AS24: -0.17 | AT24: -0.17 | AU24: 1 | AV24: 81 | AW24: -13.77 | AX24: 20.78110078 | AY24: 0.01225125 | AZ24: 0.01225125 | BA24: 1 | BB24: 0.01225125 | BC24: 0.99235125 | BD24: -0.17 | BE24: -0.17 | BF24: -0.17 | BG24: 1 | BH24: 81 | BI24: -13.77 | BJ24: 20.78110078 | BK24: 0.01225125 | BL24: 1 | BM24: 0.01225125 | BN24: 0.99235125 | BP24: =IF(AND(DATA_ENTRY!$K20=1,DATA_ENTRY!$L20="y",DATA_ENTRY!F20<>""),DATA_ENTRY!F20,"") ->  | BQ24: =IF(AND(DATA_ENTRY!$K20=1,DATA_ENTRY!$L20="y",DATA_ENTRY!G20<>""),DATA_ENTRY!G20,"") ->  | BS24: =IF(AND(DATA_ENTRY!$K20=1,DATA_ENTRY!$L20="y",DATA_ENTRY!G20<>""),rel_cor_Brannick!E24,"") ->  | BT24: =IF(AND(DATA_ENTRY!$K20=1,DATA_ENTRY!$L20="y",DATA_ENTRY!G20<>""),rel_cor_Brannick!F24,"") ->  | BU24: =IF(AND(DATA_ENTRY!$K20=1,DATA_ENTRY!$L20="y",DATA_ENTRY!G20<>""),rel_cor_Brannick!G24,"") ->  | DF24: =IF(AND(DATA_ENTRY!$K20=2,DATA_ENTRY!$L20="y",DATA_ENTRY!F20<>""),DATA_ENTRY!F20,"") -> 81 | DG24: =IF(AND(DATA_ENTRY!$K20=2,DATA_ENTRY!$L20="y",DATA_ENTRY!G20<>""),DATA_ENTRY!G20,"") -> -0.17 | DH24: -0.1716666635 | DI24: =IF(AND(DATA_ENTRY!$K20=2,DATA_ENTRY!$L20="y",DATA_ENTRY!G20<>""),rel_cor_Brannick!E24,"") -> 1 | DJ24: =IF(AND(DATA_ENTRY!$K20=2,DATA_ENTRY!$L20="y",DATA_ENTRY!G20<>""),rel_cor_Brannick!F24,"") -> 1 | DK24: =IF(AND(DATA_ENTRY!$K20=2,DATA_ENTRY!$L20="y",DATA_ENTRY!G20<>""),rel_cor_Brannick!G24,"") -> 1 | DL24: 1 | DM24: -0.17 | DN24: 0.01189427337 | DO24: 0.01189427337 | DP24: 81 | DQ24: -13.77 | DR24: 8.641147335 | DS24: 0.9634361433 | DT24: -13.77 | DU24: -13.90499974 | DV24: 1 | DW24: 1 | DX24: 1 | DY24: -0.17 | DZ24: -0.17 | EA24: 1 | EB24: 81 | EC24: -13.77 | ED24: 8.641147335 | EE24: 0.01225125 | EF24: 0.01225125 | EG24: 1 | EH24: 0.01225125 | EI24: 0.99235125 | EJ24: -0.17 | EK24: -0.17 | EL24: -0.17 | EM24: 1 | EN24: 81 | EO24: -13.77 | EP24: 8.641147335 | EQ24: 0.01225125 | ER24: 1 | ES24: 0.01225125 | ET24: 0.99235125 | EV24: =IF(AND(DATA_ENTRY!$K20=3,DATA_ENTRY!$L20="y",DATA_ENTRY!F20<>""),DATA_ENTRY!F20,"") ->  | EW24: =IF(AND(DATA_ENTRY!$K20=3,DATA_ENTRY!$L20="y",DATA_ENTRY!G20<>""),DATA_ENTRY!G20,"") ->  | EY24: =IF(AND(DATA_ENTRY!$K20=3,DATA_ENTRY!$L20="y",DATA_ENTRY!G20<>""),rel_cor_Brannick!E24,"") ->  | EZ24: =IF(AND(DATA_ENTRY!$K20=3,DATA_ENTRY!$L20="y",DATA_ENTRY!G20<>""),rel_cor_Brannick!F24,"") ->  | FA24: =IF(AND(DATA_ENTRY!$K20=3,DATA_ENTRY!$L20="y",DATA_ENTRY!G20<>""),rel_cor_Brannick!G24,"") ->  | GL24: =IF(AND(DATA_ENTRY!$K20=4,DATA_ENTRY!$L20="y",DATA_ENTRY!F20<>""),DATA_ENTRY!F20,"") ->  | GM24: =IF(AND(DATA_ENTRY!$K20=4,DATA_ENTRY!$L20="y",DATA_ENTRY!G20<>""),DATA_ENTRY!G20,"") ->  | GO24: =IF(AND(DATA_ENTRY!$K20=4,DATA_ENTRY!$L20="y",DATA_ENTRY!G20<>""),rel_cor_Brannick!E24,"") ->  | GP24: =IF(AND(DATA_ENTRY!$K20=4,DATA_ENTRY!$L20="y",DATA_ENTRY!G20<>""),rel_cor_Brannick!F24,"") ->  | GQ24: =IF(AND(DATA_ENTRY!$K20=4,DATA_ENTRY!$L20="y",DATA_ENTRY!G20<>""),rel_cor_Brannick!G24,"") ->  | IB24: =IF(AND(DATA_ENTRY!$K20=5,DATA_ENTRY!$L20="y",DATA_ENTRY!F20<>""),DATA_ENTRY!F20,"") ->  | IC24: =IF(AND(DATA_ENTRY!$K20=5,DATA_ENTRY!$L20="y",DATA_ENTRY!G20<>""),DATA_ENTRY!G20,"") ->  | IE24: =IF(AND(DATA_ENTRY!$K20=5,DATA_ENTRY!$L20="y",DATA_ENTRY!G20<>""),rel_cor_Brannick!E24,"") ->  | IF24: =IF(AND(DATA_ENTRY!$K20=5,DATA_ENTRY!$L20="y",DATA_ENTRY!G20<>""),rel_cor_Brannick!F24,"") ->  | IG24: =IF(AND(DATA_ENTRY!$K20=5,DATA_ENTRY!$L20="y",DATA_ENTRY!G20<>""),rel_cor_Brannick!G24,"") ->  | JR24: =IF(AND(DATA_ENTRY!$K20=6,DATA_ENTRY!$L20="y",DATA_ENTRY!F20<>""),DATA_ENTRY!F20,"") ->  | JS24: =IF(AND(DATA_ENTRY!$K20=6,DATA_ENTRY!$L20="y",DATA_ENTRY!G20<>""),DATA_ENTRY!G20,"") ->  | JU24: =IF(AND(DATA_ENTRY!$K20=6,DATA_ENTRY!$L20="y",DATA_ENTRY!G20<>""),rel_cor_Brannick!E24,"") ->  | JV24: =IF(AND(DATA_ENTRY!$K20=6,DATA_ENTRY!$L20="y",DATA_ENTRY!G20<>""),rel_cor_Brannick!F24,"") ->  | JW24: =IF(AND(DATA_ENTRY!$K20=6,DATA_ENTRY!$L20="y",DATA_ENTRY!G20<>""),rel_cor_Brannick!G24,"") -> 
B25: =IF(DATA_ENTRY!H21<>"",DATA_ENTRY!H21,DATA_ENTRY!$Q$9) -> 1 | C25: =IF(DATA_ENTRY!I21<>"",DATA_ENTRY!I21,DATA_ENTRY!$Q$10) -> 1 | D25: =IF(DATA_ENTRY!J21<>"",DATA_ENTRY!J21,DATA_ENTRY!$Q$11) -> 1 | E25: 1 | F25: 1 | G25: 1 | I25: Direct RR | J25: rbar c | K25: =BI6/BH6 -> 0.3365143628 | M25: =CY6/CX6 -> 0.5157852194 | O25: =EO6/EN6 -> 0.1566203167 | Q25: =GE6/GD6 ->  | S25: =HU6/HT6 ->  | U25: =JK6/JJ6 ->  | W25: =LA6/KZ6 ->  | Z25: =IF(AND(DATA_ENTRY!$L21="y",DATA_ENTRY!F21<>""),DATA_ENTRY!F21,"") -> 390 | AA25: =IF(AND(DATA_ENTRY!$L21="y",DATA_ENTRY!G21<>""),DATA_ENTRY!G21,"") -> 0.15 | AB25: 0.1511404359 | AC25: 1 | AD25: 1 | AE25: 1 | AF25: 1 | AG25: 0.15 | AH25: 0.002021439329 | AI25: 0.002021439329 | AJ25: 390 | AK25: 58.5 | AL25: 13.56716694 | AM25: 0.7883613382 | AN25: 58.5 | AO25: 58.94477002 | AP25: 1 | AQ25: 1 | AR25: 1 | AS25: 0.15 | AT25: 0.15 | AU25: 1 | AV25: 390 | AW25: 58.5 | AX25: 13.56716694 | AY25: 0.002519537275 | AZ25: 0.002519537275 | BA25: 1 | BB25: 0.002519537275 | BC25: 0.9826195373 | BD25: 0.15 | BE25: 0.15 | BF25: 0.15 | BG25: 1 | BH25: 390 | BI25: 58.5 | BJ25: 13.56716694 | BK25: 0.002519537275 | BL25: 1 | BM25: 0.002519537275 | BN25: 0.9826195373 | BP25: =IF(AND(DATA_ENTRY!$K21=1,DATA_ENTRY!$L21="y",DATA_ENTRY!F21<>""),DATA_ENTRY!F21,"") ->  | BQ25: =IF(AND(DATA_ENTRY!$K21=1,DATA_ENTRY!$L21="y",DATA_ENTRY!G21<>""),DATA_ENTRY!G21,"") ->  | BS25: =IF(AND(DATA_ENTRY!$K21=1,DATA_ENTRY!$L21="y",DATA_ENTRY!G21<>""),rel_cor_Brannick!E25,"") ->  | BT25: =IF(AND(DATA_ENTRY!$K21=1,DATA_ENTRY!$L21="y",DATA_ENTRY!G21<>""),rel_cor_Brannick!F25,"") ->  | BU25: =IF(AND(DATA_ENTRY!$K21=1,DATA_ENTRY!$L21="y",DATA_ENTRY!G21<>""),rel_cor_Brannick!G25,"") ->  | DF25: =IF(AND(DATA_ENTRY!$K21=2,DATA_ENTRY!$L21="y",DATA_ENTRY!F21<>""),DATA_ENTRY!F21,"") -> 390 | DG25: =IF(AND(DATA_ENTRY!$K21=2,DATA_ENTRY!$L21="y",DATA_ENTRY!G21<>""),DATA_ENTRY!G21,"") -> 0.15 | DH25: 0.1511404359 | DI25: =IF(AND(DATA_ENTRY!$K21=2,DATA_ENTRY!$L21="y",DATA_ENTRY!G21<>""),rel_cor_Brannick!E25,"") -> 1 | DJ25: =IF(AND(DATA_ENTRY!$K21=2,DATA_ENTRY!$L21="y",DATA_ENTRY!G21<>""),rel_cor_Brannick!F25,"") -> 1 | DK25: =IF(AND(DATA_ENTRY!$K21=2,DATA_ENTRY!$L21="y",DATA_ENTRY!G21<>""),rel_cor_Brannick!G25,"") -> 1 | DL25: 1 | DM25: 0.15 | DN25: 0.002446123059 | DO25: 0.002446123059 | DP25: 390 | DQ25: 58.5 | DR25: 0.01709315148 | DS25: 0.953987993 | DT25: 58.5 | DU25: 58.94477002 | DV25: 1 | DW25: 1 | DX25: 1 | DY25: 0.15 | DZ25: 0.15 | EA25: 1 | EB25: 390 | EC25: 58.5 | ED25: 0.01709315148 | EE25: 0.002519537275 | EF25: 0.002519537275 | EG25: 1 | EH25: 0.002519537275 | EI25: 0.9826195373 | EJ25: 0.15 | EK25: 0.15 | EL25: 0.15 | EM25: 1 | EN25: 390 | EO25: 58.5 | EP25: 0.01709315148 | EQ25: 0.002519537275 | ER25: 1 | ES25: 0.002519537275 | ET25: 0.9826195373 | EV25: =IF(AND(DATA_ENTRY!$K21=3,DATA_ENTRY!$L21="y",DATA_ENTRY!F21<>""),DATA_ENTRY!F21,"") ->  | EW25: =IF(AND(DATA_ENTRY!$K21=3,DATA_ENTRY!$L21="y",DATA_ENTRY!G21<>""),DATA_ENTRY!G21,"") ->  | EY25: =IF(AND(DATA_ENTRY!$K21=3,DATA_ENTRY!$L21="y",DATA_ENTRY!G21<>""),rel_cor_Brannick!E25,"") ->  | EZ25: =IF(AND(DATA_ENTRY!$K21=3,DATA_ENTRY!$L21="y",DATA_ENTRY!G21<>""),rel_cor_Brannick!F25,"") ->  | FA25: =IF(AND(DATA_ENTRY!$K21=3,DATA_ENTRY!$L21="y",DATA_ENTRY!G21<>""),rel_cor_Brannick!G25,"") ->  | GL25: =IF(AND(DATA_ENTRY!$K21=4,DATA_ENTRY!$L21="y",DATA_ENTRY!F21<>""),DATA_ENTRY!F21,"") ->  | GM25: =IF(AND(DATA_ENTRY!$K21=4,DATA_ENTRY!$L21="y",DATA_ENTRY!G21<>""),DATA_ENTRY!G21,"") ->  | GO25: =IF(AND(DATA_ENTRY!$K21=4,DATA_ENTRY!$L21="y",DATA_ENTRY!G21<>""),rel_cor_Brannick!E25,"") ->  | GP25: =IF(AND(DATA_ENTRY!$K21=4,DATA_ENTRY!$L21="y",DATA_ENTRY!G21<>""),rel_cor_Brannick!F25,"") ->  | GQ25: =IF(AND(DATA_ENTRY!$K21=4,DATA_ENTRY!$L21="y",DATA_ENTRY!G21<>""),rel_cor_Brannick!G25,"") ->  | IB25: =IF(AND(DATA_ENTRY!$K21=5,DATA_ENTRY!$L21="y",DATA_ENTRY!F21<>""),DATA_ENTRY!F21,"") ->  | IC25: =IF(AND(DATA_ENTRY!$K21=5,DATA_ENTRY!$L21="y",DATA_ENTRY!G21<>""),DATA_ENTRY!G21,"") ->  | IE25: =IF(AND(DATA_ENTRY!$K21=5,DATA_ENTRY!$L21="y",DATA_ENTRY!G21<>""),rel_cor_Brannick!E25,"") ->  | IF25: =IF(AND(DATA_ENTRY!$K21=5,DATA_ENTRY!$L21="y",DATA_ENTRY!G21<>""),rel_cor_Brannick!F25,"") ->  | IG25: =IF(AND(DATA_ENTRY!$K21=5,DATA_ENTRY!$L21="y",DATA_ENTRY!G21<>""),rel_cor_Brannick!G25,"") ->  | JR25: =IF(AND(DATA_ENTRY!$K21=6,DATA_ENTRY!$L21="y",DATA_ENTRY!F21<>""),DATA_ENTRY!F21,"") ->  | JS25: =IF(AND(DATA_ENTRY!$K21=6,DATA_ENTRY!$L21="y",DATA_ENTRY!G21<>""),DATA_ENTRY!G21,"") ->  | JU25: =IF(AND(DATA_ENTRY!$K21=6,DATA_ENTRY!$L21="y",DATA_ENTRY!G21<>""),rel_cor_Brannick!E25,"") ->  | JV25: =IF(AND(DATA_ENTRY!$K21=6,DATA_ENTRY!$L21="y",DATA_ENTRY!G21<>""),rel_cor_Brannick!F25,"") ->  | JW25: =IF(AND(DATA_ENTRY!$K21=6,DATA_ENTRY!$L21="y",DATA_ENTRY!G21<>""),rel_cor_Brannick!G25,"") -> 
B26: =IF(DATA_ENTRY!H22<>"",DATA_ENTRY!H22,DATA_ENTRY!$Q$9) -> 1 | C26: =IF(DATA_ENTRY!I22<>"",DATA_ENTRY!I22,DATA_ENTRY!$Q$10) -> 1 | D26: =IF(DATA_ENTRY!J22<>"",DATA_ENTRY!J22,DATA_ENTRY!$Q$11) -> 1 | E26: 1 | F26: 1 | G26: 1 | J26: Var(rc) | K26: =BJ6/BH6 -> 0.06162660106 | M26: =CZ6/CX6 -> 0.05102546118 | O26: =EP6/EN6 -> 0.007652965535 | Q26: =GF6/GD6 ->  | S26: =HV6/HT6 ->  | U26: =JL6/JJ6 ->  | W26: =LB6/KZ6 ->  | Z26: =IF(AND(DATA_ENTRY!$L22="y",DATA_ENTRY!F22<>""),DATA_ENTRY!F22,"") -> 59 | AA26: =IF(AND(DATA_ENTRY!$L22="y",DATA_ENTRY!G22<>""),DATA_ENTRY!G22,"") -> 0.08 | AB26: 0.08017132504 | AC26: 1 | AD26: 1 | AE26: 1 | AF26: 1 | AG26: 0.08 | AH26: 0.01355758446 | AI26: 0.01355758446 | AJ26: 59 | AK26: 4.72 | AL26: 3.882177482 | AM26: 0.7998974833 | AN26: 4.72 | AO26: 4.730108177 | AP26: 1 | AQ26: 1 | AR26: 1 | AS26: 0.08 | AT26: 0.08 | AU26: 1 | AV26: 59 | AW26: 4.72 | AX26: 3.882177482 | AY26: 0.01689827586 | AZ26: 0.01689827586 | BA26: 1 | BB26: 0.01689827586 | BC26: 0.9969982759 | BD26: 0.08 | BE26: 0.08 | BF26: 0.08 | BG26: 1 | BH26: 59 | BI26: 4.72 | BJ26: 3.882177482 | BK26: 0.01689827586 | BL26: 1 | BM26: 0.01689827586 | BN26: 0.9969982759 | BP26: =IF(AND(DATA_ENTRY!$K22=1,DATA_ENTRY!$L22="y",DATA_ENTRY!F22<>""),DATA_ENTRY!F22,"") ->  | BQ26: =IF(AND(DATA_ENTRY!$K22=1,DATA_ENTRY!$L22="y",DATA_ENTRY!G22<>""),DATA_ENTRY!G22,"") ->  | BS26: =IF(AND(DATA_ENTRY!$K22=1,DATA_ENTRY!$L22="y",DATA_ENTRY!G22<>""),rel_cor_Brannick!E26,"") ->  | BT26: =IF(AND(DATA_ENTRY!$K22=1,DATA_ENTRY!$L22="y",DATA_ENTRY!G22<>""),rel_cor_Brannick!F26,"") ->  | BU26: =IF(AND(DATA_ENTRY!$K22=1,DATA_ENTRY!$L22="y",DATA_ENTRY!G22<>""),rel_cor_Brannick!G26,"") ->  | DF26: =IF(AND(DATA_ENTRY!$K22=2,DATA_ENTRY!$L22="y",DATA_ENTRY!F22<>""),DATA_ENTRY!F22,"") -> 59 | DG26: =IF(AND(DATA_ENTRY!$K22=2,DATA_ENTRY!$L22="y",DATA_ENTRY!G22<>""),DATA_ENTRY!G22,"") -> 0.08 | DH26: 0.08017132504 | DI26: =IF(AND(DATA_ENTRY!$K22=2,DATA_ENTRY!$L22="y",DATA_ENTRY!G22<>""),rel_cor_Brannick!E26,"") -> 1 | DJ26: =IF(AND(DATA_ENTRY!$K22=2,DATA_ENTRY!$L22="y",DATA_ENTRY!G22<>""),rel_cor_Brannick!F26,"") -> 1 | DK26: =IF(AND(DATA_ENTRY!$K22=2,DATA_ENTRY!$L22="y",DATA_ENTRY!G22<>""),rel_cor_Brannick!G26,"") -> 1 | DL26: 1 | DM26: 0.08 | DN26: 0.01640589431 | DO26: 0.01640589431 | DP26: 59 | DQ26: 4.72 | DR26: 0.3463697032 | DS26: 0.9679477642 | DT26: 4.72 | DU26: 4.730108177 | DV26: 1 | DW26: 1 | DX26: 1 | DY26: 0.08 | DZ26: 0.08 | EA26: 1 | EB26: 59 | EC26: 4.72 | ED26: 0.3463697032 | EE26: 0.01689827586 | EF26: 0.01689827586 | EG26: 1 | EH26: 0.01689827586 | EI26: 0.9969982759 | EJ26: 0.08 | EK26: 0.08 | EL26: 0.08 | EM26: 1 | EN26: 59 | EO26: 4.72 | EP26: 0.3463697032 | EQ26: 0.01689827586 | ER26: 1 | ES26: 0.01689827586 | ET26: 0.9969982759 | EV26: =IF(AND(DATA_ENTRY!$K22=3,DATA_ENTRY!$L22="y",DATA_ENTRY!F22<>""),DATA_ENTRY!F22,"") ->  | EW26: =IF(AND(DATA_ENTRY!$K22=3,DATA_ENTRY!$L22="y",DATA_ENTRY!G22<>""),DATA_ENTRY!G22,"") ->  | EY26: =IF(AND(DATA_ENTRY!$K22=3,DATA_ENTRY!$L22="y",DATA_ENTRY!G22<>""),rel_cor_Brannick!E26,"") ->  | EZ26: =IF(AND(DATA_ENTRY!$K22=3,DATA_ENTRY!$L22="y",DATA_ENTRY!G22<>""),rel_cor_Brannick!F26,"") ->  | FA26: =IF(AND(DATA_ENTRY!$K22=3,DATA_ENTRY!$L22="y",DATA_ENTRY!G22<>""),rel_cor_Brannick!G26,"") ->  | GL26: =IF(AND(DATA_ENTRY!$K22=4,DATA_ENTRY!$L22="y",DATA_ENTRY!F22<>""),DATA_ENTRY!F22,"") ->  | GM26: =IF(AND(DATA_ENTRY!$K22=4,DATA_ENTRY!$L22="y",DATA_ENTRY!G22<>""),DATA_ENTRY!G22,"") ->  | GO26: =IF(AND(DATA_ENTRY!$K22=4,DATA_ENTRY!$L22="y",DATA_ENTRY!G22<>""),rel_cor_Brannick!E26,"") ->  | GP26: =IF(AND(DATA_ENTRY!$K22=4,DATA_ENTRY!$L22="y",DATA_ENTRY!G22<>""),rel_cor_Brannick!F26,"") ->  | GQ26: =IF(AND(DATA_ENTRY!$K22=4,DATA_ENTRY!$L22="y",DATA_ENTRY!G22<>""),rel_cor_Brannick!G26,"") ->  | IB26: =IF(AND(DATA_ENTRY!$K22=5,DATA_ENTRY!$L22="y",DATA_ENTRY!F22<>""),DATA_ENTRY!F22,"") ->  | IC26: =IF(AND(DATA_ENTRY!$K22=5,DATA_ENTRY!$L22="y",DATA_ENTRY!G22<>""),DATA_ENTRY!G22,"") ->  | IE26: =IF(AND(DATA_ENTRY!$K22=5,DATA_ENTRY!$L22="y",DATA_ENTRY!G22<>""),rel_cor_Brannick!E26,"") ->  | IF26: =IF(AND(DATA_ENTRY!$K22=5,DATA_ENTRY!$L22="y",DATA_ENTRY!G22<>""),rel_cor_Brannick!F26,"") ->  | IG26: =IF(AND(DATA_ENTRY!$K22=5,DATA_ENTRY!$L22="y",DATA_ENTRY!G22<>""),rel_cor_Brannick!G26,"") ->  | JR26: =IF(AND(DATA_ENTRY!$K22=6,DATA_ENTRY!$L22="y",DATA_ENTRY!F22<>""),DATA_ENTRY!F22,"") ->  | JS26: =IF(AND(DATA_ENTRY!$K22=6,DATA_ENTRY!$L22="y",DATA_ENTRY!G22<>""),DATA_ENTRY!G22,"") ->  | JU26: =IF(AND(DATA_ENTRY!$K22=6,DATA_ENTRY!$L22="y",DATA_ENTRY!G22<>""),rel_cor_Brannick!E26,"") ->  | JV26: =IF(AND(DATA_ENTRY!$K22=6,DATA_ENTRY!$L22="y",DATA_ENTRY!G22<>""),rel_cor_Brannick!F26,"") ->  | JW26: =IF(AND(DATA_ENTRY!$K22=6,DATA_ENTRY!$L22="y",DATA_ENTRY!G22<>""),rel_cor_Brannick!G26,"") -> 
B27: =IF(DATA_ENTRY!H23<>"",DATA_ENTRY!H23,DATA_ENTRY!$Q$9) -> 1 | C27: =IF(DATA_ENTRY!I23<>"",DATA_ENTRY!I23,DATA_ENTRY!$Q$10) -> 1 | D27: =IF(DATA_ENTRY!J23<>"",DATA_ENTRY!J23,DATA_ENTRY!$Q$11) -> 1 | E27: 1 | F27: 1 | G27: 1 | J27: Ave(ve) | K27: =BN6/BH6 -> 0.004570083721 | M27: =DD6/CX6 -> 0.004552859548 | O27: =ET6/EN6 -> 0.00458736777 | Q27: =GJ6/GD6 ->  | S27: =HZ6/HT6 ->  | U27: =JP6/JJ6 ->  | W27: =LF6/KZ6 ->  | Z27: =IF(AND(DATA_ENTRY!$L23="y",DATA_ENTRY!F23<>""),DATA_ENTRY!F23,"") -> 145 | AA27: =IF(AND(DATA_ENTRY!$L23="y",DATA_ENTRY!G23<>""),DATA_ENTRY!G23,"") -> 0.16 | AB27: 0.1613866961 | AC27: 1 | AD27: 1 | AE27: 1 | AF27: 1 | AG27: 0.16 | AH27: 0.005460693742 | AI27: 0.005460693742 | AJ27: 145 | AK27: 23.2 | AL27: 4.517811441 | AM27: 0.7918005926 | AN27: 23.2 | AO27: 23.40107094 | AP27: 1 | AQ27: 1 | AR27: 1 | AS27: 0.16 | AT27: 0.16 | AU27: 1 | AV27: 145 | AW27: 23.2 | AX27: 4.517811441 | AY27: 0.00680625 | AZ27: 0.00680625 | BA27: 1 | BB27: 0.00680625 | BC27: 0.98690625 | BD27: 0.16 | BE27: 0.16 | BF27: 0.16 | BG27: 1 | BH27: 145 | BI27: 23.2 | BJ27: 4.517811441 | BK27: 0.00680625 | BL27: 1 | BM27: 0.00680625 | BN27: 0.98690625 | BP27: =IF(AND(DATA_ENTRY!$K23=1,DATA_ENTRY!$L23="y",DATA_ENTRY!F23<>""),DATA_ENTRY!F23,"") ->  | BQ27: =IF(AND(DATA_ENTRY!$K23=1,DATA_ENTRY!$L23="y",DATA_ENTRY!G23<>""),DATA_ENTRY!G23,"") ->  | BS27: =IF(AND(DATA_ENTRY!$K23=1,DATA_ENTRY!$L23="y",DATA_ENTRY!G23<>""),rel_cor_Brannick!E27,"") ->  | BT27: =IF(AND(DATA_ENTRY!$K23=1,DATA_ENTRY!$L23="y",DATA_ENTRY!G23<>""),rel_cor_Brannick!F27,"") ->  | BU27: =IF(AND(DATA_ENTRY!$K23=1,DATA_ENTRY!$L23="y",DATA_ENTRY!G23<>""),rel_cor_Brannick!G27,"") ->  | DF27: =IF(AND(DATA_ENTRY!$K23=2,DATA_ENTRY!$L23="y",DATA_ENTRY!F23<>""),DATA_ENTRY!F23,"") -> 145 | DG27: =IF(AND(DATA_ENTRY!$K23=2,DATA_ENTRY!$L23="y",DATA_ENTRY!G23<>""),DATA_ENTRY!G23,"") -> 0.16 | DH27: 0.1613866961 | DI27: =IF(AND(DATA_ENTRY!$K23=2,DATA_ENTRY!$L23="y",DATA_ENTRY!G23<>""),rel_cor_Brannick!E27,"") -> 1 | DJ27: =IF(AND(DATA_ENTRY!$K23=2,DATA_ENTRY!$L23="y",DATA_ENTRY!G23<>""),rel_cor_Brannick!F27,"") -> 1 | DK27: =IF(AND(DATA_ENTRY!$K23=2,DATA_ENTRY!$L23="y",DATA_ENTRY!G23<>""),rel_cor_Brannick!G27,"") -> 1 | DL27: 1 | DM27: 0.16 | DN27: 0.006607929652 | DO27: 0.006607929652 | DP27: 145 | DQ27: 23.2 | DR27: 0.001656227561 | DS27: 0.9581497996 | DT27: 23.2 | DU27: 23.40107094 | DV27: 1 | DW27: 1 | DX27: 1 | DY27: 0.16 | DZ27: 0.16 | EA27: 1 | EB27: 145 | EC27: 23.2 | ED27: 0.001656227561 | EE27: 0.00680625 | EF27: 0.00680625 | EG27: 1 | EH27: 0.00680625 | EI27: 0.98690625 | EJ27: 0.16 | EK27: 0.16 | EL27: 0.16 | EM27: 1 | EN27: 145 | EO27: 23.2 | EP27: 0.001656227561 | EQ27: 0.00680625 | ER27: 1 | ES27: 0.00680625 | ET27: 0.98690625 | EV27: =IF(AND(DATA_ENTRY!$K23=3,DATA_ENTRY!$L23="y",DATA_ENTRY!F23<>""),DATA_ENTRY!F23,"") ->  | EW27: =IF(AND(DATA_ENTRY!$K23=3,DATA_ENTRY!$L23="y",DATA_ENTRY!G23<>""),DATA_ENTRY!G23,"") ->  | EY27: =IF(AND(DATA_ENTRY!$K23=3,DATA_ENTRY!$L23="y",DATA_ENTRY!G23<>""),rel_cor_Brannick!E27,"") ->  | EZ27: =IF(AND(DATA_ENTRY!$K23=3,DATA_ENTRY!$L23="y",DATA_ENTRY!G23<>""),rel_cor_Brannick!F27,"") ->  | FA27: =IF(AND(DATA_ENTRY!$K23=3,DATA_ENTRY!$L23="y",DATA_ENTRY!G23<>""),rel_cor_Brannick!G27,"") ->  | GL27: =IF(AND(DATA_ENTRY!$K23=4,DATA_ENTRY!$L23="y",DATA_ENTRY!F23<>""),DATA_ENTRY!F23,"") ->  | GM27: =IF(AND(DATA_ENTRY!$K23=4,DATA_ENTRY!$L23="y",DATA_ENTRY!G23<>""),DATA_ENTRY!G23,"") ->  | GO27: =IF(AND(DATA_ENTRY!$K23=4,DATA_ENTRY!$L23="y",DATA_ENTRY!G23<>""),rel_cor_Brannick!E27,"") ->  | GP27: =IF(AND(DATA_ENTRY!$K23=4,DATA_ENTRY!$L23="y",DATA_ENTRY!G23<>""),rel_cor_Brannick!F27,"") ->  | GQ27: =IF(AND(DATA_ENTRY!$K23=4,DATA_ENTRY!$L23="y",DATA_ENTRY!G23<>""),rel_cor_Brannick!G27,"") ->  | IB27: =IF(AND(DATA_ENTRY!$K23=5,DATA_ENTRY!$L23="y",DATA_ENTRY!F23<>""),DATA_ENTRY!F23,"") ->  | IC27: =IF(AND(DATA_ENTRY!$K23=5,DATA_ENTRY!$L23="y",DATA_ENTRY!G23<>""),DATA_ENTRY!G23,"") ->  | IE27: =IF(AND(DATA_ENTRY!$K23=5,DATA_ENTRY!$L23="y",DATA_ENTRY!G23<>""),rel_cor_Brannick!E27,"") ->  | IF27: =IF(AND(DATA_ENTRY!$K23=5,DATA_ENTRY!$L23="y",DATA_ENTRY!G23<>""),rel_cor_Brannick!F27,"") ->  | IG27: =IF(AND(DATA_ENTRY!$K23=5,DATA_ENTRY!$L23="y",DATA_ENTRY!G23<>""),rel_cor_Brannick!G27,"") ->  | JR27: =IF(AND(DATA_ENTRY!$K23=6,DATA_ENTRY!$L23="y",DATA_ENTRY!F23<>""),DATA_ENTRY!F23,"") ->  | JS27: =IF(AND(DATA_ENTRY!$K23=6,DATA_ENTRY!$L23="y",DATA_ENTRY!G23<>""),DATA_ENTRY!G23,"") ->  | JU27: =IF(AND(DATA_ENTRY!$K23=6,DATA_ENTRY!$L23="y",DATA_ENTRY!G23<>""),rel_cor_Brannick!E27,"") ->  | JV27: =IF(AND(DATA_ENTRY!$K23=6,DATA_ENTRY!$L23="y",DATA_ENTRY!G23<>""),rel_cor_Brannick!F27,"") ->  | JW27: =IF(AND(DATA_ENTRY!$K23=6,DATA_ENTRY!$L23="y",DATA_ENTRY!G23<>""),rel_cor_Brannick!G27,"") -> 
B28: =IF(DATA_ENTRY!H24<>"",DATA_ENTRY!H24,DATA_ENTRY!$Q$9) -> 1 | C28: =IF(DATA_ENTRY!I24<>"",DATA_ENTRY!I24,DATA_ENTRY!$Q$10) -> 1 | D28: =IF(DATA_ENTRY!J24<>"",DATA_ENTRY!J24,DATA_ENTRY!$Q$11) -> 1 | E28: 1 | F28: 1 | G28: 1 | J28: Var(rho) | K28: =K26-K27 -> 0.05705651734 | M28: 0.04647260163 | O28: 0.003065597766 | Z28: =IF(AND(DATA_ENTRY!$L24="y",DATA_ENTRY!F24<>""),DATA_ENTRY!F24,"") -> 152 | AA28: =IF(AND(DATA_ENTRY!$L24="y",DATA_ENTRY!G24<>""),DATA_ENTRY!G24,"") -> 0.25 | AB28: 0.2554128119 | AC28: 1 | AD28: 1 | AE28: 1 | AF28: 1 | AG28: 0.25 | AH28: 0.005207548999 | AI28: 0.005207548999 | AJ28: 152 | AK28: 38 | AL28: 1.137679716 | AM28: 0.7915474478 | AN28: 38 | AO28: 38.82274741 | AP28: 1 | AQ28: 1 | AR28: 1 | AS28: 0.25 | AT28: 0.25 | AU28: 1 | AV28: 152 | AW28: 38 | AX28: 1.137679716 | AY28: 0.006490728477 | AZ28: 0.006490728477 | BA28: 1 | BB28: 0.006490728477 | BC28: 0.9865907285 | BD28: 0.25 | BE28: 0.25 | BF28: 0.25 | BG28: 1 | BH28: 152 | BI28: 38 | BJ28: 1.137679716 | BK28: 0.006490728477 | BL28: 1 | BM28: 0.006490728477 | BN28: 0.9865907285 | BP28: =IF(AND(DATA_ENTRY!$K24=1,DATA_ENTRY!$L24="y",DATA_ENTRY!F24<>""),DATA_ENTRY!F24,"") ->  | BQ28: =IF(AND(DATA_ENTRY!$K24=1,DATA_ENTRY!$L24="y",DATA_ENTRY!G24<>""),DATA_ENTRY!G24,"") ->  | BS28: =IF(AND(DATA_ENTRY!$K24=1,DATA_ENTRY!$L24="y",DATA_ENTRY!G24<>""),rel_cor_Brannick!E28,"") ->  | BT28: =IF(AND(DATA_ENTRY!$K24=1,DATA_ENTRY!$L24="y",DATA_ENTRY!G24<>""),rel_cor_Brannick!F28,"") ->  | BU28: =IF(AND(DATA_ENTRY!$K24=1,DATA_ENTRY!$L24="y",DATA_ENTRY!G24<>""),rel_cor_Brannick!G28,"") ->  | DF28: =IF(AND(DATA_ENTRY!$K24=2,DATA_ENTRY!$L24="y",DATA_ENTRY!F24<>""),DATA_ENTRY!F24,"") -> 152 | DG28: =IF(AND(DATA_ENTRY!$K24=2,DATA_ENTRY!$L24="y",DATA_ENTRY!G24<>""),DATA_ENTRY!G24,"") -> 0.25 | DH28: 0.2554128119 | DI28: =IF(AND(DATA_ENTRY!$K24=2,DATA_ENTRY!$L24="y",DATA_ENTRY!G24<>""),rel_cor_Brannick!E28,"") -> 1 | DJ28: =IF(AND(DATA_ENTRY!$K24=2,DATA_ENTRY!$L24="y",DATA_ENTRY!G24<>""),rel_cor_Brannick!F28,"") -> 1 | DK28: =IF(AND(DATA_ENTRY!$K24=2,DATA_ENTRY!$L24="y",DATA_ENTRY!G24<>""),rel_cor_Brannick!G28,"") -> 1 | DL28: 1 | DM28: 0.25 | DN28: 0.006301601788 | DO28: 0.006301601788 | DP28: 152 | DQ28: 38 | DR28: 1.325404318 | DS28: 0.9578434717 | DT28: 38 | DU28: 38.82274741 | DV28: 1 | DW28: 1 | DX28: 1 | DY28: 0.25 | DZ28: 0.25 | EA28: 1 | EB28: 152 | EC28: 38 | ED28: 1.325404318 | EE28: 0.006490728477 | EF28: 0.006490728477 | EG28: 1 | EH28: 0.006490728477 | EI28: 0.9865907285 | EJ28: 0.25 | EK28: 0.25 | EL28: 0.25 | EM28: 1 | EN28: 152 | EO28: 38 | EP28: 1.325404318 | EQ28: 0.006490728477 | ER28: 1 | ES28: 0.006490728477 | ET28: 0.9865907285 | EV28: =IF(AND(DATA_ENTRY!$K24=3,DATA_ENTRY!$L24="y",DATA_ENTRY!F24<>""),DATA_ENTRY!F24,"") ->  | EW28: =IF(AND(DATA_ENTRY!$K24=3,DATA_ENTRY!$L24="y",DATA_ENTRY!G24<>""),DATA_ENTRY!G24,"") ->  | EY28: =IF(AND(DATA_ENTRY!$K24=3,DATA_ENTRY!$L24="y",DATA_ENTRY!G24<>""),rel_cor_Brannick!E28,"") ->  | EZ28: =IF(AND(DATA_ENTRY!$K24=3,DATA_ENTRY!$L24="y",DATA_ENTRY!G24<>""),rel_cor_Brannick!F28,"") ->  | FA28: =IF(AND(DATA_ENTRY!$K24=3,DATA_ENTRY!$L24="y",DATA_ENTRY!G24<>""),rel_cor_Brannick!G28,"") ->  | GL28: =IF(AND(DATA_ENTRY!$K24=4,DATA_ENTRY!$L24="y",DATA_ENTRY!F24<>""),DATA_ENTRY!F24,"") ->  | GM28: =IF(AND(DATA_ENTRY!$K24=4,DATA_ENTRY!$L24="y",DATA_ENTRY!G24<>""),DATA_ENTRY!G24,"") ->  | GO28: =IF(AND(DATA_ENTRY!$K24=4,DATA_ENTRY!$L24="y",DATA_ENTRY!G24<>""),rel_cor_Brannick!E28,"") ->  | GP28: =IF(AND(DATA_ENTRY!$K24=4,DATA_ENTRY!$L24="y",DATA_ENTRY!G24<>""),rel_cor_Brannick!F28,"") ->  | GQ28: =IF(AND(DATA_ENTRY!$K24=4,DATA_ENTRY!$L24="y",DATA_ENTRY!G24<>""),rel_cor_Brannick!G28,"") ->  | IB28: =IF(AND(DATA_ENTRY!$K24=5,DATA_ENTRY!$L24="y",DATA_ENTRY!F24<>""),DATA_ENTRY!F24,"") ->  | IC28: =IF(AND(DATA_ENTRY!$K24=5,DATA_ENTRY!$L24="y",DATA_ENTRY!G24<>""),DATA_ENTRY!G24,"") ->  | IE28: =IF(AND(DATA_ENTRY!$K24=5,DATA_ENTRY!$L24="y",DATA_ENTRY!G24<>""),rel_cor_Brannick!E28,"") ->  | IF28: =IF(AND(DATA_ENTRY!$K24=5,DATA_ENTRY!$L24="y",DATA_ENTRY!G24<>""),rel_cor_Brannick!F28,"") ->  | IG28: =IF(AND(DATA_ENTRY!$K24=5,DATA_ENTRY!$L24="y",DATA_ENTRY!G24<>""),rel_cor_Brannick!G28,"") ->  | JR28: =IF(AND(DATA_ENTRY!$K24=6,DATA_ENTRY!$L24="y",DATA_ENTRY!F24<>""),DATA_ENTRY!F24,"") ->  | JS28: =IF(AND(DATA_ENTRY!$K24=6,DATA_ENTRY!$L24="y",DATA_ENTRY!G24<>""),DATA_ENTRY!G24,"") ->  | JU28: =IF(AND(DATA_ENTRY!$K24=6,DATA_ENTRY!$L24="y",DATA_ENTRY!G24<>""),rel_cor_Brannick!E28,"") ->  | JV28: =IF(AND(DATA_ENTRY!$K24=6,DATA_ENTRY!$L24="y",DATA_ENTRY!G24<>""),rel_cor_Brannick!F28,"") ->  | JW28: =IF(AND(DATA_ENTRY!$K24=6,DATA_ENTRY!$L24="y",DATA_ENTRY!G24<>""),rel_cor_Brannick!G28,"") -> 
B29: =IF(DATA_ENTRY!H25<>"",DATA_ENTRY!H25,DATA_ENTRY!$Q$9) -> 1 | C29: =IF(DATA_ENTRY!I25<>"",DATA_ENTRY!I25,DATA_ENTRY!$Q$10) -> 1 | D29: =IF(DATA_ENTRY!J25<>"",DATA_ENTRY!J25,DATA_ENTRY!$Q$11) -> 1 | E29: 1 | F29: 1 | G29: 1 | J29: SD(rho) | K29: =IF(K28<0,0,SQRT(K28)) -> 0.2388650609 | M29: 0.2155750487 | O29: 0.05536784054 | Z29: =IF(AND(DATA_ENTRY!$L25="y",DATA_ENTRY!F25<>""),DATA_ENTRY!F25,"") -> 34 | AA29: =IF(AND(DATA_ENTRY!$L25="y",DATA_ENTRY!G25<>""),DATA_ENTRY!G25,"") -> 0.27 | AB29: 0.2768638227 | AC29: 1 | AD29: 1 | AE29: 1 | AF29: 1 | AG29: 0.27 | AH29: 0.02382848178 | AI29: 0.02382848178 | AJ29: 34 | AK29: 9.18 | AL29: 0.1504214557 | AM29: 0.8101683806 | AN29: 9.18 | AO29: 9.41336997 | AP29: 1 | AQ29: 1 | AR29: 1 | AS29: 0.27 | AT29: 0.27 | AU29: 1 | AV29: 34 | AW29: 9.18 | AX29: 0.1504214557 | AY29: 0.0297 | AZ29: 0.0297 | BA29: 1 | BB29: 0.0297 | BC29: 1.0098 | BD29: 0.27 | BE29: 0.27 | BF29: 0.27 | BG29: 1 | BH29: 34 | BI29: 9.18 | BJ29: 0.1504214557 | BK29: 0.0297 | BL29: 1 | BM29: 0.0297 | BN29: 1.0098 | BP29: =IF(AND(DATA_ENTRY!$K25=1,DATA_ENTRY!$L25="y",DATA_ENTRY!F25<>""),DATA_ENTRY!F25,"") ->  | BQ29: =IF(AND(DATA_ENTRY!$K25=1,DATA_ENTRY!$L25="y",DATA_ENTRY!G25<>""),DATA_ENTRY!G25,"") ->  | BS29: =IF(AND(DATA_ENTRY!$K25=1,DATA_ENTRY!$L25="y",DATA_ENTRY!G25<>""),rel_cor_Brannick!E29,"") ->  | BT29: =IF(AND(DATA_ENTRY!$K25=1,DATA_ENTRY!$L25="y",DATA_ENTRY!G25<>""),rel_cor_Brannick!F29,"") ->  | BU29: =IF(AND(DATA_ENTRY!$K25=1,DATA_ENTRY!$L25="y",DATA_ENTRY!G25<>""),rel_cor_Brannick!G29,"") ->  | DF29: =IF(AND(DATA_ENTRY!$K25=2,DATA_ENTRY!$L25="y",DATA_ENTRY!F25<>""),DATA_ENTRY!F25,"") -> 34 | DG29: =IF(AND(DATA_ENTRY!$K25=2,DATA_ENTRY!$L25="y",DATA_ENTRY!G25<>""),DATA_ENTRY!G25,"") -> 0.27 | DH29: 0.2768638227 | DI29: =IF(AND(DATA_ENTRY!$K25=2,DATA_ENTRY!$L25="y",DATA_ENTRY!G25<>""),rel_cor_Brannick!E29,"") -> 1 | DJ29: =IF(AND(DATA_ENTRY!$K25=2,DATA_ENTRY!$L25="y",DATA_ENTRY!G25<>""),rel_cor_Brannick!F29,"") -> 1 | DK29: =IF(AND(DATA_ENTRY!$K25=2,DATA_ENTRY!$L25="y",DATA_ENTRY!G25<>""),rel_cor_Brannick!G29,"") -> 1 | DL29: 1 | DM29: 0.27 | DN29: 0.02883460212 | DO29: 0.02883460212 | DP29: 34 | DQ29: 9.18 | DR29: 0.4370683877 | DS29: 0.980376472 | DT29: 9.18 | DU29: 9.41336997 | DV29: 1 | DW29: 1 | DX29: 1 | DY29: 0.27 | DZ29: 0.27 | EA29: 1 | EB29: 34 | EC29: 9.18 | ED29: 0.4370683877 | EE29: 0.0297 | EF29: 0.0297 | EG29: 1 | EH29: 0.0297 | EI29: 1.0098 | EJ29: 0.27 | EK29: 0.27 | EL29: 0.27 | EM29: 1 | EN29: 34 | EO29: 9.18 | EP29: 0.4370683877 | EQ29: 0.0297 | ER29: 1 | ES29: 0.0297 | ET29: 1.0098 | EV29: =IF(AND(DATA_ENTRY!$K25=3,DATA_ENTRY!$L25="y",DATA_ENTRY!F25<>""),DATA_ENTRY!F25,"") ->  | EW29: =IF(AND(DATA_ENTRY!$K25=3,DATA_ENTRY!$L25="y",DATA_ENTRY!G25<>""),DATA_ENTRY!G25,"") ->  | EY29: =IF(AND(DATA_ENTRY!$K25=3,DATA_ENTRY!$L25="y",DATA_ENTRY!G25<>""),rel_cor_Brannick!E29,"") ->  | EZ29: =IF(AND(DATA_ENTRY!$K25=3,DATA_ENTRY!$L25="y",DATA_ENTRY!G25<>""),rel_cor_Brannick!F29,"") ->  | FA29: =IF(AND(DATA_ENTRY!$K25=3,DATA_ENTRY!$L25="y",DATA_ENTRY!G25<>""),rel_cor_Brannick!G29,"") ->  | GL29: =IF(AND(DATA_ENTRY!$K25=4,DATA_ENTRY!$L25="y",DATA_ENTRY!F25<>""),DATA_ENTRY!F25,"") ->  | GM29: =IF(AND(DATA_ENTRY!$K25=4,DATA_ENTRY!$L25="y",DATA_ENTRY!G25<>""),DATA_ENTRY!G25,"") ->  | GO29: =IF(AND(DATA_ENTRY!$K25=4,DATA_ENTRY!$L25="y",DATA_ENTRY!G25<>""),rel_cor_Brannick!E29,"") ->  | GP29: =IF(AND(DATA_ENTRY!$K25=4,DATA_ENTRY!$L25="y",DATA_ENTRY!G25<>""),rel_cor_Brannick!F29,"") ->  | GQ29: =IF(AND(DATA_ENTRY!$K25=4,DATA_ENTRY!$L25="y",DATA_ENTRY!G25<>""),rel_cor_Brannick!G29,"") ->  | IB29: =IF(AND(DATA_ENTRY!$K25=5,DATA_ENTRY!$L25="y",DATA_ENTRY!F25<>""),DATA_ENTRY!F25,"") ->  | IC29: =IF(AND(DATA_ENTRY!$K25=5,DATA_ENTRY!$L25="y",DATA_ENTRY!G25<>""),DATA_ENTRY!G25,"") ->  | IE29: =IF(AND(DATA_ENTRY!$K25=5,DATA_ENTRY!$L25="y",DATA_ENTRY!G25<>""),rel_cor_Brannick!E29,"") ->  | IF29: =IF(AND(DATA_ENTRY!$K25=5,DATA_ENTRY!$L25="y",DATA_ENTRY!G25<>""),rel_cor_Brannick!F29,"") ->  | IG29: =IF(AND(DATA_ENTRY!$K25=5,DATA_ENTRY!$L25="y",DATA_ENTRY!G25<>""),rel_cor_Brannick!G29,"") ->  | JR29: =IF(AND(DATA_ENTRY!$K25=6,DATA_ENTRY!$L25="y",DATA_ENTRY!F25<>""),DATA_ENTRY!F25,"") ->  | JS29: =IF(AND(DATA_ENTRY!$K25=6,DATA_ENTRY!$L25="y",DATA_ENTRY!G25<>""),DATA_ENTRY!G25,"") ->  | JU29: =IF(AND(DATA_ENTRY!$K25=6,DATA_ENTRY!$L25="y",DATA_ENTRY!G25<>""),rel_cor_Brannick!E29,"") ->  | JV29: =IF(AND(DATA_ENTRY!$K25=6,DATA_ENTRY!$L25="y",DATA_ENTRY!G25<>""),rel_cor_Brannick!F29,"") ->  | JW29: =IF(AND(DATA_ENTRY!$K25=6,DATA_ENTRY!$L25="y",DATA_ENTRY!G25<>""),rel_cor_Brannick!G29,"") -> 
B30: =IF(DATA_ENTRY!H26<>"",DATA_ENTRY!H26,DATA_ENTRY!$Q$9) -> 1 | C30: =IF(DATA_ENTRY!I26<>"",DATA_ENTRY!I26,DATA_ENTRY!$Q$10) -> 1 | D30: =IF(DATA_ENTRY!J26<>"",DATA_ENTRY!J26,DATA_ENTRY!$Q$11) -> 1 | E30: 1 | F30: 1 | G30: 1 | J30: CRED | K30: =K25+(K29*$E$6) -> 0.6426322556 | M30: 0.7920557606 | O30: 0.2275770594 | Z30: =IF(AND(DATA_ENTRY!$L26="y",DATA_ENTRY!F26<>""),DATA_ENTRY!F26,"") -> 49 | AA30: =IF(AND(DATA_ENTRY!$L26="y",DATA_ENTRY!G26<>""),DATA_ENTRY!G26,"") -> 0.13 | AB30: 0.13073985 | AC30: 1 | AD30: 1 | AE30: 1 | AF30: 1 | AG30: 0.13 | AH30: 0.01638208123 | AI30: 0.01638208123 | AJ30: 49 | AK30: 6.37 | AL30: 2.089760921 | AM30: 0.8027219801 | AN30: 6.37 | AO30: 6.406252651 | AP30: 1 | AQ30: 1 | AR30: 1 | AS30: 0.13 | AT30: 0.13 | AU30: 1 | AV30: 49 | AW30: 6.37 | AX30: 2.089760921 | AY30: 0.02041875 | AZ30: 0.02041875 | BA30: 1 | BB30: 0.02041875 | BC30: 1.00051875 | BD30: 0.13 | BE30: 0.13 | BF30: 0.13 | BG30: 1 | BH30: 49 | BI30: 6.37 | BJ30: 2.089760921 | BK30: 0.02041875 | BL30: 1 | BM30: 0.02041875 | BN30: 1.00051875 | BP30: =IF(AND(DATA_ENTRY!$K26=1,DATA_ENTRY!$L26="y",DATA_ENTRY!F26<>""),DATA_ENTRY!F26,"") ->  | BQ30: =IF(AND(DATA_ENTRY!$K26=1,DATA_ENTRY!$L26="y",DATA_ENTRY!G26<>""),DATA_ENTRY!G26,"") ->  | BS30: =IF(AND(DATA_ENTRY!$K26=1,DATA_ENTRY!$L26="y",DATA_ENTRY!G26<>""),rel_cor_Brannick!E30,"") ->  | BT30: =IF(AND(DATA_ENTRY!$K26=1,DATA_ENTRY!$L26="y",DATA_ENTRY!G26<>""),rel_cor_Brannick!F30,"") ->  | BU30: =IF(AND(DATA_ENTRY!$K26=1,DATA_ENTRY!$L26="y",DATA_ENTRY!G26<>""),rel_cor_Brannick!G30,"") ->  | DF30: =IF(AND(DATA_ENTRY!$K26=2,DATA_ENTRY!$L26="y",DATA_ENTRY!F26<>""),DATA_ENTRY!F26,"") -> 49 | DG30: =IF(AND(DATA_ENTRY!$K26=2,DATA_ENTRY!$L26="y",DATA_ENTRY!G26<>""),DATA_ENTRY!G26,"") -> 0.13 | DH30: 0.13073985 | DI30: =IF(AND(DATA_ENTRY!$K26=2,DATA_ENTRY!$L26="y",DATA_ENTRY!G26<>""),rel_cor_Brannick!E30,"") -> 1 | DJ30: =IF(AND(DATA_ENTRY!$K26=2,DATA_ENTRY!$L26="y",DATA_ENTRY!G26<>""),rel_cor_Brannick!F30,"") -> 1 | DK30: =IF(AND(DATA_ENTRY!$K26=2,DATA_ENTRY!$L26="y",DATA_ENTRY!G26<>""),rel_cor_Brannick!G30,"") -> 1 | DL30: 1 | DM30: 0.13 | DN30: 0.01982378896 | DO30: 0.01982378896 | DP30: 49 | DQ30: 6.37 | DR30: 0.03472342186 | DS30: 0.9713656589 | DT30: 6.37 | DU30: 6.406252651 | DV30: 1 | DW30: 1 | DX30: 1 | DY30: 0.13 | DZ30: 0.13 | EA30: 1 | EB30: 49 | EC30: 6.37 | ED30: 0.03472342186 | EE30: 0.02041875 | EF30: 0.02041875 | EG30: 1 | EH30: 0.02041875 | EI30: 1.00051875 | EJ30: 0.13 | EK30: 0.13 | EL30: 0.13 | EM30: 1 | EN30: 49 | EO30: 6.37 | EP30: 0.03472342186 | EQ30: 0.02041875 | ER30: 1 | ES30: 0.02041875 | ET30: 1.00051875 | EV30: =IF(AND(DATA_ENTRY!$K26=3,DATA_ENTRY!$L26="y",DATA_ENTRY!F26<>""),DATA_ENTRY!F26,"") ->  | EW30: =IF(AND(DATA_ENTRY!$K26=3,DATA_ENTRY!$L26="y",DATA_ENTRY!G26<>""),DATA_ENTRY!G26,"") ->  | EY30: =IF(AND(DATA_ENTRY!$K26=3,DATA_ENTRY!$L26="y",DATA_ENTRY!G26<>""),rel_cor_Brannick!E30,"") ->  | EZ30: =IF(AND(DATA_ENTRY!$K26=3,DATA_ENTRY!$L26="y",DATA_ENTRY!G26<>""),rel_cor_Brannick!F30,"") ->  | FA30: =IF(AND(DATA_ENTRY!$K26=3,DATA_ENTRY!$L26="y",DATA_ENTRY!G26<>""),rel_cor_Brannick!G30,"") ->  | GL30: =IF(AND(DATA_ENTRY!$K26=4,DATA_ENTRY!$L26="y",DATA_ENTRY!F26<>""),DATA_ENTRY!F26,"") ->  | GM30: =IF(AND(DATA_ENTRY!$K26=4,DATA_ENTRY!$L26="y",DATA_ENTRY!G26<>""),DATA_ENTRY!G26,"") ->  | GO30: =IF(AND(DATA_ENTRY!$K26=4,DATA_ENTRY!$L26="y",DATA_ENTRY!G26<>""),rel_cor_Brannick!E30,"") ->  | GP30: =IF(AND(DATA_ENTRY!$K26=4,DATA_ENTRY!$L26="y",DATA_ENTRY!G26<>""),rel_cor_Brannick!F30,"") ->  | GQ30: =IF(AND(DATA_ENTRY!$K26=4,DATA_ENTRY!$L26="y",DATA_ENTRY!G26<>""),rel_cor_Brannick!G30,"") ->  | IB30: =IF(AND(DATA_ENTRY!$K26=5,DATA_ENTRY!$L26="y",DATA_ENTRY!F26<>""),DATA_ENTRY!F26,"") ->  | IC30: =IF(AND(DATA_ENTRY!$K26=5,DATA_ENTRY!$L26="y",DATA_ENTRY!G26<>""),DATA_ENTRY!G26,"") ->  | IE30: =IF(AND(DATA_ENTRY!$K26=5,DATA_ENTRY!$L26="y",DATA_ENTRY!G26<>""),rel_cor_Brannick!E30,"") ->  | IF30: =IF(AND(DATA_ENTRY!$K26=5,DATA_ENTRY!$L26="y",DATA_ENTRY!G26<>""),rel_cor_Brannick!F30,"") ->  | IG30: =IF(AND(DATA_ENTRY!$K26=5,DATA_ENTRY!$L26="y",DATA_ENTRY!G26<>""),rel_cor_Brannick!G30,"") ->  | JR30: =IF(AND(DATA_ENTRY!$K26=6,DATA_ENTRY!$L26="y",DATA_ENTRY!F26<>""),DATA_ENTRY!F26,"") ->  | JS30: =IF(AND(DATA_ENTRY!$K26=6,DATA_ENTRY!$L26="y",DATA_ENTRY!G26<>""),DATA_ENTRY!G26,"") ->  | JU30: =IF(AND(DATA_ENTRY!$K26=6,DATA_ENTRY!$L26="y",DATA_ENTRY!G26<>""),rel_cor_Brannick!E30,"") ->  | JV30: =IF(AND(DATA_ENTRY!$K26=6,DATA_ENTRY!$L26="y",DATA_ENTRY!G26<>""),rel_cor_Brannick!F30,"") ->  | JW30: =IF(AND(DATA_ENTRY!$K26=6,DATA_ENTRY!$L26="y",DATA_ENTRY!G26<>""),rel_cor_Brannick!G30,"") -> 
B31: =IF(DATA_ENTRY!H27<>"",DATA_ENTRY!H27,DATA_ENTRY!$Q$9) -> 1 | C31: =IF(DATA_ENTRY!I27<>"",DATA_ENTRY!I27,DATA_ENTRY!$Q$10) -> 1 | D31: =IF(DATA_ENTRY!J27<>"",DATA_ENTRY!J27,DATA_ENTRY!$Q$11) -> 1 | E31: 1 | F31: 1 | G31: 1 | J31: CRED | K31: =K25-(K29*$E$6) -> 0.03039647004 | M31: 0.2395146782 | O31: 0.085663574 | Z31: =IF(AND(DATA_ENTRY!$L27="y",DATA_ENTRY!F27<>""),DATA_ENTRY!F27,"") -> 136 | AA31: =IF(AND(DATA_ENTRY!$L27="y",DATA_ENTRY!G27<>""),DATA_ENTRY!G27,"") -> 0.3 | AB31: 0.3095196042 | AC31: 1 | AD31: 1 | AE31: 1 | AF31: 1 | AG31: 0.3 | AH31: 0.005824739991 | AI31: 0.005824739991 | AJ31: 136 | AK31: 40.8 | AL31: 0.1813286222 | AM31: 0.7921646388 | AN31: 40.8 | AO31: 42.09466617 | AP31: 1 | AQ31: 1 | AR31: 1 | AS31: 0.3 | AT31: 0.3 | AU31: 1 | AV31: 136 | AW31: 40.8 | AX31: 0.1813286222 | AY31: 0.00726 | AZ31: 0.00726 | BA31: 1 | BB31: 0.00726 | BC31: 0.98736 | BD31: 0.3 | BE31: 0.3 | BF31: 0.3 | BG31: 1 | BH31: 136 | BI31: 40.8 | BJ31: 0.1813286222 | BK31: 0.00726 | BL31: 1 | BM31: 0.00726 | BN31: 0.98736 | BP31: =IF(AND(DATA_ENTRY!$K27=1,DATA_ENTRY!$L27="y",DATA_ENTRY!F27<>""),DATA_ENTRY!F27,"") ->  | BQ31: =IF(AND(DATA_ENTRY!$K27=1,DATA_ENTRY!$L27="y",DATA_ENTRY!G27<>""),DATA_ENTRY!G27,"") ->  | BS31: =IF(AND(DATA_ENTRY!$K27=1,DATA_ENTRY!$L27="y",DATA_ENTRY!G27<>""),rel_cor_Brannick!E31,"") ->  | BT31: =IF(AND(DATA_ENTRY!$K27=1,DATA_ENTRY!$L27="y",DATA_ENTRY!G27<>""),rel_cor_Brannick!F31,"") ->  | BU31: =IF(AND(DATA_ENTRY!$K27=1,DATA_ENTRY!$L27="y",DATA_ENTRY!G27<>""),rel_cor_Brannick!G31,"") ->  | DF31: =IF(AND(DATA_ENTRY!$K27=2,DATA_ENTRY!$L27="y",DATA_ENTRY!F27<>""),DATA_ENTRY!F27,"") -> 136 | DG31: =IF(AND(DATA_ENTRY!$K27=2,DATA_ENTRY!$L27="y",DATA_ENTRY!G27<>""),DATA_ENTRY!G27,"") -> 0.3 | DH31: 0.3095196042 | DI31: =IF(AND(DATA_ENTRY!$K27=2,DATA_ENTRY!$L27="y",DATA_ENTRY!G27<>""),rel_cor_Brannick!E31,"") -> 1 | DJ31: =IF(AND(DATA_ENTRY!$K27=2,DATA_ENTRY!$L27="y",DATA_ENTRY!G27<>""),rel_cor_Brannick!F31,"") -> 1 | DK31: =IF(AND(DATA_ENTRY!$K27=2,DATA_ENTRY!$L27="y",DATA_ENTRY!G27<>""),rel_cor_Brannick!G31,"") -> 1 | DL31: 1 | DM31: 0.3 | DN31: 0.007048458296 | DO31: 0.007048458296 | DP31: 136 | DQ31: 40.8 | DR31: 2.795851766 | DS31: 0.9585903282 | DT31: 40.8 | DU31: 42.09466617 | DV31: 1 | DW31: 1 | DX31: 1 | DY31: 0.3 | DZ31: 0.3 | EA31: 1 | EB31: 136 | EC31: 40.8 | ED31: 2.795851766 | EE31: 0.00726 | EF31: 0.00726 | EG31: 1 | EH31: 0.00726 | EI31: 0.98736 | EJ31: 0.3 | EK31: 0.3 | EL31: 0.3 | EM31: 1 | EN31: 136 | EO31: 40.8 | EP31: 2.795851766 | EQ31: 0.00726 | ER31: 1 | ES31: 0.00726 | ET31: 0.98736 | EV31: =IF(AND(DATA_ENTRY!$K27=3,DATA_ENTRY!$L27="y",DATA_ENTRY!F27<>""),DATA_ENTRY!F27,"") ->  | EW31: =IF(AND(DATA_ENTRY!$K27=3,DATA_ENTRY!$L27="y",DATA_ENTRY!G27<>""),DATA_ENTRY!G27,"") ->  | EY31: =IF(AND(DATA_ENTRY!$K27=3,DATA_ENTRY!$L27="y",DATA_ENTRY!G27<>""),rel_cor_Brannick!E31,"") ->  | EZ31: =IF(AND(DATA_ENTRY!$K27=3,DATA_ENTRY!$L27="y",DATA_ENTRY!G27<>""),rel_cor_Brannick!F31,"") ->  | FA31: =IF(AND(DATA_ENTRY!$K27=3,DATA_ENTRY!$L27="y",DATA_ENTRY!G27<>""),rel_cor_Brannick!G31,"") ->  | GL31: =IF(AND(DATA_ENTRY!$K27=4,DATA_ENTRY!$L27="y",DATA_ENTRY!F27<>""),DATA_ENTRY!F27,"") ->  | GM31: =IF(AND(DATA_ENTRY!$K27=4,DATA_ENTRY!$L27="y",DATA_ENTRY!G27<>""),DATA_ENTRY!G27,"") ->  | GO31: =IF(AND(DATA_ENTRY!$K27=4,DATA_ENTRY!$L27="y",DATA_ENTRY!G27<>""),rel_cor_Brannick!E31,"") ->  | GP31: =IF(AND(DATA_ENTRY!$K27=4,DATA_ENTRY!$L27="y",DATA_ENTRY!G27<>""),rel_cor_Brannick!F31,"") ->  | GQ31: =IF(AND(DATA_ENTRY!$K27=4,DATA_ENTRY!$L27="y",DATA_ENTRY!G27<>""),rel_cor_Brannick!G31,"") ->  | IB31: =IF(AND(DATA_ENTRY!$K27=5,DATA_ENTRY!$L27="y",DATA_ENTRY!F27<>""),DATA_ENTRY!F27,"") ->  | IC31: =IF(AND(DATA_ENTRY!$K27=5,DATA_ENTRY!$L27="y",DATA_ENTRY!G27<>""),DATA_ENTRY!G27,"") ->  | IE31: =IF(AND(DATA_ENTRY!$K27=5,DATA_ENTRY!$L27="y",DATA_ENTRY!G27<>""),rel_cor_Brannick!E31,"") ->  | IF31: =IF(AND(DATA_ENTRY!$K27=5,DATA_ENTRY!$L27="y",DATA_ENTRY!G27<>""),rel_cor_Brannick!F31,"") ->  | IG31: =IF(AND(DATA_ENTRY!$K27=5,DATA_ENTRY!$L27="y",DATA_ENTRY!G27<>""),rel_cor_Brannick!G31,"") ->  | JR31: =IF(AND(DATA_ENTRY!$K27=6,DATA_ENTRY!$L27="y",DATA_ENTRY!F27<>""),DATA_ENTRY!F27,"") ->  | JS31: =IF(AND(DATA_ENTRY!$K27=6,DATA_ENTRY!$L27="y",DATA_ENTRY!G27<>""),DATA_ENTRY!G27,"") ->  | JU31: =IF(AND(DATA_ENTRY!$K27=6,DATA_ENTRY!$L27="y",DATA_ENTRY!G27<>""),rel_cor_Brannick!E31,"") ->  | JV31: =IF(AND(DATA_ENTRY!$K27=6,DATA_ENTRY!$L27="y",DATA_ENTRY!G27<>""),rel_cor_Brannick!F31,"") ->  | JW31: =IF(AND(DATA_ENTRY!$K27=6,DATA_ENTRY!$L27="y",DATA_ENTRY!G27<>""),rel_cor_Brannick!G31,"") -> 
B32: =IF(DATA_ENTRY!H28<>"",DATA_ENTRY!H28,DATA_ENTRY!$Q$9) -> 1 | C32: =IF(DATA_ENTRY!I28<>"",DATA_ENTRY!I28,DATA_ENTRY!$Q$10) -> 1 | D32: =IF(DATA_ENTRY!J28<>"",DATA_ENTRY!J28,DATA_ENTRY!$Q$11) -> 1 | E32: 1 | F32: 1 | G32: 1 | Z32: =IF(AND(DATA_ENTRY!$L28="y",DATA_ENTRY!F28<>""),DATA_ENTRY!F28,"") ->  | AA32: =IF(AND(DATA_ENTRY!$L28="y",DATA_ENTRY!G28<>""),DATA_ENTRY!G28,"") ->  | BP32: =IF(AND(DATA_ENTRY!$K28=1,DATA_ENTRY!$L28="y",DATA_ENTRY!F28<>""),DATA_ENTRY!F28,"") ->  | BQ32: =IF(AND(DATA_ENTRY!$K28=1,DATA_ENTRY!$L28="y",DATA_ENTRY!G28<>""),DATA_ENTRY!G28,"") ->  | BS32: =IF(AND(DATA_ENTRY!$K28=1,DATA_ENTRY!$L28="y",DATA_ENTRY!G28<>""),rel_cor_Brannick!E32,"") ->  | BT32: =IF(AND(DATA_ENTRY!$K28=1,DATA_ENTRY!$L28="y",DATA_ENTRY!G28<>""),rel_cor_Brannick!F32,"") ->  | BU32: =IF(AND(DATA_ENTRY!$K28=1,DATA_ENTRY!$L28="y",DATA_ENTRY!G28<>""),rel_cor_Brannick!G32,"") ->  | DF32: =IF(AND(DATA_ENTRY!$K28=2,DATA_ENTRY!$L28="y",DATA_ENTRY!F28<>""),DATA_ENTRY!F28,"") ->  | DG32: =IF(AND(DATA_ENTRY!$K28=2,DATA_ENTRY!$L28="y",DATA_ENTRY!G28<>""),DATA_ENTRY!G28,"") ->  | DI32: =IF(AND(DATA_ENTRY!$K28=2,DATA_ENTRY!$L28="y",DATA_ENTRY!G28<>""),rel_cor_Brannick!E32,"") ->  | DJ32: =IF(AND(DATA_ENTRY!$K28=2,DATA_ENTRY!$L28="y",DATA_ENTRY!G28<>""),rel_cor_Brannick!F32,"") ->  | DK32: =IF(AND(DATA_ENTRY!$K28=2,DATA_ENTRY!$L28="y",DATA_ENTRY!G28<>""),rel_cor_Brannick!G32,"") ->  | EV32: =IF(AND(DATA_ENTRY!$K28=3,DATA_ENTRY!$L28="y",DATA_ENTRY!F28<>""),DATA_ENTRY!F28,"") ->  | EW32: =IF(AND(DATA_ENTRY!$K28=3,DATA_ENTRY!$L28="y",DATA_ENTRY!G28<>""),DATA_ENTRY!G28,"") ->  | EY32: =IF(AND(DATA_ENTRY!$K28=3,DATA_ENTRY!$L28="y",DATA_ENTRY!G28<>""),rel_cor_Brannick!E32,"") ->  | EZ32: =IF(AND(DATA_ENTRY!$K28=3,DATA_ENTRY!$L28="y",DATA_ENTRY!G28<>""),rel_cor_Brannick!F32,"") ->  | FA32: =IF(AND(DATA_ENTRY!$K28=3,DATA_ENTRY!$L28="y",DATA_ENTRY!G28<>""),rel_cor_Brannick!G32,"") ->  | GL32: =IF(AND(DATA_ENTRY!$K28=4,DATA_ENTRY!$L28="y",DATA_ENTRY!F28<>""),DATA_ENTRY!F28,"") ->  | GM32: =IF(AND(DATA_ENTRY!$K28=4,DATA_ENTRY!$L28="y",DATA_ENTRY!G28<>""),DATA_ENTRY!G28,"") ->  | GO32: =IF(AND(DATA_ENTRY!$K28=4,DATA_ENTRY!$L28="y",DATA_ENTRY!G28<>""),rel_cor_Brannick!E32,"") ->  | GP32: =IF(AND(DATA_ENTRY!$K28=4,DATA_ENTRY!$L28="y",DATA_ENTRY!G28<>""),rel_cor_Brannick!F32,"") ->  | GQ32: =IF(AND(DATA_ENTRY!$K28=4,DATA_ENTRY!$L28="y",DATA_ENTRY!G28<>""),rel_cor_Brannick!G32,"") ->  | IB32: =IF(AND(DATA_ENTRY!$K28=5,DATA_ENTRY!$L28="y",DATA_ENTRY!F28<>""),DATA_ENTRY!F28,"") ->  | IC32: =IF(AND(DATA_ENTRY!$K28=5,DATA_ENTRY!$L28="y",DATA_ENTRY!G28<>""),DATA_ENTRY!G28,"") ->  | IE32: =IF(AND(DATA_ENTRY!$K28=5,DATA_ENTRY!$L28="y",DATA_ENTRY!G28<>""),rel_cor_Brannick!E32,"") ->  | IF32: =IF(AND(DATA_ENTRY!$K28=5,DATA_ENTRY!$L28="y",DATA_ENTRY!G28<>""),rel_cor_Brannick!F32,"") ->  | IG32: =IF(AND(DATA_ENTRY!$K28=5,DATA_ENTRY!$L28="y",DATA_ENTRY!G28<>""),rel_cor_Brannick!G32,"") ->  | JR32: =IF(AND(DATA_ENTRY!$K28=6,DATA_ENTRY!$L28="y",DATA_ENTRY!F28<>""),DATA_ENTRY!F28,"") ->  | JS32: =IF(AND(DATA_ENTRY!$K28=6,DATA_ENTRY!$L28="y",DATA_ENTRY!G28<>""),DATA_ENTRY!G28,"") ->  | JU32: =IF(AND(DATA_ENTRY!$K28=6,DATA_ENTRY!$L28="y",DATA_ENTRY!G28<>""),rel_cor_Brannick!E32,"") ->  | JV32: =IF(AND(DATA_ENTRY!$K28=6,DATA_ENTRY!$L28="y",DATA_ENTRY!G28<>""),rel_cor_Brannick!F32,"") ->  | JW32: =IF(AND(DATA_ENTRY!$K28=6,DATA_ENTRY!$L28="y",DATA_ENTRY!G28<>""),rel_cor_Brannick!G32,"") -> 
B33: =IF(DATA_ENTRY!H29<>"",DATA_ENTRY!H29,DATA_ENTRY!$Q$9) -> 1 | C33: =IF(DATA_ENTRY!I29<>"",DATA_ENTRY!I29,DATA_ENTRY!$Q$10) -> 1 | D33: =IF(DATA_ENTRY!J29<>"",DATA_ENTRY!J29,DATA_ENTRY!$Q$11) -> 1 | E33: 1 | F33: 1 | G33: 1 | I33: RELIABILITY ONLY | J33: rbar c | K33: =IF(ISERROR(K11),"",K11) -> 0.3365143628 | M33: =IF(ISERROR(M11),"",M11) -> 0.5157852194 | O33: 0.1566203167 | Z33: =IF(AND(DATA_ENTRY!$L29="y",DATA_ENTRY!F29<>""),DATA_ENTRY!F29,"") ->  | AA33: =IF(AND(DATA_ENTRY!$L29="y",DATA_ENTRY!G29<>""),DATA_ENTRY!G29,"") ->  | BP33: =IF(AND(DATA_ENTRY!$K29=1,DATA_ENTRY!$L29="y",DATA_ENTRY!F29<>""),DATA_ENTRY!F29,"") ->  | BQ33: =IF(AND(DATA_ENTRY!$K29=1,DATA_ENTRY!$L29="y",DATA_ENTRY!G29<>""),DATA_ENTRY!G29,"") ->  | BS33: =IF(AND(DATA_ENTRY!$K29=1,DATA_ENTRY!$L29="y",DATA_ENTRY!G29<>""),rel_cor_Brannick!E33,"") ->  | BT33: =IF(AND(DATA_ENTRY!$K29=1,DATA_ENTRY!$L29="y",DATA_ENTRY!G29<>""),rel_cor_Brannick!F33,"") ->  | BU33: =IF(AND(DATA_ENTRY!$K29=1,DATA_ENTRY!$L29="y",DATA_ENTRY!G29<>""),rel_cor_Brannick!G33,"") ->  | DF33: =IF(AND(DATA_ENTRY!$K29=2,DATA_ENTRY!$L29="y",DATA_ENTRY!F29<>""),DATA_ENTRY!F29,"") ->  | DG33: =IF(AND(DATA_ENTRY!$K29=2,DATA_ENTRY!$L29="y",DATA_ENTRY!G29<>""),DATA_ENTRY!G29,"") ->  | DI33: =IF(AND(DATA_ENTRY!$K29=2,DATA_ENTRY!$L29="y",DATA_ENTRY!G29<>""),rel_cor_Brannick!E33,"") ->  | DJ33: =IF(AND(DATA_ENTRY!$K29=2,DATA_ENTRY!$L29="y",DATA_ENTRY!G29<>""),rel_cor_Brannick!F33,"") ->  | DK33: =IF(AND(DATA_ENTRY!$K29=2,DATA_ENTRY!$L29="y",DATA_ENTRY!G29<>""),rel_cor_Brannick!G33,"") ->  | EV33: =IF(AND(DATA_ENTRY!$K29=3,DATA_ENTRY!$L29="y",DATA_ENTRY!F29<>""),DATA_ENTRY!F29,"") ->  | EW33: =IF(AND(DATA_ENTRY!$K29=3,DATA_ENTRY!$L29="y",DATA_ENTRY!G29<>""),DATA_ENTRY!G29,"") ->  | EY33: =IF(AND(DATA_ENTRY!$K29=3,DATA_ENTRY!$L29="y",DATA_ENTRY!G29<>""),rel_cor_Brannick!E33,"") ->  | EZ33: =IF(AND(DATA_ENTRY!$K29=3,DATA_ENTRY!$L29="y",DATA_ENTRY!G29<>""),rel_cor_Brannick!F33,"") ->  | FA33: =IF(AND(DATA_ENTRY!$K29=3,DATA_ENTRY!$L29="y",DATA_ENTRY!G29<>""),rel_cor_Brannick!G33,"") ->  | GL33: =IF(AND(DATA_ENTRY!$K29=4,DATA_ENTRY!$L29="y",DATA_ENTRY!F29<>""),DATA_ENTRY!F29,"") ->  | GM33: =IF(AND(DATA_ENTRY!$K29=4,DATA_ENTRY!$L29="y",DATA_ENTRY!G29<>""),DATA_ENTRY!G29,"") ->  | GO33: =IF(AND(DATA_ENTRY!$K29=4,DATA_ENTRY!$L29="y",DATA_ENTRY!G29<>""),rel_cor_Brannick!E33,"") ->  | GP33: =IF(AND(DATA_ENTRY!$K29=4,DATA_ENTRY!$L29="y",DATA_ENTRY!G29<>""),rel_cor_Brannick!F33,"") ->  | GQ33: =IF(AND(DATA_ENTRY!$K29=4,DATA_ENTRY!$L29="y",DATA_ENTRY!G29<>""),rel_cor_Brannick!G33,"") ->  | IB33: =IF(AND(DATA_ENTRY!$K29=5,DATA_ENTRY!$L29="y",DATA_ENTRY!F29<>""),DATA_ENTRY!F29,"") ->  | IC33: =IF(AND(DATA_ENTRY!$K29=5,DATA_ENTRY!$L29="y",DATA_ENTRY!G29<>""),DATA_ENTRY!G29,"") ->  | IE33: =IF(AND(DATA_ENTRY!$K29=5,DATA_ENTRY!$L29="y",DATA_ENTRY!G29<>""),rel_cor_Brannick!E33,"") ->  | IF33: =IF(AND(DATA_ENTRY!$K29=5,DATA_ENTRY!$L29="y",DATA_ENTRY!G29<>""),rel_cor_Brannick!F33,"") ->  | IG33: =IF(AND(DATA_ENTRY!$K29=5,DATA_ENTRY!$L29="y",DATA_ENTRY!G29<>""),rel_cor_Brannick!G33,"") ->  | JR33: =IF(AND(DATA_ENTRY!$K29=6,DATA_ENTRY!$L29="y",DATA_ENTRY!F29<>""),DATA_ENTRY!F29,"") ->  | JS33: =IF(AND(DATA_ENTRY!$K29=6,DATA_ENTRY!$L29="y",DATA_ENTRY!G29<>""),DATA_ENTRY!G29,"") ->  | JU33: =IF(AND(DATA_ENTRY!$K29=6,DATA_ENTRY!$L29="y",DATA_ENTRY!G29<>""),rel_cor_Brannick!E33,"") ->  | JV33: =IF(AND(DATA_ENTRY!$K29=6,DATA_ENTRY!$L29="y",DATA_ENTRY!G29<>""),rel_cor_Brannick!F33,"") ->  | JW33: =IF(AND(DATA_ENTRY!$K29=6,DATA_ENTRY!$L29="y",DATA_ENTRY!G29<>""),rel_cor_Brannick!G33,"") -> 
B34: =IF(DATA_ENTRY!H30<>"",DATA_ENTRY!H30,DATA_ENTRY!$Q$9) -> 1 | C34: =IF(DATA_ENTRY!I30<>"",DATA_ENTRY!I30,DATA_ENTRY!$Q$10) -> 1 | D34: =IF(DATA_ENTRY!J30<>"",DATA_ENTRY!J30,DATA_ENTRY!$Q$11) -> 1 | E34: 1 | F34: 1 | G34: 1 | J34: Var(rc) | K34: =IF(ISERROR(K12),"",K12) -> 0.06162660106 | M34: 0.05102546118 | O34: 0.007652965535 | Z34: =IF(AND(DATA_ENTRY!$L30="y",DATA_ENTRY!F30<>""),DATA_ENTRY!F30,"") ->  | AA34: =IF(AND(DATA_ENTRY!$L30="y",DATA_ENTRY!G30<>""),DATA_ENTRY!G30,"") ->  | BP34: =IF(AND(DATA_ENTRY!$K30=1,DATA_ENTRY!$L30="y",DATA_ENTRY!F30<>""),DATA_ENTRY!F30,"") ->  | BQ34: =IF(AND(DATA_ENTRY!$K30=1,DATA_ENTRY!$L30="y",DATA_ENTRY!G30<>""),DATA_ENTRY!G30,"") ->  | BS34: =IF(AND(DATA_ENTRY!$K30=1,DATA_ENTRY!$L30="y",DATA_ENTRY!G30<>""),rel_cor_Brannick!E34,"") ->  | BT34: =IF(AND(DATA_ENTRY!$K30=1,DATA_ENTRY!$L30="y",DATA_ENTRY!G30<>""),rel_cor_Brannick!F34,"") ->  | BU34: =IF(AND(DATA_ENTRY!$K30=1,DATA_ENTRY!$L30="y",DATA_ENTRY!G30<>""),rel_cor_Brannick!G34,"") ->  | DF34: =IF(AND(DATA_ENTRY!$K30=2,DATA_ENTRY!$L30="y",DATA_ENTRY!F30<>""),DATA_ENTRY!F30,"") ->  | DG34: =IF(AND(DATA_ENTRY!$K30=2,DATA_ENTRY!$L30="y",DATA_ENTRY!G30<>""),DATA_ENTRY!G30,"") ->  | DI34: =IF(AND(DATA_ENTRY!$K30=2,DATA_ENTRY!$L30="y",DATA_ENTRY!G30<>""),rel_cor_Brannick!E34,"") ->  | DJ34: =IF(AND(DATA_ENTRY!$K30=2,DATA_ENTRY!$L30="y",DATA_ENTRY!G30<>""),rel_cor_Brannick!F34,"") ->  | DK34: =IF(AND(DATA_ENTRY!$K30=2,DATA_ENTRY!$L30="y",DATA_ENTRY!G30<>""),rel_cor_Brannick!G34,"") ->  | EV34: =IF(AND(DATA_ENTRY!$K30=3,DATA_ENTRY!$L30="y",DATA_ENTRY!F30<>""),DATA_ENTRY!F30,"") ->  | EW34: =IF(AND(DATA_ENTRY!$K30=3,DATA_ENTRY!$L30="y",DATA_ENTRY!G30<>""),DATA_ENTRY!G30,"") ->  | EY34: =IF(AND(DATA_ENTRY!$K30=3,DATA_ENTRY!$L30="y",DATA_ENTRY!G30<>""),rel_cor_Brannick!E34,"") ->  | EZ34: =IF(AND(DATA_ENTRY!$K30=3,DATA_ENTRY!$L30="y",DATA_ENTRY!G30<>""),rel_cor_Brannick!F34,"") ->  | FA34: =IF(AND(DATA_ENTRY!$K30=3,DATA_ENTRY!$L30="y",DATA_ENTRY!G30<>""),rel_cor_Brannick!G34,"") ->  | GL34: =IF(AND(DATA_ENTRY!$K30=4,DATA_ENTRY!$L30="y",DATA_ENTRY!F30<>""),DATA_ENTRY!F30,"") ->  | GM34: =IF(AND(DATA_ENTRY!$K30=4,DATA_ENTRY!$L30="y",DATA_ENTRY!G30<>""),DATA_ENTRY!G30,"") ->  | GO34: =IF(AND(DATA_ENTRY!$K30=4,DATA_ENTRY!$L30="y",DATA_ENTRY!G30<>""),rel_cor_Brannick!E34,"") ->  | GP34: =IF(AND(DATA_ENTRY!$K30=4,DATA_ENTRY!$L30="y",DATA_ENTRY!G30<>""),rel_cor_Brannick!F34,"") ->  | GQ34: =IF(AND(DATA_ENTRY!$K30=4,DATA_ENTRY!$L30="y",DATA_ENTRY!G30<>""),rel_cor_Brannick!G34,"") ->  | IB34: =IF(AND(DATA_ENTRY!$K30=5,DATA_ENTRY!$L30="y",DATA_ENTRY!F30<>""),DATA_ENTRY!F30,"") ->  | IC34: =IF(AND(DATA_ENTRY!$K30=5,DATA_ENTRY!$L30="y",DATA_ENTRY!G30<>""),DATA_ENTRY!G30,"") ->  | IE34: =IF(AND(DATA_ENTRY!$K30=5,DATA_ENTRY!$L30="y",DATA_ENTRY!G30<>""),rel_cor_Brannick!E34,"") ->  | IF34: =IF(AND(DATA_ENTRY!$K30=5,DATA_ENTRY!$L30="y",DATA_ENTRY!G30<>""),rel_cor_Brannick!F34,"") ->  | IG34: =IF(AND(DATA_ENTRY!$K30=5,DATA_ENTRY!$L30="y",DATA_ENTRY!G30<>""),rel_cor_Brannick!G34,"") ->  | JR34: =IF(AND(DATA_ENTRY!$K30=6,DATA_ENTRY!$L30="y",DATA_ENTRY!F30<>""),DATA_ENTRY!F30,"") ->  | JS34: =IF(AND(DATA_ENTRY!$K30=6,DATA_ENTRY!$L30="y",DATA_ENTRY!G30<>""),DATA_ENTRY!G30,"") ->  | JU34: =IF(AND(DATA_ENTRY!$K30=6,DATA_ENTRY!$L30="y",DATA_ENTRY!G30<>""),rel_cor_Brannick!E34,"") ->  | JV34: =IF(AND(DATA_ENTRY!$K30=6,DATA_ENTRY!$L30="y",DATA_ENTRY!G30<>""),rel_cor_Brannick!F34,"") ->  | JW34: =IF(AND(DATA_ENTRY!$K30=6,DATA_ENTRY!$L30="y",DATA_ENTRY!G30<>""),rel_cor_Brannick!G34,"") -> 
B35: =IF(DATA_ENTRY!H31<>"",DATA_ENTRY!H31,DATA_ENTRY!$Q$9) -> 1 | C35: =IF(DATA_ENTRY!I31<>"",DATA_ENTRY!I31,DATA_ENTRY!$Q$10) -> 1 | D35: =IF(DATA_ENTRY!J31<>"",DATA_ENTRY!J31,DATA_ENTRY!$Q$11) -> 1 | E35: 1 | F35: 1 | G35: 1 | J35: Ave(ve) | K35: =IF(ISERROR(K13),"",K13) -> 0.003666604603 | M35: 0.002502449279 | O35: 0.004453701159 | Z35: =IF(AND(DATA_ENTRY!$L31="y",DATA_ENTRY!F31<>""),DATA_ENTRY!F31,"") ->  | AA35: =IF(AND(DATA_ENTRY!$L31="y",DATA_ENTRY!G31<>""),DATA_ENTRY!G31,"") ->  | BP35: =IF(AND(DATA_ENTRY!$K31=1,DATA_ENTRY!$L31="y",DATA_ENTRY!F31<>""),DATA_ENTRY!F31,"") ->  | BQ35: =IF(AND(DATA_ENTRY!$K31=1,DATA_ENTRY!$L31="y",DATA_ENTRY!G31<>""),DATA_ENTRY!G31,"") ->  | BS35: =IF(AND(DATA_ENTRY!$K31=1,DATA_ENTRY!$L31="y",DATA_ENTRY!G31<>""),rel_cor_Brannick!E35,"") ->  | BT35: =IF(AND(DATA_ENTRY!$K31=1,DATA_ENTRY!$L31="y",DATA_ENTRY!G31<>""),rel_cor_Brannick!F35,"") ->  | BU35: =IF(AND(DATA_ENTRY!$K31=1,DATA_ENTRY!$L31="y",DATA_ENTRY!G31<>""),rel_cor_Brannick!G35,"") ->  | DF35: =IF(AND(DATA_ENTRY!$K31=2,DATA_ENTRY!$L31="y",DATA_ENTRY!F31<>""),DATA_ENTRY!F31,"") ->  | DG35: =IF(AND(DATA_ENTRY!$K31=2,DATA_ENTRY!$L31="y",DATA_ENTRY!G31<>""),DATA_ENTRY!G31,"") ->  | DI35: =IF(AND(DATA_ENTRY!$K31=2,DATA_ENTRY!$L31="y",DATA_ENTRY!G31<>""),rel_cor_Brannick!E35,"") ->  | DJ35: =IF(AND(DATA_ENTRY!$K31=2,DATA_ENTRY!$L31="y",DATA_ENTRY!G31<>""),rel_cor_Brannick!F35,"") ->  | DK35: =IF(AND(DATA_ENTRY!$K31=2,DATA_ENTRY!$L31="y",DATA_ENTRY!G31<>""),rel_cor_Brannick!G35,"") ->  | EV35: =IF(AND(DATA_ENTRY!$K31=3,DATA_ENTRY!$L31="y",DATA_ENTRY!F31<>""),DATA_ENTRY!F31,"") ->  | EW35: =IF(AND(DATA_ENTRY!$K31=3,DATA_ENTRY!$L31="y",DATA_ENTRY!G31<>""),DATA_ENTRY!G31,"") ->  | EY35: =IF(AND(DATA_ENTRY!$K31=3,DATA_ENTRY!$L31="y",DATA_ENTRY!G31<>""),rel_cor_Brannick!E35,"") ->  | EZ35: =IF(AND(DATA_ENTRY!$K31=3,DATA_ENTRY!$L31="y",DATA_ENTRY!G31<>""),rel_cor_Brannick!F35,"") ->  | FA35: =IF(AND(DATA_ENTRY!$K31=3,DATA_ENTRY!$L31="y",DATA_ENTRY!G31<>""),rel_cor_Brannick!G35,"") ->  | GL35: =IF(AND(DATA_ENTRY!$K31=4,DATA_ENTRY!$L31="y",DATA_ENTRY!F31<>""),DATA_ENTRY!F31,"") ->  | GM35: =IF(AND(DATA_ENTRY!$K31=4,DATA_ENTRY!$L31="y",DATA_ENTRY!G31<>""),DATA_ENTRY!G31,"") ->  | GO35: =IF(AND(DATA_ENTRY!$K31=4,DATA_ENTRY!$L31="y",DATA_ENTRY!G31<>""),rel_cor_Brannick!E35,"") ->  | GP35: =IF(AND(DATA_ENTRY!$K31=4,DATA_ENTRY!$L31="y",DATA_ENTRY!G31<>""),rel_cor_Brannick!F35,"") ->  | GQ35: =IF(AND(DATA_ENTRY!$K31=4,DATA_ENTRY!$L31="y",DATA_ENTRY!G31<>""),rel_cor_Brannick!G35,"") ->  | IB35: =IF(AND(DATA_ENTRY!$K31=5,DATA_ENTRY!$L31="y",DATA_ENTRY!F31<>""),DATA_ENTRY!F31,"") ->  | IC35: =IF(AND(DATA_ENTRY!$K31=5,DATA_ENTRY!$L31="y",DATA_ENTRY!G31<>""),DATA_ENTRY!G31,"") ->  | IE35: =IF(AND(DATA_ENTRY!$K31=5,DATA_ENTRY!$L31="y",DATA_ENTRY!G31<>""),rel_cor_Brannick!E35,"") ->  | IF35: =IF(AND(DATA_ENTRY!$K31=5,DATA_ENTRY!$L31="y",DATA_ENTRY!G31<>""),rel_cor_Brannick!F35,"") ->  | IG35: =IF(AND(DATA_ENTRY!$K31=5,DATA_ENTRY!$L31="y",DATA_ENTRY!G31<>""),rel_cor_Brannick!G35,"") ->  | JR35: =IF(AND(DATA_ENTRY!$K31=6,DATA_ENTRY!$L31="y",DATA_ENTRY!F31<>""),DATA_ENTRY!F31,"") ->  | JS35: =IF(AND(DATA_ENTRY!$K31=6,DATA_ENTRY!$L31="y",DATA_ENTRY!G31<>""),DATA_ENTRY!G31,"") ->  | JU35: =IF(AND(DATA_ENTRY!$K31=6,DATA_ENTRY!$L31="y",DATA_ENTRY!G31<>""),rel_cor_Brannick!E35,"") ->  | JV35: =IF(AND(DATA_ENTRY!$K31=6,DATA_ENTRY!$L31="y",DATA_ENTRY!G31<>""),rel_cor_Brannick!F35,"") ->  | JW35: =IF(AND(DATA_ENTRY!$K31=6,DATA_ENTRY!$L31="y",DATA_ENTRY!G31<>""),rel_cor_Brannick!G35,"") -> 
B36: =IF(DATA_ENTRY!H32<>"",DATA_ENTRY!H32,DATA_ENTRY!$Q$9) -> 1 | C36: =IF(DATA_ENTRY!I32<>"",DATA_ENTRY!I32,DATA_ENTRY!$Q$10) -> 1 | D36: =IF(DATA_ENTRY!J32<>"",DATA_ENTRY!J32,DATA_ENTRY!$Q$11) -> 1 | E36: 1 | F36: 1 | G36: 1 | J36: Var(rho) | K36: =IF(ISERROR(K14),"",K14) -> 0.05795999645 | M36: 0.0485230119 | O36: 0.003199264377 | Z36: =IF(AND(DATA_ENTRY!$L32="y",DATA_ENTRY!F32<>""),DATA_ENTRY!F32,"") ->  | AA36: =IF(AND(DATA_ENTRY!$L32="y",DATA_ENTRY!G32<>""),DATA_ENTRY!G32,"") ->  | BP36: =IF(AND(DATA_ENTRY!$K32=1,DATA_ENTRY!$L32="y",DATA_ENTRY!F32<>""),DATA_ENTRY!F32,"") ->  | BQ36: =IF(AND(DATA_ENTRY!$K32=1,DATA_ENTRY!$L32="y",DATA_ENTRY!G32<>""),DATA_ENTRY!G32,"") ->  | BS36: =IF(AND(DATA_ENTRY!$K32=1,DATA_ENTRY!$L32="y",DATA_ENTRY!G32<>""),rel_cor_Brannick!E36,"") ->  | BT36: =IF(AND(DATA_ENTRY!$K32=1,DATA_ENTRY!$L32="y",DATA_ENTRY!G32<>""),rel_cor_Brannick!F36,"") ->  | BU36: =IF(AND(DATA_ENTRY!$K32=1,DATA_ENTRY!$L32="y",DATA_ENTRY!G32<>""),rel_cor_Brannick!G36,"") ->  | DF36: =IF(AND(DATA_ENTRY!$K32=2,DATA_ENTRY!$L32="y",DATA_ENTRY!F32<>""),DATA_ENTRY!F32,"") ->  | DG36: =IF(AND(DATA_ENTRY!$K32=2,DATA_ENTRY!$L32="y",DATA_ENTRY!G32<>""),DATA_ENTRY!G32,"") ->  | DI36: =IF(AND(DATA_ENTRY!$K32=2,DATA_ENTRY!$L32="y",DATA_ENTRY!G32<>""),rel_cor_Brannick!E36,"") ->  | DJ36: =IF(AND(DATA_ENTRY!$K32=2,DATA_ENTRY!$L32="y",DATA_ENTRY!G32<>""),rel_cor_Brannick!F36,"") ->  | DK36: =IF(AND(DATA_ENTRY!$K32=2,DATA_ENTRY!$L32="y",DATA_ENTRY!G32<>""),rel_cor_Brannick!G36,"") ->  | EV36: =IF(AND(DATA_ENTRY!$K32=3,DATA_ENTRY!$L32="y",DATA_ENTRY!F32<>""),DATA_ENTRY!F32,"") ->  | EW36: =IF(AND(DATA_ENTRY!$K32=3,DATA_ENTRY!$L32="y",DATA_ENTRY!G32<>""),DATA_ENTRY!G32,"") ->  | EY36: =IF(AND(DATA_ENTRY!$K32=3,DATA_ENTRY!$L32="y",DATA_ENTRY!G32<>""),rel_cor_Brannick!E36,"") ->  | EZ36: =IF(AND(DATA_ENTRY!$K32=3,DATA_ENTRY!$L32="y",DATA_ENTRY!G32<>""),rel_cor_Brannick!F36,"") ->  | FA36: =IF(AND(DATA_ENTRY!$K32=3,DATA_ENTRY!$L32="y",DATA_ENTRY!G32<>""),rel_cor_Brannick!G36,"") ->  | GL36: =IF(AND(DATA_ENTRY!$K32=4,DATA_ENTRY!$L32="y",DATA_ENTRY!F32<>""),DATA_ENTRY!F32,"") ->  | GM36: =IF(AND(DATA_ENTRY!$K32=4,DATA_ENTRY!$L32="y",DATA_ENTRY!G32<>""),DATA_ENTRY!G32,"") ->  | GO36: =IF(AND(DATA_ENTRY!$K32=4,DATA_ENTRY!$L32="y",DATA_ENTRY!G32<>""),rel_cor_Brannick!E36,"") ->  | GP36: =IF(AND(DATA_ENTRY!$K32=4,DATA_ENTRY!$L32="y",DATA_ENTRY!G32<>""),rel_cor_Brannick!F36,"") ->  | GQ36: =IF(AND(DATA_ENTRY!$K32=4,DATA_ENTRY!$L32="y",DATA_ENTRY!G32<>""),rel_cor_Brannick!G36,"") ->  | IB36: =IF(AND(DATA_ENTRY!$K32=5,DATA_ENTRY!$L32="y",DATA_ENTRY!F32<>""),DATA_ENTRY!F32,"") ->  | IC36: =IF(AND(DATA_ENTRY!$K32=5,DATA_ENTRY!$L32="y",DATA_ENTRY!G32<>""),DATA_ENTRY!G32,"") ->  | IE36: =IF(AND(DATA_ENTRY!$K32=5,DATA_ENTRY!$L32="y",DATA_ENTRY!G32<>""),rel_cor_Brannick!E36,"") ->  | IF36: =IF(AND(DATA_ENTRY!$K32=5,DATA_ENTRY!$L32="y",DATA_ENTRY!G32<>""),rel_cor_Brannick!F36,"") ->  | IG36: =IF(AND(DATA_ENTRY!$K32=5,DATA_ENTRY!$L32="y",DATA_ENTRY!G32<>""),rel_cor_Brannick!G36,"") ->  | JR36: =IF(AND(DATA_ENTRY!$K32=6,DATA_ENTRY!$L32="y",DATA_ENTRY!F32<>""),DATA_ENTRY!F32,"") ->  | JS36: =IF(AND(DATA_ENTRY!$K32=6,DATA_ENTRY!$L32="y",DATA_ENTRY!G32<>""),DATA_ENTRY!G32,"") ->  | JU36: =IF(AND(DATA_ENTRY!$K32=6,DATA_ENTRY!$L32="y",DATA_ENTRY!G32<>""),rel_cor_Brannick!E36,"") ->  | JV36: =IF(AND(DATA_ENTRY!$K32=6,DATA_ENTRY!$L32="y",DATA_ENTRY!G32<>""),rel_cor_Brannick!F36,"") ->  | JW36: =IF(AND(DATA_ENTRY!$K32=6,DATA_ENTRY!$L32="y",DATA_ENTRY!G32<>""),rel_cor_Brannick!G36,"") -> 
B37: =IF(DATA_ENTRY!H33<>"",DATA_ENTRY!H33,DATA_ENTRY!$Q$9) -> 1 | C37: =IF(DATA_ENTRY!I33<>"",DATA_ENTRY!I33,DATA_ENTRY!$Q$10) -> 1 | D37: =IF(DATA_ENTRY!J33<>"",DATA_ENTRY!J33,DATA_ENTRY!$Q$11) -> 1 | E37: 1 | F37: 1 | G37: 1 | J37: SD(rho) | K37: =IF(ISERROR(K15),"",K15) -> 0.2407488244 | M37: 0.2202793951 | O37: 0.05656204007 | Z37: =IF(AND(DATA_ENTRY!$L33="y",DATA_ENTRY!F33<>""),DATA_ENTRY!F33,"") ->  | AA37: =IF(AND(DATA_ENTRY!$L33="y",DATA_ENTRY!G33<>""),DATA_ENTRY!G33,"") ->  | BP37: =IF(AND(DATA_ENTRY!$K33=1,DATA_ENTRY!$L33="y",DATA_ENTRY!F33<>""),DATA_ENTRY!F33,"") ->  | BQ37: =IF(AND(DATA_ENTRY!$K33=1,DATA_ENTRY!$L33="y",DATA_ENTRY!G33<>""),DATA_ENTRY!G33,"") ->  | BS37: =IF(AND(DATA_ENTRY!$K33=1,DATA_ENTRY!$L33="y",DATA_ENTRY!G33<>""),rel_cor_Brannick!E37,"") ->  | BT37: =IF(AND(DATA_ENTRY!$K33=1,DATA_ENTRY!$L33="y",DATA_ENTRY!G33<>""),rel_cor_Brannick!F37,"") ->  | BU37: =IF(AND(DATA_ENTRY!$K33=1,DATA_ENTRY!$L33="y",DATA_ENTRY!G33<>""),rel_cor_Brannick!G37,"") ->  | DF37: =IF(AND(DATA_ENTRY!$K33=2,DATA_ENTRY!$L33="y",DATA_ENTRY!F33<>""),DATA_ENTRY!F33,"") ->  | DG37: =IF(AND(DATA_ENTRY!$K33=2,DATA_ENTRY!$L33="y",DATA_ENTRY!G33<>""),DATA_ENTRY!G33,"") ->  | DI37: =IF(AND(DATA_ENTRY!$K33=2,DATA_ENTRY!$L33="y",DATA_ENTRY!G33<>""),rel_cor_Brannick!E37,"") ->  | DJ37: =IF(AND(DATA_ENTRY!$K33=2,DATA_ENTRY!$L33="y",DATA_ENTRY!G33<>""),rel_cor_Brannick!F37,"") ->  | DK37: =IF(AND(DATA_ENTRY!$K33=2,DATA_ENTRY!$L33="y",DATA_ENTRY!G33<>""),rel_cor_Brannick!G37,"") ->  | EV37: =IF(AND(DATA_ENTRY!$K33=3,DATA_ENTRY!$L33="y",DATA_ENTRY!F33<>""),DATA_ENTRY!F33,"") ->  | EW37: =IF(AND(DATA_ENTRY!$K33=3,DATA_ENTRY!$L33="y",DATA_ENTRY!G33<>""),DATA_ENTRY!G33,"") ->  | EY37: =IF(AND(DATA_ENTRY!$K33=3,DATA_ENTRY!$L33="y",DATA_ENTRY!G33<>""),rel_cor_Brannick!E37,"") ->  | EZ37: =IF(AND(DATA_ENTRY!$K33=3,DATA_ENTRY!$L33="y",DATA_ENTRY!G33<>""),rel_cor_Brannick!F37,"") ->  | FA37: =IF(AND(DATA_ENTRY!$K33=3,DATA_ENTRY!$L33="y",DATA_ENTRY!G33<>""),rel_cor_Brannick!G37,"") ->  | GL37: =IF(AND(DATA_ENTRY!$K33=4,DATA_ENTRY!$L33="y",DATA_ENTRY!F33<>""),DATA_ENTRY!F33,"") ->  | GM37: =IF(AND(DATA_ENTRY!$K33=4,DATA_ENTRY!$L33="y",DATA_ENTRY!G33<>""),DATA_ENTRY!G33,"") ->  | GO37: =IF(AND(DATA_ENTRY!$K33=4,DATA_ENTRY!$L33="y",DATA_ENTRY!G33<>""),rel_cor_Brannick!E37,"") ->  | GP37: =IF(AND(DATA_ENTRY!$K33=4,DATA_ENTRY!$L33="y",DATA_ENTRY!G33<>""),rel_cor_Brannick!F37,"") ->  | GQ37: =IF(AND(DATA_ENTRY!$K33=4,DATA_ENTRY!$L33="y",DATA_ENTRY!G33<>""),rel_cor_Brannick!G37,"") ->  | IB37: =IF(AND(DATA_ENTRY!$K33=5,DATA_ENTRY!$L33="y",DATA_ENTRY!F33<>""),DATA_ENTRY!F33,"") ->  | IC37: =IF(AND(DATA_ENTRY!$K33=5,DATA_ENTRY!$L33="y",DATA_ENTRY!G33<>""),DATA_ENTRY!G33,"") ->  | IE37: =IF(AND(DATA_ENTRY!$K33=5,DATA_ENTRY!$L33="y",DATA_ENTRY!G33<>""),rel_cor_Brannick!E37,"") ->  | IF37: =IF(AND(DATA_ENTRY!$K33=5,DATA_ENTRY!$L33="y",DATA_ENTRY!G33<>""),rel_cor_Brannick!F37,"") ->  | IG37: =IF(AND(DATA_ENTRY!$K33=5,DATA_ENTRY!$L33="y",DATA_ENTRY!G33<>""),rel_cor_Brannick!G37,"") ->  | JR37: =IF(AND(DATA_ENTRY!$K33=6,DATA_ENTRY!$L33="y",DATA_ENTRY!F33<>""),DATA_ENTRY!F33,"") ->  | JS37: =IF(AND(DATA_ENTRY!$K33=6,DATA_ENTRY!$L33="y",DATA_ENTRY!G33<>""),DATA_ENTRY!G33,"") ->  | JU37: =IF(AND(DATA_ENTRY!$K33=6,DATA_ENTRY!$L33="y",DATA_ENTRY!G33<>""),rel_cor_Brannick!E37,"") ->  | JV37: =IF(AND(DATA_ENTRY!$K33=6,DATA_ENTRY!$L33="y",DATA_ENTRY!G33<>""),rel_cor_Brannick!F37,"") ->  | JW37: =IF(AND(DATA_ENTRY!$K33=6,DATA_ENTRY!$L33="y",DATA_ENTRY!G33<>""),rel_cor_Brannick!G37,"") -> 
B38: =IF(DATA_ENTRY!H34<>"",DATA_ENTRY!H34,DATA_ENTRY!$Q$9) -> 1 | C38: =IF(DATA_ENTRY!I34<>"",DATA_ENTRY!I34,DATA_ENTRY!$Q$10) -> 1 | D38: =IF(DATA_ENTRY!J34<>"",DATA_ENTRY!J34,DATA_ENTRY!$Q$11) -> 1 | E38: 1 | F38: 1 | G38: 1 | J38: CRED | K38: =IF(ISERROR(K16),"",K16) -> 0.6450463957 | M38: 0.798084623 | O38: 0.2291074877 | Z38: =IF(AND(DATA_ENTRY!$L34="y",DATA_ENTRY!F34<>""),DATA_ENTRY!F34,"") ->  | AA38: =IF(AND(DATA_ENTRY!$L34="y",DATA_ENTRY!G34<>""),DATA_ENTRY!G34,"") ->  | BP38: =IF(AND(DATA_ENTRY!$K34=1,DATA_ENTRY!$L34="y",DATA_ENTRY!F34<>""),DATA_ENTRY!F34,"") ->  | BQ38: =IF(AND(DATA_ENTRY!$K34=1,DATA_ENTRY!$L34="y",DATA_ENTRY!G34<>""),DATA_ENTRY!G34,"") ->  | BS38: =IF(AND(DATA_ENTRY!$K34=1,DATA_ENTRY!$L34="y",DATA_ENTRY!G34<>""),rel_cor_Brannick!E38,"") ->  | BT38: =IF(AND(DATA_ENTRY!$K34=1,DATA_ENTRY!$L34="y",DATA_ENTRY!G34<>""),rel_cor_Brannick!F38,"") ->  | BU38: =IF(AND(DATA_ENTRY!$K34=1,DATA_ENTRY!$L34="y",DATA_ENTRY!G34<>""),rel_cor_Brannick!G38,"") ->  | DF38: =IF(AND(DATA_ENTRY!$K34=2,DATA_ENTRY!$L34="y",DATA_ENTRY!F34<>""),DATA_ENTRY!F34,"") ->  | DG38: =IF(AND(DATA_ENTRY!$K34=2,DATA_ENTRY!$L34="y",DATA_ENTRY!G34<>""),DATA_ENTRY!G34,"") ->  | DI38: =IF(AND(DATA_ENTRY!$K34=2,DATA_ENTRY!$L34="y",DATA_ENTRY!G34<>""),rel_cor_Brannick!E38,"") ->  | DJ38: =IF(AND(DATA_ENTRY!$K34=2,DATA_ENTRY!$L34="y",DATA_ENTRY!G34<>""),rel_cor_Brannick!F38,"") ->  | DK38: =IF(AND(DATA_ENTRY!$K34=2,DATA_ENTRY!$L34="y",DATA_ENTRY!G34<>""),rel_cor_Brannick!G38,"") ->  | EV38: =IF(AND(DATA_ENTRY!$K34=3,DATA_ENTRY!$L34="y",DATA_ENTRY!F34<>""),DATA_ENTRY!F34,"") ->  | EW38: =IF(AND(DATA_ENTRY!$K34=3,DATA_ENTRY!$L34="y",DATA_ENTRY!G34<>""),DATA_ENTRY!G34,"") ->  | EY38: =IF(AND(DATA_ENTRY!$K34=3,DATA_ENTRY!$L34="y",DATA_ENTRY!G34<>""),rel_cor_Brannick!E38,"") ->  | EZ38: =IF(AND(DATA_ENTRY!$K34=3,DATA_ENTRY!$L34="y",DATA_ENTRY!G34<>""),rel_cor_Brannick!F38,"") ->  | FA38: =IF(AND(DATA_ENTRY!$K34=3,DATA_ENTRY!$L34="y",DATA_ENTRY!G34<>""),rel_cor_Brannick!G38,"") ->  | GL38: =IF(AND(DATA_ENTRY!$K34=4,DATA_ENTRY!$L34="y",DATA_ENTRY!F34<>""),DATA_ENTRY!F34,"") ->  | GM38: =IF(AND(DATA_ENTRY!$K34=4,DATA_ENTRY!$L34="y",DATA_ENTRY!G34<>""),DATA_ENTRY!G34,"") ->  | GO38: =IF(AND(DATA_ENTRY!$K34=4,DATA_ENTRY!$L34="y",DATA_ENTRY!G34<>""),rel_cor_Brannick!E38,"") ->  | GP38: =IF(AND(DATA_ENTRY!$K34=4,DATA_ENTRY!$L34="y",DATA_ENTRY!G34<>""),rel_cor_Brannick!F38,"") ->  | GQ38: =IF(AND(DATA_ENTRY!$K34=4,DATA_ENTRY!$L34="y",DATA_ENTRY!G34<>""),rel_cor_Brannick!G38,"") ->  | IB38: =IF(AND(DATA_ENTRY!$K34=5,DATA_ENTRY!$L34="y",DATA_ENTRY!F34<>""),DATA_ENTRY!F34,"") ->  | IC38: =IF(AND(DATA_ENTRY!$K34=5,DATA_ENTRY!$L34="y",DATA_ENTRY!G34<>""),DATA_ENTRY!G34,"") ->  | IE38: =IF(AND(DATA_ENTRY!$K34=5,DATA_ENTRY!$L34="y",DATA_ENTRY!G34<>""),rel_cor_Brannick!E38,"") ->  | IF38: =IF(AND(DATA_ENTRY!$K34=5,DATA_ENTRY!$L34="y",DATA_ENTRY!G34<>""),rel_cor_Brannick!F38,"") ->  | IG38: =IF(AND(DATA_ENTRY!$K34=5,DATA_ENTRY!$L34="y",DATA_ENTRY!G34<>""),rel_cor_Brannick!G38,"") ->  | JR38: =IF(AND(DATA_ENTRY!$K34=6,DATA_ENTRY!$L34="y",DATA_ENTRY!F34<>""),DATA_ENTRY!F34,"") ->  | JS38: =IF(AND(DATA_ENTRY!$K34=6,DATA_ENTRY!$L34="y",DATA_ENTRY!G34<>""),DATA_ENTRY!G34,"") ->  | JU38: =IF(AND(DATA_ENTRY!$K34=6,DATA_ENTRY!$L34="y",DATA_ENTRY!G34<>""),rel_cor_Brannick!E38,"") ->  | JV38: =IF(AND(DATA_ENTRY!$K34=6,DATA_ENTRY!$L34="y",DATA_ENTRY!G34<>""),rel_cor_Brannick!F38,"") ->  | JW38: =IF(AND(DATA_ENTRY!$K34=6,DATA_ENTRY!$L34="y",DATA_ENTRY!G34<>""),rel_cor_Brannick!G38,"") -> 
B39: =IF(DATA_ENTRY!H35<>"",DATA_ENTRY!H35,DATA_ENTRY!$Q$9) -> 1 | C39: =IF(DATA_ENTRY!I35<>"",DATA_ENTRY!I35,DATA_ENTRY!$Q$10) -> 1 | D39: =IF(DATA_ENTRY!J35<>"",DATA_ENTRY!J35,DATA_ENTRY!$Q$11) -> 1 | E39: 1 | F39: 1 | G39: 1 | J39: CRED | K39: =IF(ISERROR(K17),"",K17) -> 0.02798233001 | M39: 0.2334858158 | O39: 0.08413314572 | Z39: =IF(AND(DATA_ENTRY!$L35="y",DATA_ENTRY!F35<>""),DATA_ENTRY!F35,"") ->  | AA39: =IF(AND(DATA_ENTRY!$L35="y",DATA_ENTRY!G35<>""),DATA_ENTRY!G35,"") ->  | BP39: =IF(AND(DATA_ENTRY!$K35=1,DATA_ENTRY!$L35="y",DATA_ENTRY!F35<>""),DATA_ENTRY!F35,"") ->  | BQ39: =IF(AND(DATA_ENTRY!$K35=1,DATA_ENTRY!$L35="y",DATA_ENTRY!G35<>""),DATA_ENTRY!G35,"") ->  | BS39: =IF(AND(DATA_ENTRY!$K35=1,DATA_ENTRY!$L35="y",DATA_ENTRY!G35<>""),rel_cor_Brannick!E39,"") ->  | BT39: =IF(AND(DATA_ENTRY!$K35=1,DATA_ENTRY!$L35="y",DATA_ENTRY!G35<>""),rel_cor_Brannick!F39,"") ->  | BU39: =IF(AND(DATA_ENTRY!$K35=1,DATA_ENTRY!$L35="y",DATA_ENTRY!G35<>""),rel_cor_Brannick!G39,"") ->  | DF39: =IF(AND(DATA_ENTRY!$K35=2,DATA_ENTRY!$L35="y",DATA_ENTRY!F35<>""),DATA_ENTRY!F35,"") ->  | DG39: =IF(AND(DATA_ENTRY!$K35=2,DATA_ENTRY!$L35="y",DATA_ENTRY!G35<>""),DATA_ENTRY!G35,"") ->  | DI39: =IF(AND(DATA_ENTRY!$K35=2,DATA_ENTRY!$L35="y",DATA_ENTRY!G35<>""),rel_cor_Brannick!E39,"") ->  | DJ39: =IF(AND(DATA_ENTRY!$K35=2,DATA_ENTRY!$L35="y",DATA_ENTRY!G35<>""),rel_cor_Brannick!F39,"") ->  | DK39: =IF(AND(DATA_ENTRY!$K35=2,DATA_ENTRY!$L35="y",DATA_ENTRY!G35<>""),rel_cor_Brannick!G39,"") ->  | EV39: =IF(AND(DATA_ENTRY!$K35=3,DATA_ENTRY!$L35="y",DATA_ENTRY!F35<>""),DATA_ENTRY!F35,"") ->  | EW39: =IF(AND(DATA_ENTRY!$K35=3,DATA_ENTRY!$L35="y",DATA_ENTRY!G35<>""),DATA_ENTRY!G35,"") ->  | EY39: =IF(AND(DATA_ENTRY!$K35=3,DATA_ENTRY!$L35="y",DATA_ENTRY!G35<>""),rel_cor_Brannick!E39,"") ->  | EZ39: =IF(AND(DATA_ENTRY!$K35=3,DATA_ENTRY!$L35="y",DATA_ENTRY!G35<>""),rel_cor_Brannick!F39,"") ->  | FA39: =IF(AND(DATA_ENTRY!$K35=3,DATA_ENTRY!$L35="y",DATA_ENTRY!G35<>""),rel_cor_Brannick!G39,"") ->  | GL39: =IF(AND(DATA_ENTRY!$K35=4,DATA_ENTRY!$L35="y",DATA_ENTRY!F35<>""),DATA_ENTRY!F35,"") ->  | GM39: =IF(AND(DATA_ENTRY!$K35=4,DATA_ENTRY!$L35="y",DATA_ENTRY!G35<>""),DATA_ENTRY!G35,"") ->  | GO39: =IF(AND(DATA_ENTRY!$K35=4,DATA_ENTRY!$L35="y",DATA_ENTRY!G35<>""),rel_cor_Brannick!E39,"") ->  | GP39: =IF(AND(DATA_ENTRY!$K35=4,DATA_ENTRY!$L35="y",DATA_ENTRY!G35<>""),rel_cor_Brannick!F39,"") ->  | GQ39: =IF(AND(DATA_ENTRY!$K35=4,DATA_ENTRY!$L35="y",DATA_ENTRY!G35<>""),rel_cor_Brannick!G39,"") ->  | IB39: =IF(AND(DATA_ENTRY!$K35=5,DATA_ENTRY!$L35="y",DATA_ENTRY!F35<>""),DATA_ENTRY!F35,"") ->  | IC39: =IF(AND(DATA_ENTRY!$K35=5,DATA_ENTRY!$L35="y",DATA_ENTRY!G35<>""),DATA_ENTRY!G35,"") ->  | IE39: =IF(AND(DATA_ENTRY!$K35=5,DATA_ENTRY!$L35="y",DATA_ENTRY!G35<>""),rel_cor_Brannick!E39,"") ->  | IF39: =IF(AND(DATA_ENTRY!$K35=5,DATA_ENTRY!$L35="y",DATA_ENTRY!G35<>""),rel_cor_Brannick!F39,"") ->  | IG39: =IF(AND(DATA_ENTRY!$K35=5,DATA_ENTRY!$L35="y",DATA_ENTRY!G35<>""),rel_cor_Brannick!G39,"") ->  | JR39: =IF(AND(DATA_ENTRY!$K35=6,DATA_ENTRY!$L35="y",DATA_ENTRY!F35<>""),DATA_ENTRY!F35,"") ->  | JS39: =IF(AND(DATA_ENTRY!$K35=6,DATA_ENTRY!$L35="y",DATA_ENTRY!G35<>""),DATA_ENTRY!G35,"") ->  | JU39: =IF(AND(DATA_ENTRY!$K35=6,DATA_ENTRY!$L35="y",DATA_ENTRY!G35<>""),rel_cor_Brannick!E39,"") ->  | JV39: =IF(AND(DATA_ENTRY!$K35=6,DATA_ENTRY!$L35="y",DATA_ENTRY!G35<>""),rel_cor_Brannick!F39,"") ->  | JW39: =IF(AND(DATA_ENTRY!$K35=6,DATA_ENTRY!$L35="y",DATA_ENTRY!G35<>""),rel_cor_Brannick!G39,"") -> 
B40: =IF(DATA_ENTRY!H36<>"",DATA_ENTRY!H36,DATA_ENTRY!$Q$9) -> 1 | C40: =IF(DATA_ENTRY!I36<>"",DATA_ENTRY!I36,DATA_ENTRY!$Q$10) -> 1 | D40: =IF(DATA_ENTRY!J36<>"",DATA_ENTRY!J36,DATA_ENTRY!$Q$11) -> 1 | E40: 1 | F40: 1 | G40: 1 | I40: Indirect RR | J40: rbar c | K40: =IF(ISERROR(K18),"",K18) -> 0.3365143628 | M40: 0.5157852194 | O40: 0.1566203167 | Z40: =IF(AND(DATA_ENTRY!$L36="y",DATA_ENTRY!F36<>""),DATA_ENTRY!F36,"") ->  | AA40: =IF(AND(DATA_ENTRY!$L36="y",DATA_ENTRY!G36<>""),DATA_ENTRY!G36,"") ->  | BP40: =IF(AND(DATA_ENTRY!$K36=1,DATA_ENTRY!$L36="y",DATA_ENTRY!F36<>""),DATA_ENTRY!F36,"") ->  | BQ40: =IF(AND(DATA_ENTRY!$K36=1,DATA_ENTRY!$L36="y",DATA_ENTRY!G36<>""),DATA_ENTRY!G36,"") ->  | BS40: =IF(AND(DATA_ENTRY!$K36=1,DATA_ENTRY!$L36="y",DATA_ENTRY!G36<>""),rel_cor_Brannick!E40,"") ->  | BT40: =IF(AND(DATA_ENTRY!$K36=1,DATA_ENTRY!$L36="y",DATA_ENTRY!G36<>""),rel_cor_Brannick!F40,"") ->  | BU40: =IF(AND(DATA_ENTRY!$K36=1,DATA_ENTRY!$L36="y",DATA_ENTRY!G36<>""),rel_cor_Brannick!G40,"") ->  | DF40: =IF(AND(DATA_ENTRY!$K36=2,DATA_ENTRY!$L36="y",DATA_ENTRY!F36<>""),DATA_ENTRY!F36,"") ->  | DG40: =IF(AND(DATA_ENTRY!$K36=2,DATA_ENTRY!$L36="y",DATA_ENTRY!G36<>""),DATA_ENTRY!G36,"") ->  | DI40: =IF(AND(DATA_ENTRY!$K36=2,DATA_ENTRY!$L36="y",DATA_ENTRY!G36<>""),rel_cor_Brannick!E40,"") ->  | DJ40: =IF(AND(DATA_ENTRY!$K36=2,DATA_ENTRY!$L36="y",DATA_ENTRY!G36<>""),rel_cor_Brannick!F40,"") ->  | DK40: =IF(AND(DATA_ENTRY!$K36=2,DATA_ENTRY!$L36="y",DATA_ENTRY!G36<>""),rel_cor_Brannick!G40,"") ->  | EV40: =IF(AND(DATA_ENTRY!$K36=3,DATA_ENTRY!$L36="y",DATA_ENTRY!F36<>""),DATA_ENTRY!F36,"") ->  | EW40: =IF(AND(DATA_ENTRY!$K36=3,DATA_ENTRY!$L36="y",DATA_ENTRY!G36<>""),DATA_ENTRY!G36,"") ->  | EY40: =IF(AND(DATA_ENTRY!$K36=3,DATA_ENTRY!$L36="y",DATA_ENTRY!G36<>""),rel_cor_Brannick!E40,"") ->  | EZ40: =IF(AND(DATA_ENTRY!$K36=3,DATA_ENTRY!$L36="y",DATA_ENTRY!G36<>""),rel_cor_Brannick!F40,"") ->  | FA40: =IF(AND(DATA_ENTRY!$K36=3,DATA_ENTRY!$L36="y",DATA_ENTRY!G36<>""),rel_cor_Brannick!G40,"") ->  | GL40: =IF(AND(DATA_ENTRY!$K36=4,DATA_ENTRY!$L36="y",DATA_ENTRY!F36<>""),DATA_ENTRY!F36,"") ->  | GM40: =IF(AND(DATA_ENTRY!$K36=4,DATA_ENTRY!$L36="y",DATA_ENTRY!G36<>""),DATA_ENTRY!G36,"") ->  | GO40: =IF(AND(DATA_ENTRY!$K36=4,DATA_ENTRY!$L36="y",DATA_ENTRY!G36<>""),rel_cor_Brannick!E40,"") ->  | GP40: =IF(AND(DATA_ENTRY!$K36=4,DATA_ENTRY!$L36="y",DATA_ENTRY!G36<>""),rel_cor_Brannick!F40,"") ->  | GQ40: =IF(AND(DATA_ENTRY!$K36=4,DATA_ENTRY!$L36="y",DATA_ENTRY!G36<>""),rel_cor_Brannick!G40,"") ->  | IB40: =IF(AND(DATA_ENTRY!$K36=5,DATA_ENTRY!$L36="y",DATA_ENTRY!F36<>""),DATA_ENTRY!F36,"") ->  | IC40: =IF(AND(DATA_ENTRY!$K36=5,DATA_ENTRY!$L36="y",DATA_ENTRY!G36<>""),DATA_ENTRY!G36,"") ->  | IE40: =IF(AND(DATA_ENTRY!$K36=5,DATA_ENTRY!$L36="y",DATA_ENTRY!G36<>""),rel_cor_Brannick!E40,"") ->  | IF40: =IF(AND(DATA_ENTRY!$K36=5,DATA_ENTRY!$L36="y",DATA_ENTRY!G36<>""),rel_cor_Brannick!F40,"") ->  | IG40: =IF(AND(DATA_ENTRY!$K36=5,DATA_ENTRY!$L36="y",DATA_ENTRY!G36<>""),rel_cor_Brannick!G40,"") ->  | JR40: =IF(AND(DATA_ENTRY!$K36=6,DATA_ENTRY!$L36="y",DATA_ENTRY!F36<>""),DATA_ENTRY!F36,"") ->  | JS40: =IF(AND(DATA_ENTRY!$K36=6,DATA_ENTRY!$L36="y",DATA_ENTRY!G36<>""),DATA_ENTRY!G36,"") ->  | JU40: =IF(AND(DATA_ENTRY!$K36=6,DATA_ENTRY!$L36="y",DATA_ENTRY!G36<>""),rel_cor_Brannick!E40,"") ->  | JV40: =IF(AND(DATA_ENTRY!$K36=6,DATA_ENTRY!$L36="y",DATA_ENTRY!G36<>""),rel_cor_Brannick!F40,"") ->  | JW40: =IF(AND(DATA_ENTRY!$K36=6,DATA_ENTRY!$L36="y",DATA_ENTRY!G36<>""),rel_cor_Brannick!G40,"") -> 
B41: =IF(DATA_ENTRY!H37<>"",DATA_ENTRY!H37,DATA_ENTRY!$Q$9) -> 1 | C41: =IF(DATA_ENTRY!I37<>"",DATA_ENTRY!I37,DATA_ENTRY!$Q$10) -> 1 | D41: =IF(DATA_ENTRY!J37<>"",DATA_ENTRY!J37,DATA_ENTRY!$Q$11) -> 1 | E41: 1 | F41: 1 | G41: 1 | J41: Var(rc) | K41: 0.06162660106 | M41: 0.05102546118 | O41: 0.007652965535 | Z41: =IF(AND(DATA_ENTRY!$L37="y",DATA_ENTRY!F37<>""),DATA_ENTRY!F37,"") ->  | AA41: =IF(AND(DATA_ENTRY!$L37="y",DATA_ENTRY!G37<>""),DATA_ENTRY!G37,"") ->  | BP41: =IF(AND(DATA_ENTRY!$K37=1,DATA_ENTRY!$L37="y",DATA_ENTRY!F37<>""),DATA_ENTRY!F37,"") ->  | BQ41: =IF(AND(DATA_ENTRY!$K37=1,DATA_ENTRY!$L37="y",DATA_ENTRY!G37<>""),DATA_ENTRY!G37,"") ->  | BS41: =IF(AND(DATA_ENTRY!$K37=1,DATA_ENTRY!$L37="y",DATA_ENTRY!G37<>""),rel_cor_Brannick!E41,"") ->  | BT41: =IF(AND(DATA_ENTRY!$K37=1,DATA_ENTRY!$L37="y",DATA_ENTRY!G37<>""),rel_cor_Brannick!F41,"") ->  | BU41: =IF(AND(DATA_ENTRY!$K37=1,DATA_ENTRY!$L37="y",DATA_ENTRY!G37<>""),rel_cor_Brannick!G41,"") ->  | DF41: =IF(AND(DATA_ENTRY!$K37=2,DATA_ENTRY!$L37="y",DATA_ENTRY!F37<>""),DATA_ENTRY!F37,"") ->  | DG41: =IF(AND(DATA_ENTRY!$K37=2,DATA_ENTRY!$L37="y",DATA_ENTRY!G37<>""),DATA_ENTRY!G37,"") ->  | DI41: =IF(AND(DATA_ENTRY!$K37=2,DATA_ENTRY!$L37="y",DATA_ENTRY!G37<>""),rel_cor_Brannick!E41,"") ->  | DJ41: =IF(AND(DATA_ENTRY!$K37=2,DATA_ENTRY!$L37="y",DATA_ENTRY!G37<>""),rel_cor_Brannick!F41,"") ->  | DK41: =IF(AND(DATA_ENTRY!$K37=2,DATA_ENTRY!$L37="y",DATA_ENTRY!G37<>""),rel_cor_Brannick!G41,"") ->  | EV41: =IF(AND(DATA_ENTRY!$K37=3,DATA_ENTRY!$L37="y",DATA_ENTRY!F37<>""),DATA_ENTRY!F37,"") ->  | EW41: =IF(AND(DATA_ENTRY!$K37=3,DATA_ENTRY!$L37="y",DATA_ENTRY!G37<>""),DATA_ENTRY!G37,"") ->  | EY41: =IF(AND(DATA_ENTRY!$K37=3,DATA_ENTRY!$L37="y",DATA_ENTRY!G37<>""),rel_cor_Brannick!E41,"") ->  | EZ41: =IF(AND(DATA_ENTRY!$K37=3,DATA_ENTRY!$L37="y",DATA_ENTRY!G37<>""),rel_cor_Brannick!F41,"") ->  | FA41: =IF(AND(DATA_ENTRY!$K37=3,DATA_ENTRY!$L37="y",DATA_ENTRY!G37<>""),rel_cor_Brannick!G41,"") ->  | GL41: =IF(AND(DATA_ENTRY!$K37=4,DATA_ENTRY!$L37="y",DATA_ENTRY!F37<>""),DATA_ENTRY!F37,"") ->  | GM41: =IF(AND(DATA_ENTRY!$K37=4,DATA_ENTRY!$L37="y",DATA_ENTRY!G37<>""),DATA_ENTRY!G37,"") ->  | GO41: =IF(AND(DATA_ENTRY!$K37=4,DATA_ENTRY!$L37="y",DATA_ENTRY!G37<>""),rel_cor_Brannick!E41,"") ->  | GP41: =IF(AND(DATA_ENTRY!$K37=4,DATA_ENTRY!$L37="y",DATA_ENTRY!G37<>""),rel_cor_Brannick!F41,"") ->  | GQ41: =IF(AND(DATA_ENTRY!$K37=4,DATA_ENTRY!$L37="y",DATA_ENTRY!G37<>""),rel_cor_Brannick!G41,"") ->  | IB41: =IF(AND(DATA_ENTRY!$K37=5,DATA_ENTRY!$L37="y",DATA_ENTRY!F37<>""),DATA_ENTRY!F37,"") ->  | IC41: =IF(AND(DATA_ENTRY!$K37=5,DATA_ENTRY!$L37="y",DATA_ENTRY!G37<>""),DATA_ENTRY!G37,"") ->  | IE41: =IF(AND(DATA_ENTRY!$K37=5,DATA_ENTRY!$L37="y",DATA_ENTRY!G37<>""),rel_cor_Brannick!E41,"") ->  | IF41: =IF(AND(DATA_ENTRY!$K37=5,DATA_ENTRY!$L37="y",DATA_ENTRY!G37<>""),rel_cor_Brannick!F41,"") ->  | IG41: =IF(AND(DATA_ENTRY!$K37=5,DATA_ENTRY!$L37="y",DATA_ENTRY!G37<>""),rel_cor_Brannick!G41,"") ->  | JR41: =IF(AND(DATA_ENTRY!$K37=6,DATA_ENTRY!$L37="y",DATA_ENTRY!F37<>""),DATA_ENTRY!F37,"") ->  | JS41: =IF(AND(DATA_ENTRY!$K37=6,DATA_ENTRY!$L37="y",DATA_ENTRY!G37<>""),DATA_ENTRY!G37,"") ->  | JU41: =IF(AND(DATA_ENTRY!$K37=6,DATA_ENTRY!$L37="y",DATA_ENTRY!G37<>""),rel_cor_Brannick!E41,"") ->  | JV41: =IF(AND(DATA_ENTRY!$K37=6,DATA_ENTRY!$L37="y",DATA_ENTRY!G37<>""),rel_cor_Brannick!F41,"") ->  | JW41: =IF(AND(DATA_ENTRY!$K37=6,DATA_ENTRY!$L37="y",DATA_ENTRY!G37<>""),rel_cor_Brannick!G41,"") -> 
B42: =IF(DATA_ENTRY!H38<>"",DATA_ENTRY!H38,DATA_ENTRY!$Q$9) -> 1 | C42: =IF(DATA_ENTRY!I38<>"",DATA_ENTRY!I38,DATA_ENTRY!$Q$10) -> 1 | D42: =IF(DATA_ENTRY!J38<>"",DATA_ENTRY!J38,DATA_ENTRY!$Q$11) -> 1 | E42: 1 | F42: 1 | G42: 1 | J42: Ave(ve) | K42: 0.004570083721 | M42: 0.004552859548 | O42: 0.00458736777 | Z42: =IF(AND(DATA_ENTRY!$L38="y",DATA_ENTRY!F38<>""),DATA_ENTRY!F38,"") ->  | AA42: =IF(AND(DATA_ENTRY!$L38="y",DATA_ENTRY!G38<>""),DATA_ENTRY!G38,"") ->  | BP42: =IF(AND(DATA_ENTRY!$K38=1,DATA_ENTRY!$L38="y",DATA_ENTRY!F38<>""),DATA_ENTRY!F38,"") ->  | BQ42: =IF(AND(DATA_ENTRY!$K38=1,DATA_ENTRY!$L38="y",DATA_ENTRY!G38<>""),DATA_ENTRY!G38,"") ->  | BS42: =IF(AND(DATA_ENTRY!$K38=1,DATA_ENTRY!$L38="y",DATA_ENTRY!G38<>""),rel_cor_Brannick!E42,"") ->  | BT42: =IF(AND(DATA_ENTRY!$K38=1,DATA_ENTRY!$L38="y",DATA_ENTRY!G38<>""),rel_cor_Brannick!F42,"") ->  | BU42: =IF(AND(DATA_ENTRY!$K38=1,DATA_ENTRY!$L38="y",DATA_ENTRY!G38<>""),rel_cor_Brannick!G42,"") ->  | DF42: =IF(AND(DATA_ENTRY!$K38=2,DATA_ENTRY!$L38="y",DATA_ENTRY!F38<>""),DATA_ENTRY!F38,"") ->  | DG42: =IF(AND(DATA_ENTRY!$K38=2,DATA_ENTRY!$L38="y",DATA_ENTRY!G38<>""),DATA_ENTRY!G38,"") ->  | DI42: =IF(AND(DATA_ENTRY!$K38=2,DATA_ENTRY!$L38="y",DATA_ENTRY!G38<>""),rel_cor_Brannick!E42,"") ->  | DJ42: =IF(AND(DATA_ENTRY!$K38=2,DATA_ENTRY!$L38="y",DATA_ENTRY!G38<>""),rel_cor_Brannick!F42,"") ->  | DK42: =IF(AND(DATA_ENTRY!$K38=2,DATA_ENTRY!$L38="y",DATA_ENTRY!G38<>""),rel_cor_Brannick!G42,"") ->  | EV42: =IF(AND(DATA_ENTRY!$K38=3,DATA_ENTRY!$L38="y",DATA_ENTRY!F38<>""),DATA_ENTRY!F38,"") ->  | EW42: =IF(AND(DATA_ENTRY!$K38=3,DATA_ENTRY!$L38="y",DATA_ENTRY!G38<>""),DATA_ENTRY!G38,"") ->  | EY42: =IF(AND(DATA_ENTRY!$K38=3,DATA_ENTRY!$L38="y",DATA_ENTRY!G38<>""),rel_cor_Brannick!E42,"") ->  | EZ42: =IF(AND(DATA_ENTRY!$K38=3,DATA_ENTRY!$L38="y",DATA_ENTRY!G38<>""),rel_cor_Brannick!F42,"") ->  | FA42: =IF(AND(DATA_ENTRY!$K38=3,DATA_ENTRY!$L38="y",DATA_ENTRY!G38<>""),rel_cor_Brannick!G42,"") ->  | GL42: =IF(AND(DATA_ENTRY!$K38=4,DATA_ENTRY!$L38="y",DATA_ENTRY!F38<>""),DATA_ENTRY!F38,"") ->  | GM42: =IF(AND(DATA_ENTRY!$K38=4,DATA_ENTRY!$L38="y",DATA_ENTRY!G38<>""),DATA_ENTRY!G38,"") ->  | GO42: =IF(AND(DATA_ENTRY!$K38=4,DATA_ENTRY!$L38="y",DATA_ENTRY!G38<>""),rel_cor_Brannick!E42,"") ->  | GP42: =IF(AND(DATA_ENTRY!$K38=4,DATA_ENTRY!$L38="y",DATA_ENTRY!G38<>""),rel_cor_Brannick!F42,"") ->  | GQ42: =IF(AND(DATA_ENTRY!$K38=4,DATA_ENTRY!$L38="y",DATA_ENTRY!G38<>""),rel_cor_Brannick!G42,"") ->  | IB42: =IF(AND(DATA_ENTRY!$K38=5,DATA_ENTRY!$L38="y",DATA_ENTRY!F38<>""),DATA_ENTRY!F38,"") ->  | IC42: =IF(AND(DATA_ENTRY!$K38=5,DATA_ENTRY!$L38="y",DATA_ENTRY!G38<>""),DATA_ENTRY!G38,"") ->  | IE42: =IF(AND(DATA_ENTRY!$K38=5,DATA_ENTRY!$L38="y",DATA_ENTRY!G38<>""),rel_cor_Brannick!E42,"") ->  | IF42: =IF(AND(DATA_ENTRY!$K38=5,DATA_ENTRY!$L38="y",DATA_ENTRY!G38<>""),rel_cor_Brannick!F42,"") ->  | IG42: =IF(AND(DATA_ENTRY!$K38=5,DATA_ENTRY!$L38="y",DATA_ENTRY!G38<>""),rel_cor_Brannick!G42,"") ->  | JR42: =IF(AND(DATA_ENTRY!$K38=6,DATA_ENTRY!$L38="y",DATA_ENTRY!F38<>""),DATA_ENTRY!F38,"") ->  | JS42: =IF(AND(DATA_ENTRY!$K38=6,DATA_ENTRY!$L38="y",DATA_ENTRY!G38<>""),DATA_ENTRY!G38,"") ->  | JU42: =IF(AND(DATA_ENTRY!$K38=6,DATA_ENTRY!$L38="y",DATA_ENTRY!G38<>""),rel_cor_Brannick!E42,"") ->  | JV42: =IF(AND(DATA_ENTRY!$K38=6,DATA_ENTRY!$L38="y",DATA_ENTRY!G38<>""),rel_cor_Brannick!F42,"") ->  | JW42: =IF(AND(DATA_ENTRY!$K38=6,DATA_ENTRY!$L38="y",DATA_ENTRY!G38<>""),rel_cor_Brannick!G42,"") -> 
B43: =IF(DATA_ENTRY!H39<>"",DATA_ENTRY!H39,DATA_ENTRY!$Q$9) -> 1 | C43: =IF(DATA_ENTRY!I39<>"",DATA_ENTRY!I39,DATA_ENTRY!$Q$10) -> 1 | D43: =IF(DATA_ENTRY!J39<>"",DATA_ENTRY!J39,DATA_ENTRY!$Q$11) -> 1 | E43: 1 | F43: 1 | G43: 1 | J43: Var(rho) | K43: 0.05705651734 | M43: 0.04647260163 | O43: 0.003065597766 | Z43: =IF(AND(DATA_ENTRY!$L39="y",DATA_ENTRY!F39<>""),DATA_ENTRY!F39,"") ->  | AA43: =IF(AND(DATA_ENTRY!$L39="y",DATA_ENTRY!G39<>""),DATA_ENTRY!G39,"") ->  | BP43: =IF(AND(DATA_ENTRY!$K39=1,DATA_ENTRY!$L39="y",DATA_ENTRY!F39<>""),DATA_ENTRY!F39,"") ->  | BQ43: =IF(AND(DATA_ENTRY!$K39=1,DATA_ENTRY!$L39="y",DATA_ENTRY!G39<>""),DATA_ENTRY!G39,"") ->  | BS43: =IF(AND(DATA_ENTRY!$K39=1,DATA_ENTRY!$L39="y",DATA_ENTRY!G39<>""),rel_cor_Brannick!E43,"") ->  | BT43: =IF(AND(DATA_ENTRY!$K39=1,DATA_ENTRY!$L39="y",DATA_ENTRY!G39<>""),rel_cor_Brannick!F43,"") ->  | BU43: =IF(AND(DATA_ENTRY!$K39=1,DATA_ENTRY!$L39="y",DATA_ENTRY!G39<>""),rel_cor_Brannick!G43,"") ->  | DF43: =IF(AND(DATA_ENTRY!$K39=2,DATA_ENTRY!$L39="y",DATA_ENTRY!F39<>""),DATA_ENTRY!F39,"") ->  | DG43: =IF(AND(DATA_ENTRY!$K39=2,DATA_ENTRY!$L39="y",DATA_ENTRY!G39<>""),DATA_ENTRY!G39,"") ->  | DI43: =IF(AND(DATA_ENTRY!$K39=2,DATA_ENTRY!$L39="y",DATA_ENTRY!G39<>""),rel_cor_Brannick!E43,"") ->  | DJ43: =IF(AND(DATA_ENTRY!$K39=2,DATA_ENTRY!$L39="y",DATA_ENTRY!G39<>""),rel_cor_Brannick!F43,"") ->  | DK43: =IF(AND(DATA_ENTRY!$K39=2,DATA_ENTRY!$L39="y",DATA_ENTRY!G39<>""),rel_cor_Brannick!G43,"") ->  | EV43: =IF(AND(DATA_ENTRY!$K39=3,DATA_ENTRY!$L39="y",DATA_ENTRY!F39<>""),DATA_ENTRY!F39,"") ->  | EW43: =IF(AND(DATA_ENTRY!$K39=3,DATA_ENTRY!$L39="y",DATA_ENTRY!G39<>""),DATA_ENTRY!G39,"") ->  | EY43: =IF(AND(DATA_ENTRY!$K39=3,DATA_ENTRY!$L39="y",DATA_ENTRY!G39<>""),rel_cor_Brannick!E43,"") ->  | EZ43: =IF(AND(DATA_ENTRY!$K39=3,DATA_ENTRY!$L39="y",DATA_ENTRY!G39<>""),rel_cor_Brannick!F43,"") ->  | FA43: =IF(AND(DATA_ENTRY!$K39=3,DATA_ENTRY!$L39="y",DATA_ENTRY!G39<>""),rel_cor_Brannick!G43,"") ->  | GL43: =IF(AND(DATA_ENTRY!$K39=4,DATA_ENTRY!$L39="y",DATA_ENTRY!F39<>""),DATA_ENTRY!F39,"") ->  | GM43: =IF(AND(DATA_ENTRY!$K39=4,DATA_ENTRY!$L39="y",DATA_ENTRY!G39<>""),DATA_ENTRY!G39,"") ->  | GO43: =IF(AND(DATA_ENTRY!$K39=4,DATA_ENTRY!$L39="y",DATA_ENTRY!G39<>""),rel_cor_Brannick!E43,"") ->  | GP43: =IF(AND(DATA_ENTRY!$K39=4,DATA_ENTRY!$L39="y",DATA_ENTRY!G39<>""),rel_cor_Brannick!F43,"") ->  | GQ43: =IF(AND(DATA_ENTRY!$K39=4,DATA_ENTRY!$L39="y",DATA_ENTRY!G39<>""),rel_cor_Brannick!G43,"") ->  | IB43: =IF(AND(DATA_ENTRY!$K39=5,DATA_ENTRY!$L39="y",DATA_ENTRY!F39<>""),DATA_ENTRY!F39,"") ->  | IC43: =IF(AND(DATA_ENTRY!$K39=5,DATA_ENTRY!$L39="y",DATA_ENTRY!G39<>""),DATA_ENTRY!G39,"") ->  | IE43: =IF(AND(DATA_ENTRY!$K39=5,DATA_ENTRY!$L39="y",DATA_ENTRY!G39<>""),rel_cor_Brannick!E43,"") ->  | IF43: =IF(AND(DATA_ENTRY!$K39=5,DATA_ENTRY!$L39="y",DATA_ENTRY!G39<>""),rel_cor_Brannick!F43,"") ->  | IG43: =IF(AND(DATA_ENTRY!$K39=5,DATA_ENTRY!$L39="y",DATA_ENTRY!G39<>""),rel_cor_Brannick!G43,"") ->  | JR43: =IF(AND(DATA_ENTRY!$K39=6,DATA_ENTRY!$L39="y",DATA_ENTRY!F39<>""),DATA_ENTRY!F39,"") ->  | JS43: =IF(AND(DATA_ENTRY!$K39=6,DATA_ENTRY!$L39="y",DATA_ENTRY!G39<>""),DATA_ENTRY!G39,"") ->  | JU43: =IF(AND(DATA_ENTRY!$K39=6,DATA_ENTRY!$L39="y",DATA_ENTRY!G39<>""),rel_cor_Brannick!E43,"") ->  | JV43: =IF(AND(DATA_ENTRY!$K39=6,DATA_ENTRY!$L39="y",DATA_ENTRY!G39<>""),rel_cor_Brannick!F43,"") ->  | JW43: =IF(AND(DATA_ENTRY!$K39=6,DATA_ENTRY!$L39="y",DATA_ENTRY!G39<>""),rel_cor_Brannick!G43,"") -> 
B44: =IF(DATA_ENTRY!H40<>"",DATA_ENTRY!H40,DATA_ENTRY!$Q$9) -> 1 | C44: =IF(DATA_ENTRY!I40<>"",DATA_ENTRY!I40,DATA_ENTRY!$Q$10) -> 1 | D44: =IF(DATA_ENTRY!J40<>"",DATA_ENTRY!J40,DATA_ENTRY!$Q$11) -> 1 | E44: 1 | F44: 1 | G44: 1 | J44: SD(rho) | K44: 0.2388650609 | M44: 0.2155750487 | O44: 0.05536784054 | Z44: =IF(AND(DATA_ENTRY!$L40="y",DATA_ENTRY!F40<>""),DATA_ENTRY!F40,"") ->  | AA44: =IF(AND(DATA_ENTRY!$L40="y",DATA_ENTRY!G40<>""),DATA_ENTRY!G40,"") ->  | BP44: =IF(AND(DATA_ENTRY!$K40=1,DATA_ENTRY!$L40="y",DATA_ENTRY!F40<>""),DATA_ENTRY!F40,"") ->  | BQ44: =IF(AND(DATA_ENTRY!$K40=1,DATA_ENTRY!$L40="y",DATA_ENTRY!G40<>""),DATA_ENTRY!G40,"") ->  | BS44: =IF(AND(DATA_ENTRY!$K40=1,DATA_ENTRY!$L40="y",DATA_ENTRY!G40<>""),rel_cor_Brannick!E44,"") ->  | BT44: =IF(AND(DATA_ENTRY!$K40=1,DATA_ENTRY!$L40="y",DATA_ENTRY!G40<>""),rel_cor_Brannick!F44,"") ->  | BU44: =IF(AND(DATA_ENTRY!$K40=1,DATA_ENTRY!$L40="y",DATA_ENTRY!G40<>""),rel_cor_Brannick!G44,"") ->  | DF44: =IF(AND(DATA_ENTRY!$K40=2,DATA_ENTRY!$L40="y",DATA_ENTRY!F40<>""),DATA_ENTRY!F40,"") ->  | DG44: =IF(AND(DATA_ENTRY!$K40=2,DATA_ENTRY!$L40="y",DATA_ENTRY!G40<>""),DATA_ENTRY!G40,"") ->  | DI44: =IF(AND(DATA_ENTRY!$K40=2,DATA_ENTRY!$L40="y",DATA_ENTRY!G40<>""),rel_cor_Brannick!E44,"") ->  | DJ44: =IF(AND(DATA_ENTRY!$K40=2,DATA_ENTRY!$L40="y",DATA_ENTRY!G40<>""),rel_cor_Brannick!F44,"") ->  | DK44: =IF(AND(DATA_ENTRY!$K40=2,DATA_ENTRY!$L40="y",DATA_ENTRY!G40<>""),rel_cor_Brannick!G44,"") ->  | EV44: =IF(AND(DATA_ENTRY!$K40=3,DATA_ENTRY!$L40="y",DATA_ENTRY!F40<>""),DATA_ENTRY!F40,"") ->  | EW44: =IF(AND(DATA_ENTRY!$K40=3,DATA_ENTRY!$L40="y",DATA_ENTRY!G40<>""),DATA_ENTRY!G40,"") ->  | EY44: =IF(AND(DATA_ENTRY!$K40=3,DATA_ENTRY!$L40="y",DATA_ENTRY!G40<>""),rel_cor_Brannick!E44,"") ->  | EZ44: =IF(AND(DATA_ENTRY!$K40=3,DATA_ENTRY!$L40="y",DATA_ENTRY!G40<>""),rel_cor_Brannick!F44,"") ->  | FA44: =IF(AND(DATA_ENTRY!$K40=3,DATA_ENTRY!$L40="y",DATA_ENTRY!G40<>""),rel_cor_Brannick!G44,"") ->  | GL44: =IF(AND(DATA_ENTRY!$K40=4,DATA_ENTRY!$L40="y",DATA_ENTRY!F40<>""),DATA_ENTRY!F40,"") ->  | GM44: =IF(AND(DATA_ENTRY!$K40=4,DATA_ENTRY!$L40="y",DATA_ENTRY!G40<>""),DATA_ENTRY!G40,"") ->  | GO44: =IF(AND(DATA_ENTRY!$K40=4,DATA_ENTRY!$L40="y",DATA_ENTRY!G40<>""),rel_cor_Brannick!E44,"") ->  | GP44: =IF(AND(DATA_ENTRY!$K40=4,DATA_ENTRY!$L40="y",DATA_ENTRY!G40<>""),rel_cor_Brannick!F44,"") ->  | GQ44: =IF(AND(DATA_ENTRY!$K40=4,DATA_ENTRY!$L40="y",DATA_ENTRY!G40<>""),rel_cor_Brannick!G44,"") ->  | IB44: =IF(AND(DATA_ENTRY!$K40=5,DATA_ENTRY!$L40="y",DATA_ENTRY!F40<>""),DATA_ENTRY!F40,"") ->  | IC44: =IF(AND(DATA_ENTRY!$K40=5,DATA_ENTRY!$L40="y",DATA_ENTRY!G40<>""),DATA_ENTRY!G40,"") ->  | IE44: =IF(AND(DATA_ENTRY!$K40=5,DATA_ENTRY!$L40="y",DATA_ENTRY!G40<>""),rel_cor_Brannick!E44,"") ->  | IF44: =IF(AND(DATA_ENTRY!$K40=5,DATA_ENTRY!$L40="y",DATA_ENTRY!G40<>""),rel_cor_Brannick!F44,"") ->  | IG44: =IF(AND(DATA_ENTRY!$K40=5,DATA_ENTRY!$L40="y",DATA_ENTRY!G40<>""),rel_cor_Brannick!G44,"") ->  | JR44: =IF(AND(DATA_ENTRY!$K40=6,DATA_ENTRY!$L40="y",DATA_ENTRY!F40<>""),DATA_ENTRY!F40,"") ->  | JS44: =IF(AND(DATA_ENTRY!$K40=6,DATA_ENTRY!$L40="y",DATA_ENTRY!G40<>""),DATA_ENTRY!G40,"") ->  | JU44: =IF(AND(DATA_ENTRY!$K40=6,DATA_ENTRY!$L40="y",DATA_ENTRY!G40<>""),rel_cor_Brannick!E44,"") ->  | JV44: =IF(AND(DATA_ENTRY!$K40=6,DATA_ENTRY!$L40="y",DATA_ENTRY!G40<>""),rel_cor_Brannick!F44,"") ->  | JW44: =IF(AND(DATA_ENTRY!$K40=6,DATA_ENTRY!$L40="y",DATA_ENTRY!G40<>""),rel_cor_Brannick!G44,"") -> 
B45: =IF(DATA_ENTRY!H41<>"",DATA_ENTRY!H41,DATA_ENTRY!$Q$9) -> 1 | C45: =IF(DATA_ENTRY!I41<>"",DATA_ENTRY!I41,DATA_ENTRY!$Q$10) -> 1 | D45: =IF(DATA_ENTRY!J41<>"",DATA_ENTRY!J41,DATA_ENTRY!$Q$11) -> 1 | E45: 1 | F45: 1 | G45: 1 | J45: CRED | K45: 0.6426322556 | M45: 0.7920557606 | O45: 0.2275770594 | Z45: =IF(AND(DATA_ENTRY!$L41="y",DATA_ENTRY!F41<>""),DATA_ENTRY!F41,"") ->  | AA45: =IF(AND(DATA_ENTRY!$L41="y",DATA_ENTRY!G41<>""),DATA_ENTRY!G41,"") ->  | BP45: =IF(AND(DATA_ENTRY!$K41=1,DATA_ENTRY!$L41="y",DATA_ENTRY!F41<>""),DATA_ENTRY!F41,"") ->  | BQ45: =IF(AND(DATA_ENTRY!$K41=1,DATA_ENTRY!$L41="y",DATA_ENTRY!G41<>""),DATA_ENTRY!G41,"") ->  | BS45: =IF(AND(DATA_ENTRY!$K41=1,DATA_ENTRY!$L41="y",DATA_ENTRY!G41<>""),rel_cor_Brannick!E45,"") ->  | BT45: =IF(AND(DATA_ENTRY!$K41=1,DATA_ENTRY!$L41="y",DATA_ENTRY!G41<>""),rel_cor_Brannick!F45,"") ->  | BU45: =IF(AND(DATA_ENTRY!$K41=1,DATA_ENTRY!$L41="y",DATA_ENTRY!G41<>""),rel_cor_Brannick!G45,"") ->  | DF45: =IF(AND(DATA_ENTRY!$K41=2,DATA_ENTRY!$L41="y",DATA_ENTRY!F41<>""),DATA_ENTRY!F41,"") ->  | DG45: =IF(AND(DATA_ENTRY!$K41=2,DATA_ENTRY!$L41="y",DATA_ENTRY!G41<>""),DATA_ENTRY!G41,"") ->  | DI45: =IF(AND(DATA_ENTRY!$K41=2,DATA_ENTRY!$L41="y",DATA_ENTRY!G41<>""),rel_cor_Brannick!E45,"") ->  | DJ45: =IF(AND(DATA_ENTRY!$K41=2,DATA_ENTRY!$L41="y",DATA_ENTRY!G41<>""),rel_cor_Brannick!F45,"") ->  | DK45: =IF(AND(DATA_ENTRY!$K41=2,DATA_ENTRY!$L41="y",DATA_ENTRY!G41<>""),rel_cor_Brannick!G45,"") ->  | EV45: =IF(AND(DATA_ENTRY!$K41=3,DATA_ENTRY!$L41="y",DATA_ENTRY!F41<>""),DATA_ENTRY!F41,"") ->  | EW45: =IF(AND(DATA_ENTRY!$K41=3,DATA_ENTRY!$L41="y",DATA_ENTRY!G41<>""),DATA_ENTRY!G41,"") ->  | EY45: =IF(AND(DATA_ENTRY!$K41=3,DATA_ENTRY!$L41="y",DATA_ENTRY!G41<>""),rel_cor_Brannick!E45,"") ->  | EZ45: =IF(AND(DATA_ENTRY!$K41=3,DATA_ENTRY!$L41="y",DATA_ENTRY!G41<>""),rel_cor_Brannick!F45,"") ->  | FA45: =IF(AND(DATA_ENTRY!$K41=3,DATA_ENTRY!$L41="y",DATA_ENTRY!G41<>""),rel_cor_Brannick!G45,"") ->  | GL45: =IF(AND(DATA_ENTRY!$K41=4,DATA_ENTRY!$L41="y",DATA_ENTRY!F41<>""),DATA_ENTRY!F41,"") ->  | GM45: =IF(AND(DATA_ENTRY!$K41=4,DATA_ENTRY!$L41="y",DATA_ENTRY!G41<>""),DATA_ENTRY!G41,"") ->  | GO45: =IF(AND(DATA_ENTRY!$K41=4,DATA_ENTRY!$L41="y",DATA_ENTRY!G41<>""),rel_cor_Brannick!E45,"") ->  | GP45: =IF(AND(DATA_ENTRY!$K41=4,DATA_ENTRY!$L41="y",DATA_ENTRY!G41<>""),rel_cor_Brannick!F45,"") ->  | GQ45: =IF(AND(DATA_ENTRY!$K41=4,DATA_ENTRY!$L41="y",DATA_ENTRY!G41<>""),rel_cor_Brannick!G45,"") ->  | IB45: =IF(AND(DATA_ENTRY!$K41=5,DATA_ENTRY!$L41="y",DATA_ENTRY!F41<>""),DATA_ENTRY!F41,"") ->  | IC45: =IF(AND(DATA_ENTRY!$K41=5,DATA_ENTRY!$L41="y",DATA_ENTRY!G41<>""),DATA_ENTRY!G41,"") ->  | IE45: =IF(AND(DATA_ENTRY!$K41=5,DATA_ENTRY!$L41="y",DATA_ENTRY!G41<>""),rel_cor_Brannick!E45,"") ->  | IF45: =IF(AND(DATA_ENTRY!$K41=5,DATA_ENTRY!$L41="y",DATA_ENTRY!G41<>""),rel_cor_Brannick!F45,"") ->  | IG45: =IF(AND(DATA_ENTRY!$K41=5,DATA_ENTRY!$L41="y",DATA_ENTRY!G41<>""),rel_cor_Brannick!G45,"") ->  | JR45: =IF(AND(DATA_ENTRY!$K41=6,DATA_ENTRY!$L41="y",DATA_ENTRY!F41<>""),DATA_ENTRY!F41,"") ->  | JS45: =IF(AND(DATA_ENTRY!$K41=6,DATA_ENTRY!$L41="y",DATA_ENTRY!G41<>""),DATA_ENTRY!G41,"") ->  | JU45: =IF(AND(DATA_ENTRY!$K41=6,DATA_ENTRY!$L41="y",DATA_ENTRY!G41<>""),rel_cor_Brannick!E45,"") ->  | JV45: =IF(AND(DATA_ENTRY!$K41=6,DATA_ENTRY!$L41="y",DATA_ENTRY!G41<>""),rel_cor_Brannick!F45,"") ->  | JW45: =IF(AND(DATA_ENTRY!$K41=6,DATA_ENTRY!$L41="y",DATA_ENTRY!G41<>""),rel_cor_Brannick!G45,"") -> 
B46: =IF(DATA_ENTRY!H42<>"",DATA_ENTRY!H42,DATA_ENTRY!$Q$9) -> 1 | C46: =IF(DATA_ENTRY!I42<>"",DATA_ENTRY!I42,DATA_ENTRY!$Q$10) -> 1 | D46: =IF(DATA_ENTRY!J42<>"",DATA_ENTRY!J42,DATA_ENTRY!$Q$11) -> 1 | E46: 1 | F46: 1 | G46: 1 | J46: CRED | K46: 0.03039647004 | M46: 0.2395146782 | O46: 0.085663574 | Z46: =IF(AND(DATA_ENTRY!$L42="y",DATA_ENTRY!F42<>""),DATA_ENTRY!F42,"") ->  | AA46: =IF(AND(DATA_ENTRY!$L42="y",DATA_ENTRY!G42<>""),DATA_ENTRY!G42,"") ->  | BP46: =IF(AND(DATA_ENTRY!$K42=1,DATA_ENTRY!$L42="y",DATA_ENTRY!F42<>""),DATA_ENTRY!F42,"") ->  | BQ46: =IF(AND(DATA_ENTRY!$K42=1,DATA_ENTRY!$L42="y",DATA_ENTRY!G42<>""),DATA_ENTRY!G42,"") ->  | BS46: =IF(AND(DATA_ENTRY!$K42=1,DATA_ENTRY!$L42="y",DATA_ENTRY!G42<>""),rel_cor_Brannick!E46,"") ->  | BT46: =IF(AND(DATA_ENTRY!$K42=1,DATA_ENTRY!$L42="y",DATA_ENTRY!G42<>""),rel_cor_Brannick!F46,"") ->  | BU46: =IF(AND(DATA_ENTRY!$K42=1,DATA_ENTRY!$L42="y",DATA_ENTRY!G42<>""),rel_cor_Brannick!G46,"") ->  | DF46: =IF(AND(DATA_ENTRY!$K42=2,DATA_ENTRY!$L42="y",DATA_ENTRY!F42<>""),DATA_ENTRY!F42,"") ->  | DG46: =IF(AND(DATA_ENTRY!$K42=2,DATA_ENTRY!$L42="y",DATA_ENTRY!G42<>""),DATA_ENTRY!G42,"") ->  | DI46: =IF(AND(DATA_ENTRY!$K42=2,DATA_ENTRY!$L42="y",DATA_ENTRY!G42<>""),rel_cor_Brannick!E46,"") ->  | DJ46: =IF(AND(DATA_ENTRY!$K42=2,DATA_ENTRY!$L42="y",DATA_ENTRY!G42<>""),rel_cor_Brannick!F46,"") ->  | DK46: =IF(AND(DATA_ENTRY!$K42=2,DATA_ENTRY!$L42="y",DATA_ENTRY!G42<>""),rel_cor_Brannick!G46,"") ->  | EV46: =IF(AND(DATA_ENTRY!$K42=3,DATA_ENTRY!$L42="y",DATA_ENTRY!F42<>""),DATA_ENTRY!F42,"") ->  | EW46: =IF(AND(DATA_ENTRY!$K42=3,DATA_ENTRY!$L42="y",DATA_ENTRY!G42<>""),DATA_ENTRY!G42,"") ->  | EY46: =IF(AND(DATA_ENTRY!$K42=3,DATA_ENTRY!$L42="y",DATA_ENTRY!G42<>""),rel_cor_Brannick!E46,"") ->  | EZ46: =IF(AND(DATA_ENTRY!$K42=3,DATA_ENTRY!$L42="y",DATA_ENTRY!G42<>""),rel_cor_Brannick!F46,"") ->  | FA46: =IF(AND(DATA_ENTRY!$K42=3,DATA_ENTRY!$L42="y",DATA_ENTRY!G42<>""),rel_cor_Brannick!G46,"") ->  | GL46: =IF(AND(DATA_ENTRY!$K42=4,DATA_ENTRY!$L42="y",DATA_ENTRY!F42<>""),DATA_ENTRY!F42,"") ->  | GM46: =IF(AND(DATA_ENTRY!$K42=4,DATA_ENTRY!$L42="y",DATA_ENTRY!G42<>""),DATA_ENTRY!G42,"") ->  | GO46: =IF(AND(DATA_ENTRY!$K42=4,DATA_ENTRY!$L42="y",DATA_ENTRY!G42<>""),rel_cor_Brannick!E46,"") ->  | GP46: =IF(AND(DATA_ENTRY!$K42=4,DATA_ENTRY!$L42="y",DATA_ENTRY!G42<>""),rel_cor_Brannick!F46,"") ->  | GQ46: =IF(AND(DATA_ENTRY!$K42=4,DATA_ENTRY!$L42="y",DATA_ENTRY!G42<>""),rel_cor_Brannick!G46,"") ->  | IB46: =IF(AND(DATA_ENTRY!$K42=5,DATA_ENTRY!$L42="y",DATA_ENTRY!F42<>""),DATA_ENTRY!F42,"") ->  | IC46: =IF(AND(DATA_ENTRY!$K42=5,DATA_ENTRY!$L42="y",DATA_ENTRY!G42<>""),DATA_ENTRY!G42,"") ->  | IE46: =IF(AND(DATA_ENTRY!$K42=5,DATA_ENTRY!$L42="y",DATA_ENTRY!G42<>""),rel_cor_Brannick!E46,"") ->  | IF46: =IF(AND(DATA_ENTRY!$K42=5,DATA_ENTRY!$L42="y",DATA_ENTRY!G42<>""),rel_cor_Brannick!F46,"") ->  | IG46: =IF(AND(DATA_ENTRY!$K42=5,DATA_ENTRY!$L42="y",DATA_ENTRY!G42<>""),rel_cor_Brannick!G46,"") ->  | JR46: =IF(AND(DATA_ENTRY!$K42=6,DATA_ENTRY!$L42="y",DATA_ENTRY!F42<>""),DATA_ENTRY!F42,"") ->  | JS46: =IF(AND(DATA_ENTRY!$K42=6,DATA_ENTRY!$L42="y",DATA_ENTRY!G42<>""),DATA_ENTRY!G42,"") ->  | JU46: =IF(AND(DATA_ENTRY!$K42=6,DATA_ENTRY!$L42="y",DATA_ENTRY!G42<>""),rel_cor_Brannick!E46,"") ->  | JV46: =IF(AND(DATA_ENTRY!$K42=6,DATA_ENTRY!$L42="y",DATA_ENTRY!G42<>""),rel_cor_Brannick!F46,"") ->  | JW46: =IF(AND(DATA_ENTRY!$K42=6,DATA_ENTRY!$L42="y",DATA_ENTRY!G42<>""),rel_cor_Brannick!G46,"") -> 
B47: =IF(DATA_ENTRY!H43<>"",DATA_ENTRY!H43,DATA_ENTRY!$Q$9) -> 1 | C47: =IF(DATA_ENTRY!I43<>"",DATA_ENTRY!I43,DATA_ENTRY!$Q$10) -> 1 | D47: =IF(DATA_ENTRY!J43<>"",DATA_ENTRY!J43,DATA_ENTRY!$Q$11) -> 1 | E47: 1 | F47: 1 | G47: 1 | I47: Direct RR | J47: rbar c | K47: 0.3365143628 | M47: 0.5157852194 | O47: 0.1566203167 | Z47: =IF(AND(DATA_ENTRY!$L43="y",DATA_ENTRY!F43<>""),DATA_ENTRY!F43,"") ->  | AA47: =IF(AND(DATA_ENTRY!$L43="y",DATA_ENTRY!G43<>""),DATA_ENTRY!G43,"") ->  | BP47: =IF(AND(DATA_ENTRY!$K43=1,DATA_ENTRY!$L43="y",DATA_ENTRY!F43<>""),DATA_ENTRY!F43,"") ->  | BQ47: =IF(AND(DATA_ENTRY!$K43=1,DATA_ENTRY!$L43="y",DATA_ENTRY!G43<>""),DATA_ENTRY!G43,"") ->  | BS47: =IF(AND(DATA_ENTRY!$K43=1,DATA_ENTRY!$L43="y",DATA_ENTRY!G43<>""),rel_cor_Brannick!E47,"") ->  | BT47: =IF(AND(DATA_ENTRY!$K43=1,DATA_ENTRY!$L43="y",DATA_ENTRY!G43<>""),rel_cor_Brannick!F47,"") ->  | BU47: =IF(AND(DATA_ENTRY!$K43=1,DATA_ENTRY!$L43="y",DATA_ENTRY!G43<>""),rel_cor_Brannick!G47,"") ->  | DF47: =IF(AND(DATA_ENTRY!$K43=2,DATA_ENTRY!$L43="y",DATA_ENTRY!F43<>""),DATA_ENTRY!F43,"") ->  | DG47: =IF(AND(DATA_ENTRY!$K43=2,DATA_ENTRY!$L43="y",DATA_ENTRY!G43<>""),DATA_ENTRY!G43,"") ->  | DI47: =IF(AND(DATA_ENTRY!$K43=2,DATA_ENTRY!$L43="y",DATA_ENTRY!G43<>""),rel_cor_Brannick!E47,"") ->  | DJ47: =IF(AND(DATA_ENTRY!$K43=2,DATA_ENTRY!$L43="y",DATA_ENTRY!G43<>""),rel_cor_Brannick!F47,"") ->  | DK47: =IF(AND(DATA_ENTRY!$K43=2,DATA_ENTRY!$L43="y",DATA_ENTRY!G43<>""),rel_cor_Brannick!G47,"") ->  | EV47: =IF(AND(DATA_ENTRY!$K43=3,DATA_ENTRY!$L43="y",DATA_ENTRY!F43<>""),DATA_ENTRY!F43,"") ->  | EW47: =IF(AND(DATA_ENTRY!$K43=3,DATA_ENTRY!$L43="y",DATA_ENTRY!G43<>""),DATA_ENTRY!G43,"") ->  | EY47: =IF(AND(DATA_ENTRY!$K43=3,DATA_ENTRY!$L43="y",DATA_ENTRY!G43<>""),rel_cor_Brannick!E47,"") ->  | EZ47: =IF(AND(DATA_ENTRY!$K43=3,DATA_ENTRY!$L43="y",DATA_ENTRY!G43<>""),rel_cor_Brannick!F47,"") ->  | FA47: =IF(AND(DATA_ENTRY!$K43=3,DATA_ENTRY!$L43="y",DATA_ENTRY!G43<>""),rel_cor_Brannick!G47,"") ->  | GL47: =IF(AND(DATA_ENTRY!$K43=4,DATA_ENTRY!$L43="y",DATA_ENTRY!F43<>""),DATA_ENTRY!F43,"") ->  | GM47: =IF(AND(DATA_ENTRY!$K43=4,DATA_ENTRY!$L43="y",DATA_ENTRY!G43<>""),DATA_ENTRY!G43,"") ->  | GO47: =IF(AND(DATA_ENTRY!$K43=4,DATA_ENTRY!$L43="y",DATA_ENTRY!G43<>""),rel_cor_Brannick!E47,"") ->  | GP47: =IF(AND(DATA_ENTRY!$K43=4,DATA_ENTRY!$L43="y",DATA_ENTRY!G43<>""),rel_cor_Brannick!F47,"") ->  | GQ47: =IF(AND(DATA_ENTRY!$K43=4,DATA_ENTRY!$L43="y",DATA_ENTRY!G43<>""),rel_cor_Brannick!G47,"") ->  | IB47: =IF(AND(DATA_ENTRY!$K43=5,DATA_ENTRY!$L43="y",DATA_ENTRY!F43<>""),DATA_ENTRY!F43,"") ->  | IC47: =IF(AND(DATA_ENTRY!$K43=5,DATA_ENTRY!$L43="y",DATA_ENTRY!G43<>""),DATA_ENTRY!G43,"") ->  | IE47: =IF(AND(DATA_ENTRY!$K43=5,DATA_ENTRY!$L43="y",DATA_ENTRY!G43<>""),rel_cor_Brannick!E47,"") ->  | IF47: =IF(AND(DATA_ENTRY!$K43=5,DATA_ENTRY!$L43="y",DATA_ENTRY!G43<>""),rel_cor_Brannick!F47,"") ->  | IG47: =IF(AND(DATA_ENTRY!$K43=5,DATA_ENTRY!$L43="y",DATA_ENTRY!G43<>""),rel_cor_Brannick!G47,"") ->  | JR47: =IF(AND(DATA_ENTRY!$K43=6,DATA_ENTRY!$L43="y",DATA_ENTRY!F43<>""),DATA_ENTRY!F43,"") ->  | JS47: =IF(AND(DATA_ENTRY!$K43=6,DATA_ENTRY!$L43="y",DATA_ENTRY!G43<>""),DATA_ENTRY!G43,"") ->  | JU47: =IF(AND(DATA_ENTRY!$K43=6,DATA_ENTRY!$L43="y",DATA_ENTRY!G43<>""),rel_cor_Brannick!E47,"") ->  | JV47: =IF(AND(DATA_ENTRY!$K43=6,DATA_ENTRY!$L43="y",DATA_ENTRY!G43<>""),rel_cor_Brannick!F47,"") ->  | JW47: =IF(AND(DATA_ENTRY!$K43=6,DATA_ENTRY!$L43="y",DATA_ENTRY!G43<>""),rel_cor_Brannick!G47,"") -> 
B48: =IF(DATA_ENTRY!H44<>"",DATA_ENTRY!H44,DATA_ENTRY!$Q$9) -> 1 | C48: =IF(DATA_ENTRY!I44<>"",DATA_ENTRY!I44,DATA_ENTRY!$Q$10) -> 1 | D48: =IF(DATA_ENTRY!J44<>"",DATA_ENTRY!J44,DATA_ENTRY!$Q$11) -> 1 | E48: 1 | F48: 1 | G48: 1 | J48: Var(rc) | K48: 0.06162660106 | M48: 0.05102546118 | O48: 0.007652965535 | Z48: =IF(AND(DATA_ENTRY!$L44="y",DATA_ENTRY!F44<>""),DATA_ENTRY!F44,"") ->  | AA48: =IF(AND(DATA_ENTRY!$L44="y",DATA_ENTRY!G44<>""),DATA_ENTRY!G44,"") ->  | BP48: =IF(AND(DATA_ENTRY!$K44=1,DATA_ENTRY!$L44="y",DATA_ENTRY!F44<>""),DATA_ENTRY!F44,"") ->  | BQ48: =IF(AND(DATA_ENTRY!$K44=1,DATA_ENTRY!$L44="y",DATA_ENTRY!G44<>""),DATA_ENTRY!G44,"") ->  | BS48: =IF(AND(DATA_ENTRY!$K44=1,DATA_ENTRY!$L44="y",DATA_ENTRY!G44<>""),rel_cor_Brannick!E48,"") ->  | BT48: =IF(AND(DATA_ENTRY!$K44=1,DATA_ENTRY!$L44="y",DATA_ENTRY!G44<>""),rel_cor_Brannick!F48,"") ->  | BU48: =IF(AND(DATA_ENTRY!$K44=1,DATA_ENTRY!$L44="y",DATA_ENTRY!G44<>""),rel_cor_Brannick!G48,"") ->  | DF48: =IF(AND(DATA_ENTRY!$K44=2,DATA_ENTRY!$L44="y",DATA_ENTRY!F44<>""),DATA_ENTRY!F44,"") ->  | DG48: =IF(AND(DATA_ENTRY!$K44=2,DATA_ENTRY!$L44="y",DATA_ENTRY!G44<>""),DATA_ENTRY!G44,"") ->  | DI48: =IF(AND(DATA_ENTRY!$K44=2,DATA_ENTRY!$L44="y",DATA_ENTRY!G44<>""),rel_cor_Brannick!E48,"") ->  | DJ48: =IF(AND(DATA_ENTRY!$K44=2,DATA_ENTRY!$L44="y",DATA_ENTRY!G44<>""),rel_cor_Brannick!F48,"") ->  | DK48: =IF(AND(DATA_ENTRY!$K44=2,DATA_ENTRY!$L44="y",DATA_ENTRY!G44<>""),rel_cor_Brannick!G48,"") ->  | EV48: =IF(AND(DATA_ENTRY!$K44=3,DATA_ENTRY!$L44="y",DATA_ENTRY!F44<>""),DATA_ENTRY!F44,"") ->  | EW48: =IF(AND(DATA_ENTRY!$K44=3,DATA_ENTRY!$L44="y",DATA_ENTRY!G44<>""),DATA_ENTRY!G44,"") ->  | EY48: =IF(AND(DATA_ENTRY!$K44=3,DATA_ENTRY!$L44="y",DATA_ENTRY!G44<>""),rel_cor_Brannick!E48,"") ->  | EZ48: =IF(AND(DATA_ENTRY!$K44=3,DATA_ENTRY!$L44="y",DATA_ENTRY!G44<>""),rel_cor_Brannick!F48,"") ->  | FA48: =IF(AND(DATA_ENTRY!$K44=3,DATA_ENTRY!$L44="y",DATA_ENTRY!G44<>""),rel_cor_Brannick!G48,"") ->  | GL48: =IF(AND(DATA_ENTRY!$K44=4,DATA_ENTRY!$L44="y",DATA_ENTRY!F44<>""),DATA_ENTRY!F44,"") ->  | GM48: =IF(AND(DATA_ENTRY!$K44=4,DATA_ENTRY!$L44="y",DATA_ENTRY!G44<>""),DATA_ENTRY!G44,"") ->  | GO48: =IF(AND(DATA_ENTRY!$K44=4,DATA_ENTRY!$L44="y",DATA_ENTRY!G44<>""),rel_cor_Brannick!E48,"") ->  | GP48: =IF(AND(DATA_ENTRY!$K44=4,DATA_ENTRY!$L44="y",DATA_ENTRY!G44<>""),rel_cor_Brannick!F48,"") ->  | GQ48: =IF(AND(DATA_ENTRY!$K44=4,DATA_ENTRY!$L44="y",DATA_ENTRY!G44<>""),rel_cor_Brannick!G48,"") ->  | IB48: =IF(AND(DATA_ENTRY!$K44=5,DATA_ENTRY!$L44="y",DATA_ENTRY!F44<>""),DATA_ENTRY!F44,"") ->  | IC48: =IF(AND(DATA_ENTRY!$K44=5,DATA_ENTRY!$L44="y",DATA_ENTRY!G44<>""),DATA_ENTRY!G44,"") ->  | IE48: =IF(AND(DATA_ENTRY!$K44=5,DATA_ENTRY!$L44="y",DATA_ENTRY!G44<>""),rel_cor_Brannick!E48,"") ->  | IF48: =IF(AND(DATA_ENTRY!$K44=5,DATA_ENTRY!$L44="y",DATA_ENTRY!G44<>""),rel_cor_Brannick!F48,"") ->  | IG48: =IF(AND(DATA_ENTRY!$K44=5,DATA_ENTRY!$L44="y",DATA_ENTRY!G44<>""),rel_cor_Brannick!G48,"") ->  | JR48: =IF(AND(DATA_ENTRY!$K44=6,DATA_ENTRY!$L44="y",DATA_ENTRY!F44<>""),DATA_ENTRY!F44,"") ->  | JS48: =IF(AND(DATA_ENTRY!$K44=6,DATA_ENTRY!$L44="y",DATA_ENTRY!G44<>""),DATA_ENTRY!G44,"") ->  | JU48: =IF(AND(DATA_ENTRY!$K44=6,DATA_ENTRY!$L44="y",DATA_ENTRY!G44<>""),rel_cor_Brannick!E48,"") ->  | JV48: =IF(AND(DATA_ENTRY!$K44=6,DATA_ENTRY!$L44="y",DATA_ENTRY!G44<>""),rel_cor_Brannick!F48,"") ->  | JW48: =IF(AND(DATA_ENTRY!$K44=6,DATA_ENTRY!$L44="y",DATA_ENTRY!G44<>""),rel_cor_Brannick!G48,"") -> 
B49: =IF(DATA_ENTRY!H45<>"",DATA_ENTRY!H45,DATA_ENTRY!$Q$9) -> 1 | C49: =IF(DATA_ENTRY!I45<>"",DATA_ENTRY!I45,DATA_ENTRY!$Q$10) -> 1 | D49: =IF(DATA_ENTRY!J45<>"",DATA_ENTRY!J45,DATA_ENTRY!$Q$11) -> 1 | E49: 1 | F49: 1 | G49: 1 | J49: Ave(ve) | K49: 0.004570083721 | M49: 0.004552859548 | O49: 0.00458736777 | Z49: =IF(AND(DATA_ENTRY!$L45="y",DATA_ENTRY!F45<>""),DATA_ENTRY!F45,"") ->  | AA49: =IF(AND(DATA_ENTRY!$L45="y",DATA_ENTRY!G45<>""),DATA_ENTRY!G45,"") ->  | BP49: =IF(AND(DATA_ENTRY!$K45=1,DATA_ENTRY!$L45="y",DATA_ENTRY!F45<>""),DATA_ENTRY!F45,"") ->  | BQ49: =IF(AND(DATA_ENTRY!$K45=1,DATA_ENTRY!$L45="y",DATA_ENTRY!G45<>""),DATA_ENTRY!G45,"") ->  | BS49: =IF(AND(DATA_ENTRY!$K45=1,DATA_ENTRY!$L45="y",DATA_ENTRY!G45<>""),rel_cor_Brannick!E49,"") ->  | BT49: =IF(AND(DATA_ENTRY!$K45=1,DATA_ENTRY!$L45="y",DATA_ENTRY!G45<>""),rel_cor_Brannick!F49,"") ->  | BU49: =IF(AND(DATA_ENTRY!$K45=1,DATA_ENTRY!$L45="y",DATA_ENTRY!G45<>""),rel_cor_Brannick!G49,"") ->  | DF49: =IF(AND(DATA_ENTRY!$K45=2,DATA_ENTRY!$L45="y",DATA_ENTRY!F45<>""),DATA_ENTRY!F45,"") ->  | DG49: =IF(AND(DATA_ENTRY!$K45=2,DATA_ENTRY!$L45="y",DATA_ENTRY!G45<>""),DATA_ENTRY!G45,"") ->  | DI49: =IF(AND(DATA_ENTRY!$K45=2,DATA_ENTRY!$L45="y",DATA_ENTRY!G45<>""),rel_cor_Brannick!E49,"") ->  | DJ49: =IF(AND(DATA_ENTRY!$K45=2,DATA_ENTRY!$L45="y",DATA_ENTRY!G45<>""),rel_cor_Brannick!F49,"") ->  | DK49: =IF(AND(DATA_ENTRY!$K45=2,DATA_ENTRY!$L45="y",DATA_ENTRY!G45<>""),rel_cor_Brannick!G49,"") ->  | EV49: =IF(AND(DATA_ENTRY!$K45=3,DATA_ENTRY!$L45="y",DATA_ENTRY!F45<>""),DATA_ENTRY!F45,"") ->  | EW49: =IF(AND(DATA_ENTRY!$K45=3,DATA_ENTRY!$L45="y",DATA_ENTRY!G45<>""),DATA_ENTRY!G45,"") ->  | EY49: =IF(AND(DATA_ENTRY!$K45=3,DATA_ENTRY!$L45="y",DATA_ENTRY!G45<>""),rel_cor_Brannick!E49,"") ->  | EZ49: =IF(AND(DATA_ENTRY!$K45=3,DATA_ENTRY!$L45="y",DATA_ENTRY!G45<>""),rel_cor_Brannick!F49,"") ->  | FA49: =IF(AND(DATA_ENTRY!$K45=3,DATA_ENTRY!$L45="y",DATA_ENTRY!G45<>""),rel_cor_Brannick!G49,"") ->  | GL49: =IF(AND(DATA_ENTRY!$K45=4,DATA_ENTRY!$L45="y",DATA_ENTRY!F45<>""),DATA_ENTRY!F45,"") ->  | GM49: =IF(AND(DATA_ENTRY!$K45=4,DATA_ENTRY!$L45="y",DATA_ENTRY!G45<>""),DATA_ENTRY!G45,"") ->  | GO49: =IF(AND(DATA_ENTRY!$K45=4,DATA_ENTRY!$L45="y",DATA_ENTRY!G45<>""),rel_cor_Brannick!E49,"") ->  | GP49: =IF(AND(DATA_ENTRY!$K45=4,DATA_ENTRY!$L45="y",DATA_ENTRY!G45<>""),rel_cor_Brannick!F49,"") ->  | GQ49: =IF(AND(DATA_ENTRY!$K45=4,DATA_ENTRY!$L45="y",DATA_ENTRY!G45<>""),rel_cor_Brannick!G49,"") ->  | IB49: =IF(AND(DATA_ENTRY!$K45=5,DATA_ENTRY!$L45="y",DATA_ENTRY!F45<>""),DATA_ENTRY!F45,"") ->  | IC49: =IF(AND(DATA_ENTRY!$K45=5,DATA_ENTRY!$L45="y",DATA_ENTRY!G45<>""),DATA_ENTRY!G45,"") ->  | IE49: =IF(AND(DATA_ENTRY!$K45=5,DATA_ENTRY!$L45="y",DATA_ENTRY!G45<>""),rel_cor_Brannick!E49,"") ->  | IF49: =IF(AND(DATA_ENTRY!$K45=5,DATA_ENTRY!$L45="y",DATA_ENTRY!G45<>""),rel_cor_Brannick!F49,"") ->  | IG49: =IF(AND(DATA_ENTRY!$K45=5,DATA_ENTRY!$L45="y",DATA_ENTRY!G45<>""),rel_cor_Brannick!G49,"") ->  | JR49: =IF(AND(DATA_ENTRY!$K45=6,DATA_ENTRY!$L45="y",DATA_ENTRY!F45<>""),DATA_ENTRY!F45,"") ->  | JS49: =IF(AND(DATA_ENTRY!$K45=6,DATA_ENTRY!$L45="y",DATA_ENTRY!G45<>""),DATA_ENTRY!G45,"") ->  | JU49: =IF(AND(DATA_ENTRY!$K45=6,DATA_ENTRY!$L45="y",DATA_ENTRY!G45<>""),rel_cor_Brannick!E49,"") ->  | JV49: =IF(AND(DATA_ENTRY!$K45=6,DATA_ENTRY!$L45="y",DATA_ENTRY!G45<>""),rel_cor_Brannick!F49,"") ->  | JW49: =IF(AND(DATA_ENTRY!$K45=6,DATA_ENTRY!$L45="y",DATA_ENTRY!G45<>""),rel_cor_Brannick!G49,"") -> 
B50: =IF(DATA_ENTRY!H46<>"",DATA_ENTRY!H46,DATA_ENTRY!$Q$9) -> 1 | C50: =IF(DATA_ENTRY!I46<>"",DATA_ENTRY!I46,DATA_ENTRY!$Q$10) -> 1 | D50: =IF(DATA_ENTRY!J46<>"",DATA_ENTRY!J46,DATA_ENTRY!$Q$11) -> 1 | E50: 1 | F50: 1 | G50: 1 | J50: Var(rho) | K50: 0.05705651734 | M50: 0.04647260163 | O50: 0.003065597766 | Z50: =IF(AND(DATA_ENTRY!$L46="y",DATA_ENTRY!F46<>""),DATA_ENTRY!F46,"") ->  | AA50: =IF(AND(DATA_ENTRY!$L46="y",DATA_ENTRY!G46<>""),DATA_ENTRY!G46,"") ->  | BP50: =IF(AND(DATA_ENTRY!$K46=1,DATA_ENTRY!$L46="y",DATA_ENTRY!F46<>""),DATA_ENTRY!F46,"") ->  | BQ50: =IF(AND(DATA_ENTRY!$K46=1,DATA_ENTRY!$L46="y",DATA_ENTRY!G46<>""),DATA_ENTRY!G46,"") ->  | BS50: =IF(AND(DATA_ENTRY!$K46=1,DATA_ENTRY!$L46="y",DATA_ENTRY!G46<>""),rel_cor_Brannick!E50,"") ->  | BT50: =IF(AND(DATA_ENTRY!$K46=1,DATA_ENTRY!$L46="y",DATA_ENTRY!G46<>""),rel_cor_Brannick!F50,"") ->  | BU50: =IF(AND(DATA_ENTRY!$K46=1,DATA_ENTRY!$L46="y",DATA_ENTRY!G46<>""),rel_cor_Brannick!G50,"") ->  | DF50: =IF(AND(DATA_ENTRY!$K46=2,DATA_ENTRY!$L46="y",DATA_ENTRY!F46<>""),DATA_ENTRY!F46,"") ->  | DG50: =IF(AND(DATA_ENTRY!$K46=2,DATA_ENTRY!$L46="y",DATA_ENTRY!G46<>""),DATA_ENTRY!G46,"") ->  | DI50: =IF(AND(DATA_ENTRY!$K46=2,DATA_ENTRY!$L46="y",DATA_ENTRY!G46<>""),rel_cor_Brannick!E50,"") ->  | DJ50: =IF(AND(DATA_ENTRY!$K46=2,DATA_ENTRY!$L46="y",DATA_ENTRY!G46<>""),rel_cor_Brannick!F50,"") ->  | DK50: =IF(AND(DATA_ENTRY!$K46=2,DATA_ENTRY!$L46="y",DATA_ENTRY!G46<>""),rel_cor_Brannick!G50,"") ->  | EV50: =IF(AND(DATA_ENTRY!$K46=3,DATA_ENTRY!$L46="y",DATA_ENTRY!F46<>""),DATA_ENTRY!F46,"") ->  | EW50: =IF(AND(DATA_ENTRY!$K46=3,DATA_ENTRY!$L46="y",DATA_ENTRY!G46<>""),DATA_ENTRY!G46,"") ->  | EY50: =IF(AND(DATA_ENTRY!$K46=3,DATA_ENTRY!$L46="y",DATA_ENTRY!G46<>""),rel_cor_Brannick!E50,"") ->  | EZ50: =IF(AND(DATA_ENTRY!$K46=3,DATA_ENTRY!$L46="y",DATA_ENTRY!G46<>""),rel_cor_Brannick!F50,"") ->  | FA50: =IF(AND(DATA_ENTRY!$K46=3,DATA_ENTRY!$L46="y",DATA_ENTRY!G46<>""),rel_cor_Brannick!G50,"") ->  | GL50: =IF(AND(DATA_ENTRY!$K46=4,DATA_ENTRY!$L46="y",DATA_ENTRY!F46<>""),DATA_ENTRY!F46,"") ->  | GM50: =IF(AND(DATA_ENTRY!$K46=4,DATA_ENTRY!$L46="y",DATA_ENTRY!G46<>""),DATA_ENTRY!G46,"") ->  | GO50: =IF(AND(DATA_ENTRY!$K46=4,DATA_ENTRY!$L46="y",DATA_ENTRY!G46<>""),rel_cor_Brannick!E50,"") ->  | GP50: =IF(AND(DATA_ENTRY!$K46=4,DATA_ENTRY!$L46="y",DATA_ENTRY!G46<>""),rel_cor_Brannick!F50,"") ->  | GQ50: =IF(AND(DATA_ENTRY!$K46=4,DATA_ENTRY!$L46="y",DATA_ENTRY!G46<>""),rel_cor_Brannick!G50,"") ->  | IB50: =IF(AND(DATA_ENTRY!$K46=5,DATA_ENTRY!$L46="y",DATA_ENTRY!F46<>""),DATA_ENTRY!F46,"") ->  | IC50: =IF(AND(DATA_ENTRY!$K46=5,DATA_ENTRY!$L46="y",DATA_ENTRY!G46<>""),DATA_ENTRY!G46,"") ->  | IE50: =IF(AND(DATA_ENTRY!$K46=5,DATA_ENTRY!$L46="y",DATA_ENTRY!G46<>""),rel_cor_Brannick!E50,"") ->  | IF50: =IF(AND(DATA_ENTRY!$K46=5,DATA_ENTRY!$L46="y",DATA_ENTRY!G46<>""),rel_cor_Brannick!F50,"") ->  | IG50: =IF(AND(DATA_ENTRY!$K46=5,DATA_ENTRY!$L46="y",DATA_ENTRY!G46<>""),rel_cor_Brannick!G50,"") ->  | JR50: =IF(AND(DATA_ENTRY!$K46=6,DATA_ENTRY!$L46="y",DATA_ENTRY!F46<>""),DATA_ENTRY!F46,"") ->  | JS50: =IF(AND(DATA_ENTRY!$K46=6,DATA_ENTRY!$L46="y",DATA_ENTRY!G46<>""),DATA_ENTRY!G46,"") ->  | JU50: =IF(AND(DATA_ENTRY!$K46=6,DATA_ENTRY!$L46="y",DATA_ENTRY!G46<>""),rel_cor_Brannick!E50,"") ->  | JV50: =IF(AND(DATA_ENTRY!$K46=6,DATA_ENTRY!$L46="y",DATA_ENTRY!G46<>""),rel_cor_Brannick!F50,"") ->  | JW50: =IF(AND(DATA_ENTRY!$K46=6,DATA_ENTRY!$L46="y",DATA_ENTRY!G46<>""),rel_cor_Brannick!G50,"") -> 
B51: =IF(DATA_ENTRY!H47<>"",DATA_ENTRY!H47,DATA_ENTRY!$Q$9) -> 1 | C51: =IF(DATA_ENTRY!I47<>"",DATA_ENTRY!I47,DATA_ENTRY!$Q$10) -> 1 | D51: =IF(DATA_ENTRY!J47<>"",DATA_ENTRY!J47,DATA_ENTRY!$Q$11) -> 1 | E51: 1 | F51: 1 | G51: 1 | J51: SD(rho) | K51: 0.2388650609 | M51: 0.2155750487 | O51: 0.05536784054 | Z51: =IF(AND(DATA_ENTRY!$L47="y",DATA_ENTRY!F47<>""),DATA_ENTRY!F47,"") ->  | AA51: =IF(AND(DATA_ENTRY!$L47="y",DATA_ENTRY!G47<>""),DATA_ENTRY!G47,"") ->  | BP51: =IF(AND(DATA_ENTRY!$K47=1,DATA_ENTRY!$L47="y",DATA_ENTRY!F47<>""),DATA_ENTRY!F47,"") ->  | BQ51: =IF(AND(DATA_ENTRY!$K47=1,DATA_ENTRY!$L47="y",DATA_ENTRY!G47<>""),DATA_ENTRY!G47,"") ->  | BS51: =IF(AND(DATA_ENTRY!$K47=1,DATA_ENTRY!$L47="y",DATA_ENTRY!G47<>""),rel_cor_Brannick!E51,"") ->  | BT51: =IF(AND(DATA_ENTRY!$K47=1,DATA_ENTRY!$L47="y",DATA_ENTRY!G47<>""),rel_cor_Brannick!F51,"") ->  | BU51: =IF(AND(DATA_ENTRY!$K47=1,DATA_ENTRY!$L47="y",DATA_ENTRY!G47<>""),rel_cor_Brannick!G51,"") ->  | DF51: =IF(AND(DATA_ENTRY!$K47=2,DATA_ENTRY!$L47="y",DATA_ENTRY!F47<>""),DATA_ENTRY!F47,"") ->  | DG51: =IF(AND(DATA_ENTRY!$K47=2,DATA_ENTRY!$L47="y",DATA_ENTRY!G47<>""),DATA_ENTRY!G47,"") ->  | DI51: =IF(AND(DATA_ENTRY!$K47=2,DATA_ENTRY!$L47="y",DATA_ENTRY!G47<>""),rel_cor_Brannick!E51,"") ->  | DJ51: =IF(AND(DATA_ENTRY!$K47=2,DATA_ENTRY!$L47="y",DATA_ENTRY!G47<>""),rel_cor_Brannick!F51,"") ->  | DK51: =IF(AND(DATA_ENTRY!$K47=2,DATA_ENTRY!$L47="y",DATA_ENTRY!G47<>""),rel_cor_Brannick!G51,"") ->  | EV51: =IF(AND(DATA_ENTRY!$K47=3,DATA_ENTRY!$L47="y",DATA_ENTRY!F47<>""),DATA_ENTRY!F47,"") ->  | EW51: =IF(AND(DATA_ENTRY!$K47=3,DATA_ENTRY!$L47="y",DATA_ENTRY!G47<>""),DATA_ENTRY!G47,"") ->  | EY51: =IF(AND(DATA_ENTRY!$K47=3,DATA_ENTRY!$L47="y",DATA_ENTRY!G47<>""),rel_cor_Brannick!E51,"") ->  | EZ51: =IF(AND(DATA_ENTRY!$K47=3,DATA_ENTRY!$L47="y",DATA_ENTRY!G47<>""),rel_cor_Brannick!F51,"") ->  | FA51: =IF(AND(DATA_ENTRY!$K47=3,DATA_ENTRY!$L47="y",DATA_ENTRY!G47<>""),rel_cor_Brannick!G51,"") ->  | GL51: =IF(AND(DATA_ENTRY!$K47=4,DATA_ENTRY!$L47="y",DATA_ENTRY!F47<>""),DATA_ENTRY!F47,"") ->  | GM51: =IF(AND(DATA_ENTRY!$K47=4,DATA_ENTRY!$L47="y",DATA_ENTRY!G47<>""),DATA_ENTRY!G47,"") ->  | GO51: =IF(AND(DATA_ENTRY!$K47=4,DATA_ENTRY!$L47="y",DATA_ENTRY!G47<>""),rel_cor_Brannick!E51,"") ->  | GP51: =IF(AND(DATA_ENTRY!$K47=4,DATA_ENTRY!$L47="y",DATA_ENTRY!G47<>""),rel_cor_Brannick!F51,"") ->  | GQ51: =IF(AND(DATA_ENTRY!$K47=4,DATA_ENTRY!$L47="y",DATA_ENTRY!G47<>""),rel_cor_Brannick!G51,"") ->  | IB51: =IF(AND(DATA_ENTRY!$K47=5,DATA_ENTRY!$L47="y",DATA_ENTRY!F47<>""),DATA_ENTRY!F47,"") ->  | IC51: =IF(AND(DATA_ENTRY!$K47=5,DATA_ENTRY!$L47="y",DATA_ENTRY!G47<>""),DATA_ENTRY!G47,"") ->  | IE51: =IF(AND(DATA_ENTRY!$K47=5,DATA_ENTRY!$L47="y",DATA_ENTRY!G47<>""),rel_cor_Brannick!E51,"") ->  | IF51: =IF(AND(DATA_ENTRY!$K47=5,DATA_ENTRY!$L47="y",DATA_ENTRY!G47<>""),rel_cor_Brannick!F51,"") ->  | IG51: =IF(AND(DATA_ENTRY!$K47=5,DATA_ENTRY!$L47="y",DATA_ENTRY!G47<>""),rel_cor_Brannick!G51,"") ->  | JR51: =IF(AND(DATA_ENTRY!$K47=6,DATA_ENTRY!$L47="y",DATA_ENTRY!F47<>""),DATA_ENTRY!F47,"") ->  | JS51: =IF(AND(DATA_ENTRY!$K47=6,DATA_ENTRY!$L47="y",DATA_ENTRY!G47<>""),DATA_ENTRY!G47,"") ->  | JU51: =IF(AND(DATA_ENTRY!$K47=6,DATA_ENTRY!$L47="y",DATA_ENTRY!G47<>""),rel_cor_Brannick!E51,"") ->  | JV51: =IF(AND(DATA_ENTRY!$K47=6,DATA_ENTRY!$L47="y",DATA_ENTRY!G47<>""),rel_cor_Brannick!F51,"") ->  | JW51: =IF(AND(DATA_ENTRY!$K47=6,DATA_ENTRY!$L47="y",DATA_ENTRY!G47<>""),rel_cor_Brannick!G51,"") -> 
B52: =IF(DATA_ENTRY!H48<>"",DATA_ENTRY!H48,DATA_ENTRY!$Q$9) -> 1 | C52: =IF(DATA_ENTRY!I48<>"",DATA_ENTRY!I48,DATA_ENTRY!$Q$10) -> 1 | D52: =IF(DATA_ENTRY!J48<>"",DATA_ENTRY!J48,DATA_ENTRY!$Q$11) -> 1 | E52: 1 | F52: 1 | G52: 1 | J52: CRED | K52: 0.6426322556 | M52: 0.7920557606 | O52: 0.2275770594 | Z52: =IF(AND(DATA_ENTRY!$L48="y",DATA_ENTRY!F48<>""),DATA_ENTRY!F48,"") ->  | AA52: =IF(AND(DATA_ENTRY!$L48="y",DATA_ENTRY!G48<>""),DATA_ENTRY!G48,"") ->  | BP52: =IF(AND(DATA_ENTRY!$K48=1,DATA_ENTRY!$L48="y",DATA_ENTRY!F48<>""),DATA_ENTRY!F48,"") ->  | BQ52: =IF(AND(DATA_ENTRY!$K48=1,DATA_ENTRY!$L48="y",DATA_ENTRY!G48<>""),DATA_ENTRY!G48,"") ->  | BS52: =IF(AND(DATA_ENTRY!$K48=1,DATA_ENTRY!$L48="y",DATA_ENTRY!G48<>""),rel_cor_Brannick!E52,"") ->  | BT52: =IF(AND(DATA_ENTRY!$K48=1,DATA_ENTRY!$L48="y",DATA_ENTRY!G48<>""),rel_cor_Brannick!F52,"") ->  | BU52: =IF(AND(DATA_ENTRY!$K48=1,DATA_ENTRY!$L48="y",DATA_ENTRY!G48<>""),rel_cor_Brannick!G52,"") ->  | DF52: =IF(AND(DATA_ENTRY!$K48=2,DATA_ENTRY!$L48="y",DATA_ENTRY!F48<>""),DATA_ENTRY!F48,"") ->  | DG52: =IF(AND(DATA_ENTRY!$K48=2,DATA_ENTRY!$L48="y",DATA_ENTRY!G48<>""),DATA_ENTRY!G48,"") ->  | DI52: =IF(AND(DATA_ENTRY!$K48=2,DATA_ENTRY!$L48="y",DATA_ENTRY!G48<>""),rel_cor_Brannick!E52,"") ->  | DJ52: =IF(AND(DATA_ENTRY!$K48=2,DATA_ENTRY!$L48="y",DATA_ENTRY!G48<>""),rel_cor_Brannick!F52,"") ->  | DK52: =IF(AND(DATA_ENTRY!$K48=2,DATA_ENTRY!$L48="y",DATA_ENTRY!G48<>""),rel_cor_Brannick!G52,"") ->  | EV52: =IF(AND(DATA_ENTRY!$K48=3,DATA_ENTRY!$L48="y",DATA_ENTRY!F48<>""),DATA_ENTRY!F48,"") ->  | EW52: =IF(AND(DATA_ENTRY!$K48=3,DATA_ENTRY!$L48="y",DATA_ENTRY!G48<>""),DATA_ENTRY!G48,"") ->  | EY52: =IF(AND(DATA_ENTRY!$K48=3,DATA_ENTRY!$L48="y",DATA_ENTRY!G48<>""),rel_cor_Brannick!E52,"") ->  | EZ52: =IF(AND(DATA_ENTRY!$K48=3,DATA_ENTRY!$L48="y",DATA_ENTRY!G48<>""),rel_cor_Brannick!F52,"") ->  | FA52: =IF(AND(DATA_ENTRY!$K48=3,DATA_ENTRY!$L48="y",DATA_ENTRY!G48<>""),rel_cor_Brannick!G52,"") ->  | GL52: =IF(AND(DATA_ENTRY!$K48=4,DATA_ENTRY!$L48="y",DATA_ENTRY!F48<>""),DATA_ENTRY!F48,"") ->  | GM52: =IF(AND(DATA_ENTRY!$K48=4,DATA_ENTRY!$L48="y",DATA_ENTRY!G48<>""),DATA_ENTRY!G48,"") ->  | GO52: =IF(AND(DATA_ENTRY!$K48=4,DATA_ENTRY!$L48="y",DATA_ENTRY!G48<>""),rel_cor_Brannick!E52,"") ->  | GP52: =IF(AND(DATA_ENTRY!$K48=4,DATA_ENTRY!$L48="y",DATA_ENTRY!G48<>""),rel_cor_Brannick!F52,"") ->  | GQ52: =IF(AND(DATA_ENTRY!$K48=4,DATA_ENTRY!$L48="y",DATA_ENTRY!G48<>""),rel_cor_Brannick!G52,"") ->  | IB52: =IF(AND(DATA_ENTRY!$K48=5,DATA_ENTRY!$L48="y",DATA_ENTRY!F48<>""),DATA_ENTRY!F48,"") ->  | IC52: =IF(AND(DATA_ENTRY!$K48=5,DATA_ENTRY!$L48="y",DATA_ENTRY!G48<>""),DATA_ENTRY!G48,"") ->  | IE52: =IF(AND(DATA_ENTRY!$K48=5,DATA_ENTRY!$L48="y",DATA_ENTRY!G48<>""),rel_cor_Brannick!E52,"") ->  | IF52: =IF(AND(DATA_ENTRY!$K48=5,DATA_ENTRY!$L48="y",DATA_ENTRY!G48<>""),rel_cor_Brannick!F52,"") ->  | IG52: =IF(AND(DATA_ENTRY!$K48=5,DATA_ENTRY!$L48="y",DATA_ENTRY!G48<>""),rel_cor_Brannick!G52,"") ->  | JR52: =IF(AND(DATA_ENTRY!$K48=6,DATA_ENTRY!$L48="y",DATA_ENTRY!F48<>""),DATA_ENTRY!F48,"") ->  | JS52: =IF(AND(DATA_ENTRY!$K48=6,DATA_ENTRY!$L48="y",DATA_ENTRY!G48<>""),DATA_ENTRY!G48,"") ->  | JU52: =IF(AND(DATA_ENTRY!$K48=6,DATA_ENTRY!$L48="y",DATA_ENTRY!G48<>""),rel_cor_Brannick!E52,"") ->  | JV52: =IF(AND(DATA_ENTRY!$K48=6,DATA_ENTRY!$L48="y",DATA_ENTRY!G48<>""),rel_cor_Brannick!F52,"") ->  | JW52: =IF(AND(DATA_ENTRY!$K48=6,DATA_ENTRY!$L48="y",DATA_ENTRY!G48<>""),rel_cor_Brannick!G52,"") -> 
B53: =IF(DATA_ENTRY!H49<>"",DATA_ENTRY!H49,DATA_ENTRY!$Q$9) -> 1 | C53: =IF(DATA_ENTRY!I49<>"",DATA_ENTRY!I49,DATA_ENTRY!$Q$10) -> 1 | D53: =IF(DATA_ENTRY!J49<>"",DATA_ENTRY!J49,DATA_ENTRY!$Q$11) -> 1 | E53: 1 | F53: 1 | G53: 1 | J53: CRED | K53: 0.03039647004 | M53: 0.2395146782 | O53: 0.085663574 | Z53: =IF(AND(DATA_ENTRY!$L49="y",DATA_ENTRY!F49<>""),DATA_ENTRY!F49,"") ->  | AA53: =IF(AND(DATA_ENTRY!$L49="y",DATA_ENTRY!G49<>""),DATA_ENTRY!G49,"") ->  | BP53: =IF(AND(DATA_ENTRY!$K49=1,DATA_ENTRY!$L49="y",DATA_ENTRY!F49<>""),DATA_ENTRY!F49,"") ->  | BQ53: =IF(AND(DATA_ENTRY!$K49=1,DATA_ENTRY!$L49="y",DATA_ENTRY!G49<>""),DATA_ENTRY!G49,"") ->  | BS53: =IF(AND(DATA_ENTRY!$K49=1,DATA_ENTRY!$L49="y",DATA_ENTRY!G49<>""),rel_cor_Brannick!E53,"") ->  | BT53: =IF(AND(DATA_ENTRY!$K49=1,DATA_ENTRY!$L49="y",DATA_ENTRY!G49<>""),rel_cor_Brannick!F53,"") ->  | BU53: =IF(AND(DATA_ENTRY!$K49=1,DATA_ENTRY!$L49="y",DATA_ENTRY!G49<>""),rel_cor_Brannick!G53,"") ->  | DF53: =IF(AND(DATA_ENTRY!$K49=2,DATA_ENTRY!$L49="y",DATA_ENTRY!F49<>""),DATA_ENTRY!F49,"") ->  | DG53: =IF(AND(DATA_ENTRY!$K49=2,DATA_ENTRY!$L49="y",DATA_ENTRY!G49<>""),DATA_ENTRY!G49,"") ->  | DI53: =IF(AND(DATA_ENTRY!$K49=2,DATA_ENTRY!$L49="y",DATA_ENTRY!G49<>""),rel_cor_Brannick!E53,"") ->  | DJ53: =IF(AND(DATA_ENTRY!$K49=2,DATA_ENTRY!$L49="y",DATA_ENTRY!G49<>""),rel_cor_Brannick!F53,"") ->  | DK53: =IF(AND(DATA_ENTRY!$K49=2,DATA_ENTRY!$L49="y",DATA_ENTRY!G49<>""),rel_cor_Brannick!G53,"") ->  | EV53: =IF(AND(DATA_ENTRY!$K49=3,DATA_ENTRY!$L49="y",DATA_ENTRY!F49<>""),DATA_ENTRY!F49,"") ->  | EW53: =IF(AND(DATA_ENTRY!$K49=3,DATA_ENTRY!$L49="y",DATA_ENTRY!G49<>""),DATA_ENTRY!G49,"") ->  | EY53: =IF(AND(DATA_ENTRY!$K49=3,DATA_ENTRY!$L49="y",DATA_ENTRY!G49<>""),rel_cor_Brannick!E53,"") ->  | EZ53: =IF(AND(DATA_ENTRY!$K49=3,DATA_ENTRY!$L49="y",DATA_ENTRY!G49<>""),rel_cor_Brannick!F53,"") ->  | FA53: =IF(AND(DATA_ENTRY!$K49=3,DATA_ENTRY!$L49="y",DATA_ENTRY!G49<>""),rel_cor_Brannick!G53,"") ->  | GL53: =IF(AND(DATA_ENTRY!$K49=4,DATA_ENTRY!$L49="y",DATA_ENTRY!F49<>""),DATA_ENTRY!F49,"") ->  | GM53: =IF(AND(DATA_ENTRY!$K49=4,DATA_ENTRY!$L49="y",DATA_ENTRY!G49<>""),DATA_ENTRY!G49,"") ->  | GO53: =IF(AND(DATA_ENTRY!$K49=4,DATA_ENTRY!$L49="y",DATA_ENTRY!G49<>""),rel_cor_Brannick!E53,"") ->  | GP53: =IF(AND(DATA_ENTRY!$K49=4,DATA_ENTRY!$L49="y",DATA_ENTRY!G49<>""),rel_cor_Brannick!F53,"") ->  | GQ53: =IF(AND(DATA_ENTRY!$K49=4,DATA_ENTRY!$L49="y",DATA_ENTRY!G49<>""),rel_cor_Brannick!G53,"") ->  | IB53: =IF(AND(DATA_ENTRY!$K49=5,DATA_ENTRY!$L49="y",DATA_ENTRY!F49<>""),DATA_ENTRY!F49,"") ->  | IC53: =IF(AND(DATA_ENTRY!$K49=5,DATA_ENTRY!$L49="y",DATA_ENTRY!G49<>""),DATA_ENTRY!G49,"") ->  | IE53: =IF(AND(DATA_ENTRY!$K49=5,DATA_ENTRY!$L49="y",DATA_ENTRY!G49<>""),rel_cor_Brannick!E53,"") ->  | IF53: =IF(AND(DATA_ENTRY!$K49=5,DATA_ENTRY!$L49="y",DATA_ENTRY!G49<>""),rel_cor_Brannick!F53,"") ->  | IG53: =IF(AND(DATA_ENTRY!$K49=5,DATA_ENTRY!$L49="y",DATA_ENTRY!G49<>""),rel_cor_Brannick!G53,"") ->  | JR53: =IF(AND(DATA_ENTRY!$K49=6,DATA_ENTRY!$L49="y",DATA_ENTRY!F49<>""),DATA_ENTRY!F49,"") ->  | JS53: =IF(AND(DATA_ENTRY!$K49=6,DATA_ENTRY!$L49="y",DATA_ENTRY!G49<>""),DATA_ENTRY!G49,"") ->  | JU53: =IF(AND(DATA_ENTRY!$K49=6,DATA_ENTRY!$L49="y",DATA_ENTRY!G49<>""),rel_cor_Brannick!E53,"") ->  | JV53: =IF(AND(DATA_ENTRY!$K49=6,DATA_ENTRY!$L49="y",DATA_ENTRY!G49<>""),rel_cor_Brannick!F53,"") ->  | JW53: =IF(AND(DATA_ENTRY!$K49=6,DATA_ENTRY!$L49="y",DATA_ENTRY!G49<>""),rel_cor_Brannick!G53,"") -> 
B54: =IF(DATA_ENTRY!H50<>"",DATA_ENTRY!H50,DATA_ENTRY!$Q$9) -> 1 | C54: =IF(DATA_ENTRY!I50<>"",DATA_ENTRY!I50,DATA_ENTRY!$Q$10) -> 1 | D54: =IF(DATA_ENTRY!J50<>"",DATA_ENTRY!J50,DATA_ENTRY!$Q$11) -> 1 | E54: 1 | F54: 1 | G54: 1 | Z54: =IF(AND(DATA_ENTRY!$L50="y",DATA_ENTRY!F50<>""),DATA_ENTRY!F50,"") ->  | AA54: =IF(AND(DATA_ENTRY!$L50="y",DATA_ENTRY!G50<>""),DATA_ENTRY!G50,"") ->  | BP54: =IF(AND(DATA_ENTRY!$K50=1,DATA_ENTRY!$L50="y",DATA_ENTRY!F50<>""),DATA_ENTRY!F50,"") ->  | BQ54: =IF(AND(DATA_ENTRY!$K50=1,DATA_ENTRY!$L50="y",DATA_ENTRY!G50<>""),DATA_ENTRY!G50,"") ->  | BS54: =IF(AND(DATA_ENTRY!$K50=1,DATA_ENTRY!$L50="y",DATA_ENTRY!G50<>""),rel_cor_Brannick!E54,"") ->  | BT54: =IF(AND(DATA_ENTRY!$K50=1,DATA_ENTRY!$L50="y",DATA_ENTRY!G50<>""),rel_cor_Brannick!F54,"") ->  | BU54: =IF(AND(DATA_ENTRY!$K50=1,DATA_ENTRY!$L50="y",DATA_ENTRY!G50<>""),rel_cor_Brannick!G54,"") ->  | DF54: =IF(AND(DATA_ENTRY!$K50=2,DATA_ENTRY!$L50="y",DATA_ENTRY!F50<>""),DATA_ENTRY!F50,"") ->  | DG54: =IF(AND(DATA_ENTRY!$K50=2,DATA_ENTRY!$L50="y",DATA_ENTRY!G50<>""),DATA_ENTRY!G50,"") ->  | DI54: =IF(AND(DATA_ENTRY!$K50=2,DATA_ENTRY!$L50="y",DATA_ENTRY!G50<>""),rel_cor_Brannick!E54,"") ->  | DJ54: =IF(AND(DATA_ENTRY!$K50=2,DATA_ENTRY!$L50="y",DATA_ENTRY!G50<>""),rel_cor_Brannick!F54,"") ->  | DK54: =IF(AND(DATA_ENTRY!$K50=2,DATA_ENTRY!$L50="y",DATA_ENTRY!G50<>""),rel_cor_Brannick!G54,"") ->  | EV54: =IF(AND(DATA_ENTRY!$K50=3,DATA_ENTRY!$L50="y",DATA_ENTRY!F50<>""),DATA_ENTRY!F50,"") ->  | EW54: =IF(AND(DATA_ENTRY!$K50=3,DATA_ENTRY!$L50="y",DATA_ENTRY!G50<>""),DATA_ENTRY!G50,"") ->  | EY54: =IF(AND(DATA_ENTRY!$K50=3,DATA_ENTRY!$L50="y",DATA_ENTRY!G50<>""),rel_cor_Brannick!E54,"") ->  | EZ54: =IF(AND(DATA_ENTRY!$K50=3,DATA_ENTRY!$L50="y",DATA_ENTRY!G50<>""),rel_cor_Brannick!F54,"") ->  | FA54: =IF(AND(DATA_ENTRY!$K50=3,DATA_ENTRY!$L50="y",DATA_ENTRY!G50<>""),rel_cor_Brannick!G54,"") ->  | GL54: =IF(AND(DATA_ENTRY!$K50=4,DATA_ENTRY!$L50="y",DATA_ENTRY!F50<>""),DATA_ENTRY!F50,"") ->  | GM54: =IF(AND(DATA_ENTRY!$K50=4,DATA_ENTRY!$L50="y",DATA_ENTRY!G50<>""),DATA_ENTRY!G50,"") ->  | GO54: =IF(AND(DATA_ENTRY!$K50=4,DATA_ENTRY!$L50="y",DATA_ENTRY!G50<>""),rel_cor_Brannick!E54,"") ->  | GP54: =IF(AND(DATA_ENTRY!$K50=4,DATA_ENTRY!$L50="y",DATA_ENTRY!G50<>""),rel_cor_Brannick!F54,"") ->  | GQ54: =IF(AND(DATA_ENTRY!$K50=4,DATA_ENTRY!$L50="y",DATA_ENTRY!G50<>""),rel_cor_Brannick!G54,"") ->  | IB54: =IF(AND(DATA_ENTRY!$K50=5,DATA_ENTRY!$L50="y",DATA_ENTRY!F50<>""),DATA_ENTRY!F50,"") ->  | IC54: =IF(AND(DATA_ENTRY!$K50=5,DATA_ENTRY!$L50="y",DATA_ENTRY!G50<>""),DATA_ENTRY!G50,"") ->  | IE54: =IF(AND(DATA_ENTRY!$K50=5,DATA_ENTRY!$L50="y",DATA_ENTRY!G50<>""),rel_cor_Brannick!E54,"") ->  | IF54: =IF(AND(DATA_ENTRY!$K50=5,DATA_ENTRY!$L50="y",DATA_ENTRY!G50<>""),rel_cor_Brannick!F54,"") ->  | IG54: =IF(AND(DATA_ENTRY!$K50=5,DATA_ENTRY!$L50="y",DATA_ENTRY!G50<>""),rel_cor_Brannick!G54,"") ->  | JR54: =IF(AND(DATA_ENTRY!$K50=6,DATA_ENTRY!$L50="y",DATA_ENTRY!F50<>""),DATA_ENTRY!F50,"") ->  | JS54: =IF(AND(DATA_ENTRY!$K50=6,DATA_ENTRY!$L50="y",DATA_ENTRY!G50<>""),DATA_ENTRY!G50,"") ->  | JU54: =IF(AND(DATA_ENTRY!$K50=6,DATA_ENTRY!$L50="y",DATA_ENTRY!G50<>""),rel_cor_Brannick!E54,"") ->  | JV54: =IF(AND(DATA_ENTRY!$K50=6,DATA_ENTRY!$L50="y",DATA_ENTRY!G50<>""),rel_cor_Brannick!F54,"") ->  | JW54: =IF(AND(DATA_ENTRY!$K50=6,DATA_ENTRY!$L50="y",DATA_ENTRY!G50<>""),rel_cor_Brannick!G54,"") -> 
B55: =IF(DATA_ENTRY!H51<>"",DATA_ENTRY!H51,DATA_ENTRY!$Q$9) -> 1 | C55: =IF(DATA_ENTRY!I51<>"",DATA_ENTRY!I51,DATA_ENTRY!$Q$10) -> 1 | D55: =IF(DATA_ENTRY!J51<>"",DATA_ENTRY!J51,DATA_ENTRY!$Q$11) -> 1 | E55: 1 | F55: 1 | G55: 1 | I55: FINAL | J55: rbar c | K55: =IF($C$4="DRR",K47,IF($C$4="IRR",K40,IF($C$4="N",K33))) -> 0.3365143628 | M55: =IF($C$4="DRR",M47,IF($C$4="IRR",M40,IF($C$4="N",M33))) -> 0.5157852194 | O55: 0.1566203167 | Z55: =IF(AND(DATA_ENTRY!$L51="y",DATA_ENTRY!F51<>""),DATA_ENTRY!F51,"") ->  | AA55: =IF(AND(DATA_ENTRY!$L51="y",DATA_ENTRY!G51<>""),DATA_ENTRY!G51,"") ->  | BP55: =IF(AND(DATA_ENTRY!$K51=1,DATA_ENTRY!$L51="y",DATA_ENTRY!F51<>""),DATA_ENTRY!F51,"") ->  | BQ55: =IF(AND(DATA_ENTRY!$K51=1,DATA_ENTRY!$L51="y",DATA_ENTRY!G51<>""),DATA_ENTRY!G51,"") ->  | BS55: =IF(AND(DATA_ENTRY!$K51=1,DATA_ENTRY!$L51="y",DATA_ENTRY!G51<>""),rel_cor_Brannick!E55,"") ->  | BT55: =IF(AND(DATA_ENTRY!$K51=1,DATA_ENTRY!$L51="y",DATA_ENTRY!G51<>""),rel_cor_Brannick!F55,"") ->  | BU55: =IF(AND(DATA_ENTRY!$K51=1,DATA_ENTRY!$L51="y",DATA_ENTRY!G51<>""),rel_cor_Brannick!G55,"") ->  | DF55: =IF(AND(DATA_ENTRY!$K51=2,DATA_ENTRY!$L51="y",DATA_ENTRY!F51<>""),DATA_ENTRY!F51,"") ->  | DG55: =IF(AND(DATA_ENTRY!$K51=2,DATA_ENTRY!$L51="y",DATA_ENTRY!G51<>""),DATA_ENTRY!G51,"") ->  | DI55: =IF(AND(DATA_ENTRY!$K51=2,DATA_ENTRY!$L51="y",DATA_ENTRY!G51<>""),rel_cor_Brannick!E55,"") ->  | DJ55: =IF(AND(DATA_ENTRY!$K51=2,DATA_ENTRY!$L51="y",DATA_ENTRY!G51<>""),rel_cor_Brannick!F55,"") ->  | DK55: =IF(AND(DATA_ENTRY!$K51=2,DATA_ENTRY!$L51="y",DATA_ENTRY!G51<>""),rel_cor_Brannick!G55,"") ->  | EV55: =IF(AND(DATA_ENTRY!$K51=3,DATA_ENTRY!$L51="y",DATA_ENTRY!F51<>""),DATA_ENTRY!F51,"") ->  | EW55: =IF(AND(DATA_ENTRY!$K51=3,DATA_ENTRY!$L51="y",DATA_ENTRY!G51<>""),DATA_ENTRY!G51,"") ->  | EY55: =IF(AND(DATA_ENTRY!$K51=3,DATA_ENTRY!$L51="y",DATA_ENTRY!G51<>""),rel_cor_Brannick!E55,"") ->  | EZ55: =IF(AND(DATA_ENTRY!$K51=3,DATA_ENTRY!$L51="y",DATA_ENTRY!G51<>""),rel_cor_Brannick!F55,"") ->  | FA55: =IF(AND(DATA_ENTRY!$K51=3,DATA_ENTRY!$L51="y",DATA_ENTRY!G51<>""),rel_cor_Brannick!G55,"") ->  | GL55: =IF(AND(DATA_ENTRY!$K51=4,DATA_ENTRY!$L51="y",DATA_ENTRY!F51<>""),DATA_ENTRY!F51,"") ->  | GM55: =IF(AND(DATA_ENTRY!$K51=4,DATA_ENTRY!$L51="y",DATA_ENTRY!G51<>""),DATA_ENTRY!G51,"") ->  | GO55: =IF(AND(DATA_ENTRY!$K51=4,DATA_ENTRY!$L51="y",DATA_ENTRY!G51<>""),rel_cor_Brannick!E55,"") ->  | GP55: =IF(AND(DATA_ENTRY!$K51=4,DATA_ENTRY!$L51="y",DATA_ENTRY!G51<>""),rel_cor_Brannick!F55,"") ->  | GQ55: =IF(AND(DATA_ENTRY!$K51=4,DATA_ENTRY!$L51="y",DATA_ENTRY!G51<>""),rel_cor_Brannick!G55,"") ->  | IB55: =IF(AND(DATA_ENTRY!$K51=5,DATA_ENTRY!$L51="y",DATA_ENTRY!F51<>""),DATA_ENTRY!F51,"") ->  | IC55: =IF(AND(DATA_ENTRY!$K51=5,DATA_ENTRY!$L51="y",DATA_ENTRY!G51<>""),DATA_ENTRY!G51,"") ->  | IE55: =IF(AND(DATA_ENTRY!$K51=5,DATA_ENTRY!$L51="y",DATA_ENTRY!G51<>""),rel_cor_Brannick!E55,"") ->  | IF55: =IF(AND(DATA_ENTRY!$K51=5,DATA_ENTRY!$L51="y",DATA_ENTRY!G51<>""),rel_cor_Brannick!F55,"") ->  | IG55: =IF(AND(DATA_ENTRY!$K51=5,DATA_ENTRY!$L51="y",DATA_ENTRY!G51<>""),rel_cor_Brannick!G55,"") ->  | JR55: =IF(AND(DATA_ENTRY!$K51=6,DATA_ENTRY!$L51="y",DATA_ENTRY!F51<>""),DATA_ENTRY!F51,"") ->  | JS55: =IF(AND(DATA_ENTRY!$K51=6,DATA_ENTRY!$L51="y",DATA_ENTRY!G51<>""),DATA_ENTRY!G51,"") ->  | JU55: =IF(AND(DATA_ENTRY!$K51=6,DATA_ENTRY!$L51="y",DATA_ENTRY!G51<>""),rel_cor_Brannick!E55,"") ->  | JV55: =IF(AND(DATA_ENTRY!$K51=6,DATA_ENTRY!$L51="y",DATA_ENTRY!G51<>""),rel_cor_Brannick!F55,"") ->  | JW55: =IF(AND(DATA_ENTRY!$K51=6,DATA_ENTRY!$L51="y",DATA_ENTRY!G51<>""),rel_cor_Brannick!G55,"") -> 
B56: =IF(DATA_ENTRY!H52<>"",DATA_ENTRY!H52,DATA_ENTRY!$Q$9) -> 1 | C56: =IF(DATA_ENTRY!I52<>"",DATA_ENTRY!I52,DATA_ENTRY!$Q$10) -> 1 | D56: =IF(DATA_ENTRY!J52<>"",DATA_ENTRY!J52,DATA_ENTRY!$Q$11) -> 1 | E56: 1 | F56: 1 | G56: 1 | J56: Var(rc) | K56: =IF($C$4="DRR",K48,IF($C$4="IRR",K41,IF($C$4="N",K34))) -> 0.06162660106 | M56: 0.05102546118 | O56: 0.007652965535 | Z56: =IF(AND(DATA_ENTRY!$L52="y",DATA_ENTRY!F52<>""),DATA_ENTRY!F52,"") ->  | AA56: =IF(AND(DATA_ENTRY!$L52="y",DATA_ENTRY!G52<>""),DATA_ENTRY!G52,"") ->  | BP56: =IF(AND(DATA_ENTRY!$K52=1,DATA_ENTRY!$L52="y",DATA_ENTRY!F52<>""),DATA_ENTRY!F52,"") ->  | BQ56: =IF(AND(DATA_ENTRY!$K52=1,DATA_ENTRY!$L52="y",DATA_ENTRY!G52<>""),DATA_ENTRY!G52,"") ->  | BS56: =IF(AND(DATA_ENTRY!$K52=1,DATA_ENTRY!$L52="y",DATA_ENTRY!G52<>""),rel_cor_Brannick!E56,"") ->  | BT56: =IF(AND(DATA_ENTRY!$K52=1,DATA_ENTRY!$L52="y",DATA_ENTRY!G52<>""),rel_cor_Brannick!F56,"") ->  | BU56: =IF(AND(DATA_ENTRY!$K52=1,DATA_ENTRY!$L52="y",DATA_ENTRY!G52<>""),rel_cor_Brannick!G56,"") ->  | DF56: =IF(AND(DATA_ENTRY!$K52=2,DATA_ENTRY!$L52="y",DATA_ENTRY!F52<>""),DATA_ENTRY!F52,"") ->  | DG56: =IF(AND(DATA_ENTRY!$K52=2,DATA_ENTRY!$L52="y",DATA_ENTRY!G52<>""),DATA_ENTRY!G52,"") ->  | DI56: =IF(AND(DATA_ENTRY!$K52=2,DATA_ENTRY!$L52="y",DATA_ENTRY!G52<>""),rel_cor_Brannick!E56,"") ->  | DJ56: =IF(AND(DATA_ENTRY!$K52=2,DATA_ENTRY!$L52="y",DATA_ENTRY!G52<>""),rel_cor_Brannick!F56,"") ->  | DK56: =IF(AND(DATA_ENTRY!$K52=2,DATA_ENTRY!$L52="y",DATA_ENTRY!G52<>""),rel_cor_Brannick!G56,"") ->  | EV56: =IF(AND(DATA_ENTRY!$K52=3,DATA_ENTRY!$L52="y",DATA_ENTRY!F52<>""),DATA_ENTRY!F52,"") ->  | EW56: =IF(AND(DATA_ENTRY!$K52=3,DATA_ENTRY!$L52="y",DATA_ENTRY!G52<>""),DATA_ENTRY!G52,"") ->  | EY56: =IF(AND(DATA_ENTRY!$K52=3,DATA_ENTRY!$L52="y",DATA_ENTRY!G52<>""),rel_cor_Brannick!E56,"") ->  | EZ56: =IF(AND(DATA_ENTRY!$K52=3,DATA_ENTRY!$L52="y",DATA_ENTRY!G52<>""),rel_cor_Brannick!F56,"") ->  | FA56: =IF(AND(DATA_ENTRY!$K52=3,DATA_ENTRY!$L52="y",DATA_ENTRY!G52<>""),rel_cor_Brannick!G56,"") ->  | GL56: =IF(AND(DATA_ENTRY!$K52=4,DATA_ENTRY!$L52="y",DATA_ENTRY!F52<>""),DATA_ENTRY!F52,"") ->  | GM56: =IF(AND(DATA_ENTRY!$K52=4,DATA_ENTRY!$L52="y",DATA_ENTRY!G52<>""),DATA_ENTRY!G52,"") ->  | GO56: =IF(AND(DATA_ENTRY!$K52=4,DATA_ENTRY!$L52="y",DATA_ENTRY!G52<>""),rel_cor_Brannick!E56,"") ->  | GP56: =IF(AND(DATA_ENTRY!$K52=4,DATA_ENTRY!$L52="y",DATA_ENTRY!G52<>""),rel_cor_Brannick!F56,"") ->  | GQ56: =IF(AND(DATA_ENTRY!$K52=4,DATA_ENTRY!$L52="y",DATA_ENTRY!G52<>""),rel_cor_Brannick!G56,"") ->  | IB56: =IF(AND(DATA_ENTRY!$K52=5,DATA_ENTRY!$L52="y",DATA_ENTRY!F52<>""),DATA_ENTRY!F52,"") ->  | IC56: =IF(AND(DATA_ENTRY!$K52=5,DATA_ENTRY!$L52="y",DATA_ENTRY!G52<>""),DATA_ENTRY!G52,"") ->  | IE56: =IF(AND(DATA_ENTRY!$K52=5,DATA_ENTRY!$L52="y",DATA_ENTRY!G52<>""),rel_cor_Brannick!E56,"") ->  | IF56: =IF(AND(DATA_ENTRY!$K52=5,DATA_ENTRY!$L52="y",DATA_ENTRY!G52<>""),rel_cor_Brannick!F56,"") ->  | IG56: =IF(AND(DATA_ENTRY!$K52=5,DATA_ENTRY!$L52="y",DATA_ENTRY!G52<>""),rel_cor_Brannick!G56,"") ->  | JR56: =IF(AND(DATA_ENTRY!$K52=6,DATA_ENTRY!$L52="y",DATA_ENTRY!F52<>""),DATA_ENTRY!F52,"") ->  | JS56: =IF(AND(DATA_ENTRY!$K52=6,DATA_ENTRY!$L52="y",DATA_ENTRY!G52<>""),DATA_ENTRY!G52,"") ->  | JU56: =IF(AND(DATA_ENTRY!$K52=6,DATA_ENTRY!$L52="y",DATA_ENTRY!G52<>""),rel_cor_Brannick!E56,"") ->  | JV56: =IF(AND(DATA_ENTRY!$K52=6,DATA_ENTRY!$L52="y",DATA_ENTRY!G52<>""),rel_cor_Brannick!F56,"") ->  | JW56: =IF(AND(DATA_ENTRY!$K52=6,DATA_ENTRY!$L52="y",DATA_ENTRY!G52<>""),rel_cor_Brannick!G56,"") -> 
B57: =IF(DATA_ENTRY!H53<>"",DATA_ENTRY!H53,DATA_ENTRY!$Q$9) -> 1 | C57: =IF(DATA_ENTRY!I53<>"",DATA_ENTRY!I53,DATA_ENTRY!$Q$10) -> 1 | D57: =IF(DATA_ENTRY!J53<>"",DATA_ENTRY!J53,DATA_ENTRY!$Q$11) -> 1 | E57: 1 | F57: 1 | G57: 1 | J57: Ave(ve) | K57: =IF($C$4="DRR",K49,IF($C$4="IRR",K42,IF($C$4="N",K35))) -> 0.003666604603 | M57: 0.002502449279 | O57: 0.004453701159 | Z57: =IF(AND(DATA_ENTRY!$L53="y",DATA_ENTRY!F53<>""),DATA_ENTRY!F53,"") ->  | AA57: =IF(AND(DATA_ENTRY!$L53="y",DATA_ENTRY!G53<>""),DATA_ENTRY!G53,"") ->  | BP57: =IF(AND(DATA_ENTRY!$K53=1,DATA_ENTRY!$L53="y",DATA_ENTRY!F53<>""),DATA_ENTRY!F53,"") ->  | BQ57: =IF(AND(DATA_ENTRY!$K53=1,DATA_ENTRY!$L53="y",DATA_ENTRY!G53<>""),DATA_ENTRY!G53,"") ->  | BS57: =IF(AND(DATA_ENTRY!$K53=1,DATA_ENTRY!$L53="y",DATA_ENTRY!G53<>""),rel_cor_Brannick!E57,"") ->  | BT57: =IF(AND(DATA_ENTRY!$K53=1,DATA_ENTRY!$L53="y",DATA_ENTRY!G53<>""),rel_cor_Brannick!F57,"") ->  | BU57: =IF(AND(DATA_ENTRY!$K53=1,DATA_ENTRY!$L53="y",DATA_ENTRY!G53<>""),rel_cor_Brannick!G57,"") ->  | DF57: =IF(AND(DATA_ENTRY!$K53=2,DATA_ENTRY!$L53="y",DATA_ENTRY!F53<>""),DATA_ENTRY!F53,"") ->  | DG57: =IF(AND(DATA_ENTRY!$K53=2,DATA_ENTRY!$L53="y",DATA_ENTRY!G53<>""),DATA_ENTRY!G53,"") ->  | DI57: =IF(AND(DATA_ENTRY!$K53=2,DATA_ENTRY!$L53="y",DATA_ENTRY!G53<>""),rel_cor_Brannick!E57,"") ->  | DJ57: =IF(AND(DATA_ENTRY!$K53=2,DATA_ENTRY!$L53="y",DATA_ENTRY!G53<>""),rel_cor_Brannick!F57,"") ->  | DK57: =IF(AND(DATA_ENTRY!$K53=2,DATA_ENTRY!$L53="y",DATA_ENTRY!G53<>""),rel_cor_Brannick!G57,"") ->  | EV57: =IF(AND(DATA_ENTRY!$K53=3,DATA_ENTRY!$L53="y",DATA_ENTRY!F53<>""),DATA_ENTRY!F53,"") ->  | EW57: =IF(AND(DATA_ENTRY!$K53=3,DATA_ENTRY!$L53="y",DATA_ENTRY!G53<>""),DATA_ENTRY!G53,"") ->  | EY57: =IF(AND(DATA_ENTRY!$K53=3,DATA_ENTRY!$L53="y",DATA_ENTRY!G53<>""),rel_cor_Brannick!E57,"") ->  | EZ57: =IF(AND(DATA_ENTRY!$K53=3,DATA_ENTRY!$L53="y",DATA_ENTRY!G53<>""),rel_cor_Brannick!F57,"") ->  | FA57: =IF(AND(DATA_ENTRY!$K53=3,DATA_ENTRY!$L53="y",DATA_ENTRY!G53<>""),rel_cor_Brannick!G57,"") ->  | GL57: =IF(AND(DATA_ENTRY!$K53=4,DATA_ENTRY!$L53="y",DATA_ENTRY!F53<>""),DATA_ENTRY!F53,"") ->  | GM57: =IF(AND(DATA_ENTRY!$K53=4,DATA_ENTRY!$L53="y",DATA_ENTRY!G53<>""),DATA_ENTRY!G53,"") ->  | GO57: =IF(AND(DATA_ENTRY!$K53=4,DATA_ENTRY!$L53="y",DATA_ENTRY!G53<>""),rel_cor_Brannick!E57,"") ->  | GP57: =IF(AND(DATA_ENTRY!$K53=4,DATA_ENTRY!$L53="y",DATA_ENTRY!G53<>""),rel_cor_Brannick!F57,"") ->  | GQ57: =IF(AND(DATA_ENTRY!$K53=4,DATA_ENTRY!$L53="y",DATA_ENTRY!G53<>""),rel_cor_Brannick!G57,"") ->  | IB57: =IF(AND(DATA_ENTRY!$K53=5,DATA_ENTRY!$L53="y",DATA_ENTRY!F53<>""),DATA_ENTRY!F53,"") ->  | IC57: =IF(AND(DATA_ENTRY!$K53=5,DATA_ENTRY!$L53="y",DATA_ENTRY!G53<>""),DATA_ENTRY!G53,"") ->  | IE57: =IF(AND(DATA_ENTRY!$K53=5,DATA_ENTRY!$L53="y",DATA_ENTRY!G53<>""),rel_cor_Brannick!E57,"") ->  | IF57: =IF(AND(DATA_ENTRY!$K53=5,DATA_ENTRY!$L53="y",DATA_ENTRY!G53<>""),rel_cor_Brannick!F57,"") ->  | IG57: =IF(AND(DATA_ENTRY!$K53=5,DATA_ENTRY!$L53="y",DATA_ENTRY!G53<>""),rel_cor_Brannick!G57,"") ->  | JR57: =IF(AND(DATA_ENTRY!$K53=6,DATA_ENTRY!$L53="y",DATA_ENTRY!F53<>""),DATA_ENTRY!F53,"") ->  | JS57: =IF(AND(DATA_ENTRY!$K53=6,DATA_ENTRY!$L53="y",DATA_ENTRY!G53<>""),DATA_ENTRY!G53,"") ->  | JU57: =IF(AND(DATA_ENTRY!$K53=6,DATA_ENTRY!$L53="y",DATA_ENTRY!G53<>""),rel_cor_Brannick!E57,"") ->  | JV57: =IF(AND(DATA_ENTRY!$K53=6,DATA_ENTRY!$L53="y",DATA_ENTRY!G53<>""),rel_cor_Brannick!F57,"") ->  | JW57: =IF(AND(DATA_ENTRY!$K53=6,DATA_ENTRY!$L53="y",DATA_ENTRY!G53<>""),rel_cor_Brannick!G57,"") -> 
B58: =IF(DATA_ENTRY!H54<>"",DATA_ENTRY!H54,DATA_ENTRY!$Q$9) -> 1 | C58: =IF(DATA_ENTRY!I54<>"",DATA_ENTRY!I54,DATA_ENTRY!$Q$10) -> 1 | D58: =IF(DATA_ENTRY!J54<>"",DATA_ENTRY!J54,DATA_ENTRY!$Q$11) -> 1 | E58: 1 | F58: 1 | G58: 1 | J58: Var(rho) | K58: =IF($C$4="DRR",K50,IF($C$4="IRR",K43,IF($C$4="N",K36))) -> 0.05795999645 | M58: 0.0485230119 | O58: 0.003199264377 | Z58: =IF(AND(DATA_ENTRY!$L54="y",DATA_ENTRY!F54<>""),DATA_ENTRY!F54,"") ->  | AA58: =IF(AND(DATA_ENTRY!$L54="y",DATA_ENTRY!G54<>""),DATA_ENTRY!G54,"") ->  | BP58: =IF(AND(DATA_ENTRY!$K54=1,DATA_ENTRY!$L54="y",DATA_ENTRY!F54<>""),DATA_ENTRY!F54,"") ->  | BQ58: =IF(AND(DATA_ENTRY!$K54=1,DATA_ENTRY!$L54="y",DATA_ENTRY!G54<>""),DATA_ENTRY!G54,"") ->  | BS58: =IF(AND(DATA_ENTRY!$K54=1,DATA_ENTRY!$L54="y",DATA_ENTRY!G54<>""),rel_cor_Brannick!E58,"") ->  | BT58: =IF(AND(DATA_ENTRY!$K54=1,DATA_ENTRY!$L54="y",DATA_ENTRY!G54<>""),rel_cor_Brannick!F58,"") ->  | BU58: =IF(AND(DATA_ENTRY!$K54=1,DATA_ENTRY!$L54="y",DATA_ENTRY!G54<>""),rel_cor_Brannick!G58,"") ->  | DF58: =IF(AND(DATA_ENTRY!$K54=2,DATA_ENTRY!$L54="y",DATA_ENTRY!F54<>""),DATA_ENTRY!F54,"") ->  | DG58: =IF(AND(DATA_ENTRY!$K54=2,DATA_ENTRY!$L54="y",DATA_ENTRY!G54<>""),DATA_ENTRY!G54,"") ->  | DI58: =IF(AND(DATA_ENTRY!$K54=2,DATA_ENTRY!$L54="y",DATA_ENTRY!G54<>""),rel_cor_Brannick!E58,"") ->  | DJ58: =IF(AND(DATA_ENTRY!$K54=2,DATA_ENTRY!$L54="y",DATA_ENTRY!G54<>""),rel_cor_Brannick!F58,"") ->  | DK58: =IF(AND(DATA_ENTRY!$K54=2,DATA_ENTRY!$L54="y",DATA_ENTRY!G54<>""),rel_cor_Brannick!G58,"") ->  | EV58: =IF(AND(DATA_ENTRY!$K54=3,DATA_ENTRY!$L54="y",DATA_ENTRY!F54<>""),DATA_ENTRY!F54,"") ->  | EW58: =IF(AND(DATA_ENTRY!$K54=3,DATA_ENTRY!$L54="y",DATA_ENTRY!G54<>""),DATA_ENTRY!G54,"") ->  | EY58: =IF(AND(DATA_ENTRY!$K54=3,DATA_ENTRY!$L54="y",DATA_ENTRY!G54<>""),rel_cor_Brannick!E58,"") ->  | EZ58: =IF(AND(DATA_ENTRY!$K54=3,DATA_ENTRY!$L54="y",DATA_ENTRY!G54<>""),rel_cor_Brannick!F58,"") ->  | FA58: =IF(AND(DATA_ENTRY!$K54=3,DATA_ENTRY!$L54="y",DATA_ENTRY!G54<>""),rel_cor_Brannick!G58,"") ->  | GL58: =IF(AND(DATA_ENTRY!$K54=4,DATA_ENTRY!$L54="y",DATA_ENTRY!F54<>""),DATA_ENTRY!F54,"") ->  | GM58: =IF(AND(DATA_ENTRY!$K54=4,DATA_ENTRY!$L54="y",DATA_ENTRY!G54<>""),DATA_ENTRY!G54,"") ->  | GO58: =IF(AND(DATA_ENTRY!$K54=4,DATA_ENTRY!$L54="y",DATA_ENTRY!G54<>""),rel_cor_Brannick!E58,"") ->  | GP58: =IF(AND(DATA_ENTRY!$K54=4,DATA_ENTRY!$L54="y",DATA_ENTRY!G54<>""),rel_cor_Brannick!F58,"") ->  | GQ58: =IF(AND(DATA_ENTRY!$K54=4,DATA_ENTRY!$L54="y",DATA_ENTRY!G54<>""),rel_cor_Brannick!G58,"") ->  | IB58: =IF(AND(DATA_ENTRY!$K54=5,DATA_ENTRY!$L54="y",DATA_ENTRY!F54<>""),DATA_ENTRY!F54,"") ->  | IC58: =IF(AND(DATA_ENTRY!$K54=5,DATA_ENTRY!$L54="y",DATA_ENTRY!G54<>""),DATA_ENTRY!G54,"") ->  | IE58: =IF(AND(DATA_ENTRY!$K54=5,DATA_ENTRY!$L54="y",DATA_ENTRY!G54<>""),rel_cor_Brannick!E58,"") ->  | IF58: =IF(AND(DATA_ENTRY!$K54=5,DATA_ENTRY!$L54="y",DATA_ENTRY!G54<>""),rel_cor_Brannick!F58,"") ->  | IG58: =IF(AND(DATA_ENTRY!$K54=5,DATA_ENTRY!$L54="y",DATA_ENTRY!G54<>""),rel_cor_Brannick!G58,"") ->  | JR58: =IF(AND(DATA_ENTRY!$K54=6,DATA_ENTRY!$L54="y",DATA_ENTRY!F54<>""),DATA_ENTRY!F54,"") ->  | JS58: =IF(AND(DATA_ENTRY!$K54=6,DATA_ENTRY!$L54="y",DATA_ENTRY!G54<>""),DATA_ENTRY!G54,"") ->  | JU58: =IF(AND(DATA_ENTRY!$K54=6,DATA_ENTRY!$L54="y",DATA_ENTRY!G54<>""),rel_cor_Brannick!E58,"") ->  | JV58: =IF(AND(DATA_ENTRY!$K54=6,DATA_ENTRY!$L54="y",DATA_ENTRY!G54<>""),rel_cor_Brannick!F58,"") ->  | JW58: =IF(AND(DATA_ENTRY!$K54=6,DATA_ENTRY!$L54="y",DATA_ENTRY!G54<>""),rel_cor_Brannick!G58,"") -> 
B59: =IF(DATA_ENTRY!H55<>"",DATA_ENTRY!H55,DATA_ENTRY!$Q$9) -> 1 | C59: =IF(DATA_ENTRY!I55<>"",DATA_ENTRY!I55,DATA_ENTRY!$Q$10) -> 1 | D59: =IF(DATA_ENTRY!J55<>"",DATA_ENTRY!J55,DATA_ENTRY!$Q$11) -> 1 | E59: 1 | F59: 1 | G59: 1 | J59: SD(rho) | K59: =IF($C$4="DRR",K51,IF($C$4="IRR",K44,IF($C$4="N",K37))) -> 0.2407488244 | M59: 0.2202793951 | O59: 0.05656204007 | Z59: =IF(AND(DATA_ENTRY!$L55="y",DATA_ENTRY!F55<>""),DATA_ENTRY!F55,"") ->  | AA59: =IF(AND(DATA_ENTRY!$L55="y",DATA_ENTRY!G55<>""),DATA_ENTRY!G55,"") ->  | BP59: =IF(AND(DATA_ENTRY!$K55=1,DATA_ENTRY!$L55="y",DATA_ENTRY!F55<>""),DATA_ENTRY!F55,"") ->  | BQ59: =IF(AND(DATA_ENTRY!$K55=1,DATA_ENTRY!$L55="y",DATA_ENTRY!G55<>""),DATA_ENTRY!G55,"") ->  | BS59: =IF(AND(DATA_ENTRY!$K55=1,DATA_ENTRY!$L55="y",DATA_ENTRY!G55<>""),rel_cor_Brannick!E59,"") ->  | BT59: =IF(AND(DATA_ENTRY!$K55=1,DATA_ENTRY!$L55="y",DATA_ENTRY!G55<>""),rel_cor_Brannick!F59,"") ->  | BU59: =IF(AND(DATA_ENTRY!$K55=1,DATA_ENTRY!$L55="y",DATA_ENTRY!G55<>""),rel_cor_Brannick!G59,"") ->  | DF59: =IF(AND(DATA_ENTRY!$K55=2,DATA_ENTRY!$L55="y",DATA_ENTRY!F55<>""),DATA_ENTRY!F55,"") ->  | DG59: =IF(AND(DATA_ENTRY!$K55=2,DATA_ENTRY!$L55="y",DATA_ENTRY!G55<>""),DATA_ENTRY!G55,"") ->  | DI59: =IF(AND(DATA_ENTRY!$K55=2,DATA_ENTRY!$L55="y",DATA_ENTRY!G55<>""),rel_cor_Brannick!E59,"") ->  | DJ59: =IF(AND(DATA_ENTRY!$K55=2,DATA_ENTRY!$L55="y",DATA_ENTRY!G55<>""),rel_cor_Brannick!F59,"") ->  | DK59: =IF(AND(DATA_ENTRY!$K55=2,DATA_ENTRY!$L55="y",DATA_ENTRY!G55<>""),rel_cor_Brannick!G59,"") ->  | EV59: =IF(AND(DATA_ENTRY!$K55=3,DATA_ENTRY!$L55="y",DATA_ENTRY!F55<>""),DATA_ENTRY!F55,"") ->  | EW59: =IF(AND(DATA_ENTRY!$K55=3,DATA_ENTRY!$L55="y",DATA_ENTRY!G55<>""),DATA_ENTRY!G55,"") ->  | EY59: =IF(AND(DATA_ENTRY!$K55=3,DATA_ENTRY!$L55="y",DATA_ENTRY!G55<>""),rel_cor_Brannick!E59,"") ->  | EZ59: =IF(AND(DATA_ENTRY!$K55=3,DATA_ENTRY!$L55="y",DATA_ENTRY!G55<>""),rel_cor_Brannick!F59,"") ->  | FA59: =IF(AND(DATA_ENTRY!$K55=3,DATA_ENTRY!$L55="y",DATA_ENTRY!G55<>""),rel_cor_Brannick!G59,"") ->  | GL59: =IF(AND(DATA_ENTRY!$K55=4,DATA_ENTRY!$L55="y",DATA_ENTRY!F55<>""),DATA_ENTRY!F55,"") ->  | GM59: =IF(AND(DATA_ENTRY!$K55=4,DATA_ENTRY!$L55="y",DATA_ENTRY!G55<>""),DATA_ENTRY!G55,"") ->  | GO59: =IF(AND(DATA_ENTRY!$K55=4,DATA_ENTRY!$L55="y",DATA_ENTRY!G55<>""),rel_cor_Brannick!E59,"") ->  | GP59: =IF(AND(DATA_ENTRY!$K55=4,DATA_ENTRY!$L55="y",DATA_ENTRY!G55<>""),rel_cor_Brannick!F59,"") ->  | GQ59: =IF(AND(DATA_ENTRY!$K55=4,DATA_ENTRY!$L55="y",DATA_ENTRY!G55<>""),rel_cor_Brannick!G59,"") ->  | IB59: =IF(AND(DATA_ENTRY!$K55=5,DATA_ENTRY!$L55="y",DATA_ENTRY!F55<>""),DATA_ENTRY!F55,"") ->  | IC59: =IF(AND(DATA_ENTRY!$K55=5,DATA_ENTRY!$L55="y",DATA_ENTRY!G55<>""),DATA_ENTRY!G55,"") ->  | IE59: =IF(AND(DATA_ENTRY!$K55=5,DATA_ENTRY!$L55="y",DATA_ENTRY!G55<>""),rel_cor_Brannick!E59,"") ->  | IF59: =IF(AND(DATA_ENTRY!$K55=5,DATA_ENTRY!$L55="y",DATA_ENTRY!G55<>""),rel_cor_Brannick!F59,"") ->  | IG59: =IF(AND(DATA_ENTRY!$K55=5,DATA_ENTRY!$L55="y",DATA_ENTRY!G55<>""),rel_cor_Brannick!G59,"") ->  | JR59: =IF(AND(DATA_ENTRY!$K55=6,DATA_ENTRY!$L55="y",DATA_ENTRY!F55<>""),DATA_ENTRY!F55,"") ->  | JS59: =IF(AND(DATA_ENTRY!$K55=6,DATA_ENTRY!$L55="y",DATA_ENTRY!G55<>""),DATA_ENTRY!G55,"") ->  | JU59: =IF(AND(DATA_ENTRY!$K55=6,DATA_ENTRY!$L55="y",DATA_ENTRY!G55<>""),rel_cor_Brannick!E59,"") ->  | JV59: =IF(AND(DATA_ENTRY!$K55=6,DATA_ENTRY!$L55="y",DATA_ENTRY!G55<>""),rel_cor_Brannick!F59,"") ->  | JW59: =IF(AND(DATA_ENTRY!$K55=6,DATA_ENTRY!$L55="y",DATA_ENTRY!G55<>""),rel_cor_Brannick!G59,"") -> 
B60: =IF(DATA_ENTRY!H56<>"",DATA_ENTRY!H56,DATA_ENTRY!$Q$9) -> 1 | C60: =IF(DATA_ENTRY!I56<>"",DATA_ENTRY!I56,DATA_ENTRY!$Q$10) -> 1 | D60: =IF(DATA_ENTRY!J56<>"",DATA_ENTRY!J56,DATA_ENTRY!$Q$11) -> 1 | E60: 1 | F60: 1 | G60: 1 | J60: CRED | K60: =IF($C$4="DRR",K52,IF($C$4="IRR",K45,IF($C$4="N",K38))) -> 0.6450463957 | M60: 0.798084623 | O60: 0.2291074877 | Z60: =IF(AND(DATA_ENTRY!$L56="y",DATA_ENTRY!F56<>""),DATA_ENTRY!F56,"") ->  | AA60: =IF(AND(DATA_ENTRY!$L56="y",DATA_ENTRY!G56<>""),DATA_ENTRY!G56,"") ->  | BP60: =IF(AND(DATA_ENTRY!$K56=1,DATA_ENTRY!$L56="y",DATA_ENTRY!F56<>""),DATA_ENTRY!F56,"") ->  | BQ60: =IF(AND(DATA_ENTRY!$K56=1,DATA_ENTRY!$L56="y",DATA_ENTRY!G56<>""),DATA_ENTRY!G56,"") ->  | BS60: =IF(AND(DATA_ENTRY!$K56=1,DATA_ENTRY!$L56="y",DATA_ENTRY!G56<>""),rel_cor_Brannick!E60,"") ->  | BT60: =IF(AND(DATA_ENTRY!$K56=1,DATA_ENTRY!$L56="y",DATA_ENTRY!G56<>""),rel_cor_Brannick!F60,"") ->  | BU60: =IF(AND(DATA_ENTRY!$K56=1,DATA_ENTRY!$L56="y",DATA_ENTRY!G56<>""),rel_cor_Brannick!G60,"") ->  | DF60: =IF(AND(DATA_ENTRY!$K56=2,DATA_ENTRY!$L56="y",DATA_ENTRY!F56<>""),DATA_ENTRY!F56,"") ->  | DG60: =IF(AND(DATA_ENTRY!$K56=2,DATA_ENTRY!$L56="y",DATA_ENTRY!G56<>""),DATA_ENTRY!G56,"") ->  | DI60: =IF(AND(DATA_ENTRY!$K56=2,DATA_ENTRY!$L56="y",DATA_ENTRY!G56<>""),rel_cor_Brannick!E60,"") ->  | DJ60: =IF(AND(DATA_ENTRY!$K56=2,DATA_ENTRY!$L56="y",DATA_ENTRY!G56<>""),rel_cor_Brannick!F60,"") ->  | DK60: =IF(AND(DATA_ENTRY!$K56=2,DATA_ENTRY!$L56="y",DATA_ENTRY!G56<>""),rel_cor_Brannick!G60,"") ->  | EV60: =IF(AND(DATA_ENTRY!$K56=3,DATA_ENTRY!$L56="y",DATA_ENTRY!F56<>""),DATA_ENTRY!F56,"") ->  | EW60: =IF(AND(DATA_ENTRY!$K56=3,DATA_ENTRY!$L56="y",DATA_ENTRY!G56<>""),DATA_ENTRY!G56,"") ->  | EY60: =IF(AND(DATA_ENTRY!$K56=3,DATA_ENTRY!$L56="y",DATA_ENTRY!G56<>""),rel_cor_Brannick!E60,"") ->  | EZ60: =IF(AND(DATA_ENTRY!$K56=3,DATA_ENTRY!$L56="y",DATA_ENTRY!G56<>""),rel_cor_Brannick!F60,"") ->  | FA60: =IF(AND(DATA_ENTRY!$K56=3,DATA_ENTRY!$L56="y",DATA_ENTRY!G56<>""),rel_cor_Brannick!G60,"") ->  | GL60: =IF(AND(DATA_ENTRY!$K56=4,DATA_ENTRY!$L56="y",DATA_ENTRY!F56<>""),DATA_ENTRY!F56,"") ->  | GM60: =IF(AND(DATA_ENTRY!$K56=4,DATA_ENTRY!$L56="y",DATA_ENTRY!G56<>""),DATA_ENTRY!G56,"") ->  | GO60: =IF(AND(DATA_ENTRY!$K56=4,DATA_ENTRY!$L56="y",DATA_ENTRY!G56<>""),rel_cor_Brannick!E60,"") ->  | GP60: =IF(AND(DATA_ENTRY!$K56=4,DATA_ENTRY!$L56="y",DATA_ENTRY!G56<>""),rel_cor_Brannick!F60,"") ->  | GQ60: =IF(AND(DATA_ENTRY!$K56=4,DATA_ENTRY!$L56="y",DATA_ENTRY!G56<>""),rel_cor_Brannick!G60,"") ->  | IB60: =IF(AND(DATA_ENTRY!$K56=5,DATA_ENTRY!$L56="y",DATA_ENTRY!F56<>""),DATA_ENTRY!F56,"") ->  | IC60: =IF(AND(DATA_ENTRY!$K56=5,DATA_ENTRY!$L56="y",DATA_ENTRY!G56<>""),DATA_ENTRY!G56,"") ->  | IE60: =IF(AND(DATA_ENTRY!$K56=5,DATA_ENTRY!$L56="y",DATA_ENTRY!G56<>""),rel_cor_Brannick!E60,"") ->  | IF60: =IF(AND(DATA_ENTRY!$K56=5,DATA_ENTRY!$L56="y",DATA_ENTRY!G56<>""),rel_cor_Brannick!F60,"") ->  | IG60: =IF(AND(DATA_ENTRY!$K56=5,DATA_ENTRY!$L56="y",DATA_ENTRY!G56<>""),rel_cor_Brannick!G60,"") ->  | JR60: =IF(AND(DATA_ENTRY!$K56=6,DATA_ENTRY!$L56="y",DATA_ENTRY!F56<>""),DATA_ENTRY!F56,"") ->  | JS60: =IF(AND(DATA_ENTRY!$K56=6,DATA_ENTRY!$L56="y",DATA_ENTRY!G56<>""),DATA_ENTRY!G56,"") ->  | JU60: =IF(AND(DATA_ENTRY!$K56=6,DATA_ENTRY!$L56="y",DATA_ENTRY!G56<>""),rel_cor_Brannick!E60,"") ->  | JV60: =IF(AND(DATA_ENTRY!$K56=6,DATA_ENTRY!$L56="y",DATA_ENTRY!G56<>""),rel_cor_Brannick!F60,"") ->  | JW60: =IF(AND(DATA_ENTRY!$K56=6,DATA_ENTRY!$L56="y",DATA_ENTRY!G56<>""),rel_cor_Brannick!G60,"") -> 
B61: =IF(DATA_ENTRY!H57<>"",DATA_ENTRY!H57,DATA_ENTRY!$Q$9) -> 1 | C61: =IF(DATA_ENTRY!I57<>"",DATA_ENTRY!I57,DATA_ENTRY!$Q$10) -> 1 | D61: =IF(DATA_ENTRY!J57<>"",DATA_ENTRY!J57,DATA_ENTRY!$Q$11) -> 1 | E61: 1 | F61: 1 | G61: 1 | J61: CRED | K61: =IF($C$4="DRR",K53,IF($C$4="IRR",K46,IF($C$4="N",K39))) -> 0.02798233001 | M61: 0.2334858158 | O61: 0.08413314572 | Z61: =IF(AND(DATA_ENTRY!$L57="y",DATA_ENTRY!F57<>""),DATA_ENTRY!F57,"") ->  | AA61: =IF(AND(DATA_ENTRY!$L57="y",DATA_ENTRY!G57<>""),DATA_ENTRY!G57,"") ->  | BP61: =IF(AND(DATA_ENTRY!$K57=1,DATA_ENTRY!$L57="y",DATA_ENTRY!F57<>""),DATA_ENTRY!F57,"") ->  | BQ61: =IF(AND(DATA_ENTRY!$K57=1,DATA_ENTRY!$L57="y",DATA_ENTRY!G57<>""),DATA_ENTRY!G57,"") ->  | BS61: =IF(AND(DATA_ENTRY!$K57=1,DATA_ENTRY!$L57="y",DATA_ENTRY!G57<>""),rel_cor_Brannick!E61,"") ->  | BT61: =IF(AND(DATA_ENTRY!$K57=1,DATA_ENTRY!$L57="y",DATA_ENTRY!G57<>""),rel_cor_Brannick!F61,"") ->  | BU61: =IF(AND(DATA_ENTRY!$K57=1,DATA_ENTRY!$L57="y",DATA_ENTRY!G57<>""),rel_cor_Brannick!G61,"") ->  | DF61: =IF(AND(DATA_ENTRY!$K57=2,DATA_ENTRY!$L57="y",DATA_ENTRY!F57<>""),DATA_ENTRY!F57,"") ->  | DG61: =IF(AND(DATA_ENTRY!$K57=2,DATA_ENTRY!$L57="y",DATA_ENTRY!G57<>""),DATA_ENTRY!G57,"") ->  | DI61: =IF(AND(DATA_ENTRY!$K57=2,DATA_ENTRY!$L57="y",DATA_ENTRY!G57<>""),rel_cor_Brannick!E61,"") ->  | DJ61: =IF(AND(DATA_ENTRY!$K57=2,DATA_ENTRY!$L57="y",DATA_ENTRY!G57<>""),rel_cor_Brannick!F61,"") ->  | DK61: =IF(AND(DATA_ENTRY!$K57=2,DATA_ENTRY!$L57="y",DATA_ENTRY!G57<>""),rel_cor_Brannick!G61,"") ->  | EV61: =IF(AND(DATA_ENTRY!$K57=3,DATA_ENTRY!$L57="y",DATA_ENTRY!F57<>""),DATA_ENTRY!F57,"") ->  | EW61: =IF(AND(DATA_ENTRY!$K57=3,DATA_ENTRY!$L57="y",DATA_ENTRY!G57<>""),DATA_ENTRY!G57,"") ->  | EY61: =IF(AND(DATA_ENTRY!$K57=3,DATA_ENTRY!$L57="y",DATA_ENTRY!G57<>""),rel_cor_Brannick!E61,"") ->  | EZ61: =IF(AND(DATA_ENTRY!$K57=3,DATA_ENTRY!$L57="y",DATA_ENTRY!G57<>""),rel_cor_Brannick!F61,"") ->  | FA61: =IF(AND(DATA_ENTRY!$K57=3,DATA_ENTRY!$L57="y",DATA_ENTRY!G57<>""),rel_cor_Brannick!G61,"") ->  | GL61: =IF(AND(DATA_ENTRY!$K57=4,DATA_ENTRY!$L57="y",DATA_ENTRY!F57<>""),DATA_ENTRY!F57,"") ->  | GM61: =IF(AND(DATA_ENTRY!$K57=4,DATA_ENTRY!$L57="y",DATA_ENTRY!G57<>""),DATA_ENTRY!G57,"") ->  | GO61: =IF(AND(DATA_ENTRY!$K57=4,DATA_ENTRY!$L57="y",DATA_ENTRY!G57<>""),rel_cor_Brannick!E61,"") ->  | GP61: =IF(AND(DATA_ENTRY!$K57=4,DATA_ENTRY!$L57="y",DATA_ENTRY!G57<>""),rel_cor_Brannick!F61,"") ->  | GQ61: =IF(AND(DATA_ENTRY!$K57=4,DATA_ENTRY!$L57="y",DATA_ENTRY!G57<>""),rel_cor_Brannick!G61,"") ->  | IB61: =IF(AND(DATA_ENTRY!$K57=5,DATA_ENTRY!$L57="y",DATA_ENTRY!F57<>""),DATA_ENTRY!F57,"") ->  | IC61: =IF(AND(DATA_ENTRY!$K57=5,DATA_ENTRY!$L57="y",DATA_ENTRY!G57<>""),DATA_ENTRY!G57,"") ->  | IE61: =IF(AND(DATA_ENTRY!$K57=5,DATA_ENTRY!$L57="y",DATA_ENTRY!G57<>""),rel_cor_Brannick!E61,"") ->  | IF61: =IF(AND(DATA_ENTRY!$K57=5,DATA_ENTRY!$L57="y",DATA_ENTRY!G57<>""),rel_cor_Brannick!F61,"") ->  | IG61: =IF(AND(DATA_ENTRY!$K57=5,DATA_ENTRY!$L57="y",DATA_ENTRY!G57<>""),rel_cor_Brannick!G61,"") ->  | JR61: =IF(AND(DATA_ENTRY!$K57=6,DATA_ENTRY!$L57="y",DATA_ENTRY!F57<>""),DATA_ENTRY!F57,"") ->  | JS61: =IF(AND(DATA_ENTRY!$K57=6,DATA_ENTRY!$L57="y",DATA_ENTRY!G57<>""),DATA_ENTRY!G57,"") ->  | JU61: =IF(AND(DATA_ENTRY!$K57=6,DATA_ENTRY!$L57="y",DATA_ENTRY!G57<>""),rel_cor_Brannick!E61,"") ->  | JV61: =IF(AND(DATA_ENTRY!$K57=6,DATA_ENTRY!$L57="y",DATA_ENTRY!G57<>""),rel_cor_Brannick!F61,"") ->  | JW61: =IF(AND(DATA_ENTRY!$K57=6,DATA_ENTRY!$L57="y",DATA_ENTRY!G57<>""),rel_cor_Brannick!G61,"") -> 
B62: =IF(DATA_ENTRY!H58<>"",DATA_ENTRY!H58,DATA_ENTRY!$Q$9) -> 1 | C62: =IF(DATA_ENTRY!I58<>"",DATA_ENTRY!I58,DATA_ENTRY!$Q$10) -> 1 | D62: =IF(DATA_ENTRY!J58<>"",DATA_ENTRY!J58,DATA_ENTRY!$Q$11) -> 1 | E62: 1 | F62: 1 | G62: 1 | Z62: =IF(AND(DATA_ENTRY!$L58="y",DATA_ENTRY!F58<>""),DATA_ENTRY!F58,"") ->  | AA62: =IF(AND(DATA_ENTRY!$L58="y",DATA_ENTRY!G58<>""),DATA_ENTRY!G58,"") ->  | BP62: =IF(AND(DATA_ENTRY!$K58=1,DATA_ENTRY!$L58="y",DATA_ENTRY!F58<>""),DATA_ENTRY!F58,"") ->  | BQ62: =IF(AND(DATA_ENTRY!$K58=1,DATA_ENTRY!$L58="y",DATA_ENTRY!G58<>""),DATA_ENTRY!G58,"") ->  | BS62: =IF(AND(DATA_ENTRY!$K58=1,DATA_ENTRY!$L58="y",DATA_ENTRY!G58<>""),rel_cor_Brannick!E62,"") ->  | BT62: =IF(AND(DATA_ENTRY!$K58=1,DATA_ENTRY!$L58="y",DATA_ENTRY!G58<>""),rel_cor_Brannick!F62,"") ->  | BU62: =IF(AND(DATA_ENTRY!$K58=1,DATA_ENTRY!$L58="y",DATA_ENTRY!G58<>""),rel_cor_Brannick!G62,"") ->  | DF62: =IF(AND(DATA_ENTRY!$K58=2,DATA_ENTRY!$L58="y",DATA_ENTRY!F58<>""),DATA_ENTRY!F58,"") ->  | DG62: =IF(AND(DATA_ENTRY!$K58=2,DATA_ENTRY!$L58="y",DATA_ENTRY!G58<>""),DATA_ENTRY!G58,"") ->  | DI62: =IF(AND(DATA_ENTRY!$K58=2,DATA_ENTRY!$L58="y",DATA_ENTRY!G58<>""),rel_cor_Brannick!E62,"") ->  | DJ62: =IF(AND(DATA_ENTRY!$K58=2,DATA_ENTRY!$L58="y",DATA_ENTRY!G58<>""),rel_cor_Brannick!F62,"") ->  | DK62: =IF(AND(DATA_ENTRY!$K58=2,DATA_ENTRY!$L58="y",DATA_ENTRY!G58<>""),rel_cor_Brannick!G62,"") ->  | EV62: =IF(AND(DATA_ENTRY!$K58=3,DATA_ENTRY!$L58="y",DATA_ENTRY!F58<>""),DATA_ENTRY!F58,"") ->  | EW62: =IF(AND(DATA_ENTRY!$K58=3,DATA_ENTRY!$L58="y",DATA_ENTRY!G58<>""),DATA_ENTRY!G58,"") ->  | EY62: =IF(AND(DATA_ENTRY!$K58=3,DATA_ENTRY!$L58="y",DATA_ENTRY!G58<>""),rel_cor_Brannick!E62,"") ->  | EZ62: =IF(AND(DATA_ENTRY!$K58=3,DATA_ENTRY!$L58="y",DATA_ENTRY!G58<>""),rel_cor_Brannick!F62,"") ->  | FA62: =IF(AND(DATA_ENTRY!$K58=3,DATA_ENTRY!$L58="y",DATA_ENTRY!G58<>""),rel_cor_Brannick!G62,"") ->  | GL62: =IF(AND(DATA_ENTRY!$K58=4,DATA_ENTRY!$L58="y",DATA_ENTRY!F58<>""),DATA_ENTRY!F58,"") ->  | GM62: =IF(AND(DATA_ENTRY!$K58=4,DATA_ENTRY!$L58="y",DATA_ENTRY!G58<>""),DATA_ENTRY!G58,"") ->  | GO62: =IF(AND(DATA_ENTRY!$K58=4,DATA_ENTRY!$L58="y",DATA_ENTRY!G58<>""),rel_cor_Brannick!E62,"") ->  | GP62: =IF(AND(DATA_ENTRY!$K58=4,DATA_ENTRY!$L58="y",DATA_ENTRY!G58<>""),rel_cor_Brannick!F62,"") ->  | GQ62: =IF(AND(DATA_ENTRY!$K58=4,DATA_ENTRY!$L58="y",DATA_ENTRY!G58<>""),rel_cor_Brannick!G62,"") ->  | IB62: =IF(AND(DATA_ENTRY!$K58=5,DATA_ENTRY!$L58="y",DATA_ENTRY!F58<>""),DATA_ENTRY!F58,"") ->  | IC62: =IF(AND(DATA_ENTRY!$K58=5,DATA_ENTRY!$L58="y",DATA_ENTRY!G58<>""),DATA_ENTRY!G58,"") ->  | IE62: =IF(AND(DATA_ENTRY!$K58=5,DATA_ENTRY!$L58="y",DATA_ENTRY!G58<>""),rel_cor_Brannick!E62,"") ->  | IF62: =IF(AND(DATA_ENTRY!$K58=5,DATA_ENTRY!$L58="y",DATA_ENTRY!G58<>""),rel_cor_Brannick!F62,"") ->  | IG62: =IF(AND(DATA_ENTRY!$K58=5,DATA_ENTRY!$L58="y",DATA_ENTRY!G58<>""),rel_cor_Brannick!G62,"") ->  | JR62: =IF(AND(DATA_ENTRY!$K58=6,DATA_ENTRY!$L58="y",DATA_ENTRY!F58<>""),DATA_ENTRY!F58,"") ->  | JS62: =IF(AND(DATA_ENTRY!$K58=6,DATA_ENTRY!$L58="y",DATA_ENTRY!G58<>""),DATA_ENTRY!G58,"") ->  | JU62: =IF(AND(DATA_ENTRY!$K58=6,DATA_ENTRY!$L58="y",DATA_ENTRY!G58<>""),rel_cor_Brannick!E62,"") ->  | JV62: =IF(AND(DATA_ENTRY!$K58=6,DATA_ENTRY!$L58="y",DATA_ENTRY!G58<>""),rel_cor_Brannick!F62,"") ->  | JW62: =IF(AND(DATA_ENTRY!$K58=6,DATA_ENTRY!$L58="y",DATA_ENTRY!G58<>""),rel_cor_Brannick!G62,"") -> 
B63: =IF(DATA_ENTRY!H59<>"",DATA_ENTRY!H59,DATA_ENTRY!$Q$9) -> 1 | C63: =IF(DATA_ENTRY!I59<>"",DATA_ENTRY!I59,DATA_ENTRY!$Q$10) -> 1 | D63: =IF(DATA_ENTRY!J59<>"",DATA_ENTRY!J59,DATA_ENTRY!$Q$11) -> 1 | E63: 1 | F63: 1 | G63: 1 | Z63: =IF(AND(DATA_ENTRY!$L59="y",DATA_ENTRY!F59<>""),DATA_ENTRY!F59,"") ->  | AA63: =IF(AND(DATA_ENTRY!$L59="y",DATA_ENTRY!G59<>""),DATA_ENTRY!G59,"") ->  | BP63: =IF(AND(DATA_ENTRY!$K59=1,DATA_ENTRY!$L59="y",DATA_ENTRY!F59<>""),DATA_ENTRY!F59,"") ->  | BQ63: =IF(AND(DATA_ENTRY!$K59=1,DATA_ENTRY!$L59="y",DATA_ENTRY!G59<>""),DATA_ENTRY!G59,"") ->  | BS63: =IF(AND(DATA_ENTRY!$K59=1,DATA_ENTRY!$L59="y",DATA_ENTRY!G59<>""),rel_cor_Brannick!E63,"") ->  | BT63: =IF(AND(DATA_ENTRY!$K59=1,DATA_ENTRY!$L59="y",DATA_ENTRY!G59<>""),rel_cor_Brannick!F63,"") ->  | BU63: =IF(AND(DATA_ENTRY!$K59=1,DATA_ENTRY!$L59="y",DATA_ENTRY!G59<>""),rel_cor_Brannick!G63,"") ->  | DF63: =IF(AND(DATA_ENTRY!$K59=2,DATA_ENTRY!$L59="y",DATA_ENTRY!F59<>""),DATA_ENTRY!F59,"") ->  | DG63: =IF(AND(DATA_ENTRY!$K59=2,DATA_ENTRY!$L59="y",DATA_ENTRY!G59<>""),DATA_ENTRY!G59,"") ->  | DI63: =IF(AND(DATA_ENTRY!$K59=2,DATA_ENTRY!$L59="y",DATA_ENTRY!G59<>""),rel_cor_Brannick!E63,"") ->  | DJ63: =IF(AND(DATA_ENTRY!$K59=2,DATA_ENTRY!$L59="y",DATA_ENTRY!G59<>""),rel_cor_Brannick!F63,"") ->  | DK63: =IF(AND(DATA_ENTRY!$K59=2,DATA_ENTRY!$L59="y",DATA_ENTRY!G59<>""),rel_cor_Brannick!G63,"") ->  | EV63: =IF(AND(DATA_ENTRY!$K59=3,DATA_ENTRY!$L59="y",DATA_ENTRY!F59<>""),DATA_ENTRY!F59,"") ->  | EW63: =IF(AND(DATA_ENTRY!$K59=3,DATA_ENTRY!$L59="y",DATA_ENTRY!G59<>""),DATA_ENTRY!G59,"") ->  | EY63: =IF(AND(DATA_ENTRY!$K59=3,DATA_ENTRY!$L59="y",DATA_ENTRY!G59<>""),rel_cor_Brannick!E63,"") ->  | EZ63: =IF(AND(DATA_ENTRY!$K59=3,DATA_ENTRY!$L59="y",DATA_ENTRY!G59<>""),rel_cor_Brannick!F63,"") ->  | FA63: =IF(AND(DATA_ENTRY!$K59=3,DATA_ENTRY!$L59="y",DATA_ENTRY!G59<>""),rel_cor_Brannick!G63,"") ->  | GL63: =IF(AND(DATA_ENTRY!$K59=4,DATA_ENTRY!$L59="y",DATA_ENTRY!F59<>""),DATA_ENTRY!F59,"") ->  | GM63: =IF(AND(DATA_ENTRY!$K59=4,DATA_ENTRY!$L59="y",DATA_ENTRY!G59<>""),DATA_ENTRY!G59,"") ->  | GO63: =IF(AND(DATA_ENTRY!$K59=4,DATA_ENTRY!$L59="y",DATA_ENTRY!G59<>""),rel_cor_Brannick!E63,"") ->  | GP63: =IF(AND(DATA_ENTRY!$K59=4,DATA_ENTRY!$L59="y",DATA_ENTRY!G59<>""),rel_cor_Brannick!F63,"") ->  | GQ63: =IF(AND(DATA_ENTRY!$K59=4,DATA_ENTRY!$L59="y",DATA_ENTRY!G59<>""),rel_cor_Brannick!G63,"") ->  | IB63: =IF(AND(DATA_ENTRY!$K59=5,DATA_ENTRY!$L59="y",DATA_ENTRY!F59<>""),DATA_ENTRY!F59,"") ->  | IC63: =IF(AND(DATA_ENTRY!$K59=5,DATA_ENTRY!$L59="y",DATA_ENTRY!G59<>""),DATA_ENTRY!G59,"") ->  | IE63: =IF(AND(DATA_ENTRY!$K59=5,DATA_ENTRY!$L59="y",DATA_ENTRY!G59<>""),rel_cor_Brannick!E63,"") ->  | IF63: =IF(AND(DATA_ENTRY!$K59=5,DATA_ENTRY!$L59="y",DATA_ENTRY!G59<>""),rel_cor_Brannick!F63,"") ->  | IG63: =IF(AND(DATA_ENTRY!$K59=5,DATA_ENTRY!$L59="y",DATA_ENTRY!G59<>""),rel_cor_Brannick!G63,"") ->  | JR63: =IF(AND(DATA_ENTRY!$K59=6,DATA_ENTRY!$L59="y",DATA_ENTRY!F59<>""),DATA_ENTRY!F59,"") ->  | JS63: =IF(AND(DATA_ENTRY!$K59=6,DATA_ENTRY!$L59="y",DATA_ENTRY!G59<>""),DATA_ENTRY!G59,"") ->  | JU63: =IF(AND(DATA_ENTRY!$K59=6,DATA_ENTRY!$L59="y",DATA_ENTRY!G59<>""),rel_cor_Brannick!E63,"") ->  | JV63: =IF(AND(DATA_ENTRY!$K59=6,DATA_ENTRY!$L59="y",DATA_ENTRY!G59<>""),rel_cor_Brannick!F63,"") ->  | JW63: =IF(AND(DATA_ENTRY!$K59=6,DATA_ENTRY!$L59="y",DATA_ENTRY!G59<>""),rel_cor_Brannick!G63,"") -> 
B64: =IF(DATA_ENTRY!H60<>"",DATA_ENTRY!H60,DATA_ENTRY!$Q$9) -> 1 | C64: =IF(DATA_ENTRY!I60<>"",DATA_ENTRY!I60,DATA_ENTRY!$Q$10) -> 1 | D64: =IF(DATA_ENTRY!J60<>"",DATA_ENTRY!J60,DATA_ENTRY!$Q$11) -> 1 | E64: 1 | F64: 1 | G64: 1 | Z64: =IF(AND(DATA_ENTRY!$L60="y",DATA_ENTRY!F60<>""),DATA_ENTRY!F60,"") ->  | AA64: =IF(AND(DATA_ENTRY!$L60="y",DATA_ENTRY!G60<>""),DATA_ENTRY!G60,"") ->  | BP64: =IF(AND(DATA_ENTRY!$K60=1,DATA_ENTRY!$L60="y",DATA_ENTRY!F60<>""),DATA_ENTRY!F60,"") ->  | BQ64: =IF(AND(DATA_ENTRY!$K60=1,DATA_ENTRY!$L60="y",DATA_ENTRY!G60<>""),DATA_ENTRY!G60,"") ->  | BS64: =IF(AND(DATA_ENTRY!$K60=1,DATA_ENTRY!$L60="y",DATA_ENTRY!G60<>""),rel_cor_Brannick!E64,"") ->  | BT64: =IF(AND(DATA_ENTRY!$K60=1,DATA_ENTRY!$L60="y",DATA_ENTRY!G60<>""),rel_cor_Brannick!F64,"") ->  | BU64: =IF(AND(DATA_ENTRY!$K60=1,DATA_ENTRY!$L60="y",DATA_ENTRY!G60<>""),rel_cor_Brannick!G64,"") ->  | DF64: =IF(AND(DATA_ENTRY!$K60=2,DATA_ENTRY!$L60="y",DATA_ENTRY!F60<>""),DATA_ENTRY!F60,"") ->  | DG64: =IF(AND(DATA_ENTRY!$K60=2,DATA_ENTRY!$L60="y",DATA_ENTRY!G60<>""),DATA_ENTRY!G60,"") ->  | DI64: =IF(AND(DATA_ENTRY!$K60=2,DATA_ENTRY!$L60="y",DATA_ENTRY!G60<>""),rel_cor_Brannick!E64,"") ->  | DJ64: =IF(AND(DATA_ENTRY!$K60=2,DATA_ENTRY!$L60="y",DATA_ENTRY!G60<>""),rel_cor_Brannick!F64,"") ->  | DK64: =IF(AND(DATA_ENTRY!$K60=2,DATA_ENTRY!$L60="y",DATA_ENTRY!G60<>""),rel_cor_Brannick!G64,"") ->  | EV64: =IF(AND(DATA_ENTRY!$K60=3,DATA_ENTRY!$L60="y",DATA_ENTRY!F60<>""),DATA_ENTRY!F60,"") ->  | EW64: =IF(AND(DATA_ENTRY!$K60=3,DATA_ENTRY!$L60="y",DATA_ENTRY!G60<>""),DATA_ENTRY!G60,"") ->  | EY64: =IF(AND(DATA_ENTRY!$K60=3,DATA_ENTRY!$L60="y",DATA_ENTRY!G60<>""),rel_cor_Brannick!E64,"") ->  | EZ64: =IF(AND(DATA_ENTRY!$K60=3,DATA_ENTRY!$L60="y",DATA_ENTRY!G60<>""),rel_cor_Brannick!F64,"") ->  | FA64: =IF(AND(DATA_ENTRY!$K60=3,DATA_ENTRY!$L60="y",DATA_ENTRY!G60<>""),rel_cor_Brannick!G64,"") ->  | GL64: =IF(AND(DATA_ENTRY!$K60=4,DATA_ENTRY!$L60="y",DATA_ENTRY!F60<>""),DATA_ENTRY!F60,"") ->  | GM64: =IF(AND(DATA_ENTRY!$K60=4,DATA_ENTRY!$L60="y",DATA_ENTRY!G60<>""),DATA_ENTRY!G60,"") ->  | GO64: =IF(AND(DATA_ENTRY!$K60=4,DATA_ENTRY!$L60="y",DATA_ENTRY!G60<>""),rel_cor_Brannick!E64,"") ->  | GP64: =IF(AND(DATA_ENTRY!$K60=4,DATA_ENTRY!$L60="y",DATA_ENTRY!G60<>""),rel_cor_Brannick!F64,"") ->  | GQ64: =IF(AND(DATA_ENTRY!$K60=4,DATA_ENTRY!$L60="y",DATA_ENTRY!G60<>""),rel_cor_Brannick!G64,"") ->  | IB64: =IF(AND(DATA_ENTRY!$K60=5,DATA_ENTRY!$L60="y",DATA_ENTRY!F60<>""),DATA_ENTRY!F60,"") ->  | IC64: =IF(AND(DATA_ENTRY!$K60=5,DATA_ENTRY!$L60="y",DATA_ENTRY!G60<>""),DATA_ENTRY!G60,"") ->  | IE64: =IF(AND(DATA_ENTRY!$K60=5,DATA_ENTRY!$L60="y",DATA_ENTRY!G60<>""),rel_cor_Brannick!E64,"") ->  | IF64: =IF(AND(DATA_ENTRY!$K60=5,DATA_ENTRY!$L60="y",DATA_ENTRY!G60<>""),rel_cor_Brannick!F64,"") ->  | IG64: =IF(AND(DATA_ENTRY!$K60=5,DATA_ENTRY!$L60="y",DATA_ENTRY!G60<>""),rel_cor_Brannick!G64,"") ->  | JR64: =IF(AND(DATA_ENTRY!$K60=6,DATA_ENTRY!$L60="y",DATA_ENTRY!F60<>""),DATA_ENTRY!F60,"") ->  | JS64: =IF(AND(DATA_ENTRY!$K60=6,DATA_ENTRY!$L60="y",DATA_ENTRY!G60<>""),DATA_ENTRY!G60,"") ->  | JU64: =IF(AND(DATA_ENTRY!$K60=6,DATA_ENTRY!$L60="y",DATA_ENTRY!G60<>""),rel_cor_Brannick!E64,"") ->  | JV64: =IF(AND(DATA_ENTRY!$K60=6,DATA_ENTRY!$L60="y",DATA_ENTRY!G60<>""),rel_cor_Brannick!F64,"") ->  | JW64: =IF(AND(DATA_ENTRY!$K60=6,DATA_ENTRY!$L60="y",DATA_ENTRY!G60<>""),rel_cor_Brannick!G64,"") -> 
B65: =IF(DATA_ENTRY!H61<>"",DATA_ENTRY!H61,DATA_ENTRY!$Q$9) -> 1 | C65: =IF(DATA_ENTRY!I61<>"",DATA_ENTRY!I61,DATA_ENTRY!$Q$10) -> 1 | D65: =IF(DATA_ENTRY!J61<>"",DATA_ENTRY!J61,DATA_ENTRY!$Q$11) -> 1 | E65: 1 | F65: 1 | G65: 1 | Z65: =IF(AND(DATA_ENTRY!$L61="y",DATA_ENTRY!F61<>""),DATA_ENTRY!F61,"") ->  | AA65: =IF(AND(DATA_ENTRY!$L61="y",DATA_ENTRY!G61<>""),DATA_ENTRY!G61,"") ->  | BP65: =IF(AND(DATA_ENTRY!$K61=1,DATA_ENTRY!$L61="y",DATA_ENTRY!F61<>""),DATA_ENTRY!F61,"") ->  | BQ65: =IF(AND(DATA_ENTRY!$K61=1,DATA_ENTRY!$L61="y",DATA_ENTRY!G61<>""),DATA_ENTRY!G61,"") ->  | BS65: =IF(AND(DATA_ENTRY!$K61=1,DATA_ENTRY!$L61="y",DATA_ENTRY!G61<>""),rel_cor_Brannick!E65,"") ->  | BT65: =IF(AND(DATA_ENTRY!$K61=1,DATA_ENTRY!$L61="y",DATA_ENTRY!G61<>""),rel_cor_Brannick!F65,"") ->  | BU65: =IF(AND(DATA_ENTRY!$K61=1,DATA_ENTRY!$L61="y",DATA_ENTRY!G61<>""),rel_cor_Brannick!G65,"") ->  | DF65: =IF(AND(DATA_ENTRY!$K61=2,DATA_ENTRY!$L61="y",DATA_ENTRY!F61<>""),DATA_ENTRY!F61,"") ->  | DG65: =IF(AND(DATA_ENTRY!$K61=2,DATA_ENTRY!$L61="y",DATA_ENTRY!G61<>""),DATA_ENTRY!G61,"") ->  | DI65: =IF(AND(DATA_ENTRY!$K61=2,DATA_ENTRY!$L61="y",DATA_ENTRY!G61<>""),rel_cor_Brannick!E65,"") ->  | DJ65: =IF(AND(DATA_ENTRY!$K61=2,DATA_ENTRY!$L61="y",DATA_ENTRY!G61<>""),rel_cor_Brannick!F65,"") ->  | DK65: =IF(AND(DATA_ENTRY!$K61=2,DATA_ENTRY!$L61="y",DATA_ENTRY!G61<>""),rel_cor_Brannick!G65,"") ->  | EV65: =IF(AND(DATA_ENTRY!$K61=3,DATA_ENTRY!$L61="y",DATA_ENTRY!F61<>""),DATA_ENTRY!F61,"") ->  | EW65: =IF(AND(DATA_ENTRY!$K61=3,DATA_ENTRY!$L61="y",DATA_ENTRY!G61<>""),DATA_ENTRY!G61,"") ->  | EY65: =IF(AND(DATA_ENTRY!$K61=3,DATA_ENTRY!$L61="y",DATA_ENTRY!G61<>""),rel_cor_Brannick!E65,"") ->  | EZ65: =IF(AND(DATA_ENTRY!$K61=3,DATA_ENTRY!$L61="y",DATA_ENTRY!G61<>""),rel_cor_Brannick!F65,"") ->  | FA65: =IF(AND(DATA_ENTRY!$K61=3,DATA_ENTRY!$L61="y",DATA_ENTRY!G61<>""),rel_cor_Brannick!G65,"") ->  | GL65: =IF(AND(DATA_ENTRY!$K61=4,DATA_ENTRY!$L61="y",DATA_ENTRY!F61<>""),DATA_ENTRY!F61,"") ->  | GM65: =IF(AND(DATA_ENTRY!$K61=4,DATA_ENTRY!$L61="y",DATA_ENTRY!G61<>""),DATA_ENTRY!G61,"") ->  | GO65: =IF(AND(DATA_ENTRY!$K61=4,DATA_ENTRY!$L61="y",DATA_ENTRY!G61<>""),rel_cor_Brannick!E65,"") ->  | GP65: =IF(AND(DATA_ENTRY!$K61=4,DATA_ENTRY!$L61="y",DATA_ENTRY!G61<>""),rel_cor_Brannick!F65,"") ->  | GQ65: =IF(AND(DATA_ENTRY!$K61=4,DATA_ENTRY!$L61="y",DATA_ENTRY!G61<>""),rel_cor_Brannick!G65,"") ->  | IB65: =IF(AND(DATA_ENTRY!$K61=5,DATA_ENTRY!$L61="y",DATA_ENTRY!F61<>""),DATA_ENTRY!F61,"") ->  | IC65: =IF(AND(DATA_ENTRY!$K61=5,DATA_ENTRY!$L61="y",DATA_ENTRY!G61<>""),DATA_ENTRY!G61,"") ->  | IE65: =IF(AND(DATA_ENTRY!$K61=5,DATA_ENTRY!$L61="y",DATA_ENTRY!G61<>""),rel_cor_Brannick!E65,"") ->  | IF65: =IF(AND(DATA_ENTRY!$K61=5,DATA_ENTRY!$L61="y",DATA_ENTRY!G61<>""),rel_cor_Brannick!F65,"") ->  | IG65: =IF(AND(DATA_ENTRY!$K61=5,DATA_ENTRY!$L61="y",DATA_ENTRY!G61<>""),rel_cor_Brannick!G65,"") ->  | JR65: =IF(AND(DATA_ENTRY!$K61=6,DATA_ENTRY!$L61="y",DATA_ENTRY!F61<>""),DATA_ENTRY!F61,"") ->  | JS65: =IF(AND(DATA_ENTRY!$K61=6,DATA_ENTRY!$L61="y",DATA_ENTRY!G61<>""),DATA_ENTRY!G61,"") ->  | JU65: =IF(AND(DATA_ENTRY!$K61=6,DATA_ENTRY!$L61="y",DATA_ENTRY!G61<>""),rel_cor_Brannick!E65,"") ->  | JV65: =IF(AND(DATA_ENTRY!$K61=6,DATA_ENTRY!$L61="y",DATA_ENTRY!G61<>""),rel_cor_Brannick!F65,"") ->  | JW65: =IF(AND(DATA_ENTRY!$K61=6,DATA_ENTRY!$L61="y",DATA_ENTRY!G61<>""),rel_cor_Brannick!G65,"") -> 
